Workbook

Sheet DOTS_TCA
A1: Pontuação Global Piloto BRT TransCarioca
B3: estc | F3: pont_dens | G3: pont_ar_pred | H3: pont_ar_mix | I3: pont_ar_sub | K3: pont_ar_incomp | M3: pont_agua | N3: pont_esgt | Q3: pont_dens_qd | R3: pont_segr | S3: pont_intg | V3: pont_calc | W3: pont_ilum | X3: pont_arb | Z3: pont_H_PR
E4: Tema | F4: Uso e ocupação do solo | M4: Infraestrutura de Saneamento Básico | Q4: Conectividade do Espaço Urbano | V4: Condições de Circulação para Transportes Ativos | Z4: Diversidade socioeconômica
E5: Peso | F5: 1 | G5: 1 | H5: 1 | I5: 1 | J5: 1 | M5: 1 | N5: 1 | O5: 2.5 | Q5: 1 | R5: 1 | S5: 1 | T5: 2 | V5: 1 | W5: 1 | X5: 1 | Y5: 1 | Z5: 1 | AA5: 2
A6: # | B6: Lista de Estações | C6: Lista de Estações sem Caracteres Especiais | D6: Resultados Fase 1 | E6: Métrica | F6: Pontuação Densidade Demográfica | G6: Pontuação Áreas Monofuncionais | H6: Pontuação Áreas Residenciais com Atividades Complementares | I6: Pontuação Áreas não edificadas ou subutilizadas | J6: Total Parcial Tema | K6: Controle Validação Áreas Incompatíveis | L6: Controle Validação Tema | M6: Pontuação Abastecimento de Água | N6: Pontuação Coleta de Esgoto | O6: Total Parcial Tema | P6: Controle Validação Tema | Q6: Pontuação Densidade de Quadras | R6: Pontuação Elementos de Segregação | S6: Pontuação Integração Rede de TP de MA Capacidade | T6: Total Parcial Tema | U6: Controle Validação Tema | V6: Pontuação Calçadas no Entorno | W6: Pontuação Iluminação no Entorno | X6: Pontuação Arborização no Entorno | Y6: Total Parcial Tema | Z6: Pontuação Diversidade Socioeconômica | AA6: Total Parcial Tema | AB6: Pontuação TOTAL | AC6: Desempenho PRELIMINAR | AD6: Controle Validação TOTAL
A7: 1 | B7: Vicente de Carvalho | C7: Vicente de Carvalho | D7: =IF(AD7="VALIDADO",AC7,"BAIXO") -> ALTO | F7: =VLOOKUP($B7,SEE_agrg!C:CC,MATCH(F$3,SEE_agrg!$C$3:$CB$3,FALSE),FALSE) -> 1 | G7: =VLOOKUP($B7,UdS_agrg!$C:$P,MATCH(G$3,UdS_agrg!$C$3:$P$3,FALSE),FALSE) -> 3 | H7: =VLOOKUP($B7,UdS_agrg!$C:$P,MATCH(H$3,UdS_agrg!$C$3:$P$3,FALSE),FALSE) -> 1 | I7: =VLOOKUP($B7,UdS_agrg!$C:$P,MATCH(I$3,UdS_agrg!$C$3:$P$3,FALSE),FALSE) -> 3 | J7: =F7*$F$5+G7*$G$5+H7*$H$5+I7*$I$5 -> 8 | K7: =VLOOKUP($B7,UdS_agrg!$C:$P,MATCH(K$3,UdS_agrg!$C$3:$P$3,FALSE),FALSE) -> VALIDADO | L7: =IF(COUNTIF(G7,0)=1,"INVALIDADO",K7) -> VALIDADO | M7: =VLOOKUP($B7,SEE_agrg!$C:$CC,MATCH(M$3,SEE_agrg!$C$3:$CB$3,FALSE),FALSE) -> 5 | N7: =VLOOKUP($B7,SEE_agrg!$C:$CC,MATCH(N$3,SEE_agrg!$C$3:$CB$3,FALSE),FALSE) -> 5 | O7: =M7*$M$5+N7*$N$5 -> 10 | P7: =IF(OR(M7=0,N7=0),"INVALIDADO","VALIDADO") -> VALIDADO | Q7: =VLOOKUP($B7,QD_agrg!$C:$M,MATCH(Q$3,QD_agrg!$C$3:$M$3,FALSE),FALSE) -> 5 | R7: =VLOOKUP($B7,QD_agrg!$C:$M,MATCH(R$3,QD_agrg!$C$3:$M$3,FALSE),FALSE) -> 0 | S7: =VLOOKUP($B7,QD_agrg!$C:$O,MATCH(S$3,QD_agrg!$C$3:$O$3,FALSE),FALSE) -> 3 | T7: =Q7*$Q$5+R7*$R$5+S7*$S$5 -> 8 | U7: =IF(Q7=0,"INVALIDADO","VALIDADO") -> VALIDADO | V7: =VLOOKUP($B7,SEE_agrg!$C:$CC,MATCH(V$3,SEE_agrg!$C$3:$CB$3,FALSE),FALSE) -> 5 | W7: =VLOOKUP($B7,SEE_agrg!$C:$CC,MATCH(W$3,SEE_agrg!$C$3:$CB$3,FALSE),FALSE) -> 5 | X7: =VLOOKUP($B7,SEE_agrg!$C:$CC,MATCH(X$3,SEE_agrg!$C$3:$CB$3,FALSE),FALSE) -> 5 | Y7: =V7*$V$5+W7*$W$5+X7*$X$5 -> 15 | Z7: =VLOOKUP(B7,SEE_agrg!$C:$CC,MATCH(Z$3,SEE_agrg!$C$3:$CB$3,FALSE),FALSE) -> 3 | AA7: =Z7 -> 3 | AB7: =J7*$J$5+Y7*$Y$5+O7*$O$5+T7*$T$5+AA7*$AA$5 -> 70 | AC7: =IF(AB7>=60,"ALTO",IF(AB7>=40,"MÉDIO","BAIXO")) -> ALTO | AD7: =IF(OR(L7="INVALIDADO",P7="INVALIDADO",U7="INVALIDADO"),"INVALIDADO","VALIDADO") -> VALIDADO
A8: 2 | B8: Penha | C8: Penha | D8: =IF(AD8="VALIDADO",AC8,"BAIXO") -> ALTO | F8: =VLOOKUP($B8,SEE_agrg!C:CC,MATCH(F$3,SEE_agrg!$C$3:$CB$3,FALSE),FALSE) -> 0 | G8: =VLOOKUP($B8,UdS_agrg!$C:$P,MATCH(G$3,UdS_agrg!$C$3:$P$3,FALSE),FALSE) -> 5 | H8: =VLOOKUP($B8,UdS_agrg!$C:$P,MATCH(H$3,UdS_agrg!$C$3:$P$3,FALSE),FALSE) -> 4 | I8: =VLOOKUP($B8,UdS_agrg!$C:$P,MATCH(I$3,UdS_agrg!$C$3:$P$3,FALSE),FALSE) -> 0 | J8: 9 | K8: =VLOOKUP($B8,UdS_agrg!$C:$P,MATCH(K$3,UdS_agrg!$C$3:$P$3,FALSE),FALSE) -> VALIDADO | L8: VALIDADO | M8: =VLOOKUP($B8,SEE_agrg!$C:$CC,MATCH(M$3,SEE_agrg!$C$3:$CB$3,FALSE),FALSE) -> 5 | N8: =VLOOKUP($B8,SEE_agrg!$C:$CC,MATCH(N$3,SEE_agrg!$C$3:$CB$3,FALSE),FALSE) -> 5 | O8: 10 | P8: VALIDADO | Q8: =VLOOKUP($B8,QD_agrg!$C:$M,MATCH(Q$3,QD_agrg!$C$3:$M$3,FALSE),FALSE) -> 5 | R8: =VLOOKUP($B8,QD_agrg!$C:$M,MATCH(R$3,QD_agrg!$C$3:$M$3,FALSE),FALSE) -> 0 | S8: =VLOOKUP($B8,QD_agrg!$C:$O,MATCH(S$3,QD_agrg!$C$3:$O$3,FALSE),FALSE) -> 3 | T8: 8 | U8: VALIDADO | V8: =VLOOKUP($B8,SEE_agrg!$C:$CC,MATCH(V$3,SEE_agrg!$C$3:$CB$3,FALSE),FALSE) -> 5 | W8: =VLOOKUP($B8,SEE_agrg!$C:$CC,MATCH(W$3,SEE_agrg!$C$3:$CB$3,FALSE),FALSE) -> 5 | X8: =VLOOKUP($B8,SEE_agrg!$C:$CC,MATCH(X$3,SEE_agrg!$C$3:$CB$3,FALSE),FALSE) -> 2 | Y8: 12 | Z8: =VLOOKUP(B8,SEE_agrg!$C:$CC,MATCH(Z$3,SEE_agrg!$C$3:$CB$3,FALSE),FALSE) -> 4 | AA8: 4 | AB8: 70 | AC8: ALTO | AD8: VALIDADO
A9: 3 | B9: Praça do Carmo | C9: Praa do Carmo | D9: =IF(AD9="VALIDADO",AC9,"BAIXO") -> ALTO | F9: =VLOOKUP($B9,SEE_agrg!C:CC,MATCH(F$3,SEE_agrg!$C$3:$CB$3,FALSE),FALSE) -> 0 | G9: =VLOOKUP($B9,UdS_agrg!$C:$P,MATCH(G$3,UdS_agrg!$C$3:$P$3,FALSE),FALSE) -> 5 | H9: =VLOOKUP($B9,UdS_agrg!$C:$P,MATCH(H$3,UdS_agrg!$C$3:$P$3,FALSE),FALSE) -> 5 | I9: =VLOOKUP($B9,UdS_agrg!$C:$P,MATCH(I$3,UdS_agrg!$C$3:$P$3,FALSE),FALSE) -> 0 | J9: 10 | K9: =VLOOKUP($B9,UdS_agrg!$C:$P,MATCH(K$3,UdS_agrg!$C$3:$P$3,FALSE),FALSE) -> VALIDADO | L9: VALIDADO | M9: =VLOOKUP($B9,SEE_agrg!$C:$CC,MATCH(M$3,SEE_agrg!$C$3:$CB$3,FALSE),FALSE) -> 5 | N9: =VLOOKUP($B9,SEE_agrg!$C:$CC,MATCH(N$3,SEE_agrg!$C$3:$CB$3,FALSE),FALSE) -> 5 | O9: 10 | P9: VALIDADO | Q9: =VLOOKUP($B9,QD_agrg!$C:$M,MATCH(Q$3,QD_agrg!$C$3:$M$3,FALSE),FALSE) -> 5 | R9: =VLOOKUP($B9,QD_agrg!$C:$M,MATCH(R$3,QD_agrg!$C$3:$M$3,FALSE),FALSE) -> 3 | S9: =VLOOKUP($B9,QD_agrg!$C:$O,MATCH(S$3,QD_agrg!$C$3:$O$3,FALSE),FALSE) -> 0 | T9: 8 | U9: VALIDADO | V9: =VLOOKUP($B9,SEE_agrg!$C:$CC,MATCH(V$3,SEE_agrg!$C$3:$CB$3,FALSE),FALSE) -> 4 | W9: =VLOOKUP($B9,SEE_agrg!$C:$CC,MATCH(W$3,SEE_agrg!$C$3:$CB$3,FALSE),FALSE) -> 5 | X9: =VLOOKUP($B9,SEE_agrg!$C:$CC,MATCH(X$3,SEE_agrg!$C$3:$CB$3,FALSE),FALSE) -> 2 | Y9: 11 | Z9: =VLOOKUP(B9,SEE_agrg!$C:$CC,MATCH(Z$3,SEE_agrg!$C$3:$CB$3,FALSE),FALSE) -> 3 | AA9: 3 | AB9: 68 | AC9: ALTO | AD9: VALIDADO
A10: 4 | B10: Praça do Bandolim | C10: Praa do Bandolim | D10: =IF(AD10="VALIDADO",AC10,"BAIXO") -> ALTO | F10: =VLOOKUP($B10,SEE_agrg!C:CC,MATCH(F$3,SEE_agrg!$C$3:$CB$3,FALSE),FALSE) -> 5 | G10: =VLOOKUP($B10,UdS_agrg!$C:$P,MATCH(G$3,UdS_agrg!$C$3:$P$3,FALSE),FALSE) -> 5 | H10: =VLOOKUP($B10,UdS_agrg!$C:$P,MATCH(H$3,UdS_agrg!$C$3:$P$3,FALSE),FALSE) -> 1 | I10: =VLOOKUP($B10,UdS_agrg!$C:$P,MATCH(I$3,UdS_agrg!$C$3:$P$3,FALSE),FALSE) -> 1 | J10: 12 | K10: =VLOOKUP($B10,UdS_agrg!$C:$P,MATCH(K$3,UdS_agrg!$C$3:$P$3,FALSE),FALSE) -> VALIDADO | L10: VALIDADO | M10: =VLOOKUP($B10,SEE_agrg!$C:$CC,MATCH(M$3,SEE_agrg!$C$3:$CB$3,FALSE),FALSE) -> 5 | N10: =VLOOKUP($B10,SEE_agrg!$C:$CC,MATCH(N$3,SEE_agrg!$C$3:$CB$3,FALSE),FALSE) -> 4 | O10: 9 | P10: VALIDADO | Q10: =VLOOKUP($B10,QD_agrg!$C:$M,MATCH(Q$3,QD_agrg!$C$3:$M$3,FALSE),FALSE) -> 5 | R10: =VLOOKUP($B10,QD_agrg!$C:$M,MATCH(R$3,QD_agrg!$C$3:$M$3,FALSE),FALSE) -> 1 | S10: =VLOOKUP($B10,QD_agrg!$C:$O,MATCH(S$3,QD_agrg!$C$3:$O$3,FALSE),FALSE) -> 0 | T10: 6 | U10: VALIDADO | V10: =VLOOKUP($B10,SEE_agrg!$C:$CC,MATCH(V$3,SEE_agrg!$C$3:$CB$3,FALSE),FALSE) -> 5 | W10: =VLOOKUP($B10,SEE_agrg!$C:$CC,MATCH(W$3,SEE_agrg!$C$3:$CB$3,FALSE),FALSE) -> 5 | X10: =VLOOKUP($B10,SEE_agrg!$C:$CC,MATCH(X$3,SEE_agrg!$C$3:$CB$3,FALSE),FALSE) -> 5 | Y10: 15 | Z10: =VLOOKUP(B10,SEE_agrg!$C:$CC,MATCH(Z$3,SEE_agrg!$C$3:$CB$3,FALSE),FALSE) -> 3 | AA10: 3 | AB10: 67.5 | AC10: ALTO | AD10: VALIDADO
A11: 5 | B11: Pedro Taques | C11: Pedro Taques | D11: =IF(AD11="VALIDADO",AC11,"BAIXO") -> ALTO | F11: =VLOOKUP($B11,SEE_agrg!C:CC,MATCH(F$3,SEE_agrg!$C$3:$CB$3,FALSE),FALSE) -> 0 | G11: =VLOOKUP($B11,UdS_agrg!$C:$P,MATCH(G$3,UdS_agrg!$C$3:$P$3,FALSE),FALSE) -> 3 | H11: =VLOOKUP($B11,UdS_agrg!$C:$P,MATCH(H$3,UdS_agrg!$C$3:$P$3,FALSE),FALSE) -> 3 | I11: =VLOOKUP($B11,UdS_agrg!$C:$P,MATCH(I$3,UdS_agrg!$C$3:$P$3,FALSE),FALSE) -> 0 | J11: 6 | K11: =VLOOKUP($B11,UdS_agrg!$C:$P,MATCH(K$3,UdS_agrg!$C$3:$P$3,FALSE),FALSE) -> VALIDADO | L11: VALIDADO | M11: =VLOOKUP($B11,SEE_agrg!$C:$CC,MATCH(M$3,SEE_agrg!$C$3:$CB$3,FALSE),FALSE) -> 5 | N11: =VLOOKUP($B11,SEE_agrg!$C:$CC,MATCH(N$3,SEE_agrg!$C$3:$CB$3,FALSE),FALSE) -> 5 | O11: 10 | P11: VALIDADO | Q11: =VLOOKUP($B11,QD_agrg!$C:$M,MATCH(Q$3,QD_agrg!$C$3:$M$3,FALSE),FALSE) -> 5 | R11: =VLOOKUP($B11,QD_agrg!$C:$M,MATCH(R$3,QD_agrg!$C$3:$M$3,FALSE),FALSE) -> 3 | S11: =VLOOKUP($B11,QD_agrg!$C:$O,MATCH(S$3,QD_agrg!$C$3:$O$3,FALSE),FALSE) -> 0 | T11: 8 | U11: VALIDADO | V11: =VLOOKUP($B11,SEE_agrg!$C:$CC,MATCH(V$3,SEE_agrg!$C$3:$CB$3,FALSE),FALSE) -> 5 | W11: =VLOOKUP($B11,SEE_agrg!$C:$CC,MATCH(W$3,SEE_agrg!$C$3:$CB$3,FALSE),FALSE) -> 5 | X11: =VLOOKUP($B11,SEE_agrg!$C:$CC,MATCH(X$3,SEE_agrg!$C$3:$CB$3,FALSE),FALSE) -> 2 | Y11: 12 | Z11: =VLOOKUP(B11,SEE_agrg!$C:$CC,MATCH(Z$3,SEE_agrg!$C$3:$CB$3,FALSE),FALSE) -> 3 | AA11: 3 | AB11: 65 | AC11: ALTO | AD11: VALIDADO
A12: 6 | B12: Ibiapina | C12: Ibiapina | D12: =IF(AD12="VALIDADO",AC12,"BAIXO") -> ALTO | F12: =VLOOKUP($B12,SEE_agrg!C:CC,MATCH(F$3,SEE_agrg!$C$3:$CB$3,FALSE),FALSE) -> 0 | G12: =VLOOKUP($B12,UdS_agrg!$C:$P,MATCH(G$3,UdS_agrg!$C$3:$P$3,FALSE),FALSE) -> 5 | H12: =VLOOKUP($B12,UdS_agrg!$C:$P,MATCH(H$3,UdS_agrg!$C$3:$P$3,FALSE),FALSE) -> 4 | I12: =VLOOKUP($B12,UdS_agrg!$C:$P,MATCH(I$3,UdS_agrg!$C$3:$P$3,FALSE),FALSE) -> 0 | J12: 9 | K12: =VLOOKUP($B12,UdS_agrg!$C:$P,MATCH(K$3,UdS_agrg!$C$3:$P$3,FALSE),FALSE) -> VALIDADO | L12: VALIDADO | M12: =VLOOKUP($B12,SEE_agrg!$C:$CC,MATCH(M$3,SEE_agrg!$C$3:$CB$3,FALSE),FALSE) -> 5 | N12: =VLOOKUP($B12,SEE_agrg!$C:$CC,MATCH(N$3,SEE_agrg!$C$3:$CB$3,FALSE),FALSE) -> 5 | O12: 10 | P12: VALIDADO | Q12: =VLOOKUP($B12,QD_agrg!$C:$M,MATCH(Q$3,QD_agrg!$C$3:$M$3,FALSE),FALSE) -> 5 | R12: =VLOOKUP($B12,QD_agrg!$C:$M,MATCH(R$3,QD_agrg!$C$3:$M$3,FALSE),FALSE) -> 0 | S12: =VLOOKUP($B12,QD_agrg!$C:$O,MATCH(S$3,QD_agrg!$C$3:$O$3,FALSE),FALSE) -> 0 | T12: 5 | U12: VALIDADO | V12: =VLOOKUP($B12,SEE_agrg!$C:$CC,MATCH(V$3,SEE_agrg!$C$3:$CB$3,FALSE),FALSE) -> 5 | W12: =VLOOKUP($B12,SEE_agrg!$C:$CC,MATCH(W$3,SEE_agrg!$C$3:$CB$3,FALSE),FALSE) -> 5 | X12: =VLOOKUP($B12,SEE_agrg!$C:$CC,MATCH(X$3,SEE_agrg!$C$3:$CB$3,FALSE),FALSE) -> 4 | Y12: 14 | Z12: =VLOOKUP(B12,SEE_agrg!$C:$CC,MATCH(Z$3,SEE_agrg!$C$3:$CB$3,FALSE),FALSE) -> 3 | AA12: 3 | AB12: 64 | AC12: ALTO | AD12: VALIDADO
A13: 7 | B13: Aracy Cabral | C13: Aracy Cabral | D13: =IF(AD13="VALIDADO",AC13,"BAIXO") -> ALTO | F13: =VLOOKUP($B13,SEE_agrg!C:CC,MATCH(F$3,SEE_agrg!$C$3:$CB$3,FALSE),FALSE) -> 0 | G13: =VLOOKUP($B13,UdS_agrg!$C:$P,MATCH(G$3,UdS_agrg!$C$3:$P$3,FALSE),FALSE) -> 1 | H13: =VLOOKUP($B13,UdS_agrg!$C:$P,MATCH(H$3,UdS_agrg!$C$3:$P$3,FALSE),FALSE) -> 1 | I13: =VLOOKUP($B13,UdS_agrg!$C:$P,MATCH(I$3,UdS_agrg!$C$3:$P$3,FALSE),FALSE) -> 1 | J13: 3 | K13: =VLOOKUP($B13,UdS_agrg!$C:$P,MATCH(K$3,UdS_agrg!$C$3:$P$3,FALSE),FALSE) -> VALIDADO | L13: VALIDADO | M13: =VLOOKUP($B13,SEE_agrg!$C:$CC,MATCH(M$3,SEE_agrg!$C$3:$CB$3,FALSE),FALSE) -> 5 | N13: =VLOOKUP($B13,SEE_agrg!$C:$CC,MATCH(N$3,SEE_agrg!$C$3:$CB$3,FALSE),FALSE) -> 5 | O13: 10 | P13: VALIDADO | Q13: =VLOOKUP($B13,QD_agrg!$C:$M,MATCH(Q$3,QD_agrg!$C$3:$M$3,FALSE),FALSE) -> 5 | R13: =VLOOKUP($B13,QD_agrg!$C:$M,MATCH(R$3,QD_agrg!$C$3:$M$3,FALSE),FALSE) -> 3 | S13: =VLOOKUP($B13,QD_agrg!$C:$O,MATCH(S$3,QD_agrg!$C$3:$O$3,FALSE),FALSE) -> 0 | T13: 8 | U13: VALIDADO | V13: =VLOOKUP($B13,SEE_agrg!$C:$CC,MATCH(V$3,SEE_agrg!$C$3:$CB$3,FALSE),FALSE) -> 5 | W13: =VLOOKUP($B13,SEE_agrg!$C:$CC,MATCH(W$3,SEE_agrg!$C$3:$CB$3,FALSE),FALSE) -> 5 | X13: =VLOOKUP($B13,SEE_agrg!$C:$CC,MATCH(X$3,SEE_agrg!$C$3:$CB$3,FALSE),FALSE) -> 2 | Y13: 12 | Z13: =VLOOKUP(B13,SEE_agrg!$C:$CC,MATCH(Z$3,SEE_agrg!$C$3:$CB$3,FALSE),FALSE) -> 4 | AA13: 4 | AB13: 64 | AC13: ALTO | AD13: VALIDADO
A14: 8 | B14: Capitão Menezes | C14: Capito Menezes | D14: =IF(AD14="VALIDADO",AC14,"BAIXO") -> ALTO | F14: =VLOOKUP($B14,SEE_agrg!C:CC,MATCH(F$3,SEE_agrg!$C$3:$CB$3,FALSE),FALSE) -> 0 | G14: =VLOOKUP($B14,UdS_agrg!$C:$P,MATCH(G$3,UdS_agrg!$C$3:$P$3,FALSE),FALSE) -> 3 | H14: =VLOOKUP($B14,UdS_agrg!$C:$P,MATCH(H$3,UdS_agrg!$C$3:$P$3,FALSE),FALSE) -> 0 | I14: =VLOOKUP($B14,UdS_agrg!$C:$P,MATCH(I$3,UdS_agrg!$C$3:$P$3,FALSE),FALSE) -> 0 | J14: 3 | K14: =VLOOKUP($B14,UdS_agrg!$C:$P,MATCH(K$3,UdS_agrg!$C$3:$P$3,FALSE),FALSE) -> VALIDADO | L14: VALIDADO | M14: =VLOOKUP($B14,SEE_agrg!$C:$CC,MATCH(M$3,SEE_agrg!$C$3:$CB$3,FALSE),FALSE) -> 5 | N14: =VLOOKUP($B14,SEE_agrg!$C:$CC,MATCH(N$3,SEE_agrg!$C$3:$CB$3,FALSE),FALSE) -> 5 | O14: 10 | P14: VALIDADO | Q14: =VLOOKUP($B14,QD_agrg!$C:$M,MATCH(Q$3,QD_agrg!$C$3:$M$3,FALSE),FALSE) -> 4 | R14: =VLOOKUP($B14,QD_agrg!$C:$M,MATCH(R$3,QD_agrg!$C$3:$M$3,FALSE),FALSE) -> 3 | S14: =VLOOKUP($B14,QD_agrg!$C:$O,MATCH(S$3,QD_agrg!$C$3:$O$3,FALSE),FALSE) -> 0 | T14: 7 | U14: VALIDADO | V14: =VLOOKUP($B14,SEE_agrg!$C:$CC,MATCH(V$3,SEE_agrg!$C$3:$CB$3,FALSE),FALSE) -> 5 | W14: =VLOOKUP($B14,SEE_agrg!$C:$CC,MATCH(W$3,SEE_agrg!$C$3:$CB$3,FALSE),FALSE) -> 5 | X14: =VLOOKUP($B14,SEE_agrg!$C:$CC,MATCH(X$3,SEE_agrg!$C$3:$CB$3,FALSE),FALSE) -> 4 | Y14: 14 | Z14: =VLOOKUP(B14,SEE_agrg!$C:$CC,MATCH(Z$3,SEE_agrg!$C$3:$CB$3,FALSE),FALSE) -> 4 | AA14: 4 | AB14: 64 | AC14: ALTO | AD14: VALIDADO
A15: 9 | B15: Madureira | C15: Madureira | D15: =IF(AD15="VALIDADO",AC15,"BAIXO") -> ALTO | F15: =VLOOKUP($B15,SEE_agrg!C:CC,MATCH(F$3,SEE_agrg!$C$3:$CB$3,FALSE),FALSE) -> 1 | G15: =VLOOKUP($B15,UdS_agrg!$C:$P,MATCH(G$3,UdS_agrg!$C$3:$P$3,FALSE),FALSE) -> 5 | H15: =VLOOKUP($B15,UdS_agrg!$C:$P,MATCH(H$3,UdS_agrg!$C$3:$P$3,FALSE),FALSE) -> 1 | I15: =VLOOKUP($B15,UdS_agrg!$C:$P,MATCH(I$3,UdS_agrg!$C$3:$P$3,FALSE),FALSE) -> 1 | J15: 8 | K15: =VLOOKUP($B15,UdS_agrg!$C:$P,MATCH(K$3,UdS_agrg!$C$3:$P$3,FALSE),FALSE) -> VALIDADO | L15: VALIDADO | M15: =VLOOKUP($B15,SEE_agrg!$C:$CC,MATCH(M$3,SEE_agrg!$C$3:$CB$3,FALSE),FALSE) -> 5 | N15: =VLOOKUP($B15,SEE_agrg!$C:$CC,MATCH(N$3,SEE_agrg!$C$3:$CB$3,FALSE),FALSE) -> 4 | O15: 9 | P15: VALIDADO | Q15: =VLOOKUP($B15,QD_agrg!$C:$M,MATCH(Q$3,QD_agrg!$C$3:$M$3,FALSE),FALSE) -> 5 | R15: =VLOOKUP($B15,QD_agrg!$C:$M,MATCH(R$3,QD_agrg!$C$3:$M$3,FALSE),FALSE) -> 0 | S15: =VLOOKUP($B15,QD_agrg!$C:$O,MATCH(S$3,QD_agrg!$C$3:$O$3,FALSE),FALSE) -> 3 | T15: 8 | U15: VALIDADO | V15: =VLOOKUP($B15,SEE_agrg!$C:$CC,MATCH(V$3,SEE_agrg!$C$3:$CB$3,FALSE),FALSE) -> 4 | W15: =VLOOKUP($B15,SEE_agrg!$C:$CC,MATCH(W$3,SEE_agrg!$C$3:$CB$3,FALSE),FALSE) -> 5 | X15: =VLOOKUP($B15,SEE_agrg!$C:$CC,MATCH(X$3,SEE_agrg!$C$3:$CB$3,FALSE),FALSE) -> 0 | Y15: 9 | Z15: =VLOOKUP(B15,SEE_agrg!$C:$CC,MATCH(Z$3,SEE_agrg!$C$3:$CB$3,FALSE),FALSE) -> 4 | AA15: 4 | AB15: 63.5 | AC15: ALTO | AD15: VALIDADO
A16: 10 | B16: Curicica TCA | C16: Curicica TCA | D16: =IF(AD16="VALIDADO",AC16,"BAIXO") -> ALTO | F16: =VLOOKUP($B16,SEE_agrg!C:CC,MATCH(F$3,SEE_agrg!$C$3:$CB$3,FALSE),FALSE) -> 5 | G16: =VLOOKUP($B16,UdS_agrg!$C:$P,MATCH(G$3,UdS_agrg!$C$3:$P$3,FALSE),FALSE) -> 5 | H16: =VLOOKUP($B16,UdS_agrg!$C:$P,MATCH(H$3,UdS_agrg!$C$3:$P$3,FALSE),FALSE) -> 1 | I16: =VLOOKUP($B16,UdS_agrg!$C:$P,MATCH(I$3,UdS_agrg!$C$3:$P$3,FALSE),FALSE) -> 3 | J16: 14 | K16: =VLOOKUP($B16,UdS_agrg!$C:$P,MATCH(K$3,UdS_agrg!$C$3:$P$3,FALSE),FALSE) -> VALIDADO | L16: VALIDADO | M16: =VLOOKUP($B16,SEE_agrg!$C:$CC,MATCH(M$3,SEE_agrg!$C$3:$CB$3,FALSE),FALSE) -> 5 | N16: =VLOOKUP($B16,SEE_agrg!$C:$CC,MATCH(N$3,SEE_agrg!$C$3:$CB$3,FALSE),FALSE) -> 2 | O16: 7 | P16: VALIDADO | Q16: =VLOOKUP($B16,QD_agrg!$C:$M,MATCH(Q$3,QD_agrg!$C$3:$M$3,FALSE),FALSE) -> 5 | R16: =VLOOKUP($B16,QD_agrg!$C:$M,MATCH(R$3,QD_agrg!$C$3:$M$3,FALSE),FALSE) -> 0 | S16: =VLOOKUP($B16,QD_agrg!$C:$O,MATCH(S$3,QD_agrg!$C$3:$O$3,FALSE),FALSE) -> 0 | T16: 5 | U16: VALIDADO | V16: =VLOOKUP($B16,SEE_agrg!$C:$CC,MATCH(V$3,SEE_agrg!$C$3:$CB$3,FALSE),FALSE) -> 5 | W16: =VLOOKUP($B16,SEE_agrg!$C:$CC,MATCH(W$3,SEE_agrg!$C$3:$CB$3,FALSE),FALSE) -> 5 | X16: =VLOOKUP($B16,SEE_agrg!$C:$CC,MATCH(X$3,SEE_agrg!$C$3:$CB$3,FALSE),FALSE) -> 5 | Y16: 15 | Z16: =VLOOKUP(B16,SEE_agrg!$C:$CC,MATCH(Z$3,SEE_agrg!$C$3:$CB$3,FALSE),FALSE) -> 3 | AA16: 3 | AB16: 62.5 | AC16: ALTO | AD16: VALIDADO
A17: 11 | B17: Olaria - Cacique de Ramos | C17: Olaria - Cacique de Ramos | D17: =IF(AD17="VALIDADO",AC17,"BAIXO") -> ALTO | F17: =VLOOKUP($B17,SEE_agrg!C:CC,MATCH(F$3,SEE_agrg!$C$3:$CB$3,FALSE),FALSE) -> 0 | G17: =VLOOKUP($B17,UdS_agrg!$C:$P,MATCH(G$3,UdS_agrg!$C$3:$P$3,FALSE),FALSE) -> 1 | H17: =VLOOKUP($B17,UdS_agrg!$C:$P,MATCH(H$3,UdS_agrg!$C$3:$P$3,FALSE),FALSE) -> 0 | I17: =VLOOKUP($B17,UdS_agrg!$C:$P,MATCH(I$3,UdS_agrg!$C$3:$P$3,FALSE),FALSE) -> 0 | J17: 1 | K17: =VLOOKUP($B17,UdS_agrg!$C:$P,MATCH(K$3,UdS_agrg!$C$3:$P$3,FALSE),FALSE) -> VALIDADO | L17: VALIDADO | M17: =VLOOKUP($B17,SEE_agrg!$C:$CC,MATCH(M$3,SEE_agrg!$C$3:$CB$3,FALSE),FALSE) -> 5 | N17: =VLOOKUP($B17,SEE_agrg!$C:$CC,MATCH(N$3,SEE_agrg!$C$3:$CB$3,FALSE),FALSE) -> 5 | O17: 10 | P17: VALIDADO | Q17: =VLOOKUP($B17,QD_agrg!$C:$M,MATCH(Q$3,QD_agrg!$C$3:$M$3,FALSE),FALSE) -> 5 | R17: =VLOOKUP($B17,QD_agrg!$C:$M,MATCH(R$3,QD_agrg!$C$3:$M$3,FALSE),FALSE) -> 1 | S17: =VLOOKUP($B17,QD_agrg!$C:$O,MATCH(S$3,QD_agrg!$C$3:$O$3,FALSE),FALSE) -> 3 | T17: 9 | U17: VALIDADO | V17: =VLOOKUP($B17,SEE_agrg!$C:$CC,MATCH(V$3,SEE_agrg!$C$3:$CB$3,FALSE),FALSE) -> 5 | W17: =VLOOKUP($B17,SEE_agrg!$C:$CC,MATCH(W$3,SEE_agrg!$C$3:$CB$3,FALSE),FALSE) -> 5 | X17: =VLOOKUP($B17,SEE_agrg!$C:$CC,MATCH(X$3,SEE_agrg!$C$3:$CB$3,FALSE),FALSE) -> 2 | Y17: 12 | Z17: =VLOOKUP(B17,SEE_agrg!$C:$CC,MATCH(Z$3,SEE_agrg!$C$3:$CB$3,FALSE),FALSE) -> 3 | AA17: 3 | AB17: 62 | AC17: ALTO | AD17: VALIDADO
A18: 12 | B18: Santa Luzia | C18: Santa Luzia | D18: =IF(AD18="VALIDADO",AC18,"BAIXO") -> ALTO | F18: =VLOOKUP($B18,SEE_agrg!C:CC,MATCH(F$3,SEE_agrg!$C$3:$CB$3,FALSE),FALSE) -> 0 | G18: =VLOOKUP($B18,UdS_agrg!$C:$P,MATCH(G$3,UdS_agrg!$C$3:$P$3,FALSE),FALSE) -> 5 | H18: =VLOOKUP($B18,UdS_agrg!$C:$P,MATCH(H$3,UdS_agrg!$C$3:$P$3,FALSE),FALSE) -> 2 | I18: =VLOOKUP($B18,UdS_agrg!$C:$P,MATCH(I$3,UdS_agrg!$C$3:$P$3,FALSE),FALSE) -> 0 | J18: 7 | K18: =VLOOKUP($B18,UdS_agrg!$C:$P,MATCH(K$3,UdS_agrg!$C$3:$P$3,FALSE),FALSE) -> VALIDADO | L18: VALIDADO | M18: =VLOOKUP($B18,SEE_agrg!$C:$CC,MATCH(M$3,SEE_agrg!$C$3:$CB$3,FALSE),FALSE) -> 5 | N18: =VLOOKUP($B18,SEE_agrg!$C:$CC,MATCH(N$3,SEE_agrg!$C$3:$CB$3,FALSE),FALSE) -> 5 | O18: 10 | P18: VALIDADO | Q18: =VLOOKUP($B18,QD_agrg!$C:$M,MATCH(Q$3,QD_agrg!$C$3:$M$3,FALSE),FALSE) -> 5 | R18: =VLOOKUP($B18,QD_agrg!$C:$M,MATCH(R$3,QD_agrg!$C$3:$M$3,FALSE),FALSE) -> 1 | S18: =VLOOKUP($B18,QD_agrg!$C:$O,MATCH(S$3,QD_agrg!$C$3:$O$3,FALSE),FALSE) -> 0 | T18: 6 | U18: VALIDADO | V18: =VLOOKUP($B18,SEE_agrg!$C:$CC,MATCH(V$3,SEE_agrg!$C$3:$CB$3,FALSE),FALSE) -> 4 | W18: =VLOOKUP($B18,SEE_agrg!$C:$CC,MATCH(W$3,SEE_agrg!$C$3:$CB$3,FALSE),FALSE) -> 5 | X18: =VLOOKUP($B18,SEE_agrg!$C:$CC,MATCH(X$3,SEE_agrg!$C$3:$CB$3,FALSE),FALSE) -> 4 | Y18: 13 | Z18: =VLOOKUP(B18,SEE_agrg!$C:$CC,MATCH(Z$3,SEE_agrg!$C$3:$CB$3,FALSE),FALSE) -> 2 | AA18: 2 | AB18: 61 | AC18: ALTO | AD18: VALIDADO
A19: 13 | B19: Merck-Santa Efigênia | C19: Merck-Santa Efigenia | D19: =IF(AD19="VALIDADO",AC19,"BAIXO") -> ALTO | F19: =VLOOKUP($B19,SEE_agrg!C:CC,MATCH(F$3,SEE_agrg!$C$3:$CB$3,FALSE),FALSE) -> 0 | G19: =VLOOKUP($B19,UdS_agrg!$C:$P,MATCH(G$3,UdS_agrg!$C$3:$P$3,FALSE),FALSE) -> 5 | H19: =VLOOKUP($B19,UdS_agrg!$C:$P,MATCH(H$3,UdS_agrg!$C$3:$P$3,FALSE),FALSE) -> 0 | I19: =VLOOKUP($B19,UdS_agrg!$C:$P,MATCH(I$3,UdS_agrg!$C$3:$P$3,FALSE),FALSE) -> 2 | J19: 7 | K19: =VLOOKUP($B19,UdS_agrg!$C:$P,MATCH(K$3,UdS_agrg!$C$3:$P$3,FALSE),FALSE) -> VALIDADO | L19: VALIDADO | M19: =VLOOKUP($B19,SEE_agrg!$C:$CC,MATCH(M$3,SEE_agrg!$C$3:$CB$3,FALSE),FALSE) -> 5 | N19: =VLOOKUP($B19,SEE_agrg!$C:$CC,MATCH(N$3,SEE_agrg!$C$3:$CB$3,FALSE),FALSE) -> 5 | O19: 10 | P19: VALIDADO | Q19: =VLOOKUP($B19,QD_agrg!$C:$M,MATCH(Q$3,QD_agrg!$C$3:$M$3,FALSE),FALSE) -> 3 | R19: =VLOOKUP($B19,QD_agrg!$C:$M,MATCH(R$3,QD_agrg!$C$3:$M$3,FALSE),FALSE) -> 1 | S19: =VLOOKUP($B19,QD_agrg!$C:$O,MATCH(S$3,QD_agrg!$C$3:$O$3,FALSE),FALSE) -> 0 | T19: 4 | U19: VALIDADO | V19: =VLOOKUP($B19,SEE_agrg!$C:$CC,MATCH(V$3,SEE_agrg!$C$3:$CB$3,FALSE),FALSE) -> 5 | W19: =VLOOKUP($B19,SEE_agrg!$C:$CC,MATCH(W$3,SEE_agrg!$C$3:$CB$3,FALSE),FALSE) -> 5 | X19: =VLOOKUP($B19,SEE_agrg!$C:$CC,MATCH(X$3,SEE_agrg!$C$3:$CB$3,FALSE),FALSE) -> 5 | Y19: 15 | Z19: =VLOOKUP(B19,SEE_agrg!$C:$CC,MATCH(Z$3,SEE_agrg!$C$3:$CB$3,FALSE),FALSE) -> 3 | AA19: 3 | AB19: 61 | AC19: ALTO | AD19: VALIDADO
A20: 14 | B20: Taquara | C20: Taquara | D20: =IF(AD20="VALIDADO",AC20,"BAIXO") -> ALTO | F20: =VLOOKUP($B20,SEE_agrg!C:CC,MATCH(F$3,SEE_agrg!$C$3:$CB$3,FALSE),FALSE) -> 5 | G20: =VLOOKUP($B20,UdS_agrg!$C:$P,MATCH(G$3,UdS_agrg!$C$3:$P$3,FALSE),FALSE) -> 5 | H20: =VLOOKUP($B20,UdS_agrg!$C:$P,MATCH(H$3,UdS_agrg!$C$3:$P$3,FALSE),FALSE) -> 0 | I20: =VLOOKUP($B20,UdS_agrg!$C:$P,MATCH(I$3,UdS_agrg!$C$3:$P$3,FALSE),FALSE) -> 0 | J20: 10 | K20: =VLOOKUP($B20,UdS_agrg!$C:$P,MATCH(K$3,UdS_agrg!$C$3:$P$3,FALSE),FALSE) -> VALIDADO | L20: VALIDADO | M20: =VLOOKUP($B20,SEE_agrg!$C:$CC,MATCH(M$3,SEE_agrg!$C$3:$CB$3,FALSE),FALSE) -> 5 | N20: =VLOOKUP($B20,SEE_agrg!$C:$CC,MATCH(N$3,SEE_agrg!$C$3:$CB$3,FALSE),FALSE) -> 1 | O20: 6 | P20: VALIDADO | Q20: =VLOOKUP($B20,QD_agrg!$C:$M,MATCH(Q$3,QD_agrg!$C$3:$M$3,FALSE),FALSE) -> 4 | R20: =VLOOKUP($B20,QD_agrg!$C:$M,MATCH(R$3,QD_agrg!$C$3:$M$3,FALSE),FALSE) -> 3 | S20: =VLOOKUP($B20,QD_agrg!$C:$O,MATCH(S$3,QD_agrg!$C$3:$O$3,FALSE),FALSE) -> 0 | T20: 7 | U20: VALIDADO | V20: =VLOOKUP($B20,SEE_agrg!$C:$CC,MATCH(V$3,SEE_agrg!$C$3:$CB$3,FALSE),FALSE) -> 5 | W20: =VLOOKUP($B20,SEE_agrg!$C:$CC,MATCH(W$3,SEE_agrg!$C$3:$CB$3,FALSE),FALSE) -> 5 | X20: =VLOOKUP($B20,SEE_agrg!$C:$CC,MATCH(X$3,SEE_agrg!$C$3:$CB$3,FALSE),FALSE) -> 4 | Y20: 14 | Z20: =VLOOKUP(B20,SEE_agrg!$C:$CC,MATCH(Z$3,SEE_agrg!$C$3:$CB$3,FALSE),FALSE) -> 4 | AA20: 4 | AB20: 61 | AC20: ALTO | AD20: VALIDADO
A21: 17 | B21: Pastor José Santos | C21: Pastor Jos Santos | D21: =IF(AD21="VALIDADO",AC21,"BAIXO") -> MÉDIO | F21: =VLOOKUP($B21,SEE_agrg!C:CC,MATCH(F$3,SEE_agrg!$C$3:$CB$3,FALSE),FALSE) -> 0 | G21: =VLOOKUP($B21,UdS_agrg!$C:$P,MATCH(G$3,UdS_agrg!$C$3:$P$3,FALSE),FALSE) -> 3 | H21: =VLOOKUP($B21,UdS_agrg!$C:$P,MATCH(H$3,UdS_agrg!$C$3:$P$3,FALSE),FALSE) -> 3 | I21: =VLOOKUP($B21,UdS_agrg!$C:$P,MATCH(I$3,UdS_agrg!$C$3:$P$3,FALSE),FALSE) -> 0 | J21: 6 | K21: =VLOOKUP($B21,UdS_agrg!$C:$P,MATCH(K$3,UdS_agrg!$C$3:$P$3,FALSE),FALSE) -> VALIDADO | L21: VALIDADO | M21: =VLOOKUP($B21,SEE_agrg!$C:$CC,MATCH(M$3,SEE_agrg!$C$3:$CB$3,FALSE),FALSE) -> 5 | N21: =VLOOKUP($B21,SEE_agrg!$C:$CC,MATCH(N$3,SEE_agrg!$C$3:$CB$3,FALSE),FALSE) -> 5 | O21: 10 | P21: VALIDADO | Q21: =VLOOKUP($B21,QD_agrg!$C:$M,MATCH(Q$3,QD_agrg!$C$3:$M$3,FALSE),FALSE) -> 5 | R21: =VLOOKUP($B21,QD_agrg!$C:$M,MATCH(R$3,QD_agrg!$C$3:$M$3,FALSE),FALSE) -> 0 | S21: =VLOOKUP($B21,QD_agrg!$C:$O,MATCH(S$3,QD_agrg!$C$3:$O$3,FALSE),FALSE) -> 0 | T21: 5 | U21: VALIDADO | V21: =VLOOKUP($B21,SEE_agrg!$C:$CC,MATCH(V$3,SEE_agrg!$C$3:$CB$3,FALSE),FALSE) -> 5 | W21: =VLOOKUP($B21,SEE_agrg!$C:$CC,MATCH(W$3,SEE_agrg!$C$3:$CB$3,FALSE),FALSE) -> 5 | X21: =VLOOKUP($B21,SEE_agrg!$C:$CC,MATCH(X$3,SEE_agrg!$C$3:$CB$3,FALSE),FALSE) -> 2 | Y21: 12 | Z21: =VLOOKUP(B21,SEE_agrg!$C:$CC,MATCH(Z$3,SEE_agrg!$C$3:$CB$3,FALSE),FALSE) -> 3 | AA21: 3 | AB21: 59 | AC21: MÉDIO | AD21: VALIDADO
A22: 15 | B22: Vila Kosmos - Nossa Senhora do Carmo | C22: Vila Kosmos - Nossa Senhora do Carmo | D22: =IF(AD22="VALIDADO",AC22,"BAIXO") -> MÉDIO | F22: =VLOOKUP($B22,SEE_agrg!C:CC,MATCH(F$3,SEE_agrg!$C$3:$CB$3,FALSE),FALSE) -> 0 | G22: =VLOOKUP($B22,UdS_agrg!$C:$P,MATCH(G$3,UdS_agrg!$C$3:$P$3,FALSE),FALSE) -> 1 | H22: =VLOOKUP($B22,UdS_agrg!$C:$P,MATCH(H$3,UdS_agrg!$C$3:$P$3,FALSE),FALSE) -> 2 | I22: =VLOOKUP($B22,UdS_agrg!$C:$P,MATCH(I$3,UdS_agrg!$C$3:$P$3,FALSE),FALSE) -> 0 | J22: 3 | K22: =VLOOKUP($B22,UdS_agrg!$C:$P,MATCH(K$3,UdS_agrg!$C$3:$P$3,FALSE),FALSE) -> VALIDADO | L22: VALIDADO | M22: =VLOOKUP($B22,SEE_agrg!$C:$CC,MATCH(M$3,SEE_agrg!$C$3:$CB$3,FALSE),FALSE) -> 5 | N22: =VLOOKUP($B22,SEE_agrg!$C:$CC,MATCH(N$3,SEE_agrg!$C$3:$CB$3,FALSE),FALSE) -> 5 | O22: 10 | P22: VALIDADO | Q22: =VLOOKUP($B22,QD_agrg!$C:$M,MATCH(Q$3,QD_agrg!$C$3:$M$3,FALSE),FALSE) -> 5 | R22: =VLOOKUP($B22,QD_agrg!$C:$M,MATCH(R$3,QD_agrg!$C$3:$M$3,FALSE),FALSE) -> 1 | S22: =VLOOKUP($B22,QD_agrg!$C:$O,MATCH(S$3,QD_agrg!$C$3:$O$3,FALSE),FALSE) -> 0 | T22: 6 | U22: VALIDADO | V22: =VLOOKUP($B22,SEE_agrg!$C:$CC,MATCH(V$3,SEE_agrg!$C$3:$CB$3,FALSE),FALSE) -> 4 | W22: =VLOOKUP($B22,SEE_agrg!$C:$CC,MATCH(W$3,SEE_agrg!$C$3:$CB$3,FALSE),FALSE) -> 5 | X22: =VLOOKUP($B22,SEE_agrg!$C:$CC,MATCH(X$3,SEE_agrg!$C$3:$CB$3,FALSE),FALSE) -> 2 | Y22: 11 | Z22: =VLOOKUP(B22,SEE_agrg!$C:$CC,MATCH(Z$3,SEE_agrg!$C$3:$CB$3,FALSE),FALSE) -> 4 | AA22: 4 | AB22: 59 | AC22: MÉDIO | AD22: VALIDADO
A23: 16 | B23: Marambaia | C23: Mar | D23: =IF(AD23="VALIDADO",AC23,"BAIXO") -> MÉDIO | F23: =VLOOKUP($B23,SEE_agrg!C:CC,MATCH(F$3,SEE_agrg!$C$3:$CB$3,FALSE),FALSE) -> 0 | G23: =VLOOKUP($B23,UdS_agrg!$C:$P,MATCH(G$3,UdS_agrg!$C$3:$P$3,FALSE),FALSE) -> 1 | H23: =VLOOKUP($B23,UdS_agrg!$C:$P,MATCH(H$3,UdS_agrg!$C$3:$P$3,FALSE),FALSE) -> 2 | I23: =VLOOKUP($B23,UdS_agrg!$C:$P,MATCH(I$3,UdS_agrg!$C$3:$P$3,FALSE),FALSE) -> 0 | J23: 3 | K23: =VLOOKUP($B23,UdS_agrg!$C:$P,MATCH(K$3,UdS_agrg!$C$3:$P$3,FALSE),FALSE) -> VALIDADO | L23: VALIDADO | M23: =VLOOKUP($B23,SEE_agrg!$C:$CC,MATCH(M$3,SEE_agrg!$C$3:$CB$3,FALSE),FALSE) -> 5 | N23: =VLOOKUP($B23,SEE_agrg!$C:$CC,MATCH(N$3,SEE_agrg!$C$3:$CB$3,FALSE),FALSE) -> 5 | O23: 10 | P23: VALIDADO | Q23: =VLOOKUP($B23,QD_agrg!$C:$M,MATCH(Q$3,QD_agrg!$C$3:$M$3,FALSE),FALSE) -> 5 | R23: =VLOOKUP($B23,QD_agrg!$C:$M,MATCH(R$3,QD_agrg!$C$3:$M$3,FALSE),FALSE) -> 0 | S23: =VLOOKUP($B23,QD_agrg!$C:$O,MATCH(S$3,QD_agrg!$C$3:$O$3,FALSE),FALSE) -> 0 | T23: 5 | U23: VALIDADO | V23: =VLOOKUP($B23,SEE_agrg!$C:$CC,MATCH(V$3,SEE_agrg!$C$3:$CB$3,FALSE),FALSE) -> 5 | W23: =VLOOKUP($B23,SEE_agrg!$C:$CC,MATCH(W$3,SEE_agrg!$C$3:$CB$3,FALSE),FALSE) -> 5 | X23: =VLOOKUP($B23,SEE_agrg!$C:$CC,MATCH(X$3,SEE_agrg!$C$3:$CB$3,FALSE),FALSE) -> 4 | Y23: 14 | Z23: =VLOOKUP(B23,SEE_agrg!$C:$CC,MATCH(Z$3,SEE_agrg!$C$3:$CB$3,FALSE),FALSE) -> 3 | AA23: 3 | AB23: 58 | AC23: MÉDIO | AD23: VALIDADO
A24: 18 | B24: Cardoso de Moraes - Viva Garcia | C24: Cardoso de Moraes - Viva Garcia | D24: =IF(AD24="VALIDADO",AC24,"BAIXO") -> MÉDIO | F24: =VLOOKUP($B24,SEE_agrg!C:CC,MATCH(F$3,SEE_agrg!$C$3:$CB$3,FALSE),FALSE) -> 0 | G24: =VLOOKUP($B24,UdS_agrg!$C:$P,MATCH(G$3,UdS_agrg!$C$3:$P$3,FALSE),FALSE) -> 1 | H24: =VLOOKUP($B24,UdS_agrg!$C:$P,MATCH(H$3,UdS_agrg!$C$3:$P$3,FALSE),FALSE) -> 2 | I24: =VLOOKUP($B24,UdS_agrg!$C:$P,MATCH(I$3,UdS_agrg!$C$3:$P$3,FALSE),FALSE) -> 0 | J24: 3 | K24: =VLOOKUP($B24,UdS_agrg!$C:$P,MATCH(K$3,UdS_agrg!$C$3:$P$3,FALSE),FALSE) -> VALIDADO | L24: VALIDADO | M24: =VLOOKUP($B24,SEE_agrg!$C:$CC,MATCH(M$3,SEE_agrg!$C$3:$CB$3,FALSE),FALSE) -> 5 | N24: =VLOOKUP($B24,SEE_agrg!$C:$CC,MATCH(N$3,SEE_agrg!$C$3:$CB$3,FALSE),FALSE) -> 5 | O24: 10 | P24: VALIDADO | Q24: =VLOOKUP($B24,QD_agrg!$C:$M,MATCH(Q$3,QD_agrg!$C$3:$M$3,FALSE),FALSE) -> 4 | R24: =VLOOKUP($B24,QD_agrg!$C:$M,MATCH(R$3,QD_agrg!$C$3:$M$3,FALSE),FALSE) -> 1 | S24: =VLOOKUP($B24,QD_agrg!$C:$O,MATCH(S$3,QD_agrg!$C$3:$O$3,FALSE),FALSE) -> 0 | T24: 5 | U24: VALIDADO | V24: =VLOOKUP($B24,SEE_agrg!$C:$CC,MATCH(V$3,SEE_agrg!$C$3:$CB$3,FALSE),FALSE) -> 5 | W24: =VLOOKUP($B24,SEE_agrg!$C:$CC,MATCH(W$3,SEE_agrg!$C$3:$CB$3,FALSE),FALSE) -> 5 | X24: =VLOOKUP($B24,SEE_agrg!$C:$CC,MATCH(X$3,SEE_agrg!$C$3:$CB$3,FALSE),FALSE) -> 4 | Y24: 14 | Z24: =VLOOKUP(B24,SEE_agrg!$C:$CC,MATCH(Z$3,SEE_agrg!$C$3:$CB$3,FALSE),FALSE) -> 3 | AA24: 3 | AB24: 58 | AC24: MÉDIO | AD24: VALIDADO
A25: 19 | B25: André Rocha | C25: Andr Rocha | D25: =IF(AD25="VALIDADO",AC25,"BAIXO") -> MÉDIO | F25: =VLOOKUP($B25,SEE_agrg!C:CC,MATCH(F$3,SEE_agrg!$C$3:$CB$3,FALSE),FALSE) -> 0 | G25: =VLOOKUP($B25,UdS_agrg!$C:$P,MATCH(G$3,UdS_agrg!$C$3:$P$3,FALSE),FALSE) -> 3 | H25: =VLOOKUP($B25,UdS_agrg!$C:$P,MATCH(H$3,UdS_agrg!$C$3:$P$3,FALSE),FALSE) -> 1 | I25: =VLOOKUP($B25,UdS_agrg!$C:$P,MATCH(I$3,UdS_agrg!$C$3:$P$3,FALSE),FALSE) -> 0 | J25: 4 | K25: =VLOOKUP($B25,UdS_agrg!$C:$P,MATCH(K$3,UdS_agrg!$C$3:$P$3,FALSE),FALSE) -> VALIDADO | L25: VALIDADO | M25: =VLOOKUP($B25,SEE_agrg!$C:$CC,MATCH(M$3,SEE_agrg!$C$3:$CB$3,FALSE),FALSE) -> 5 | N25: =VLOOKUP($B25,SEE_agrg!$C:$CC,MATCH(N$3,SEE_agrg!$C$3:$CB$3,FALSE),FALSE) -> 5 | O25: 10 | P25: VALIDADO | Q25: =VLOOKUP($B25,QD_agrg!$C:$M,MATCH(Q$3,QD_agrg!$C$3:$M$3,FALSE),FALSE) -> 5 | R25: =VLOOKUP($B25,QD_agrg!$C:$M,MATCH(R$3,QD_agrg!$C$3:$M$3,FALSE),FALSE) -> 3 | S25: =VLOOKUP($B25,QD_agrg!$C:$O,MATCH(S$3,QD_agrg!$C$3:$O$3,FALSE),FALSE) -> 0 | T25: 8 | U25: VALIDADO | V25: =VLOOKUP($B25,SEE_agrg!$C:$CC,MATCH(V$3,SEE_agrg!$C$3:$CB$3,FALSE),FALSE) -> 2 | W25: =VLOOKUP($B25,SEE_agrg!$C:$CC,MATCH(W$3,SEE_agrg!$C$3:$CB$3,FALSE),FALSE) -> 5 | X25: =VLOOKUP($B25,SEE_agrg!$C:$CC,MATCH(X$3,SEE_agrg!$C$3:$CB$3,FALSE),FALSE) -> 0 | Y25: 7 | Z25: =VLOOKUP(B25,SEE_agrg!$C:$CC,MATCH(Z$3,SEE_agrg!$C$3:$CB$3,FALSE),FALSE) -> 3 | AA25: 3 | AB25: 58 | AC25: MÉDIO | AD25: VALIDADO
A26: 20 | B26: Guaporé | C26: Guapor | D26: =IF(AD26="VALIDADO",AC26,"BAIXO") -> MÉDIO | F26: =VLOOKUP($B26,SEE_agrg!C:CC,MATCH(F$3,SEE_agrg!$C$3:$CB$3,FALSE),FALSE) -> 0 | G26: =VLOOKUP($B26,UdS_agrg!$C:$P,MATCH(G$3,UdS_agrg!$C$3:$P$3,FALSE),FALSE) -> 5 | H26: =VLOOKUP($B26,UdS_agrg!$C:$P,MATCH(H$3,UdS_agrg!$C$3:$P$3,FALSE),FALSE) -> 5 | I26: =VLOOKUP($B26,UdS_agrg!$C:$P,MATCH(I$3,UdS_agrg!$C$3:$P$3,FALSE),FALSE) -> 0 | J26: 10 | K26: =VLOOKUP($B26,UdS_agrg!$C:$P,MATCH(K$3,UdS_agrg!$C$3:$P$3,FALSE),FALSE) -> VALIDADO | L26: VALIDADO | M26: =VLOOKUP($B26,SEE_agrg!$C:$CC,MATCH(M$3,SEE_agrg!$C$3:$CB$3,FALSE),FALSE) -> 5 | N26: =VLOOKUP($B26,SEE_agrg!$C:$CC,MATCH(N$3,SEE_agrg!$C$3:$CB$3,FALSE),FALSE) -> 5 | O26: 10 | P26: VALIDADO | Q26: =VLOOKUP($B26,QD_agrg!$C:$M,MATCH(Q$3,QD_agrg!$C$3:$M$3,FALSE),FALSE) -> 5 | R26: =VLOOKUP($B26,QD_agrg!$C:$M,MATCH(R$3,QD_agrg!$C$3:$M$3,FALSE),FALSE) -> 1 | S26: =VLOOKUP($B26,QD_agrg!$C:$O,MATCH(S$3,QD_agrg!$C$3:$O$3,FALSE),FALSE) -> 0 | T26: 6 | U26: VALIDADO | V26: =VLOOKUP($B26,SEE_agrg!$C:$CC,MATCH(V$3,SEE_agrg!$C$3:$CB$3,FALSE),FALSE) -> 2 | W26: =VLOOKUP($B26,SEE_agrg!$C:$CC,MATCH(W$3,SEE_agrg!$C$3:$CB$3,FALSE),FALSE) -> 2 | X26: =VLOOKUP($B26,SEE_agrg!$C:$CC,MATCH(X$3,SEE_agrg!$C$3:$CB$3,FALSE),FALSE) -> 0 | Y26: 4 | Z26: =VLOOKUP(B26,SEE_agrg!$C:$CC,MATCH(Z$3,SEE_agrg!$C$3:$CB$3,FALSE),FALSE) -> 2 | AA26: 2 | AB26: 55 | AC26: MÉDIO | AD26: VALIDADO
A27: 21 | B27: Arroio Pavuna | C27: Arroio Pavuna | D27: =IF(AD27="VALIDADO",AC27,"BAIXO") -> MÉDIO | F27: =VLOOKUP($B27,SEE_agrg!C:CC,MATCH(F$3,SEE_agrg!$C$3:$CB$3,FALSE),FALSE) -> 1 | G27: =VLOOKUP($B27,UdS_agrg!$C:$P,MATCH(G$3,UdS_agrg!$C$3:$P$3,FALSE),FALSE) -> 5 | H27: =VLOOKUP($B27,UdS_agrg!$C:$P,MATCH(H$3,UdS_agrg!$C$3:$P$3,FALSE),FALSE) -> 0 | I27: =VLOOKUP($B27,UdS_agrg!$C:$P,MATCH(I$3,UdS_agrg!$C$3:$P$3,FALSE),FALSE) -> 3 | J27: 9 | K27: =VLOOKUP($B27,UdS_agrg!$C:$P,MATCH(K$3,UdS_agrg!$C$3:$P$3,FALSE),FALSE) -> VALIDADO | L27: VALIDADO | M27: =VLOOKUP($B27,SEE_agrg!$C:$CC,MATCH(M$3,SEE_agrg!$C$3:$CB$3,FALSE),FALSE) -> 5 | N27: =VLOOKUP($B27,SEE_agrg!$C:$CC,MATCH(N$3,SEE_agrg!$C$3:$CB$3,FALSE),FALSE) -> 2 | O27: 7 | P27: VALIDADO | Q27: =VLOOKUP($B27,QD_agrg!$C:$M,MATCH(Q$3,QD_agrg!$C$3:$M$3,FALSE),FALSE) -> 5 | R27: =VLOOKUP($B27,QD_agrg!$C:$M,MATCH(R$3,QD_agrg!$C$3:$M$3,FALSE),FALSE) -> 1 | S27: =VLOOKUP($B27,QD_agrg!$C:$O,MATCH(S$3,QD_agrg!$C$3:$O$3,FALSE),FALSE) -> 0 | T27: 6 | U27: VALIDADO | V27: =VLOOKUP($B27,SEE_agrg!$C:$CC,MATCH(V$3,SEE_agrg!$C$3:$CB$3,FALSE),FALSE) -> 5 | W27: =VLOOKUP($B27,SEE_agrg!$C:$CC,MATCH(W$3,SEE_agrg!$C$3:$CB$3,FALSE),FALSE) -> 5 | X27: =VLOOKUP($B27,SEE_agrg!$C:$CC,MATCH(X$3,SEE_agrg!$C$3:$CB$3,FALSE),FALSE) -> 0 | Y27: 10 | Z27: =VLOOKUP(B27,SEE_agrg!$C:$CC,MATCH(Z$3,SEE_agrg!$C$3:$CB$3,FALSE),FALSE) -> 2 | AA27: 2 | AB27: 52.5 | AC27: MÉDIO | AD27: VALIDADO
A28: 22 | B28: Divina Providência | C28: Divina Providncia | D28: =IF(AD28="VALIDADO",AC28,"BAIXO") -> MÉDIO | F28: =VLOOKUP($B28,SEE_agrg!C:CC,MATCH(F$3,SEE_agrg!$C$3:$CB$3,FALSE),FALSE) -> 5 | G28: =VLOOKUP($B28,UdS_agrg!$C:$P,MATCH(G$3,UdS_agrg!$C$3:$P$3,FALSE),FALSE) -> 5 | H28: =VLOOKUP($B28,UdS_agrg!$C:$P,MATCH(H$3,UdS_agrg!$C$3:$P$3,FALSE),FALSE) -> 0 | I28: =VLOOKUP($B28,UdS_agrg!$C:$P,MATCH(I$3,UdS_agrg!$C$3:$P$3,FALSE),FALSE) -> 2 | J28: 12 | K28: =VLOOKUP($B28,UdS_agrg!$C:$P,MATCH(K$3,UdS_agrg!$C$3:$P$3,FALSE),FALSE) -> VALIDADO | L28: VALIDADO | M28: =VLOOKUP($B28,SEE_agrg!$C:$CC,MATCH(M$3,SEE_agrg!$C$3:$CB$3,FALSE),FALSE) -> 5 | N28: =VLOOKUP($B28,SEE_agrg!$C:$CC,MATCH(N$3,SEE_agrg!$C$3:$CB$3,FALSE),FALSE) -> 5 | O28: 10 | P28: VALIDADO | Q28: =VLOOKUP($B28,QD_agrg!$C:$M,MATCH(Q$3,QD_agrg!$C$3:$M$3,FALSE),FALSE) -> 3 | R28: =VLOOKUP($B28,QD_agrg!$C:$M,MATCH(R$3,QD_agrg!$C$3:$M$3,FALSE),FALSE) -> 0 | S28: =VLOOKUP($B28,QD_agrg!$C:$O,MATCH(S$3,QD_agrg!$C$3:$O$3,FALSE),FALSE) -> 0 | T28: 3 | U28: VALIDADO | V28: =VLOOKUP($B28,SEE_agrg!$C:$CC,MATCH(V$3,SEE_agrg!$C$3:$CB$3,FALSE),FALSE) -> 1 | W28: =VLOOKUP($B28,SEE_agrg!$C:$CC,MATCH(W$3,SEE_agrg!$C$3:$CB$3,FALSE),FALSE) -> 1 | X28: =VLOOKUP($B28,SEE_agrg!$C:$CC,MATCH(X$3,SEE_agrg!$C$3:$CB$3,FALSE),FALSE) -> 1 | Y28: 3 | Z28: =VLOOKUP(B28,SEE_agrg!$C:$CC,MATCH(Z$3,SEE_agrg!$C$3:$CB$3,FALSE),FALSE) -> 2 | AA28: 2 | AB28: 50 | AC28: MÉDIO | AD28: VALIDADO
A29: 23 | B29: IPASE | C29: IPASE | D29: =IF(AD29="VALIDADO",AC29,"BAIXO") -> MÉDIO | F29: =VLOOKUP($B29,SEE_agrg!C:CC,MATCH(F$3,SEE_agrg!$C$3:$CB$3,FALSE),FALSE) -> 0 | G29: =VLOOKUP($B29,UdS_agrg!$C:$P,MATCH(G$3,UdS_agrg!$C$3:$P$3,FALSE),FALSE) -> 5 | H29: =VLOOKUP($B29,UdS_agrg!$C:$P,MATCH(H$3,UdS_agrg!$C$3:$P$3,FALSE),FALSE) -> 0 | I29: =VLOOKUP($B29,UdS_agrg!$C:$P,MATCH(I$3,UdS_agrg!$C$3:$P$3,FALSE),FALSE) -> 0 | J29: 5 | K29: =VLOOKUP($B29,UdS_agrg!$C:$P,MATCH(K$3,UdS_agrg!$C$3:$P$3,FALSE),FALSE) -> VALIDADO | L29: VALIDADO | M29: =VLOOKUP($B29,SEE_agrg!$C:$CC,MATCH(M$3,SEE_agrg!$C$3:$CB$3,FALSE),FALSE) -> 5 | N29: =VLOOKUP($B29,SEE_agrg!$C:$CC,MATCH(N$3,SEE_agrg!$C$3:$CB$3,FALSE),FALSE) -> 5 | O29: 10 | P29: VALIDADO | Q29: =VLOOKUP($B29,QD_agrg!$C:$M,MATCH(Q$3,QD_agrg!$C$3:$M$3,FALSE),FALSE) -> 4 | R29: =VLOOKUP($B29,QD_agrg!$C:$M,MATCH(R$3,QD_agrg!$C$3:$M$3,FALSE),FALSE) -> 3 | S29: =VLOOKUP($B29,QD_agrg!$C:$O,MATCH(S$3,QD_agrg!$C$3:$O$3,FALSE),FALSE) -> 0 | T29: 7 | U29: VALIDADO | V29: =VLOOKUP($B29,SEE_agrg!$C:$CC,MATCH(V$3,SEE_agrg!$C$3:$CB$3,FALSE),FALSE) -> 0 | W29: =VLOOKUP($B29,SEE_agrg!$C:$CC,MATCH(W$3,SEE_agrg!$C$3:$CB$3,FALSE),FALSE) -> 0 | X29: =VLOOKUP($B29,SEE_agrg!$C:$CC,MATCH(X$3,SEE_agrg!$C$3:$CB$3,FALSE),FALSE) -> 0 | Y29: 0 | Z29: =VLOOKUP(B29,SEE_agrg!$C:$CC,MATCH(Z$3,SEE_agrg!$C$3:$CB$3,FALSE),FALSE) -> 2 | AA29: 2 | AB29: 48 | AC29: MÉDIO | AD29: VALIDADO
A30: 24 | B30: Tanque / Terminal Mestre Candeia | C30: Tanque / Terminal Mestre Candeia | D30: =IF(AD30="VALIDADO",AC30,"BAIXO") -> MÉDIO | F30: =VLOOKUP($B30,SEE_agrg!C:CC,MATCH(F$3,SEE_agrg!$C$3:$CB$3,FALSE),FALSE) -> 0 | G30: =VLOOKUP($B30,UdS_agrg!$C:$P,MATCH(G$3,UdS_agrg!$C$3:$P$3,FALSE),FALSE) -> 5 | H30: =VLOOKUP($B30,UdS_agrg!$C:$P,MATCH(H$3,UdS_agrg!$C$3:$P$3,FALSE),FALSE) -> 0 | I30: =VLOOKUP($B30,UdS_agrg!$C:$P,MATCH(I$3,UdS_agrg!$C$3:$P$3,FALSE),FALSE) -> 1 | J30: 6 | K30: =VLOOKUP($B30,UdS_agrg!$C:$P,MATCH(K$3,UdS_agrg!$C$3:$P$3,FALSE),FALSE) -> VALIDADO | L30: VALIDADO | M30: =VLOOKUP($B30,SEE_agrg!$C:$CC,MATCH(M$3,SEE_agrg!$C$3:$CB$3,FALSE),FALSE) -> 5 | N30: =VLOOKUP($B30,SEE_agrg!$C:$CC,MATCH(N$3,SEE_agrg!$C$3:$CB$3,FALSE),FALSE) -> 4 | O30: 9 | P30: VALIDADO | Q30: =VLOOKUP($B30,QD_agrg!$C:$M,MATCH(Q$3,QD_agrg!$C$3:$M$3,FALSE),FALSE) -> 4 | R30: =VLOOKUP($B30,QD_agrg!$C:$M,MATCH(R$3,QD_agrg!$C$3:$M$3,FALSE),FALSE) -> 1 | S30: =VLOOKUP($B30,QD_agrg!$C:$O,MATCH(S$3,QD_agrg!$C$3:$O$3,FALSE),FALSE) -> 0 | T30: 5 | U30: VALIDADO | V30: =VLOOKUP($B30,SEE_agrg!$C:$CC,MATCH(V$3,SEE_agrg!$C$3:$CB$3,FALSE),FALSE) -> 0 | W30: =VLOOKUP($B30,SEE_agrg!$C:$CC,MATCH(W$3,SEE_agrg!$C$3:$CB$3,FALSE),FALSE) -> 5 | X30: =VLOOKUP($B30,SEE_agrg!$C:$CC,MATCH(X$3,SEE_agrg!$C$3:$CB$3,FALSE),FALSE) -> 0 | Y30: 5 | Z30: =VLOOKUP(B30,SEE_agrg!$C:$CC,MATCH(Z$3,SEE_agrg!$C$3:$CB$3,FALSE),FALSE) -> 2 | AA30: 2 | AB30: 47.5 | AC30: MÉDIO | AD30: VALIDADO
A31: 25 | B31: Recanto das Palmeiras - Jardim São Luiz | C31: Recanto das Palmeiras - Jardim So Luiz | D31: =IF(AD31="VALIDADO",AC31,"BAIXO") -> MÉDIO | F31: =VLOOKUP($B31,SEE_agrg!C:CC,MATCH(F$3,SEE_agrg!$C$3:$CB$3,FALSE),FALSE) -> 0 | G31: =VLOOKUP($B31,UdS_agrg!$C:$P,MATCH(G$3,UdS_agrg!$C$3:$P$3,FALSE),FALSE) -> 5 | H31: =VLOOKUP($B31,UdS_agrg!$C:$P,MATCH(H$3,UdS_agrg!$C$3:$P$3,FALSE),FALSE) -> 0 | I31: =VLOOKUP($B31,UdS_agrg!$C:$P,MATCH(I$3,UdS_agrg!$C$3:$P$3,FALSE),FALSE) -> 2 | J31: 7 | K31: =VLOOKUP($B31,UdS_agrg!$C:$P,MATCH(K$3,UdS_agrg!$C$3:$P$3,FALSE),FALSE) -> VALIDADO | L31: VALIDADO | M31: =VLOOKUP($B31,SEE_agrg!$C:$CC,MATCH(M$3,SEE_agrg!$C$3:$CB$3,FALSE),FALSE) -> 5 | N31: =VLOOKUP($B31,SEE_agrg!$C:$CC,MATCH(N$3,SEE_agrg!$C$3:$CB$3,FALSE),FALSE) -> 5 | O31: 10 | P31: VALIDADO | Q31: =VLOOKUP($B31,QD_agrg!$C:$M,MATCH(Q$3,QD_agrg!$C$3:$M$3,FALSE),FALSE) -> 5 | R31: =VLOOKUP($B31,QD_agrg!$C:$M,MATCH(R$3,QD_agrg!$C$3:$M$3,FALSE),FALSE) -> 0 | S31: =VLOOKUP($B31,QD_agrg!$C:$O,MATCH(S$3,QD_agrg!$C$3:$O$3,FALSE),FALSE) -> 0 | T31: 5 | U31: VALIDADO | V31: =VLOOKUP($B31,SEE_agrg!$C:$CC,MATCH(V$3,SEE_agrg!$C$3:$CB$3,FALSE),FALSE) -> 1 | W31: =VLOOKUP($B31,SEE_agrg!$C:$CC,MATCH(W$3,SEE_agrg!$C$3:$CB$3,FALSE),FALSE) -> 2 | X31: =VLOOKUP($B31,SEE_agrg!$C:$CC,MATCH(X$3,SEE_agrg!$C$3:$CB$3,FALSE),FALSE) -> 0 | Y31: 3 | Z31: =VLOOKUP(B31,SEE_agrg!$C:$CC,MATCH(Z$3,SEE_agrg!$C$3:$CB$3,FALSE),FALSE) -> 1 | AA31: 1 | AB31: 47 | AC31: MÉDIO | AD31: VALIDADO
A32: 26 | B32: Vila Sapê - IV Centenário | C32: Vila Sap - IV Centenrio | D32: =IF(AD32="VALIDADO",AC32,"BAIXO") -> MÉDIO | F32: =VLOOKUP($B32,SEE_agrg!C:CC,MATCH(F$3,SEE_agrg!$C$3:$CB$3,FALSE),FALSE) -> 0 | G32: =VLOOKUP($B32,UdS_agrg!$C:$P,MATCH(G$3,UdS_agrg!$C$3:$P$3,FALSE),FALSE) -> 5 | H32: =VLOOKUP($B32,UdS_agrg!$C:$P,MATCH(H$3,UdS_agrg!$C$3:$P$3,FALSE),FALSE) -> 0 | I32: =VLOOKUP($B32,UdS_agrg!$C:$P,MATCH(I$3,UdS_agrg!$C$3:$P$3,FALSE),FALSE) -> 1 | J32: 6 | K32: =VLOOKUP($B32,UdS_agrg!$C:$P,MATCH(K$3,UdS_agrg!$C$3:$P$3,FALSE),FALSE) -> VALIDADO | L32: VALIDADO | M32: =VLOOKUP($B32,SEE_agrg!$C:$CC,MATCH(M$3,SEE_agrg!$C$3:$CB$3,FALSE),FALSE) -> 5 | N32: =VLOOKUP($B32,SEE_agrg!$C:$CC,MATCH(N$3,SEE_agrg!$C$3:$CB$3,FALSE),FALSE) -> 4 | O32: 9 | P32: VALIDADO | Q32: =VLOOKUP($B32,QD_agrg!$C:$M,MATCH(Q$3,QD_agrg!$C$3:$M$3,FALSE),FALSE) -> 5 | R32: =VLOOKUP($B32,QD_agrg!$C:$M,MATCH(R$3,QD_agrg!$C$3:$M$3,FALSE),FALSE) -> 1 | S32: =VLOOKUP($B32,QD_agrg!$C:$O,MATCH(S$3,QD_agrg!$C$3:$O$3,FALSE),FALSE) -> 0 | T32: 6 | U32: VALIDADO | V32: =VLOOKUP($B32,SEE_agrg!$C:$CC,MATCH(V$3,SEE_agrg!$C$3:$CB$3,FALSE),FALSE) -> 2 | W32: =VLOOKUP($B32,SEE_agrg!$C:$CC,MATCH(W$3,SEE_agrg!$C$3:$CB$3,FALSE),FALSE) -> 2 | X32: =VLOOKUP($B32,SEE_agrg!$C:$CC,MATCH(X$3,SEE_agrg!$C$3:$CB$3,FALSE),FALSE) -> 0 | Y32: 4 | Z32: =VLOOKUP(B32,SEE_agrg!$C:$CC,MATCH(Z$3,SEE_agrg!$C$3:$CB$3,FALSE),FALSE) -> 1 | AA32: 1 | AB32: 46.5 | AC32: MÉDIO | AD32: VALIDADO
A33: 27 | B33: Vila Queiroz | C33: Vila Queiroz | D33: =IF(AD33="VALIDADO",AC33,"BAIXO") -> MÉDIO | F33: =VLOOKUP($B33,SEE_agrg!C:CC,MATCH(F$3,SEE_agrg!$C$3:$CB$3,FALSE),FALSE) -> 0 | G33: =VLOOKUP($B33,UdS_agrg!$C:$P,MATCH(G$3,UdS_agrg!$C$3:$P$3,FALSE),FALSE) -> 1 | H33: =VLOOKUP($B33,UdS_agrg!$C:$P,MATCH(H$3,UdS_agrg!$C$3:$P$3,FALSE),FALSE) -> 0 | I33: =VLOOKUP($B33,UdS_agrg!$C:$P,MATCH(I$3,UdS_agrg!$C$3:$P$3,FALSE),FALSE) -> 1 | J33: 2 | K33: =VLOOKUP($B33,UdS_agrg!$C:$P,MATCH(K$3,UdS_agrg!$C$3:$P$3,FALSE),FALSE) -> VALIDADO | L33: VALIDADO | M33: =VLOOKUP($B33,SEE_agrg!$C:$CC,MATCH(M$3,SEE_agrg!$C$3:$CB$3,FALSE),FALSE) -> 5 | N33: =VLOOKUP($B33,SEE_agrg!$C:$CC,MATCH(N$3,SEE_agrg!$C$3:$CB$3,FALSE),FALSE) -> 5 | O33: 10 | P33: VALIDADO | Q33: =VLOOKUP($B33,QD_agrg!$C:$M,MATCH(Q$3,QD_agrg!$C$3:$M$3,FALSE),FALSE) -> 3 | R33: =VLOOKUP($B33,QD_agrg!$C:$M,MATCH(R$3,QD_agrg!$C$3:$M$3,FALSE),FALSE) -> 3 | S33: =VLOOKUP($B33,QD_agrg!$C:$O,MATCH(S$3,QD_agrg!$C$3:$O$3,FALSE),FALSE) -> 0 | T33: 6 | U33: VALIDADO | V33: =VLOOKUP($B33,SEE_agrg!$C:$CC,MATCH(V$3,SEE_agrg!$C$3:$CB$3,FALSE),FALSE) -> 1 | W33: =VLOOKUP($B33,SEE_agrg!$C:$CC,MATCH(W$3,SEE_agrg!$C$3:$CB$3,FALSE),FALSE) -> 2 | X33: =VLOOKUP($B33,SEE_agrg!$C:$CC,MATCH(X$3,SEE_agrg!$C$3:$CB$3,FALSE),FALSE) -> 0 | Y33: 3 | Z33: =VLOOKUP(B33,SEE_agrg!$C:$CC,MATCH(Z$3,SEE_agrg!$C$3:$CB$3,FALSE),FALSE) -> 2 | AA33: 2 | AB33: 46 | AC33: MÉDIO | AD33: VALIDADO
A34: 28 | B34: Pinto Teles | C34: Pinto Teles | D34: =IF(AD34="VALIDADO",AC34,"BAIXO") -> MÉDIO | F34: =VLOOKUP($B34,SEE_agrg!C:CC,MATCH(F$3,SEE_agrg!$C$3:$CB$3,FALSE),FALSE) -> 0 | G34: =VLOOKUP($B34,UdS_agrg!$C:$P,MATCH(G$3,UdS_agrg!$C$3:$P$3,FALSE),FALSE) -> 3 | H34: =VLOOKUP($B34,UdS_agrg!$C:$P,MATCH(H$3,UdS_agrg!$C$3:$P$3,FALSE),FALSE) -> 0 | I34: =VLOOKUP($B34,UdS_agrg!$C:$P,MATCH(I$3,UdS_agrg!$C$3:$P$3,FALSE),FALSE) -> 0 | J34: 3 | K34: =VLOOKUP($B34,UdS_agrg!$C:$P,MATCH(K$3,UdS_agrg!$C$3:$P$3,FALSE),FALSE) -> VALIDADO | L34: VALIDADO | M34: =VLOOKUP($B34,SEE_agrg!$C:$CC,MATCH(M$3,SEE_agrg!$C$3:$CB$3,FALSE),FALSE) -> 5 | N34: =VLOOKUP($B34,SEE_agrg!$C:$CC,MATCH(N$3,SEE_agrg!$C$3:$CB$3,FALSE),FALSE) -> 4 | O34: 9 | P34: VALIDADO | Q34: =VLOOKUP($B34,QD_agrg!$C:$M,MATCH(Q$3,QD_agrg!$C$3:$M$3,FALSE),FALSE) -> 2 | R34: =VLOOKUP($B34,QD_agrg!$C:$M,MATCH(R$3,QD_agrg!$C$3:$M$3,FALSE),FALSE) -> 3 | S34: =VLOOKUP($B34,QD_agrg!$C:$O,MATCH(S$3,QD_agrg!$C$3:$O$3,FALSE),FALSE) -> 0 | T34: 5 | U34: VALIDADO | V34: =VLOOKUP($B34,SEE_agrg!$C:$CC,MATCH(V$3,SEE_agrg!$C$3:$CB$3,FALSE),FALSE) -> 1 | W34: =VLOOKUP($B34,SEE_agrg!$C:$CC,MATCH(W$3,SEE_agrg!$C$3:$CB$3,FALSE),FALSE) -> 1 | X34: =VLOOKUP($B34,SEE_agrg!$C:$CC,MATCH(X$3,SEE_agrg!$C$3:$CB$3,FALSE),FALSE) -> 0 | Y34: 2 | Z34: =VLOOKUP(B34,SEE_agrg!$C:$CC,MATCH(Z$3,SEE_agrg!$C$3:$CB$3,FALSE),FALSE) -> 4 | AA34: 4 | AB34: 45.5 | AC34: MÉDIO | AD34: VALIDADO
A35: 29 | B35: Campinho | C35: Campinho | D35: =IF(AD35="VALIDADO",AC35,"BAIXO") -> MÉDIO | F35: =VLOOKUP($B35,SEE_agrg!C:CC,MATCH(F$3,SEE_agrg!$C$3:$CB$3,FALSE),FALSE) -> 0 | G35: =VLOOKUP($B35,UdS_agrg!$C:$P,MATCH(G$3,UdS_agrg!$C$3:$P$3,FALSE),FALSE) -> 3 | H35: =VLOOKUP($B35,UdS_agrg!$C:$P,MATCH(H$3,UdS_agrg!$C$3:$P$3,FALSE),FALSE) -> 0 | I35: =VLOOKUP($B35,UdS_agrg!$C:$P,MATCH(I$3,UdS_agrg!$C$3:$P$3,FALSE),FALSE) -> 3 | J35: 6 | K35: =VLOOKUP($B35,UdS_agrg!$C:$P,MATCH(K$3,UdS_agrg!$C$3:$P$3,FALSE),FALSE) -> VALIDADO | L35: VALIDADO | M35: =VLOOKUP($B35,SEE_agrg!$C:$CC,MATCH(M$3,SEE_agrg!$C$3:$CB$3,FALSE),FALSE) -> 4 | N35: =VLOOKUP($B35,SEE_agrg!$C:$CC,MATCH(N$3,SEE_agrg!$C$3:$CB$3,FALSE),FALSE) -> 2 | O35: 6 | P35: VALIDADO | Q35: =VLOOKUP($B35,QD_agrg!$C:$M,MATCH(Q$3,QD_agrg!$C$3:$M$3,FALSE),FALSE) -> 4 | R35: =VLOOKUP($B35,QD_agrg!$C:$M,MATCH(R$3,QD_agrg!$C$3:$M$3,FALSE),FALSE) -> 1 | S35: =VLOOKUP($B35,QD_agrg!$C:$O,MATCH(S$3,QD_agrg!$C$3:$O$3,FALSE),FALSE) -> 0 | T35: 5 | U35: VALIDADO | V35: =VLOOKUP($B35,SEE_agrg!$C:$CC,MATCH(V$3,SEE_agrg!$C$3:$CB$3,FALSE),FALSE) -> 2 | W35: =VLOOKUP($B35,SEE_agrg!$C:$CC,MATCH(W$3,SEE_agrg!$C$3:$CB$3,FALSE),FALSE) -> 2 | X35: =VLOOKUP($B35,SEE_agrg!$C:$CC,MATCH(X$3,SEE_agrg!$C$3:$CB$3,FALSE),FALSE) -> 0 | Y35: 4 | Z35: =VLOOKUP(B35,SEE_agrg!$C:$CC,MATCH(Z$3,SEE_agrg!$C$3:$CB$3,FALSE),FALSE) -> 4 | AA35: 4 | AB35: 43 | AC35: MÉDIO | AD35: VALIDADO
A36: 30 | B36: Maré | C36: Marambaia | D36: =IF(AD36="VALIDADO",AC36,"BAIXO") -> MÉDIO | F36: =VLOOKUP($B36,SEE_agrg!C:CC,MATCH(F$3,SEE_agrg!$C$3:$CB$3,FALSE),FALSE) -> 0 | G36: =VLOOKUP($B36,UdS_agrg!$C:$P,MATCH(G$3,UdS_agrg!$C$3:$P$3,FALSE),FALSE) -> 5 | H36: =VLOOKUP($B36,UdS_agrg!$C:$P,MATCH(H$3,UdS_agrg!$C$3:$P$3,FALSE),FALSE) -> 0 | I36: =VLOOKUP($B36,UdS_agrg!$C:$P,MATCH(I$3,UdS_agrg!$C$3:$P$3,FALSE),FALSE) -> 0 | J36: 5 | K36: =VLOOKUP($B36,UdS_agrg!$C:$P,MATCH(K$3,UdS_agrg!$C$3:$P$3,FALSE),FALSE) -> VALIDADO | L36: VALIDADO | M36: =VLOOKUP($B36,SEE_agrg!$C:$CC,MATCH(M$3,SEE_agrg!$C$3:$CB$3,FALSE),FALSE) -> 5 | N36: =VLOOKUP($B36,SEE_agrg!$C:$CC,MATCH(N$3,SEE_agrg!$C$3:$CB$3,FALSE),FALSE) -> 5 | O36: 10 | P36: VALIDADO | Q36: =VLOOKUP($B36,QD_agrg!$C:$M,MATCH(Q$3,QD_agrg!$C$3:$M$3,FALSE),FALSE) -> 5 | R36: =VLOOKUP($B36,QD_agrg!$C:$M,MATCH(R$3,QD_agrg!$C$3:$M$3,FALSE),FALSE) -> 1 | S36: =VLOOKUP($B36,QD_agrg!$C:$O,MATCH(S$3,QD_agrg!$C$3:$O$3,FALSE),FALSE) -> 0 | T36: 6 | U36: VALIDADO | V36: =VLOOKUP($B36,SEE_agrg!$C:$CC,MATCH(V$3,SEE_agrg!$C$3:$CB$3,FALSE),FALSE) -> 0 | W36: =VLOOKUP($B36,SEE_agrg!$C:$CC,MATCH(W$3,SEE_agrg!$C$3:$CB$3,FALSE),FALSE) -> 0 | X36: =VLOOKUP($B36,SEE_agrg!$C:$CC,MATCH(X$3,SEE_agrg!$C$3:$CB$3,FALSE),FALSE) -> 0 | Y36: 0 | Z36: =VLOOKUP(B36,SEE_agrg!$C:$CC,MATCH(Z$3,SEE_agrg!$C$3:$CB$3,FALSE),FALSE) -> 0 | AA36: 0 | AB36: 42 | AC36: MÉDIO | AD36: VALIDADO
A37: 31 | B37: Mercadão | C37: Mercado | D37: =IF(AD37="VALIDADO",AC37,"BAIXO") -> MÉDIO | F37: =VLOOKUP($B37,SEE_agrg!C:CC,MATCH(F$3,SEE_agrg!$C$3:$CB$3,FALSE),FALSE) -> 0 | G37: =VLOOKUP($B37,UdS_agrg!$C:$P,MATCH(G$3,UdS_agrg!$C$3:$P$3,FALSE),FALSE) -> 3 | H37: =VLOOKUP($B37,UdS_agrg!$C:$P,MATCH(H$3,UdS_agrg!$C$3:$P$3,FALSE),FALSE) -> 2 | I37: =VLOOKUP($B37,UdS_agrg!$C:$P,MATCH(I$3,UdS_agrg!$C$3:$P$3,FALSE),FALSE) -> 2 | J37: 7 | K37: =VLOOKUP($B37,UdS_agrg!$C:$P,MATCH(K$3,UdS_agrg!$C$3:$P$3,FALSE),FALSE) -> VALIDADO | L37: VALIDADO | M37: =VLOOKUP($B37,SEE_agrg!$C:$CC,MATCH(M$3,SEE_agrg!$C$3:$CB$3,FALSE),FALSE) -> 4 | N37: =VLOOKUP($B37,SEE_agrg!$C:$CC,MATCH(N$3,SEE_agrg!$C$3:$CB$3,FALSE),FALSE) -> 2 | O37: 6 | P37: VALIDADO | Q37: =VLOOKUP($B37,QD_agrg!$C:$M,MATCH(Q$3,QD_agrg!$C$3:$M$3,FALSE),FALSE) -> 1 | R37: =VLOOKUP($B37,QD_agrg!$C:$M,MATCH(R$3,QD_agrg!$C$3:$M$3,FALSE),FALSE) -> 0 | S37: =VLOOKUP($B37,QD_agrg!$C:$O,MATCH(S$3,QD_agrg!$C$3:$O$3,FALSE),FALSE) -> 3 | T37: 4 | U37: VALIDADO | V37: =VLOOKUP($B37,SEE_agrg!$C:$CC,MATCH(V$3,SEE_agrg!$C$3:$CB$3,FALSE),FALSE) -> 2 | W37: =VLOOKUP($B37,SEE_agrg!$C:$CC,MATCH(W$3,SEE_agrg!$C$3:$CB$3,FALSE),FALSE) -> 2 | X37: =VLOOKUP($B37,SEE_agrg!$C:$CC,MATCH(X$3,SEE_agrg!$C$3:$CB$3,FALSE),FALSE) -> 0 | Y37: 4 | Z37: =VLOOKUP(B37,SEE_agrg!$C:$CC,MATCH(Z$3,SEE_agrg!$C$3:$CB$3,FALSE),FALSE) -> 3 | AA37: 3 | AB37: 40 | AC37: MÉDIO | AD37: VALIDADO
A38: 32 | B38: Otaviano | C38: Otaviano | D38: =IF(AD38="VALIDADO",AC38,"BAIXO") -> MÉDIO | F38: =VLOOKUP($B38,SEE_agrg!C:CC,MATCH(F$3,SEE_agrg!$C$3:$CB$3,FALSE),FALSE) -> 0 | G38: =VLOOKUP($B38,UdS_agrg!$C:$P,MATCH(G$3,UdS_agrg!$C$3:$P$3,FALSE),FALSE) -> 3 | H38: =VLOOKUP($B38,UdS_agrg!$C:$P,MATCH(H$3,UdS_agrg!$C$3:$P$3,FALSE),FALSE) -> 0 | I38: =VLOOKUP($B38,UdS_agrg!$C:$P,MATCH(I$3,UdS_agrg!$C$3:$P$3,FALSE),FALSE) -> 0 | J38: 3 | K38: =VLOOKUP($B38,UdS_agrg!$C:$P,MATCH(K$3,UdS_agrg!$C$3:$P$3,FALSE),FALSE) -> VALIDADO | L38: VALIDADO | M38: =VLOOKUP($B38,SEE_agrg!$C:$CC,MATCH(M$3,SEE_agrg!$C$3:$CB$3,FALSE),FALSE) -> 5 | N38: =VLOOKUP($B38,SEE_agrg!$C:$CC,MATCH(N$3,SEE_agrg!$C$3:$CB$3,FALSE),FALSE) -> 5 | O38: 10 | P38: VALIDADO | Q38: =VLOOKUP($B38,QD_agrg!$C:$M,MATCH(Q$3,QD_agrg!$C$3:$M$3,FALSE),FALSE) -> 3 | R38: =VLOOKUP($B38,QD_agrg!$C:$M,MATCH(R$3,QD_agrg!$C$3:$M$3,FALSE),FALSE) -> 1 | S38: =VLOOKUP($B38,QD_agrg!$C:$O,MATCH(S$3,QD_agrg!$C$3:$O$3,FALSE),FALSE) -> 0 | T38: 4 | U38: VALIDADO | V38: =VLOOKUP($B38,SEE_agrg!$C:$CC,MATCH(V$3,SEE_agrg!$C$3:$CB$3,FALSE),FALSE) -> 0 | W38: =VLOOKUP($B38,SEE_agrg!$C:$CC,MATCH(W$3,SEE_agrg!$C$3:$CB$3,FALSE),FALSE) -> 0 | X38: =VLOOKUP($B38,SEE_agrg!$C:$CC,MATCH(X$3,SEE_agrg!$C$3:$CB$3,FALSE),FALSE) -> 0 | Y38: 0 | Z38: =VLOOKUP(B38,SEE_agrg!$C:$CC,MATCH(Z$3,SEE_agrg!$C$3:$CB$3,FALSE),FALSE) -> 2 | AA38: 2 | AB38: 40 | AC38: MÉDIO | AD38: VALIDADO
A39: 33 | B39: Via Parque | C39: Via Parque | D39: =IF(AD39="VALIDADO",AC39,"BAIXO") -> BAIXO | F39: =VLOOKUP($B39,SEE_agrg!C:CC,MATCH(F$3,SEE_agrg!$C$3:$CB$3,FALSE),FALSE) -> 5 | G39: =VLOOKUP($B39,UdS_agrg!$C:$P,MATCH(G$3,UdS_agrg!$C$3:$P$3,FALSE),FALSE) -> 5 | H39: =VLOOKUP($B39,UdS_agrg!$C:$P,MATCH(H$3,UdS_agrg!$C$3:$P$3,FALSE),FALSE) -> 0 | I39: =VLOOKUP($B39,UdS_agrg!$C:$P,MATCH(I$3,UdS_agrg!$C$3:$P$3,FALSE),FALSE) -> 5 | J39: 15 | K39: =VLOOKUP($B39,UdS_agrg!$C:$P,MATCH(K$3,UdS_agrg!$C$3:$P$3,FALSE),FALSE) -> VALIDADO | L39: VALIDADO | M39: =VLOOKUP($B39,SEE_agrg!$C:$CC,MATCH(M$3,SEE_agrg!$C$3:$CB$3,FALSE),FALSE) -> 5 | N39: =VLOOKUP($B39,SEE_agrg!$C:$CC,MATCH(N$3,SEE_agrg!$C$3:$CB$3,FALSE),FALSE) -> 5 | O39: 10 | P39: VALIDADO | Q39: =VLOOKUP($B39,QD_agrg!$C:$M,MATCH(Q$3,QD_agrg!$C$3:$M$3,FALSE),FALSE) -> 0 | R39: =VLOOKUP($B39,QD_agrg!$C:$M,MATCH(R$3,QD_agrg!$C$3:$M$3,FALSE),FALSE) -> 1 | S39: =VLOOKUP($B39,QD_agrg!$C:$O,MATCH(S$3,QD_agrg!$C$3:$O$3,FALSE),FALSE) -> 0 | T39: 1 | U39: INVALIDADO | V39: =VLOOKUP($B39,SEE_agrg!$C:$CC,MATCH(V$3,SEE_agrg!$C$3:$CB$3,FALSE),FALSE) -> 5 | W39: =VLOOKUP($B39,SEE_agrg!$C:$CC,MATCH(W$3,SEE_agrg!$C$3:$CB$3,FALSE),FALSE) -> 5 | X39: =VLOOKUP($B39,SEE_agrg!$C:$CC,MATCH(X$3,SEE_agrg!$C$3:$CB$3,FALSE),FALSE) -> 5 | Y39: 15 | Z39: =VLOOKUP(B39,SEE_agrg!$C:$CC,MATCH(Z$3,SEE_agrg!$C$3:$CB$3,FALSE),FALSE) -> 4 | AA39: 4 | AB39: 65 | AC39: ALTO | AD39: INVALIDADO
A40: 35 | B40: Terminal Alvorada TCA | C40: Terminal Alvorada TCA | D40: =IF(AD40="VALIDADO",AC40,"BAIXO") -> BAIXO | F40: =VLOOKUP($B40,SEE_agrg!C:CC,MATCH(F$3,SEE_agrg!$C$3:$CB$3,FALSE),FALSE) -> 5 | G40: =VLOOKUP($B40,UdS_agrg!$C:$P,MATCH(G$3,UdS_agrg!$C$3:$P$3,FALSE),FALSE) -> 5 | H40: =VLOOKUP($B40,UdS_agrg!$C:$P,MATCH(H$3,UdS_agrg!$C$3:$P$3,FALSE),FALSE) -> 0 | I40: =VLOOKUP($B40,UdS_agrg!$C:$P,MATCH(I$3,UdS_agrg!$C$3:$P$3,FALSE),FALSE) -> 3 | J40: 13 | K40: =VLOOKUP($B40,UdS_agrg!$C:$P,MATCH(K$3,UdS_agrg!$C$3:$P$3,FALSE),FALSE) -> VALIDADO | L40: VALIDADO | M40: =VLOOKUP($B40,SEE_agrg!$C:$CC,MATCH(M$3,SEE_agrg!$C$3:$CB$3,FALSE),FALSE) -> 5 | N40: =VLOOKUP($B40,SEE_agrg!$C:$CC,MATCH(N$3,SEE_agrg!$C$3:$CB$3,FALSE),FALSE) -> 5 | O40: 10 | P40: VALIDADO | Q40: =VLOOKUP($B40,QD_agrg!$C:$M,MATCH(Q$3,QD_agrg!$C$3:$M$3,FALSE),FALSE) -> 0 | R40: =VLOOKUP($B40,QD_agrg!$C:$M,MATCH(R$3,QD_agrg!$C$3:$M$3,FALSE),FALSE) -> 0 | S40: =VLOOKUP($B40,QD_agrg!$C:$O,MATCH(S$3,QD_agrg!$C$3:$O$3,FALSE),FALSE) -> 3 | T40: 3 | U40: INVALIDADO | V40: =VLOOKUP($B40,SEE_agrg!$C:$CC,MATCH(V$3,SEE_agrg!$C$3:$CB$3,FALSE),FALSE) -> 5 | W40: =VLOOKUP($B40,SEE_agrg!$C:$CC,MATCH(W$3,SEE_agrg!$C$3:$CB$3,FALSE),FALSE) -> 5 | X40: =VLOOKUP($B40,SEE_agrg!$C:$CC,MATCH(X$3,SEE_agrg!$C$3:$CB$3,FALSE),FALSE) -> 5 | Y40: 15 | Z40: =VLOOKUP(B40,SEE_agrg!$C:$CC,MATCH(Z$3,SEE_agrg!$C$3:$CB$3,FALSE),FALSE) -> 3 | AA40: 3 | AB40: 65 | AC40: ALTO | AD40: INVALIDADO
A41: 34 | B41: Lourenço Jorge | C41: Loureno Jorge | D41: =IF(AD41="VALIDADO",AC41,"BAIXO") -> BAIXO | F41: =VLOOKUP($B41,SEE_agrg!C:CC,MATCH(F$3,SEE_agrg!$C$3:$CB$3,FALSE),FALSE) -> 5 | G41: =VLOOKUP($B41,UdS_agrg!$C:$P,MATCH(G$3,UdS_agrg!$C$3:$P$3,FALSE),FALSE) -> 5 | H41: =VLOOKUP($B41,UdS_agrg!$C:$P,MATCH(H$3,UdS_agrg!$C$3:$P$3,FALSE),FALSE) -> 0 | I41: =VLOOKUP($B41,UdS_agrg!$C:$P,MATCH(I$3,UdS_agrg!$C$3:$P$3,FALSE),FALSE) -> 2 | J41: 12 | K41: =VLOOKUP($B41,UdS_agrg!$C:$P,MATCH(K$3,UdS_agrg!$C$3:$P$3,FALSE),FALSE) -> VALIDADO | L41: VALIDADO | M41: =VLOOKUP($B41,SEE_agrg!$C:$CC,MATCH(M$3,SEE_agrg!$C$3:$CB$3,FALSE),FALSE) -> 5 | N41: =VLOOKUP($B41,SEE_agrg!$C:$CC,MATCH(N$3,SEE_agrg!$C$3:$CB$3,FALSE),FALSE) -> 5 | O41: 10 | P41: VALIDADO | Q41: =VLOOKUP($B41,QD_agrg!$C:$M,MATCH(Q$3,QD_agrg!$C$3:$M$3,FALSE),FALSE) -> 0 | R41: =VLOOKUP($B41,QD_agrg!$C:$M,MATCH(R$3,QD_agrg!$C$3:$M$3,FALSE),FALSE) -> 0 | S41: =VLOOKUP($B41,QD_agrg!$C:$O,MATCH(S$3,QD_agrg!$C$3:$O$3,FALSE),FALSE) -> 0 | T41: 0 | U41: INVALIDADO | V41: =VLOOKUP($B41,SEE_agrg!$C:$CC,MATCH(V$3,SEE_agrg!$C$3:$CB$3,FALSE),FALSE) -> 5 | W41: =VLOOKUP($B41,SEE_agrg!$C:$CC,MATCH(W$3,SEE_agrg!$C$3:$CB$3,FALSE),FALSE) -> 5 | X41: =VLOOKUP($B41,SEE_agrg!$C:$CC,MATCH(X$3,SEE_agrg!$C$3:$CB$3,FALSE),FALSE) -> 5 | Y41: 15 | Z41: =VLOOKUP(B41,SEE_agrg!$C:$CC,MATCH(Z$3,SEE_agrg!$C$3:$CB$3,FALSE),FALSE) -> 4 | AA41: 4 | AB41: 60 | AC41: ALTO | AD41: INVALIDADO
A42: 36 | B42: Aeroporto de Jacarepaguá | C42: Aeroporto de Jacarepagu | D42: =IF(AD42="VALIDADO",AC42,"BAIXO") -> BAIXO | F42: =VLOOKUP($B42,SEE_agrg!C:CC,MATCH(F$3,SEE_agrg!$C$3:$CB$3,FALSE),FALSE) -> 5 | G42: =VLOOKUP($B42,UdS_agrg!$C:$P,MATCH(G$3,UdS_agrg!$C$3:$P$3,FALSE),FALSE) -> 0 | H42: =VLOOKUP($B42,UdS_agrg!$C:$P,MATCH(H$3,UdS_agrg!$C$3:$P$3,FALSE),FALSE) -> 0 | I42: =VLOOKUP($B42,UdS_agrg!$C:$P,MATCH(I$3,UdS_agrg!$C$3:$P$3,FALSE),FALSE) -> 4 | J42: 9 | K42: =VLOOKUP($B42,UdS_agrg!$C:$P,MATCH(K$3,UdS_agrg!$C$3:$P$3,FALSE),FALSE) -> VALIDADO | L42: INVALIDADO | M42: =VLOOKUP($B42,SEE_agrg!$C:$CC,MATCH(M$3,SEE_agrg!$C$3:$CB$3,FALSE),FALSE) -> 5 | N42: =VLOOKUP($B42,SEE_agrg!$C:$CC,MATCH(N$3,SEE_agrg!$C$3:$CB$3,FALSE),FALSE) -> 5 | O42: 10 | P42: VALIDADO | Q42: =VLOOKUP($B42,QD_agrg!$C:$M,MATCH(Q$3,QD_agrg!$C$3:$M$3,FALSE),FALSE) -> 0 | R42: =VLOOKUP($B42,QD_agrg!$C:$M,MATCH(R$3,QD_agrg!$C$3:$M$3,FALSE),FALSE) -> 1 | S42: =VLOOKUP($B42,QD_agrg!$C:$O,MATCH(S$3,QD_agrg!$C$3:$O$3,FALSE),FALSE) -> 0 | T42: 1 | U42: INVALIDADO | V42: =VLOOKUP($B42,SEE_agrg!$C:$CC,MATCH(V$3,SEE_agrg!$C$3:$CB$3,FALSE),FALSE) -> 5 | W42: =VLOOKUP($B42,SEE_agrg!$C:$CC,MATCH(W$3,SEE_agrg!$C$3:$CB$3,FALSE),FALSE) -> 5 | X42: =VLOOKUP($B42,SEE_agrg!$C:$CC,MATCH(X$3,SEE_agrg!$C$3:$CB$3,FALSE),FALSE) -> 5 | Y42: 15 | Z42: =VLOOKUP(B42,SEE_agrg!$C:$CC,MATCH(Z$3,SEE_agrg!$C$3:$CB$3,FALSE),FALSE) -> 4 | AA42: 4 | AB42: 59 | AC42: MÉDIO | AD42: INVALIDADO
A43: 37 | B43: Vaz Lobo | C43: Vaz Lobo | D43: =IF(AD43="VALIDADO",AC43,"BAIXO") -> BAIXO | F43: =VLOOKUP($B43,SEE_agrg!C:CC,MATCH(F$3,SEE_agrg!$C$3:$CB$3,FALSE),FALSE) -> 0 | G43: =VLOOKUP($B43,UdS_agrg!$C:$P,MATCH(G$3,UdS_agrg!$C$3:$P$3,FALSE),FALSE) -> 0 | H43: =VLOOKUP($B43,UdS_agrg!$C:$P,MATCH(H$3,UdS_agrg!$C$3:$P$3,FALSE),FALSE) -> 1 | I43: =VLOOKUP($B43,UdS_agrg!$C:$P,MATCH(I$3,UdS_agrg!$C$3:$P$3,FALSE),FALSE) -> 0 | J43: 1 | K43: =VLOOKUP($B43,UdS_agrg!$C:$P,MATCH(K$3,UdS_agrg!$C$3:$P$3,FALSE),FALSE) -> VALIDADO | L43: INVALIDADO | M43: =VLOOKUP($B43,SEE_agrg!$C:$CC,MATCH(M$3,SEE_agrg!$C$3:$CB$3,FALSE),FALSE) -> 5 | N43: =VLOOKUP($B43,SEE_agrg!$C:$CC,MATCH(N$3,SEE_agrg!$C$3:$CB$3,FALSE),FALSE) -> 5 | O43: 10 | P43: VALIDADO | Q43: =VLOOKUP($B43,QD_agrg!$C:$M,MATCH(Q$3,QD_agrg!$C$3:$M$3,FALSE),FALSE) -> 5 | R43: =VLOOKUP($B43,QD_agrg!$C:$M,MATCH(R$3,QD_agrg!$C$3:$M$3,FALSE),FALSE) -> 3 | S43: =VLOOKUP($B43,QD_agrg!$C:$O,MATCH(S$3,QD_agrg!$C$3:$O$3,FALSE),FALSE) -> 0 | T43: 8 | U43: VALIDADO | V43: =VLOOKUP($B43,SEE_agrg!$C:$CC,MATCH(V$3,SEE_agrg!$C$3:$CB$3,FALSE),FALSE) -> 5 | W43: =VLOOKUP($B43,SEE_agrg!$C:$CC,MATCH(W$3,SEE_agrg!$C$3:$CB$3,FALSE),FALSE) -> 5 | X43: =VLOOKUP($B43,SEE_agrg!$C:$CC,MATCH(X$3,SEE_agrg!$C$3:$CB$3,FALSE),FALSE) -> 2 | Y43: 12 | Z43: =VLOOKUP(B43,SEE_agrg!$C:$CC,MATCH(Z$3,SEE_agrg!$C$3:$CB$3,FALSE),FALSE) -> 2 | AA43: 2 | AB43: 58 | AC43: MÉDIO | AD43: INVALIDADO
A44: 38 | B44: Pedro Correia | C44: Pedro Correia | D44: =IF(AD44="VALIDADO",AC44,"BAIXO") -> BAIXO | F44: =VLOOKUP($B44,SEE_agrg!C:CC,MATCH(F$3,SEE_agrg!$C$3:$CB$3,FALSE),FALSE) -> 5 | G44: =VLOOKUP($B44,UdS_agrg!$C:$P,MATCH(G$3,UdS_agrg!$C$3:$P$3,FALSE),FALSE) -> 3 | H44: =VLOOKUP($B44,UdS_agrg!$C:$P,MATCH(H$3,UdS_agrg!$C$3:$P$3,FALSE),FALSE) -> 0 | I44: =VLOOKUP($B44,UdS_agrg!$C:$P,MATCH(I$3,UdS_agrg!$C$3:$P$3,FALSE),FALSE) -> 4 | J44: 12 | K44: =VLOOKUP($B44,UdS_agrg!$C:$P,MATCH(K$3,UdS_agrg!$C$3:$P$3,FALSE),FALSE) -> VALIDADO | L44: VALIDADO | M44: =VLOOKUP($B44,SEE_agrg!$C:$CC,MATCH(M$3,SEE_agrg!$C$3:$CB$3,FALSE),FALSE) -> 5 | N44: =VLOOKUP($B44,SEE_agrg!$C:$CC,MATCH(N$3,SEE_agrg!$C$3:$CB$3,FALSE),FALSE) -> 1 | O44: 6 | P44: VALIDADO | Q44: =VLOOKUP($B44,QD_agrg!$C:$M,MATCH(Q$3,QD_agrg!$C$3:$M$3,FALSE),FALSE) -> 0 | R44: =VLOOKUP($B44,QD_agrg!$C:$M,MATCH(R$3,QD_agrg!$C$3:$M$3,FALSE),FALSE) -> 3 | S44: =VLOOKUP($B44,QD_agrg!$C:$O,MATCH(S$3,QD_agrg!$C$3:$O$3,FALSE),FALSE) -> 0 | T44: 3 | U44: INVALIDADO | V44: =VLOOKUP($B44,SEE_agrg!$C:$CC,MATCH(V$3,SEE_agrg!$C$3:$CB$3,FALSE),FALSE) -> 4 | W44: =VLOOKUP($B44,SEE_agrg!$C:$CC,MATCH(W$3,SEE_agrg!$C$3:$CB$3,FALSE),FALSE) -> 4 | X44: =VLOOKUP($B44,SEE_agrg!$C:$CC,MATCH(X$3,SEE_agrg!$C$3:$CB$3,FALSE),FALSE) -> 4 | Y44: 12 | Z44: =VLOOKUP(B44,SEE_agrg!$C:$CC,MATCH(Z$3,SEE_agrg!$C$3:$CB$3,FALSE),FALSE) -> 4 | AA44: 4 | AB44: 53 | AC44: MÉDIO | AD44: INVALIDADO
A45: 40 | B45: Praça Seca | C45: Praa Seca | D45: =IF(AD45="VALIDADO",AC45,"BAIXO") -> BAIXO | F45: =VLOOKUP($B45,SEE_agrg!C:CC,MATCH(F$3,SEE_agrg!$C$3:$CB$3,FALSE),FALSE) -> 0 | G45: =VLOOKUP($B45,UdS_agrg!$C:$P,MATCH(G$3,UdS_agrg!$C$3:$P$3,FALSE),FALSE) -> 0 | H45: =VLOOKUP($B45,UdS_agrg!$C:$P,MATCH(H$3,UdS_agrg!$C$3:$P$3,FALSE),FALSE) -> 0 | I45: =VLOOKUP($B45,UdS_agrg!$C:$P,MATCH(I$3,UdS_agrg!$C$3:$P$3,FALSE),FALSE) -> 0 | J45: 0 | K45: =VLOOKUP($B45,UdS_agrg!$C:$P,MATCH(K$3,UdS_agrg!$C$3:$P$3,FALSE),FALSE) -> VALIDADO | L45: INVALIDADO | M45: =VLOOKUP($B45,SEE_agrg!$C:$CC,MATCH(M$3,SEE_agrg!$C$3:$CB$3,FALSE),FALSE) -> 5 | N45: =VLOOKUP($B45,SEE_agrg!$C:$CC,MATCH(N$3,SEE_agrg!$C$3:$CB$3,FALSE),FALSE) -> 4 | O45: 9 | P45: VALIDADO | Q45: =VLOOKUP($B45,QD_agrg!$C:$M,MATCH(Q$3,QD_agrg!$C$3:$M$3,FALSE),FALSE) -> 2 | R45: =VLOOKUP($B45,QD_agrg!$C:$M,MATCH(R$3,QD_agrg!$C$3:$M$3,FALSE),FALSE) -> 3 | S45: =VLOOKUP($B45,QD_agrg!$C:$O,MATCH(S$3,QD_agrg!$C$3:$O$3,FALSE),FALSE) -> 0 | T45: 5 | U45: VALIDADO | V45: =VLOOKUP($B45,SEE_agrg!$C:$CC,MATCH(V$3,SEE_agrg!$C$3:$CB$3,FALSE),FALSE) -> 5 | W45: =VLOOKUP($B45,SEE_agrg!$C:$CC,MATCH(W$3,SEE_agrg!$C$3:$CB$3,FALSE),FALSE) -> 5 | X45: =VLOOKUP($B45,SEE_agrg!$C:$CC,MATCH(X$3,SEE_agrg!$C$3:$CB$3,FALSE),FALSE) -> 2 | Y45: 12 | Z45: =VLOOKUP(B45,SEE_agrg!$C:$CC,MATCH(Z$3,SEE_agrg!$C$3:$CB$3,FALSE),FALSE) -> 4 | AA45: 4 | AB45: 52.5 | AC45: MÉDIO | AD45: INVALIDADO
A46: 39 | B46: Galeão - Tom Jobim 1 | C46: Galeo - Tom Jobim 1 | D46: =IF(AD46="VALIDADO",AC46,"BAIXO") -> BAIXO | F46: =VLOOKUP($B46,SEE_agrg!C:CC,MATCH(F$3,SEE_agrg!$C$3:$CB$3,FALSE),FALSE) -> 5 | G46: =VLOOKUP($B46,UdS_agrg!$C:$P,MATCH(G$3,UdS_agrg!$C$3:$P$3,FALSE),FALSE) -> 0 | H46: =VLOOKUP($B46,UdS_agrg!$C:$P,MATCH(H$3,UdS_agrg!$C$3:$P$3,FALSE),FALSE) -> 0 | I46: =VLOOKUP($B46,UdS_agrg!$C:$P,MATCH(I$3,UdS_agrg!$C$3:$P$3,FALSE),FALSE) -> 0 | J46: 5 | K46: =VLOOKUP($B46,UdS_agrg!$C:$P,MATCH(K$3,UdS_agrg!$C$3:$P$3,FALSE),FALSE) -> VALIDADO | L46: INVALIDADO | M46: =VLOOKUP($B46,SEE_agrg!$C:$CC,MATCH(M$3,SEE_agrg!$C$3:$CB$3,FALSE),FALSE) -> 5 | N46: =VLOOKUP($B46,SEE_agrg!$C:$CC,MATCH(N$3,SEE_agrg!$C$3:$CB$3,FALSE),FALSE) -> 5 | O46: 10 | P46: VALIDADO | Q46: =VLOOKUP($B46,QD_agrg!$C:$M,MATCH(Q$3,QD_agrg!$C$3:$M$3,FALSE),FALSE) -> 0 | R46: =VLOOKUP($B46,QD_agrg!$C:$M,MATCH(R$3,QD_agrg!$C$3:$M$3,FALSE),FALSE) -> 1 | S46: =VLOOKUP($B46,QD_agrg!$C:$O,MATCH(S$3,QD_agrg!$C$3:$O$3,FALSE),FALSE) -> 0 | T46: 1 | U46: INVALIDADO | V46: =VLOOKUP($B46,SEE_agrg!$C:$CC,MATCH(V$3,SEE_agrg!$C$3:$CB$3,FALSE),FALSE) -> 5 | W46: =VLOOKUP($B46,SEE_agrg!$C:$CC,MATCH(W$3,SEE_agrg!$C$3:$CB$3,FALSE),FALSE) -> 5 | X46: =VLOOKUP($B46,SEE_agrg!$C:$CC,MATCH(X$3,SEE_agrg!$C$3:$CB$3,FALSE),FALSE) -> 5 | Y46: 15 | Z46: =VLOOKUP(B46,SEE_agrg!$C:$CC,MATCH(Z$3,SEE_agrg!$C$3:$CB$3,FALSE),FALSE) -> 2 | AA46: 2 | AB46: 51 | AC46: MÉDIO | AD46: INVALIDADO
A47: 41 | B47: Galeão - Tom Jobim 2 | C47: Galeo - Tom Jobim 2 | D47: =IF(AD47="VALIDADO",AC47,"BAIXO") -> BAIXO | F47: =VLOOKUP($B47,SEE_agrg!C:CC,MATCH(F$3,SEE_agrg!$C$3:$CB$3,FALSE),FALSE) -> 5 | G47: =VLOOKUP($B47,UdS_agrg!$C:$P,MATCH(G$3,UdS_agrg!$C$3:$P$3,FALSE),FALSE) -> 1 | H47: =VLOOKUP($B47,UdS_agrg!$C:$P,MATCH(H$3,UdS_agrg!$C$3:$P$3,FALSE),FALSE) -> 0 | I47: =VLOOKUP($B47,UdS_agrg!$C:$P,MATCH(I$3,UdS_agrg!$C$3:$P$3,FALSE),FALSE) -> 0 | J47: 6 | K47: =VLOOKUP($B47,UdS_agrg!$C:$P,MATCH(K$3,UdS_agrg!$C$3:$P$3,FALSE),FALSE) -> VALIDADO | L47: VALIDADO | M47: =VLOOKUP($B47,SEE_agrg!$C:$CC,MATCH(M$3,SEE_agrg!$C$3:$CB$3,FALSE),FALSE) -> 5 | N47: =VLOOKUP($B47,SEE_agrg!$C:$CC,MATCH(N$3,SEE_agrg!$C$3:$CB$3,FALSE),FALSE) -> 5 | O47: 10 | P47: VALIDADO | Q47: =VLOOKUP($B47,QD_agrg!$C:$M,MATCH(Q$3,QD_agrg!$C$3:$M$3,FALSE),FALSE) -> 0 | R47: =VLOOKUP($B47,QD_agrg!$C:$M,MATCH(R$3,QD_agrg!$C$3:$M$3,FALSE),FALSE) -> 1 | S47: =VLOOKUP($B47,QD_agrg!$C:$O,MATCH(S$3,QD_agrg!$C$3:$O$3,FALSE),FALSE) -> 0 | T47: 1 | U47: INVALIDADO | V47: =VLOOKUP($B47,SEE_agrg!$C:$CC,MATCH(V$3,SEE_agrg!$C$3:$CB$3,FALSE),FALSE) -> 4 | W47: =VLOOKUP($B47,SEE_agrg!$C:$CC,MATCH(W$3,SEE_agrg!$C$3:$CB$3,FALSE),FALSE) -> 5 | X47: =VLOOKUP($B47,SEE_agrg!$C:$CC,MATCH(X$3,SEE_agrg!$C$3:$CB$3,FALSE),FALSE) -> 4 | Y47: 13 | Z47: =VLOOKUP(B47,SEE_agrg!$C:$CC,MATCH(Z$3,SEE_agrg!$C$3:$CB$3,FALSE),FALSE) -> 2 | AA47: 2 | AB47: 50 | AC47: MÉDIO | AD47: INVALIDADO
A48: 42 | B48: Rio II | C48: Rio II | D48: =IF(AD48="VALIDADO",AC48,"BAIXO") -> BAIXO | F48: =VLOOKUP($B48,SEE_agrg!C:CC,MATCH(F$3,SEE_agrg!$C$3:$CB$3,FALSE),FALSE) -> 0 | G48: =VLOOKUP($B48,UdS_agrg!$C:$P,MATCH(G$3,UdS_agrg!$C$3:$P$3,FALSE),FALSE) -> 5 | H48: =VLOOKUP($B48,UdS_agrg!$C:$P,MATCH(H$3,UdS_agrg!$C$3:$P$3,FALSE),FALSE) -> 0 | I48: =VLOOKUP($B48,UdS_agrg!$C:$P,MATCH(I$3,UdS_agrg!$C$3:$P$3,FALSE),FALSE) -> 2 | J48: 7 | K48: =VLOOKUP($B48,UdS_agrg!$C:$P,MATCH(K$3,UdS_agrg!$C$3:$P$3,FALSE),FALSE) -> VALIDADO | L48: VALIDADO | M48: =VLOOKUP($B48,SEE_agrg!$C:$CC,MATCH(M$3,SEE_agrg!$C$3:$CB$3,FALSE),FALSE) -> 5 | N48: =VLOOKUP($B48,SEE_agrg!$C:$CC,MATCH(N$3,SEE_agrg!$C$3:$CB$3,FALSE),FALSE) -> 2 | O48: 7 | P48: VALIDADO | Q48: =VLOOKUP($B48,QD_agrg!$C:$M,MATCH(Q$3,QD_agrg!$C$3:$M$3,FALSE),FALSE) -> 0 | R48: =VLOOKUP($B48,QD_agrg!$C:$M,MATCH(R$3,QD_agrg!$C$3:$M$3,FALSE),FALSE) -> 0 | S48: =VLOOKUP($B48,QD_agrg!$C:$O,MATCH(S$3,QD_agrg!$C$3:$O$3,FALSE),FALSE) -> 0 | T48: 0 | U48: INVALIDADO | V48: =VLOOKUP($B48,SEE_agrg!$C:$CC,MATCH(V$3,SEE_agrg!$C$3:$CB$3,FALSE),FALSE) -> 5 | W48: =VLOOKUP($B48,SEE_agrg!$C:$CC,MATCH(W$3,SEE_agrg!$C$3:$CB$3,FALSE),FALSE) -> 5 | X48: =VLOOKUP($B48,SEE_agrg!$C:$CC,MATCH(X$3,SEE_agrg!$C$3:$CB$3,FALSE),FALSE) -> 5 | Y48: 15 | Z48: =VLOOKUP(B48,SEE_agrg!$C:$CC,MATCH(Z$3,SEE_agrg!$C$3:$CB$3,FALSE),FALSE) -> 4 | AA48: 4 | AB48: 47.5 | AC48: MÉDIO | AD48: INVALIDADO
A49: 43 | B49: Centro Metropolitano | C49: Centro Metropolitano | D49: =IF(AD49="VALIDADO",AC49,"BAIXO") -> BAIXO | F49: =VLOOKUP($B49,SEE_agrg!C:CC,MATCH(F$3,SEE_agrg!$C$3:$CB$3,FALSE),FALSE) -> 5 | G49: =VLOOKUP($B49,UdS_agrg!$C:$P,MATCH(G$3,UdS_agrg!$C$3:$P$3,FALSE),FALSE) -> 5 | H49: =VLOOKUP($B49,UdS_agrg!$C:$P,MATCH(H$3,UdS_agrg!$C$3:$P$3,FALSE),FALSE) -> 0 | I49: =VLOOKUP($B49,UdS_agrg!$C:$P,MATCH(I$3,UdS_agrg!$C$3:$P$3,FALSE),FALSE) -> 5 | J49: 15 | K49: =VLOOKUP($B49,UdS_agrg!$C:$P,MATCH(K$3,UdS_agrg!$C$3:$P$3,FALSE),FALSE) -> VALIDADO | L49: VALIDADO | M49: =VLOOKUP($B49,SEE_agrg!$C:$CC,MATCH(M$3,SEE_agrg!$C$3:$CB$3,FALSE),FALSE) -> 5 | N49: =VLOOKUP($B49,SEE_agrg!$C:$CC,MATCH(N$3,SEE_agrg!$C$3:$CB$3,FALSE),FALSE) -> 0 | O49: 5 | P49: INVALIDADO | Q49: =VLOOKUP($B49,QD_agrg!$C:$M,MATCH(Q$3,QD_agrg!$C$3:$M$3,FALSE),FALSE) -> 3 | R49: =VLOOKUP($B49,QD_agrg!$C:$M,MATCH(R$3,QD_agrg!$C$3:$M$3,FALSE),FALSE) -> 1 | S49: =VLOOKUP($B49,QD_agrg!$C:$O,MATCH(S$3,QD_agrg!$C$3:$O$3,FALSE),FALSE) -> 0 | T49: 4 | U49: VALIDADO | V49: =VLOOKUP($B49,SEE_agrg!$C:$CC,MATCH(V$3,SEE_agrg!$C$3:$CB$3,FALSE),FALSE) -> 5 | W49: =VLOOKUP($B49,SEE_agrg!$C:$CC,MATCH(W$3,SEE_agrg!$C$3:$CB$3,FALSE),FALSE) -> 0 | X49: =VLOOKUP($B49,SEE_agrg!$C:$CC,MATCH(X$3,SEE_agrg!$C$3:$CB$3,FALSE),FALSE) -> 0 | Y49: 5 | Z49: =VLOOKUP(B49,SEE_agrg!$C:$CC,MATCH(Z$3,SEE_agrg!$C$3:$CB$3,FALSE),FALSE) -> 1 | AA49: 1 | AB49: 42.5 | AC49: MÉDIO | AD49: INVALIDADO
A50: 44 | B50: Hospital Sarah | C50: Hospital Sarah | D50: =IF(AD50="VALIDADO",AC50,"BAIXO") -> BAIXO | F50: =VLOOKUP($B50,SEE_agrg!C:CC,MATCH(F$3,SEE_agrg!$C$3:$CB$3,FALSE),FALSE) -> 5 | G50: =VLOOKUP($B50,UdS_agrg!$C:$P,MATCH(G$3,UdS_agrg!$C$3:$P$3,FALSE),FALSE) -> 5 | H50: =VLOOKUP($B50,UdS_agrg!$C:$P,MATCH(H$3,UdS_agrg!$C$3:$P$3,FALSE),FALSE) -> 0 | I50: =VLOOKUP($B50,UdS_agrg!$C:$P,MATCH(I$3,UdS_agrg!$C$3:$P$3,FALSE),FALSE) -> 5 | J50: 15 | K50: =VLOOKUP($B50,UdS_agrg!$C:$P,MATCH(K$3,UdS_agrg!$C$3:$P$3,FALSE),FALSE) -> VALIDADO | L50: VALIDADO | M50: =VLOOKUP($B50,SEE_agrg!$C:$CC,MATCH(M$3,SEE_agrg!$C$3:$CB$3,FALSE),FALSE) -> 5 | N50: =VLOOKUP($B50,SEE_agrg!$C:$CC,MATCH(N$3,SEE_agrg!$C$3:$CB$3,FALSE),FALSE) -> 0 | O50: 5 | P50: INVALIDADO | Q50: =VLOOKUP($B50,QD_agrg!$C:$M,MATCH(Q$3,QD_agrg!$C$3:$M$3,FALSE),FALSE) -> 0 | R50: =VLOOKUP($B50,QD_agrg!$C:$M,MATCH(R$3,QD_agrg!$C$3:$M$3,FALSE),FALSE) -> 0 | S50: =VLOOKUP($B50,QD_agrg!$C:$O,MATCH(S$3,QD_agrg!$C$3:$O$3,FALSE),FALSE) -> 0 | T50: 0 | U50: INVALIDADO | V50: =VLOOKUP($B50,SEE_agrg!$C:$CC,MATCH(V$3,SEE_agrg!$C$3:$CB$3,FALSE),FALSE) -> 0 | W50: =VLOOKUP($B50,SEE_agrg!$C:$CC,MATCH(W$3,SEE_agrg!$C$3:$CB$3,FALSE),FALSE) -> 0 | X50: =VLOOKUP($B50,SEE_agrg!$C:$CC,MATCH(X$3,SEE_agrg!$C$3:$CB$3,FALSE),FALSE) -> 0 | Y50: 0 | Z50: =VLOOKUP(B50,SEE_agrg!$C:$CC,MATCH(Z$3,SEE_agrg!$C$3:$CB$3,FALSE),FALSE) -> 1 | AA50: 1 | AB50: 29.5 | AC50: BAIXO | AD50: INVALIDADO
A51: 45 | B51: Terminal Fundão - Aroldo Melodia | C51: Terminal Fundo - Aroldo Melodia | D51: =IF(AD51="VALIDADO",AC51,"BAIXO") -> BAIXO | F51: =VLOOKUP($B51,SEE_agrg!C:CC,MATCH(F$3,SEE_agrg!$C$3:$CB$3,FALSE),FALSE) -> 5 | G51: =VLOOKUP($B51,UdS_agrg!$C:$P,MATCH(G$3,UdS_agrg!$C$3:$P$3,FALSE),FALSE) -> 5 | H51: =VLOOKUP($B51,UdS_agrg!$C:$P,MATCH(H$3,UdS_agrg!$C$3:$P$3,FALSE),FALSE) -> 0 | I51: =VLOOKUP($B51,UdS_agrg!$C:$P,MATCH(I$3,UdS_agrg!$C$3:$P$3,FALSE),FALSE) -> 1 | J51: 11 | K51: =VLOOKUP($B51,UdS_agrg!$C:$P,MATCH(K$3,UdS_agrg!$C$3:$P$3,FALSE),FALSE) -> INVALIDADO | L51: INVALIDADO | M51: =VLOOKUP($B51,SEE_agrg!$C:$CC,MATCH(M$3,SEE_agrg!$C$3:$CB$3,FALSE),FALSE) -> 0 | N51: =VLOOKUP($B51,SEE_agrg!$C:$CC,MATCH(N$3,SEE_agrg!$C$3:$CB$3,FALSE),FALSE) -> 0 | O51: 0 | P51: INVALIDADO | Q51: =VLOOKUP($B51,QD_agrg!$C:$M,MATCH(Q$3,QD_agrg!$C$3:$M$3,FALSE),FALSE) -> 3 | R51: =VLOOKUP($B51,QD_agrg!$C:$M,MATCH(R$3,QD_agrg!$C$3:$M$3,FALSE),FALSE) -> 1 | S51: =VLOOKUP($B51,QD_agrg!$C:$O,MATCH(S$3,QD_agrg!$C$3:$O$3,FALSE),FALSE) -> 0 | T51: 4 | U51: VALIDADO | V51: =VLOOKUP($B51,SEE_agrg!$C:$CC,MATCH(V$3,SEE_agrg!$C$3:$CB$3,FALSE),FALSE) -> 0 | W51: =VLOOKUP($B51,SEE_agrg!$C:$CC,MATCH(W$3,SEE_agrg!$C$3:$CB$3,FALSE),FALSE) -> 0 | X51: =VLOOKUP($B51,SEE_agrg!$C:$CC,MATCH(X$3,SEE_agrg!$C$3:$CB$3,FALSE),FALSE) -> 0 | Y51: 0 | Z51: =VLOOKUP(B51,SEE_agrg!$C:$CC,MATCH(Z$3,SEE_agrg!$C$3:$CB$3,FALSE),FALSE) -> 0 | AA51: 0 | AB51: 19 | AC51: BAIXO | AD51: INVALIDADO

Sheet DOTS_Parametros
A1: Lista de Parâmetros
A3: Parâmetro | B3: Valor | C3: Unidade | D3: Observação
A4: Densidade de Referência | B4: 9000 | C4: hab./ha | D4: ONU
A5: Densidade do Município (setores 1 e 3) | B5: 8488 | C5: hab./ha | D5: Rio de Janeiro
A6: Tolerância Densidade | B6: 0.1

Sheet analise_tabdin (hidden)
A1: Tabela Dinâmica Dados Setores Censitários
A3: Rótulos de Linha | B3: Contagem de Pontuação Densidade
A4: TransBrasil | B4: 0.1474358974
A5: 0 | B5: 0.3913043478
A6: 3 | B6: 0.2608695652
A7: 5 | B7: 0.347826087
A8: TransCarioca | B8: 0.2884615385
A9: 0 | B9: 0.6888888889
A10: 3 | B10: 0.06666666667
A11: 5 | B11: 0.2444444444
A12: TransOeste | B12: 0.4358974359
A13: 0 | B13: 0.1764705882
A14: 3 | B14: 0.3529411765
A15: 5 | B15: 0.4705882353
A16: TransOlmpica | B16: 0.1282051282
A17: 0 | B17: 0.25
A18: 3 | B18: 0.2
A19: 5 | B19: 0.55
A20: Total Geral | B20: 1

Sheet analise_H_extr (hidden)
A1: H_PR | B1: (Vários itens)
A2: Corredor | B2: (Vários itens)
A4: Rótulos de Linha | B4: H_Responsável | C4: H_Pessoas | D4: até 1/2 SM | E4: até 1 SM | F4: até 2 SM | G4: até 3 SM | H4: até 5 SM | I4: até 10 SM | J4: até 15 SM | K4: até 20 SM | L4: mais 20 SM
A5: Interlagos | B5: 0.9597411006 | C5: 0.967786658 | D5: 0.01205433809 | E5: 0.1051573547 | F5: 0.1982366117 | G5: 0.0638583595 | H5: 0.09334459852 | I5: 0.1894434546 | J5: 0.08979561127 | K5: 0.09471476627 | L5: 0.1533949053
A6: Terminal Jd. Ocenico | B6: 0.9545844753 | C6: 0.9579619327 | D6: 0.005504491713 | E6: 0.0428904184 | F6: 0.1734860739 | G6: 0.08012477094 | H6: 0.1109905145 | I6: 0.2332995264 | J6: 0.08513759063 | K6: 0.1382210891 | L6: 0.1303455245
A7: Recreio Shopping | B7: 0.947342491 | C7: 0.9562924606 | D7: 0.01257863272 | E7: 0.1191630932 | F7: 0.1418598667 | G7: 0.06236110475 | H7: 0.1085399099 | I7: 0.2653546239 | J7: 0.1047414208 | K7: 0.1175952489 | L7: 0.06780609915
A8: Magara | B8: 0.7829261512 | C8: 0.7553739627 | D8: 0.04778446071 | E8: 0.4118944017 | F8: 0.3821193646 | G8: 0.08373835202 | H8: 0.0576337306 | I8: 0.01633754216 | J8: 0.0004921481975 | K8: 0 | L8: 0
A9: Maré | B9: 0.7614274885 | C9: 0.7391428075 | D9: 0.01887654109 | E9: 0.3995811983 | F9: 0.4096254928 | G9: 0.1143045066 | H9: 0.04416321642 | I9: 0.01237946978 | J9: 0.0002394743236 | K9: 0.0006451603552 | L9: 0.0001849403827
A10: Pingo D'gua | B10: 0.6771835381 | C10: 0.6786974184 | D10: 0.1162028894 | E10: 0.5824226938 | F10: 0.1976445391 | G10: 0.06547193891 | H10: 0.02058012074 | I10: 0.01451198294 | J10: 0.003165835161 | K10: 0 | L10: 0
A11: Total Geral | B11: 5.083205245 | C11: 5.05525524 | D11: 0.2130013537 | E11: 1.66110916 | F11: 1.502971949 | G11: 0.4698590327 | H11: 0.4352520907 | I11: 0.7313265998 | J11: 0.2835720803 | K11: 0.3511762647 | L11: 0.3517314693

Sheet analise_H (hidden)
A1: Corredor | B1: Estação | C1: H_RR | D1: H_PR | E1: ratio | F1: maior/menor | G1: bloco | J1: Linha
A2: TransBrasil | B2: Barros Filho | C2: 0.8109646676 | D2: 0.777454544 | E2: =D2/C2 -> 0.9586786885 | F2: =IF(D2>C2,"maior","menor") -> menor | G2: 0.6 | J2: 0 | K2: 0
A3: TransBrasil | B3: Brs de Pina | C3: 0.7956372693 | D3: 0.7583851561 | E3: =D3/C3 -> 0.953179527 | F3: =IF(D3>C3,"maior","menor") -> menor | G3: 0.65 | J3: 1 | K3: 1
A4: TransBrasil | B4: Carrefour | C4: 0.8860545936 | D4: 0.8615056701 | E4: 0.9722941185 | F4: menor | G4: 0.7
A5: TransBrasil | B5: Coelho Neto | C5: 0.8641684604 | D5: 0.8334118224 | E5: 0.9644089788 | F5: menor | G5: 0.75
A6: TransBrasil | B6: Correia Andrade | C6: 0.8573077088 | D6: 0.8288944156 | E6: 0.9668575321 | F6: menor | G6: 0.8 | J6: bloco | K6: Freqüência | L6: % cumulativo | M6: bloco | N6: Freqüência | O6: % cumulativo
A7: TransBrasil | B7: Fiocruz | C7: 0.7207062452 | D7: 0.7064826326 | E7: 0.9802643411 | F7: menor | G7: 0.85 | J7: 0.6 | K7: 0 | L7: 0 | M7: 0.95 | N7: 54 | O7: 0.3483870968
A8: TransBrasil | B8: I.N.T.O | C8: 0.8872144374 | D8: 0.8605062473 | E8: 0.9698965786 | F8: menor | G8: 0.9 | J8: 0.65 | K8: 1 | L8: 0.006451612903 | M8: 0.9 | N8: 39 | O8: 0.6
A9: TransBrasil | B9: Iraj | C9: 0.8916620478 | D9: 0.8769207218 | E9: 0.9834675862 | F9: menor | G9: 0.95 | J9: 0.7 | K9: 3 | L9: 0.02580645161 | M9: 0.85 | N9: 34 | O9: 0.8193548387
A10: TransBrasil | B10: Joana Nascimento | C10: 0.8620743521 | D10: 0.8286082803 | E10: 0.9611795993 | F10: menor | J10: 0.75 | K10: 1 | L10: 0.03225806452 | M10: 0.8 | N10: 19 | O10: 0.9419354839
A11: TransBrasil | B11: Marinha do Brasil | C11: 0.8919901149 | D11: 0.8588587701 | E11: 0.9628568251 | F11: menor | J11: 0.8 | K11: 19 | L11: 0.1548387097 | M11: Mais | N11: 4 | O11: 0.9677419355
A12: TransBrasil | B12: Marinha Mercante | C12: 0.9059130575 | D12: 0.8849291943 | E12: 0.9768367803 | F12: menor | J12: 0.85 | K12: 34 | L12: 0.3741935484 | M12: 0.7 | N12: 3 | O12: 0.9870967742
A13: TransBrasil | B13: Nova Holanda | C13: 0.8529735369 | D13: 0.8258552448 | E13: 0.9682073465 | F13: menor | J13: 0.9 | K13: 39 | L13: 0.6258064516 | M13: 0.65 | N13: 1 | O13: 0.9935483871
A14: TransBrasil | B14: Parque Vitria | C14: 0.6485502002 | D14: 0.6312636486 | E14: 0.9733458542 | F14: menor | J14: 0.95 | K14: 54 | L14: 0.9741935484 | M14: 0.75 | N14: 1 | O14: 1
A15: TransBrasil | B15: Ponto Chique | C15: 0.8196763301 | D15: 0.7807058412 | E15: 0.9524562472 | F15: menor | J15: Mais | K15: 4 | L15: 1 | M15: 0.6 | N15: 0 | O15: 1
A16: TransBrasil | B16: Ramos | C16: 0.7569727726 | D16: 0.7271204866 | E16: 0.9605635935 | F16: menor
A17: TransBrasil | B17: Rubens Vaz | C17: 0.7597984065 | D17: 0.7440574811 | E17: 0.9792827607 | F17: menor
A18: TransBrasil | B18: So Francisco | C18: 0.8218176453 | D18: 0.7970626558 | E18: 0.9698777586 | F18: menor
A19: TransBrasil | B19: Terminal Amrico Fontenelle | C19: 0.7799739741 | D19: 0.7494449797 | E19: 0.9608589576 | F19: menor
A20: TransBrasil | B20: Terminal de Integrao BRT-VLT | C20: 0.8655863381 | D20: 0.7985388595 | E20: 0.9225409694 | F20: menor
A21: TransBrasil | B21: Terminal Deodoro TBR | C21: 0.8479874051 | D21: 0.8158452102 | E21: 0.9620959053 | F21: menor
A22: TransBrasil | B22: Terminal Margaridas | C22: 0.9159571445 | D22: 0.8993489882 | E22: 0.9818679766 | F22: menor
A23: TransBrasil | B23: Terminal Misses | C23: 0.8262761135 | D23: 0.782438859 | E23: 0.9469459981 | F23: menor
A24: TransBrasil | B24: Terminal Procpio Ferreira | C24: 0.8425129585 | D24: 0.8172706247 | E24: 0.9700392338 | F24: menor
A25: TransCarioca | B25: Aeroporto de Jacarepaguá | C25: 0.8240310159 | D25: 0.9304456437 | E25: 1.129139105 | F25: maior
A26: TransCarioca | B26: André Rocha | C26: 0.9145418124 | D26: 0.899640108 | E26: 0.983705825 | F26: menor
A27: TransCarioca | B27: Aracy Cabral | C27: 0.9184261458 | D27: 0.9118705455 | E27: 0.9928621367 | F27: menor
A28: TransCarioca | B28: Arroio Pavuna | C28: 0.8476138987 | D28: 0.8361805275 | E28: 0.9865111094 | F28: menor
A29: TransCarioca | B29: Campinho | C29: 0.9182907666 | D29: 0.9020013984 | E29: 0.9822612088 | F29: menor
A30: TransCarioca | B30: Capitão Menezes | C30: 0.9252927981 | D30: 0.9227182277 | E30: 0.9972175614 | F30: menor
A31: TransCarioca | B31: Cardoso de Moraes - Viva Garcia | C31: 0.9038523972 | D31: 0.8845026855 | E31: 0.9785919562 | F31: menor
A32: TransCarioca | B32: Centro Metropolitano | C32: 0.7705789816 | D32: 0.7679400553 | E32: 0.9965753981 | F32: menor
A33: TransCarioca | B33: Curicica TCA | C33: 0.8987632233 | D33: 0.8728214886 | E33: 0.9711361858 | F33: menor
A34: TransCarioca | B34: Divina Providência | C34: 0.879117689 | D34: 0.8438594794 | E34: 0.9598936411 | F34: menor
A35: TransCarioca | B35: Galeão - Tom Jobim 1 | C35: 0.6562956095 | D35: 0.839462482 | E35: 1.279092028 | F35: maior
A36: TransCarioca | B36: Galeão - Tom Jobim 2 | C36: 0.6887502835 | D36: 0.8496376741 | E36: 1.233593211 | F36: maior
A37: TransCarioca | B37: Guaporé | C37: 0.8740929632 | D37: 0.8429912156 | E37: 0.964418261 | F37: menor
A38: TransCarioca | B38: Hospital Sarah | C38: 0.8069013097 | D38: 0.7943865279 | E38: 0.9844903192 | F38: menor
A39: TransCarioca | B39: Ibiapina | C39: 0.9147776199 | D39: 0.8994889493 | E39: 0.9832870084 | F39: menor
A40: TransCarioca | B40: IPASE | C40: 0.8558940864 | D40: 0.8293751141 | E40: 0.9690160585 | F40: menor
A41: TransCarioca | B41: Lourenço Jorge | C41: 0.8240310159 | D41: 0.9304456437 | E41: 1.129139105 | F41: maior
A42: TransCarioca | B42: Madureira | C42: 0.9149741494 | D42: 0.9099265925 | E42: 0.9944833886 | F42: menor
A43: TransCarioca | B43: Marambaia | C43: 0.9079679098 | D43: 0.8859482868 | E43: 0.9757484567 | F43: menor
A44: TransCarioca | B44: Maré | C44: 0.7614274885 | D44: 0.7391428075 | E44: 0.9707330227 | F44: menor
A45: TransCarioca | B45: Mercadão | C45: 0.8919447138 | D45: 0.8686404044 | E45: 0.9738724732 | F45: menor
A46: TransCarioca | B46: Merck-Santa Efigênia | C46: 0.9001486171 | D46: 0.8861838867 | E46: 0.9844861947 | F46: menor
A47: TransCarioca | B47: Olaria - Cacique de Ramos | C47: 0.9072908755 | D47: 0.8897783933 | E47: 0.980698051 | F47: menor
A48: TransCarioca | B48: Otaviano | C48: 0.8593581111 | D48: 0.8330272952 | E48: 0.9693599031 | F48: menor
A49: TransCarioca | B49: Pastor José Santos | C49: 0.9094511536 | D49: 0.8897334009 | E49: 0.9783190635 | F49: menor
A50: TransCarioca | B50: Pedro Correia | C50: 0.9249226499 | D50: 0.9395068182 | E50: 1.015767987 | F50: maior
A51: TransCarioca | B51: Pedro Taques | C51: 0.9121773846 | D51: 0.8989939196 | E51: 0.9855472574 | F51: menor
A52: TransCarioca | B52: Penha | C52: 0.9163771888 | D52: 0.9073789375 | E52: 0.9901806249 | F52: menor
A53: TransCarioca | B53: Pinto Teles | C53: 0.9211051652 | D53: 0.9071716905 | E53: 0.9848730903 | F53: menor
A54: TransCarioca | B54: Praça do Bandolim | C54: 0.9066468331 | D54: 0.8746971821 | E54: 0.9647606434 | F54: menor
A55: TransCarioca | B55: Praça do Carmo | C55: 0.8880133106 | D55: 0.8665378767 | E55: 0.9758163153 | F55: menor
A56: TransCarioca | B56: Praça Seca | C56: 0.9089604766 | D56: 0.9220505118 | E56: 1.014401105 | F56: maior
A57: TransCarioca | B57: Recanto das Palmeiras - Jardim São Luiz | C57: 0.8094984477 | D57: 0.783086761 | E57: 0.9673727766 | F57: menor
A58: TransCarioca | B58: Rio II | C58: 0.9037428032 | D58: 0.9284693963 | E58: 1.02736021 | F58: maior
A59: TransCarioca | B59: Santa Luzia | C59: 0.8797972885 | D59: 0.8499350998 | E59: 0.9660578759 | F59: menor
A60: TransCarioca | B60: Tanque / Terminal Mestre Candeia | C60: 0.8462338795 | D60: 0.8246063559 | E60: 0.9744426167 | F60: menor
A61: TransCarioca | B61: Taquara | C61: 0.9189422614 | D61: 0.9189950528 | E61: 1.000057448 | F61: maior
A62: TransCarioca | B62: Terminal Alvorada TCA | C62: 0.7632264233 | D62: 0.854343767 | E62: 1.11938442 | F62: maior
A63: TransCarioca | B63: Vaz Lobo | C63: 0.8766705428 | D63: 0.8490643891 | E63: 0.9685102301 | F63: menor
A64: TransCarioca | B64: Via Parque | C64: 0.8240310159 | D64: 0.9304456437 | E64: 1.129139105 | F64: maior
A65: TransCarioca | B65: Vicente de Carvalho | C65: 0.9172763031 | D65: 0.8967731275 | E65: 0.9776477648 | F65: menor
A66: TransCarioca | B66: Vila Kosmos - Nossa Senhora do Carmo | C66: 0.9267213606 | D66: 0.914053668 | E66: 0.9863306349 | F66: menor
A67: TransCarioca | B67: Vila Queiroz | C67: 0.8769541096 | D67: 0.8415775209 | E67: =D67/C67 -> 0.9596597036 | F67: =IF(D67>C67,"maior","menor") -> menor
A68: TransCarioca | B68: Vila Sapê - IV Centenário | C68: 0.8172841991 | D68: 0.7921946898 | E68: 0.969301365 | F68: menor
A69: TransOeste | B69: 31 de Outubro | C69: 0.8249012758 | D69: 0.8138199735 | E69: 0.986566511 | F69: menor
A70: TransOeste | B70: Amricas Park | C70: 0.8603271835 | D70: 0.935640902 | E70: 1.087540787 | F70: maior
A71: TransOeste | B71: Ana Gonzaga | C71: 0.8107986329 | D71: 0.7933713738 | E71: 0.9785060577 | F71: menor
A72: TransOeste | B72: Barra Shopping | C72: 0.8903370019 | D72: 0.9315314816 | E72: 1.046268412 | F72: maior
A73: TransOeste | B73: Benvindo de Novaes | C73: 0.9474972174 | D73: 0.9503828777 | E73: 1.003045561 | F73: maior
A74: TransOeste | B74: Bosque da Barra | C74: 0.9006845137 | D74: 0.9359553014 | E74: 1.03915998 | F74: maior
A75: TransOeste | B75: Cajueiros | C75: 0.8309113129 | D75: 0.8033418467 | E75: 0.966820206 | F75: menor
A76: TransOeste | B76: Cesarinho | C76: 0.8236414834 | D76: 0.7954010624 | E76: 0.9657127263 | F76: menor
A77: TransOeste | B77: Cesaro I | C77: 0.7924762727 | D77: 0.7615084401 | E77: 0.9609227006 | F77: menor
A78: TransOeste | B78: Cesaro II | C78: 0.7778865329 | D78: 0.7614560664 | E78: 0.978878068 | F78: menor
A79: TransOeste | B79: Cesaro III | C79: 0.7983719771 | D79: 0.7817808656 | E79: 0.9792188203 | F79: menor
A80: TransOeste | B80: Cetex | C80: 0.8897188382 | D80: 0.8716434706 | E80: 0.9796841802 | F80: menor
A81: TransOeste | B81: Citt Amrica | C81: 0.9154407486 | D81: 0.9333888746 | E81: 1.019605994 | F81: maior
A82: TransOeste | B82: Cndido Magalhes | C82: 0.9347373915 | D82: 0.9311911937 | E82: 0.9962062095 | F82: menor
A83: TransOeste | B83: Cosmos | C83: 0.8749441893 | D83: 0.8544835231 | E83: 0.9766148898 | F83: menor
A84: TransOeste | B84: Curral Falso | C84: 0.8188736105 | D84: 0.7862755833 | E84: 0.9601916257 | F84: menor
A85: TransOeste | B85: Dom Bosco | C85: 0.9201081468 | D85: 0.9056908969 | E85: 0.9843309182 | F85: menor
A86: TransOeste | B86: Embrapa | C86: 0.8500540833 | D86: 0.8155774722 | E86: 0.9594418617 | F86: menor
A87: TransOeste | B87: Freeway (2 etapa) | C87: 0.8861614295 | D87: 0.9434814661 | E87: 1.064683515 | F87: maior
A88: TransOeste | B88: Gasto Rangel | C88: 0.8118010419 | D88: 0.7818320365 | E88: 0.9630833125 | F88: menor
A89: TransOeste | B89: Gelson Fonseca | C89: 0.9514677688 | D89: 0.9430641167 | E89: 0.9911676965 | F89: menor
A90: TransOeste | B90: General Olmpio | C90: 0.914017025 | D90: 0.8965346703 | E90: 0.9808730536 | F90: menor
A91: TransOeste | B91: Gilka Machado | C91: 0.9158434297 | D91: 0.9343563522 | E91: 1.020214069 | F91: maior
A92: TransOeste | B92: Glucio Gil | C92: 0.9432286787 | D92: 0.9481966164 | E92: 1.005266949 | F92: maior
A93: TransOeste | B93: Golfe Olmpico | C93: 0.7754596727 | D93: 0.8841596449 | E93: 1.140174887 | F93: maior
A94: TransOeste | B94: Guignard | C94: 0.9472275967 | D94: 0.9490134488 | E94: 1.001885346 | F94: maior
A95: TransOeste | B95: Guiomar Novais | C95: 0.9479002177 | D95: 0.9471370466 | E95: 0.9991948825 | F95: menor
A96: TransOeste | B96: Icurana | C96: 0.8263698546 | D96: 0.7951860004 | E96: 0.9622640468 | F96: menor
A97: TransOeste | B97: Ilha de Guaratiba | C97: 0.8578106599 | D97: 0.8132043492 | E97: 0.9479998177 | F97: menor
A98: TransOeste | B98: Inhoaba | C98: 0.8027336769 | D98: 0.7807595859 | E98: 0.9726259262 | F98: menor
A99: TransOeste | B99: Interlagos | C99: 0.9597411006 | D99: 0.967786658 | E99: 1.00838305 | F99: maior
A100: TransOeste | B100: Julia Miguel | C100: 0.8805085925 | D100: 0.8500599641 | E100: 0.9654192717 | F100: menor
A101: TransOeste | B101: Largo do Corra | C101: 0.7837061301 | D101: 0.7690050912 | E101: 0.9812416436 | F101: menor
A102: TransOeste | B102: Magara | C102: 0.7829261512 | D102: 0.7553739627 | E102: 0.9648087006 | F102: menor
A103: TransOeste | B103: Maria Tereza | C103: 0.9252827498 | D103: 0.9170852305 | E103: 0.991140525 | F103: menor
A104: TransOeste | B104: Mato Alto | C104: 0.8121267008 | D104: 0.7948502783 | E104: 0.978726937 | F104: menor
A105: TransOeste | B105: Notre Dame | C105: 0.8884232008 | D105: 0.8724259368 | E105: 0.9819936445 | F105: menor
A106: TransOeste | B106: Nova Barra | C106: 0.920222826 | D106: 0.9385704656 | E106: 1.019938257 | F106: maior
A107: TransOeste | B107: Novo Leblon | C107: 0.8783561211 | D107: 0.9351716034 | E107: 1.06468388 | F107: maior
A108: TransOeste | B108: ParkShopping | C108: 0.877784146 | D108: 0.8441454661 | E108: 0.9616777313 | F108: menor
A109: TransOeste | B109: Parque das Rosas | C109: 0.9000876678 | D109: 0.92597316 | E109: 1.028758857 | F109: maior
A110: TransOeste | B110: Parque Esperana | C110: 0.9178160141 | D110: 0.9004048767 | E110: 0.9810298175 | F110: menor
A111: TransOeste | B111: Parque So Paulo | C111: 0.877113524 | D111: 0.8501128261 | E111: 0.9692164159 | F111: menor
A112: TransOeste | B112: Pedra de Itana | C112: 0.8884222698 | D112: 0.9367132592 | E112: 1.054355897 | F112: maior
A113: TransOeste | B113: Pina Rangel | C113: 0.9206918827 | D113: 0.9105510096 | E113: 0.9889855952 | F113: menor
A114: TransOeste | B114: Pingo D'gua | C114: 0.6771835381 | D114: 0.6786974184 | E114: 1.002235554 | F114: maior
A115: TransOeste | B115: Pontal | C115: 0.8416818187 | D115: 0.8378720747 | E115: 0.9954736529 | F115: menor
A116: TransOeste | B116: Pontes/ Barrasul | C116: 0.9015916401 | D116: 0.9196829771 | E116: 1.020065999 | F116: maior
A117: TransOeste | B117: Porto dos Cabritos | C117: 0.9131468747 | D117: 0.9275208571 | E117: 1.015741151 | F117: maior
A118: TransOeste | B118: Prefeito Alim Pedro | C118: 0.9274545932 | D118: 0.9228309624 | E118: 0.9950147093 | F118: menor
A119: TransOeste | B119: Recanto das Garas | C119: 0.9594541412 | D119: 0.9418753885 | E119: 0.9816783816 | F119: menor
A120: TransOeste | B120: Recreio Shopping | C120: 0.947342491 | D120: 0.9562924606 | E120: 1.009447449 | F120: maior
A121: TransOeste | B121: Ricardo Marinho | C121: 0.8939127467 | D121: 0.9361583791 | E121: 1.047259235 | F121: maior
A122: TransOeste | B122: Rio Mar | C122: 0.8013895456 | D122: 0.9106851932 | E122: 1.136382672 | F122: maior
A123: TransOeste | B123: Riviera | C123: 0.9124472863 | D123: 0.9498401094 | E123: 1.040980804 | F123: maior
A124: TransOeste | B124: Salvador Allende | C124: 0.9050550726 | D124: 0.9284655828 | E124: 1.025866393 | F124: maior
A125: TransOeste | B125: Santa Eugnia | C125: 0.8491780432 | D125: 0.8290112135 | E125: 0.9762513529 | F125: menor
A126: TransOeste | B126: Santa Mnica Jardins | C126: 0.7979681013 | D126: 0.9016454353 | E126: 1.129926665 | F126: maior
A127: TransOeste | B127: Santa Veridiana | C127: 0.8109090037 | D127: 0.7923083297 | E127: 0.9770619466 | F127: menor
A128: TransOeste | B128: So Jorge | C128: 0.9010320653 | D128: 0.875094543 | E128: 0.9712135414 | F128: menor
A129: TransOeste | B129: Terminal Alvorada TOE | C129: 0.7727070167 | D129: 0.8459186517 | E129: 1.094746953 | F129: maior
A130: TransOeste | B130: Terminal Campo Grande | C130: 0.9385872236 | D130: 0.9251790312 | E130: 0.9857144951 | F130: menor
A131: TransOeste | B131: Terminal Jd. Ocenico | C131: 0.9545844753 | D131: 0.9579619327 | E131: =D131/C131 -> 1.003538144 | F131: =IF(D131>C131,"maior","menor") -> maior
A132: TransOeste | B132: Terminal Santa Cruz | C132: 0.9308611965 | D132: 0.9148488243 | E132: 0.9827983245 | F132: menor
A133: TransOeste | B133: Trs Pontes | C133: 0.7676599324 | D133: 0.7578723319 | E133: 0.9872500829 | F133: menor
A134: TransOeste | B134: Vendas de Varanda | C134: 0.7843134569 | D134: 0.7850407324 | E134: 1.000927277 | F134: maior
A135: TransOeste | B135: Vila Pacincia | C135: 0.7942931526 | D135: 0.7684967313 | E135: 0.9675227954 | F135: menor
A136: TransOeste | B136: Vilar Carioca | C136: 0.8056418943 | D136: 0.7801709185 | E136: 0.9683842462 | F136: menor
A137: TransOlmpica | B137: Bandeirantes | C137: 0.8360342944 | D137: 0.7943748961 | E137: 0.950170228 | F137: menor
A138: TransOlmpica | B138: Boina | C138: 0.9045723198 | D138: 0.8922928703 | E138: 0.9864251324 | F138: menor
A139: TransOlmpica | B139: Colonia Juliano Moreira | C139: 0.8981671604 | D139: 0.8707162618 | E139: 0.9694367599 | F139: menor
A140: TransOlmpica | B140: Curicica TOL | C140: 0.805269474 | D140: 0.7841364646 | E140: 0.9737565994 | F140: menor
A141: TransOlmpica | B141: Equitao | C141: 0.9249366264 | D141: 0.9259470068 | E141: 1.001092378 | F141: maior
A142: TransOlmpica | B142: Estaao 1 | C142: 0.9466622594 | D142: 0.9638572114 | E142: 1.018163766 | F142: maior
A143: TransOlmpica | B143: Estaao 2 | C143: 0.9053891539 | D143: 0.9170489703 | E143: 1.012878237 | F143: maior
A144: TransOlmpica | B144: Estaao 3 | C144: 0.8929691193 | D144: 0.9445316018 | E144: 1.057742739 | F144: maior
A145: TransOlmpica | B145: Estaao 4 | C145: 0.9137856697 | D145: 0.8850958751 | E145: 0.9686033656 | F145: menor
A146: TransOlmpica | B146: Guerengu | C146: 0.8526032974 | D146: 0.8187979617 | E146: 0.9603504517 | F146: menor
A147: TransOlmpica | B147: Hospital Raphael de P. S. | C147: 0.8435865998 | D147: 0.8117287858 | E147: 0.9622352774 | F147: menor
A148: TransOlmpica | B148: Largo da Preguia | C148: 0.793721361 | D148: 0.7707945985 | E148: 0.9711148476 | F148: menor
A149: TransOlmpica | B149: Magalhes Bastos | C149: 0.8940478295 | D149: 0.8657129149 | E149: 0.9683071603 | F149: menor
A150: TransOlmpica | B150: Marechal Fontenelle | C150: 0.8960426885 | D150: 0.9057401444 | E150: 1.010822538 | F150: maior
A151: TransOlmpica | B151: Marechal Mallet | C151: 0.8375963243 | D151: 0.8080051248 | E151: 0.9646712878 | F151: menor
A152: TransOlmpica | B152: Parque Olmpico | C152: 0.9086049255 | D152: 0.8724124083 | E152: 0.960166937 | F152: menor
A153: TransOlmpica | B153: RioCentro | C153: 0.8990977001 | D153: 0.9474401658 | E153: 1.053767756 | F153: maior
A154: TransOlmpica | B154: Terminal Deodoro TOL | C154: 0.847913988 | D154: 0.8157631355 | E154: 0.9620824129 | F154: menor
A155: TransOlmpica | B155: Terminal Recreio | C155: 0.9019047004 | D155: 0.9277302469 | E155: 1.028634452 | F155: maior
A156: TransOlmpica | B156: Vila Militar | C156: 0.8075179173 | D156: 0.8993630002 | E156: 1.113737517 | F156: maior
C157: =AVERAGE(C2:C156) -> 0.8637285892 | D157: =AVERAGE(D2:D156) -> 0.8607580492
A159: Rótulos de Linha | B159: Contagem de maior/menor
A160: maior | B160: 45
A161: menor | B161: 110
A162: Total Geral | B162: 155

Sheet SEE_H_graph (hidden)
A1: Gráficos de Distribuição de Renda
A2: Gráficos Dinâmicos | B2: https://infogr.am/distrib_renda_brt_transcarioca
A4: Coluna | B4: Estação (gemea) | C4: Níveis de Renda | D4: Percentual de Pessoas
A5: 53 | B5: Aeroporto de Jacarepaguá | C5: até 1/2 SM | D5: =VLOOKUP(SEE_H_graph!B5,SEE_agrg!$C$4:$CC$160,A5,FALSE) -> 0.002183406114
A6: 54 | B6: Aeroporto de Jacarepaguá | C6: até 1 SM | D6: =VLOOKUP(SEE_H_graph!B6,SEE_agrg!$C$4:$CC$160,A6,FALSE) -> 0.04366812227
A7: 55 | B7: Aeroporto de Jacarepaguá | C7: até 2 SM | D7: =VLOOKUP(SEE_H_graph!B7,SEE_agrg!$C$4:$CC$160,A7,FALSE) -> 0.07423580786
A8: 56 | B8: Aeroporto de Jacarepaguá | C8: até 3 SM | D8: =VLOOKUP(SEE_H_graph!B8,SEE_agrg!$C$4:$CC$160,A8,FALSE) -> 0.03930131004
A9: 57 | B9: Aeroporto de Jacarepaguá | C9: até 5 SM | D9: =VLOOKUP(SEE_H_graph!B9,SEE_agrg!$C$4:$CC$160,A9,FALSE) -> 0.09825327511
A10: 58 | B10: Aeroporto de Jacarepaguá | C10: até 10 SM | D10: =VLOOKUP(SEE_H_graph!B10,SEE_agrg!$C$4:$CC$160,A10,FALSE) -> 0.192139738
A11: 59 | B11: Aeroporto de Jacarepaguá | C11: até 15 SM | D11: =VLOOKUP(SEE_H_graph!B11,SEE_agrg!$C$4:$CC$160,A11,FALSE) -> 0.08951965066
A12: 60 | B12: Aeroporto de Jacarepaguá | C12: até 20 SM | D12: =VLOOKUP(SEE_H_graph!B12,SEE_agrg!$C$4:$CC$160,A12,FALSE) -> 0.2707423581
A13: 61 | B13: Aeroporto de Jacarepaguá | C13: mais 20 SM | D13: =VLOOKUP(SEE_H_graph!B13,SEE_agrg!$C$4:$CC$160,A13,FALSE) -> 0.1899563319
A14: 53 | B14: André Rocha | C14: até 1/2 SM | D14: =VLOOKUP(SEE_H_graph!B14,SEE_agrg!$C$4:$CC$160,A14,FALSE) -> 0.006888328193
A15: 54 | B15: André Rocha | C15: até 1 SM | D15: =VLOOKUP(SEE_H_graph!B15,SEE_agrg!$C$4:$CC$160,A15,FALSE) -> 0.1765634172
A16: 55 | B16: André Rocha | C16: até 2 SM | D16: =VLOOKUP(SEE_H_graph!B16,SEE_agrg!$C$4:$CC$160,A16,FALSE) -> 0.302848948
A17: 56 | B17: André Rocha | C17: até 3 SM | D17: =VLOOKUP(SEE_H_graph!B17,SEE_agrg!$C$4:$CC$160,A17,FALSE) -> 0.1530874205
A18: 57 | B18: André Rocha | C18: até 5 SM | D18: =VLOOKUP(SEE_H_graph!B18,SEE_agrg!$C$4:$CC$160,A18,FALSE) -> 0.1849262869
A19: 58 | B19: André Rocha | C19: até 10 SM | D19: =VLOOKUP(SEE_H_graph!B19,SEE_agrg!$C$4:$CC$160,A19,FALSE) -> 0.1381025499
A20: 59 | B20: André Rocha | C20: até 15 SM | D20: =VLOOKUP(SEE_H_graph!B20,SEE_agrg!$C$4:$CC$160,A20,FALSE) -> 0.02346505947
A21: 60 | B21: André Rocha | C21: até 20 SM | D21: =VLOOKUP(SEE_H_graph!B21,SEE_agrg!$C$4:$CC$160,A21,FALSE) -> 0.01054161388
A22: 61 | B22: André Rocha | C22: mais 20 SM | D22: =VLOOKUP(SEE_H_graph!B22,SEE_agrg!$C$4:$CC$160,A22,FALSE) -> 0.003576375895
A23: 53 | B23: Aracy Cabral | C23: até 1/2 SM | D23: =VLOOKUP(SEE_H_graph!B23,SEE_agrg!$C$4:$CC$160,A23,FALSE) -> 0.008267902628
A24: 54 | B24: Aracy Cabral | C24: até 1 SM | D24: =VLOOKUP(SEE_H_graph!B24,SEE_agrg!$C$4:$CC$160,A24,FALSE) -> 0.1721200104
A25: 55 | B25: Aracy Cabral | C25: até 2 SM | D25: =VLOOKUP(SEE_H_graph!B25,SEE_agrg!$C$4:$CC$160,A25,FALSE) -> 0.2706413765
A26: 56 | B26: Aracy Cabral | C26: até 3 SM | D26: =VLOOKUP(SEE_H_graph!B26,SEE_agrg!$C$4:$CC$160,A26,FALSE) -> 0.1508945686
A27: 57 | B27: Aracy Cabral | C27: até 5 SM | D27: =VLOOKUP(SEE_H_graph!B27,SEE_agrg!$C$4:$CC$160,A27,FALSE) -> 0.1828091403
A28: 58 | B28: Aracy Cabral | C28: até 10 SM | D28: =VLOOKUP(SEE_H_graph!B28,SEE_agrg!$C$4:$CC$160,A28,FALSE) -> 0.1717780817
A29: 59 | B29: Aracy Cabral | C29: até 15 SM | D29: =VLOOKUP(SEE_H_graph!B29,SEE_agrg!$C$4:$CC$160,A29,FALSE) -> 0.02428058978
A30: 60 | B30: Aracy Cabral | C30: até 20 SM | D30: =VLOOKUP(SEE_H_graph!B30,SEE_agrg!$C$4:$CC$160,A30,FALSE) -> 0.01395756701
A31: 61 | B31: Aracy Cabral | C31: mais 20 SM | D31: =VLOOKUP(SEE_H_graph!B31,SEE_agrg!$C$4:$CC$160,A31,FALSE) -> 0.005250763182
A32: 53 | B32: Arroio Pavuna | C32: até 1/2 SM | D32: =VLOOKUP(SEE_H_graph!B32,SEE_agrg!$C$4:$CC$160,A32,FALSE) -> 0.02323777642
A33: 54 | B33: Arroio Pavuna | C33: até 1 SM | D33: =VLOOKUP(SEE_H_graph!B33,SEE_agrg!$C$4:$CC$160,A33,FALSE) -> 0.2202932162
A34: 55 | B34: Arroio Pavuna | C34: até 2 SM | D34: =VLOOKUP(SEE_H_graph!B34,SEE_agrg!$C$4:$CC$160,A34,FALSE) -> 0.4090912734
A35: 56 | B35: Arroio Pavuna | C35: até 3 SM | D35: =VLOOKUP(SEE_H_graph!B35,SEE_agrg!$C$4:$CC$160,A35,FALSE) -> 0.1527700765
A36: 57 | B36: Arroio Pavuna | C36: até 5 SM | D36: =VLOOKUP(SEE_H_graph!B36,SEE_agrg!$C$4:$CC$160,A36,FALSE) -> 0.1082431818
A37: 58 | B37: Arroio Pavuna | C37: até 10 SM | D37: =VLOOKUP(SEE_H_graph!B37,SEE_agrg!$C$4:$CC$160,A37,FALSE) -> 0.07175668017
A38: 59 | B38: Arroio Pavuna | C38: até 15 SM | D38: =VLOOKUP(SEE_H_graph!B38,SEE_agrg!$C$4:$CC$160,A38,FALSE) -> 0.00892017986
A39: 60 | B39: Arroio Pavuna | C39: até 20 SM | D39: =VLOOKUP(SEE_H_graph!B39,SEE_agrg!$C$4:$CC$160,A39,FALSE) -> 0.004186697614
A40: 61 | B40: Arroio Pavuna | C40: mais 20 SM | D40: =VLOOKUP(SEE_H_graph!B40,SEE_agrg!$C$4:$CC$160,A40,FALSE) -> 0.001500917962
A41: 53 | B41: Campinho | C41: até 1/2 SM | D41: =VLOOKUP(SEE_H_graph!B41,SEE_agrg!$C$4:$CC$160,A41,FALSE) -> 0.01330826583
A42: 54 | B42: Campinho | C42: até 1 SM | D42: =VLOOKUP(SEE_H_graph!B42,SEE_agrg!$C$4:$CC$160,A42,FALSE) -> 0.2038031123
A43: 55 | B43: Campinho | C43: até 2 SM | D43: =VLOOKUP(SEE_H_graph!B43,SEE_agrg!$C$4:$CC$160,A43,FALSE) -> 0.2957127345
A44: 56 | B44: Campinho | C44: até 3 SM | D44: =VLOOKUP(SEE_H_graph!B44,SEE_agrg!$C$4:$CC$160,A44,FALSE) -> 0.1372315945
A45: 57 | B45: Campinho | C45: até 5 SM | D45: =VLOOKUP(SEE_H_graph!B45,SEE_agrg!$C$4:$CC$160,A45,FALSE) -> 0.1748961085
A46: 58 | B46: Campinho | C46: até 10 SM | D46: =VLOOKUP(SEE_H_graph!B46,SEE_agrg!$C$4:$CC$160,A46,FALSE) -> 0.1378994055
A47: 59 | B47: Campinho | C47: até 15 SM | D47: =VLOOKUP(SEE_H_graph!B47,SEE_agrg!$C$4:$CC$160,A47,FALSE) -> 0.02247376277
A48: 60 | B48: Campinho | C48: até 20 SM | D48: =VLOOKUP(SEE_H_graph!B48,SEE_agrg!$C$4:$CC$160,A48,FALSE) -> 0.009785556892
A49: 61 | B49: Campinho | C49: mais 20 SM | D49: =VLOOKUP(SEE_H_graph!B49,SEE_agrg!$C$4:$CC$160,A49,FALSE) -> 0.004889459239
A50: 53 | B50: Capitão Menezes | C50: até 1/2 SM | D50: =VLOOKUP(SEE_H_graph!B50,SEE_agrg!$C$4:$CC$160,A50,FALSE) -> 0.00651167833
A51: 54 | B51: Capitão Menezes | C51: até 1 SM | D51: =VLOOKUP(SEE_H_graph!B51,SEE_agrg!$C$4:$CC$160,A51,FALSE) -> 0.1557481262
A52: 55 | B52: Capitão Menezes | C52: até 2 SM | D52: =VLOOKUP(SEE_H_graph!B52,SEE_agrg!$C$4:$CC$160,A52,FALSE) -> 0.2406790029
A53: 56 | B53: Capitão Menezes | C53: até 3 SM | D53: =VLOOKUP(SEE_H_graph!B53,SEE_agrg!$C$4:$CC$160,A53,FALSE) -> 0.1570746469
A54: 57 | B54: Capitão Menezes | C54: até 5 SM | D54: =VLOOKUP(SEE_H_graph!B54,SEE_agrg!$C$4:$CC$160,A54,FALSE) -> 0.1992468076
A55: 58 | B55: Capitão Menezes | C55: até 10 SM | D55: =VLOOKUP(SEE_H_graph!B55,SEE_agrg!$C$4:$CC$160,A55,FALSE) -> 0.1775901459
A56: 59 | B56: Capitão Menezes | C56: até 15 SM | D56: =VLOOKUP(SEE_H_graph!B56,SEE_agrg!$C$4:$CC$160,A56,FALSE) -> 0.03518789203
A57: 60 | B57: Capitão Menezes | C57: até 20 SM | D57: =VLOOKUP(SEE_H_graph!B57,SEE_agrg!$C$4:$CC$160,A57,FALSE) -> 0.01848892986
A58: 61 | B58: Capitão Menezes | C58: mais 20 SM | D58: =VLOOKUP(SEE_H_graph!B58,SEE_agrg!$C$4:$CC$160,A58,FALSE) -> 0.009472770243
A59: 53 | B59: Cardoso de Moraes - Viva Garcia | C59: até 1/2 SM | D59: =VLOOKUP(SEE_H_graph!B59,SEE_agrg!$C$4:$CC$160,A59,FALSE) -> 0.01165185061
A60: 54 | B60: Cardoso de Moraes - Viva Garcia | C60: até 1 SM | D60: =VLOOKUP(SEE_H_graph!B60,SEE_agrg!$C$4:$CC$160,A60,FALSE) -> 0.1919139572
A61: 55 | B61: Cardoso de Moraes - Viva Garcia | C61: até 2 SM | D61: =VLOOKUP(SEE_H_graph!B61,SEE_agrg!$C$4:$CC$160,A61,FALSE) -> 0.329790091
A62: 56 | B62: Cardoso de Moraes - Viva Garcia | C62: até 3 SM | D62: =VLOOKUP(SEE_H_graph!B62,SEE_agrg!$C$4:$CC$160,A62,FALSE) -> 0.165781432
A63: 57 | B63: Cardoso de Moraes - Viva Garcia | C63: até 5 SM | D63: =VLOOKUP(SEE_H_graph!B63,SEE_agrg!$C$4:$CC$160,A63,FALSE) -> 0.1681449045
A64: 58 | B64: Cardoso de Moraes - Viva Garcia | C64: até 10 SM | D64: =VLOOKUP(SEE_H_graph!B64,SEE_agrg!$C$4:$CC$160,A64,FALSE) -> 0.1097114191
A65: 59 | B65: Cardoso de Moraes - Viva Garcia | C65: até 15 SM | D65: =VLOOKUP(SEE_H_graph!B65,SEE_agrg!$C$4:$CC$160,A65,FALSE) -> 0.01466441897
A66: 60 | B66: Cardoso de Moraes - Viva Garcia | C66: até 20 SM | D66: =VLOOKUP(SEE_H_graph!B66,SEE_agrg!$C$4:$CC$160,A66,FALSE) -> 0.005675509761
A67: 61 | B67: Cardoso de Moraes - Viva Garcia | C67: mais 20 SM | D67: =VLOOKUP(SEE_H_graph!B67,SEE_agrg!$C$4:$CC$160,A67,FALSE) -> 0.002666416935
A68: 53 | B68: Centro Metropolitano | C68: até 1/2 SM | D68: =VLOOKUP(SEE_H_graph!B68,SEE_agrg!$C$4:$CC$160,A68,FALSE) -> 0.1156186613
A69: 54 | B69: Centro Metropolitano | C69: até 1 SM | D69: =VLOOKUP(SEE_H_graph!B69,SEE_agrg!$C$4:$CC$160,A69,FALSE) -> 0.4016227181
A70: 55 | B70: Centro Metropolitano | C70: até 2 SM | D70: =VLOOKUP(SEE_H_graph!B70,SEE_agrg!$C$4:$CC$160,A70,FALSE) -> 0.3671399594
A71: 56 | B71: Centro Metropolitano | C71: até 3 SM | D71: =VLOOKUP(SEE_H_graph!B71,SEE_agrg!$C$4:$CC$160,A71,FALSE) -> 0.08519269777
A72: 57 | B72: Centro Metropolitano | C72: até 5 SM | D72: =VLOOKUP(SEE_H_graph!B72,SEE_agrg!$C$4:$CC$160,A72,FALSE) -> 0.02535496957
A73: 58 | B73: Centro Metropolitano | C73: até 10 SM | D73: =VLOOKUP(SEE_H_graph!B73,SEE_agrg!$C$4:$CC$160,A73,FALSE) -> 0.005070993915
A74: 59 | B74: Centro Metropolitano | C74: até 15 SM | D74: =VLOOKUP(SEE_H_graph!B74,SEE_agrg!$C$4:$CC$160,A74,FALSE) -> 0
A75: 60 | B75: Centro Metropolitano | C75: até 20 SM | D75: =VLOOKUP(SEE_H_graph!B75,SEE_agrg!$C$4:$CC$160,A75,FALSE) -> 0
A76: 61 | B76: Centro Metropolitano | C76: mais 20 SM | D76: =VLOOKUP(SEE_H_graph!B76,SEE_agrg!$C$4:$CC$160,A76,FALSE) -> 0
A77: 53 | B77: Curicica TCA | C77: até 1/2 SM | D77: =VLOOKUP(SEE_H_graph!B77,SEE_agrg!$C$4:$CC$160,A77,FALSE) -> 0.01356768784
A78: 54 | B78: Curicica TCA | C78: até 1 SM | D78: =VLOOKUP(SEE_H_graph!B78,SEE_agrg!$C$4:$CC$160,A78,FALSE) -> 0.1986875182
A79: 55 | B79: Curicica TCA | C79: até 2 SM | D79: =VLOOKUP(SEE_H_graph!B79,SEE_agrg!$C$4:$CC$160,A79,FALSE) -> 0.3594169336
A80: 56 | B80: Curicica TCA | C80: até 3 SM | D80: =VLOOKUP(SEE_H_graph!B80,SEE_agrg!$C$4:$CC$160,A80,FALSE) -> 0.1416209918
A81: 57 | B81: Curicica TCA | C81: até 5 SM | D81: =VLOOKUP(SEE_H_graph!B81,SEE_agrg!$C$4:$CC$160,A81,FALSE) -> 0.1469121192
A82: 58 | B82: Curicica TCA | C82: até 10 SM | D82: =VLOOKUP(SEE_H_graph!B82,SEE_agrg!$C$4:$CC$160,A82,FALSE) -> 0.1159514405
A83: 59 | B83: Curicica TCA | C83: até 15 SM | D83: =VLOOKUP(SEE_H_graph!B83,SEE_agrg!$C$4:$CC$160,A83,FALSE) -> 0.01312900188
A84: 60 | B84: Curicica TCA | C84: até 20 SM | D84: =VLOOKUP(SEE_H_graph!B84,SEE_agrg!$C$4:$CC$160,A84,FALSE) -> 0.006612348888
A85: 61 | B85: Curicica TCA | C85: mais 20 SM | D85: =VLOOKUP(SEE_H_graph!B85,SEE_agrg!$C$4:$CC$160,A85,FALSE) -> 0.004101957987
A86: 53 | B86: Divina Providência | C86: até 1/2 SM | D86: =VLOOKUP(SEE_H_graph!B86,SEE_agrg!$C$4:$CC$160,A86,FALSE) -> 0.01497309622
A87: 54 | B87: Divina Providência | C87: até 1 SM | D87: =VLOOKUP(SEE_H_graph!B87,SEE_agrg!$C$4:$CC$160,A87,FALSE) -> 0.2336438572
A88: 55 | B88: Divina Providência | C88: até 2 SM | D88: =VLOOKUP(SEE_H_graph!B88,SEE_agrg!$C$4:$CC$160,A88,FALSE) -> 0.3945606259
A89: 56 | B89: Divina Providência | C89: até 3 SM | D89: =VLOOKUP(SEE_H_graph!B89,SEE_agrg!$C$4:$CC$160,A89,FALSE) -> 0.1369878684
A90: 57 | B90: Divina Providência | C90: até 5 SM | D90: =VLOOKUP(SEE_H_graph!B90,SEE_agrg!$C$4:$CC$160,A90,FALSE) -> 0.1160453719
A91: 58 | B91: Divina Providência | C91: até 10 SM | D91: =VLOOKUP(SEE_H_graph!B91,SEE_agrg!$C$4:$CC$160,A91,FALSE) -> 0.08359177282
A92: 59 | B92: Divina Providência | C92: até 15 SM | D92: =VLOOKUP(SEE_H_graph!B92,SEE_agrg!$C$4:$CC$160,A92,FALSE) -> 0.01265435276
A93: 60 | B93: Divina Providência | C93: até 20 SM | D93: =VLOOKUP(SEE_H_graph!B93,SEE_agrg!$C$4:$CC$160,A93,FALSE) -> 0.004907632912
A94: 61 | B94: Divina Providência | C94: mais 20 SM | D94: =VLOOKUP(SEE_H_graph!B94,SEE_agrg!$C$4:$CC$160,A94,FALSE) -> 0.002635421936
A95: 53 | B95: Galeão - Tom Jobim 1 | C95: até 1/2 SM | D95: =VLOOKUP(SEE_H_graph!B95,SEE_agrg!$C$4:$CC$160,A95,FALSE) -> 1.406435639e-05
A96: 54 | B96: Galeão - Tom Jobim 1 | C96: até 1 SM | D96: =VLOOKUP(SEE_H_graph!B96,SEE_agrg!$C$4:$CC$160,A96,FALSE) -> 0.0574595764
A97: 55 | B97: Galeão - Tom Jobim 1 | C97: até 2 SM | D97: =VLOOKUP(SEE_H_graph!B97,SEE_agrg!$C$4:$CC$160,A97,FALSE) -> 0.196775465
A98: 56 | B98: Galeão - Tom Jobim 1 | C98: até 3 SM | D98: =VLOOKUP(SEE_H_graph!B98,SEE_agrg!$C$4:$CC$160,A98,FALSE) -> 0.0683474979
A99: 57 | B99: Galeão - Tom Jobim 1 | C99: até 5 SM | D99: =VLOOKUP(SEE_H_graph!B99,SEE_agrg!$C$4:$CC$160,A99,FALSE) -> 0.1967332719
A100: 58 | B100: Galeão - Tom Jobim 1 | C100: até 10 SM | D100: =VLOOKUP(SEE_H_graph!B100,SEE_agrg!$C$4:$CC$160,A100,FALSE) -> 0.4069437134
A101: 59 | B101: Galeão - Tom Jobim 1 | C101: até 15 SM | D101: =VLOOKUP(SEE_H_graph!B101,SEE_agrg!$C$4:$CC$160,A101,FALSE) -> 0.04914508052
A102: 60 | B102: Galeão - Tom Jobim 1 | C102: até 20 SM | D102: =VLOOKUP(SEE_H_graph!B102,SEE_agrg!$C$4:$CC$160,A102,FALSE) -> 0.005470331416
A103: 61 | B103: Galeão - Tom Jobim 1 | C103: mais 20 SM | D103: =VLOOKUP(SEE_H_graph!B103,SEE_agrg!$C$4:$CC$160,A103,FALSE) -> 0.01911099907
A104: 53 | B104: Galeão - Tom Jobim 2 | C104: até 1/2 SM | D104: =VLOOKUP(SEE_H_graph!B104,SEE_agrg!$C$4:$CC$160,A104,FALSE) -> 0
A105: 54 | B105: Galeão - Tom Jobim 2 | C105: até 1 SM | D105: =VLOOKUP(SEE_H_graph!B105,SEE_agrg!$C$4:$CC$160,A105,FALSE) -> 0.06037778451
A106: 55 | B106: Galeão - Tom Jobim 2 | C106: até 2 SM | D106: =VLOOKUP(SEE_H_graph!B106,SEE_agrg!$C$4:$CC$160,A106,FALSE) -> 0.2098271061
A107: 56 | B107: Galeão - Tom Jobim 2 | C107: até 3 SM | D107: =VLOOKUP(SEE_H_graph!B107,SEE_agrg!$C$4:$CC$160,A107,FALSE) -> 0.0744514283
A108: 57 | B108: Galeão - Tom Jobim 2 | C108: até 5 SM | D108: =VLOOKUP(SEE_H_graph!B108,SEE_agrg!$C$4:$CC$160,A108,FALSE) -> 0.2009112681
A109: 58 | B109: Galeão - Tom Jobim 2 | C109: até 10 SM | D109: =VLOOKUP(SEE_H_graph!B109,SEE_agrg!$C$4:$CC$160,A109,FALSE) -> 0.3856424775
A110: 59 | B110: Galeão - Tom Jobim 2 | C110: até 15 SM | D110: =VLOOKUP(SEE_H_graph!B110,SEE_agrg!$C$4:$CC$160,A110,FALSE) -> 0.04631025186
A111: 60 | B111: Galeão - Tom Jobim 2 | C111: até 20 SM | D111: =VLOOKUP(SEE_H_graph!B111,SEE_agrg!$C$4:$CC$160,A111,FALSE) -> 0.005415760448
A112: 61 | B112: Galeão - Tom Jobim 2 | C112: mais 20 SM | D112: =VLOOKUP(SEE_H_graph!B112,SEE_agrg!$C$4:$CC$160,A112,FALSE) -> 0.01706392321
A113: 53 | B113: Guaporé | C113: até 1/2 SM | D113: =VLOOKUP(SEE_H_graph!B113,SEE_agrg!$C$4:$CC$160,A113,FALSE) -> 0.01245041538
A114: 54 | B114: Guaporé | C114: até 1 SM | D114: =VLOOKUP(SEE_H_graph!B114,SEE_agrg!$C$4:$CC$160,A114,FALSE) -> 0.2694244266
A115: 55 | B115: Guaporé | C115: até 2 SM | D115: =VLOOKUP(SEE_H_graph!B115,SEE_agrg!$C$4:$CC$160,A115,FALSE) -> 0.3717181572
A116: 56 | B116: Guaporé | C116: até 3 SM | D116: =VLOOKUP(SEE_H_graph!B116,SEE_agrg!$C$4:$CC$160,A116,FALSE) -> 0.1478603419
A117: 57 | B117: Guaporé | C117: até 5 SM | D117: =VLOOKUP(SEE_H_graph!B117,SEE_agrg!$C$4:$CC$160,A117,FALSE) -> 0.1115166335
A118: 58 | B118: Guaporé | C118: até 10 SM | D118: =VLOOKUP(SEE_H_graph!B118,SEE_agrg!$C$4:$CC$160,A118,FALSE) -> 0.07329334279
A119: 59 | B119: Guaporé | C119: até 15 SM | D119: =VLOOKUP(SEE_H_graph!B119,SEE_agrg!$C$4:$CC$160,A119,FALSE) -> 0.007750343923
A120: 60 | B120: Guaporé | C120: até 20 SM | D120: =VLOOKUP(SEE_H_graph!B120,SEE_agrg!$C$4:$CC$160,A120,FALSE) -> 0.00486558419
A121: 61 | B121: Guaporé | C121: mais 20 SM | D121: =VLOOKUP(SEE_H_graph!B121,SEE_agrg!$C$4:$CC$160,A121,FALSE) -> 0.001120754521
A122: 53 | B122: Hospital Sarah | C122: até 1/2 SM | D122: =VLOOKUP(SEE_H_graph!B122,SEE_agrg!$C$4:$CC$160,A122,FALSE) -> 0.08156901468
A123: 54 | B123: Hospital Sarah | C123: até 1 SM | D123: =VLOOKUP(SEE_H_graph!B123,SEE_agrg!$C$4:$CC$160,A123,FALSE) -> 0.2800938842
A124: 55 | B124: Hospital Sarah | C124: até 2 SM | D124: =VLOOKUP(SEE_H_graph!B124,SEE_agrg!$C$4:$CC$160,A124,FALSE) -> 0.43722558
A125: 56 | B125: Hospital Sarah | C125: até 3 SM | D125: =VLOOKUP(SEE_H_graph!B125,SEE_agrg!$C$4:$CC$160,A125,FALSE) -> 0.1205807017
A126: 57 | B126: Hospital Sarah | C126: até 5 SM | D126: =VLOOKUP(SEE_H_graph!B126,SEE_agrg!$C$4:$CC$160,A126,FALSE) -> 0.05294851776
A127: 58 | B127: Hospital Sarah | C127: até 10 SM | D127: =VLOOKUP(SEE_H_graph!B127,SEE_agrg!$C$4:$CC$160,A127,FALSE) -> 0.01414842207
A128: 59 | B128: Hospital Sarah | C128: até 15 SM | D128: =VLOOKUP(SEE_H_graph!B128,SEE_agrg!$C$4:$CC$160,A128,FALSE) -> 0.005814664323
A129: 60 | B129: Hospital Sarah | C129: até 20 SM | D129: =VLOOKUP(SEE_H_graph!B129,SEE_agrg!$C$4:$CC$160,A129,FALSE) -> 0.004010113326
A130: 61 | B130: Hospital Sarah | C130: mais 20 SM | D130: =VLOOKUP(SEE_H_graph!B130,SEE_agrg!$C$4:$CC$160,A130,FALSE) -> 0.003609101993
A131: 53 | B131: Ibiapina | C131: até 1/2 SM | D131: =VLOOKUP(SEE_H_graph!B131,SEE_agrg!$C$4:$CC$160,A131,FALSE) -> 0.01071195274
A132: 54 | B132: Ibiapina | C132: até 1 SM | D132: =VLOOKUP(SEE_H_graph!B132,SEE_agrg!$C$4:$CC$160,A132,FALSE) -> 0.1923707919
A133: 55 | B133: Ibiapina | C133: até 2 SM | D133: =VLOOKUP(SEE_H_graph!B133,SEE_agrg!$C$4:$CC$160,A133,FALSE) -> 0.2989694749
A134: 56 | B134: Ibiapina | C134: até 3 SM | D134: =VLOOKUP(SEE_H_graph!B134,SEE_agrg!$C$4:$CC$160,A134,FALSE) -> 0.1683191794
A135: 57 | B135: Ibiapina | C135: até 5 SM | D135: =VLOOKUP(SEE_H_graph!B135,SEE_agrg!$C$4:$CC$160,A135,FALSE) -> 0.1685417447
A136: 58 | B136: Ibiapina | C136: até 10 SM | D136: =VLOOKUP(SEE_H_graph!B136,SEE_agrg!$C$4:$CC$160,A136,FALSE) -> 0.1294609142
A137: 59 | B137: Ibiapina | C137: até 15 SM | D137: =VLOOKUP(SEE_H_graph!B137,SEE_agrg!$C$4:$CC$160,A137,FALSE) -> 0.01709026888
A138: 60 | B138: Ibiapina | C138: até 20 SM | D138: =VLOOKUP(SEE_H_graph!B138,SEE_agrg!$C$4:$CC$160,A138,FALSE) -> 0.01249940165
A139: 61 | B139: Ibiapina | C139: mais 20 SM | D139: =VLOOKUP(SEE_H_graph!B139,SEE_agrg!$C$4:$CC$160,A139,FALSE) -> 0.002036271618
A140: 53 | B140: IPASE | C140: até 1/2 SM | D140: =VLOOKUP(SEE_H_graph!B140,SEE_agrg!$C$4:$CC$160,A140,FALSE) -> 0.0256601634
A141: 54 | B141: IPASE | C141: até 1 SM | D141: =VLOOKUP(SEE_H_graph!B141,SEE_agrg!$C$4:$CC$160,A141,FALSE) -> 0.2857165641
A142: 55 | B142: IPASE | C142: até 2 SM | D142: =VLOOKUP(SEE_H_graph!B142,SEE_agrg!$C$4:$CC$160,A142,FALSE) -> 0.3869465805
A143: 56 | B143: IPASE | C143: até 3 SM | D143: =VLOOKUP(SEE_H_graph!B143,SEE_agrg!$C$4:$CC$160,A143,FALSE) -> 0.1308420286
A144: 57 | B144: IPASE | C144: até 5 SM | D144: =VLOOKUP(SEE_H_graph!B144,SEE_agrg!$C$4:$CC$160,A144,FALSE) -> 0.09915945142
A145: 58 | B145: IPASE | C145: até 10 SM | D145: =VLOOKUP(SEE_H_graph!B145,SEE_agrg!$C$4:$CC$160,A145,FALSE) -> 0.06125763479
A146: 59 | B146: IPASE | C146: até 15 SM | D146: =VLOOKUP(SEE_H_graph!B146,SEE_agrg!$C$4:$CC$160,A146,FALSE) -> 0.006382865289
A147: 60 | B147: IPASE | C147: até 20 SM | D147: =VLOOKUP(SEE_H_graph!B147,SEE_agrg!$C$4:$CC$160,A147,FALSE) -> 0.003433297349
A148: 61 | B148: IPASE | C148: mais 20 SM | D148: =VLOOKUP(SEE_H_graph!B148,SEE_agrg!$C$4:$CC$160,A148,FALSE) -> 0.0006014146076
A149: 53 | B149: Lourenço Jorge | C149: até 1/2 SM | D149: =VLOOKUP(SEE_H_graph!B149,SEE_agrg!$C$4:$CC$160,A149,FALSE) -> 0.002183406114
A150: 54 | B150: Lourenço Jorge | C150: até 1 SM | D150: =VLOOKUP(SEE_H_graph!B150,SEE_agrg!$C$4:$CC$160,A150,FALSE) -> 0.04366812227
A151: 55 | B151: Lourenço Jorge | C151: até 2 SM | D151: =VLOOKUP(SEE_H_graph!B151,SEE_agrg!$C$4:$CC$160,A151,FALSE) -> 0.07423580786
A152: 56 | B152: Lourenço Jorge | C152: até 3 SM | D152: =VLOOKUP(SEE_H_graph!B152,SEE_agrg!$C$4:$CC$160,A152,FALSE) -> 0.03930131004
A153: 57 | B153: Lourenço Jorge | C153: até 5 SM | D153: =VLOOKUP(SEE_H_graph!B153,SEE_agrg!$C$4:$CC$160,A153,FALSE) -> 0.09825327511
A154: 58 | B154: Lourenço Jorge | C154: até 10 SM | D154: =VLOOKUP(SEE_H_graph!B154,SEE_agrg!$C$4:$CC$160,A154,FALSE) -> 0.192139738
A155: 59 | B155: Lourenço Jorge | C155: até 15 SM | D155: =VLOOKUP(SEE_H_graph!B155,SEE_agrg!$C$4:$CC$160,A155,FALSE) -> 0.08951965066
A156: 60 | B156: Lourenço Jorge | C156: até 20 SM | D156: =VLOOKUP(SEE_H_graph!B156,SEE_agrg!$C$4:$CC$160,A156,FALSE) -> 0.2707423581
A157: 61 | B157: Lourenço Jorge | C157: mais 20 SM | D157: =VLOOKUP(SEE_H_graph!B157,SEE_agrg!$C$4:$CC$160,A157,FALSE) -> 0.1899563319
A158: 53 | B158: Madureira | C158: até 1/2 SM | D158: =VLOOKUP(SEE_H_graph!B158,SEE_agrg!$C$4:$CC$160,A158,FALSE) -> 0.01072143512
A159: 54 | B159: Madureira | C159: até 1 SM | D159: =VLOOKUP(SEE_H_graph!B159,SEE_agrg!$C$4:$CC$160,A159,FALSE) -> 0.1551448444
A160: 55 | B160: Madureira | C160: até 2 SM | D160: =VLOOKUP(SEE_H_graph!B160,SEE_agrg!$C$4:$CC$160,A160,FALSE) -> 0.2766497209
A161: 56 | B161: Madureira | C161: até 3 SM | D161: =VLOOKUP(SEE_H_graph!B161,SEE_agrg!$C$4:$CC$160,A161,FALSE) -> 0.1519022472
A162: 57 | B162: Madureira | C162: até 5 SM | D162: =VLOOKUP(SEE_H_graph!B162,SEE_agrg!$C$4:$CC$160,A162,FALSE) -> 0.1975705753
A163: 58 | B163: Madureira | C163: até 10 SM | D163: =VLOOKUP(SEE_H_graph!B163,SEE_agrg!$C$4:$CC$160,A163,FALSE) -> 0.1655978819
A164: 59 | B164: Madureira | C164: até 15 SM | D164: =VLOOKUP(SEE_H_graph!B164,SEE_agrg!$C$4:$CC$160,A164,FALSE) -> 0.0287482161
A165: 60 | B165: Madureira | C165: até 20 SM | D165: =VLOOKUP(SEE_H_graph!B165,SEE_agrg!$C$4:$CC$160,A165,FALSE) -> 0.008492612868
A166: 61 | B166: Madureira | C166: mais 20 SM | D166: =VLOOKUP(SEE_H_graph!B166,SEE_agrg!$C$4:$CC$160,A166,FALSE) -> 0.005172466286
A167: 53 | B167: Marambaia | C167: até 1/2 SM | D167: =VLOOKUP(SEE_H_graph!B167,SEE_agrg!$C$4:$CC$160,A167,FALSE) -> 0.009958493531
A168: 54 | B168: Marambaia | C168: até 1 SM | D168: =VLOOKUP(SEE_H_graph!B168,SEE_agrg!$C$4:$CC$160,A168,FALSE) -> 0.1823534931
A169: 55 | B169: Marambaia | C169: até 2 SM | D169: =VLOOKUP(SEE_H_graph!B169,SEE_agrg!$C$4:$CC$160,A169,FALSE) -> 0.3309300967
A170: 56 | B170: Marambaia | C170: até 3 SM | D170: =VLOOKUP(SEE_H_graph!B170,SEE_agrg!$C$4:$CC$160,A170,FALSE) -> 0.1712767183
A171: 57 | B171: Marambaia | C171: até 5 SM | D171: =VLOOKUP(SEE_H_graph!B171,SEE_agrg!$C$4:$CC$160,A171,FALSE) -> 0.162031145
A172: 58 | B172: Marambaia | C172: até 10 SM | D172: =VLOOKUP(SEE_H_graph!B172,SEE_agrg!$C$4:$CC$160,A172,FALSE) -> 0.1169185092
A173: 59 | B173: Marambaia | C173: até 15 SM | D173: =VLOOKUP(SEE_H_graph!B173,SEE_agrg!$C$4:$CC$160,A173,FALSE) -> 0.01784468441
A174: 60 | B174: Marambaia | C174: até 20 SM | D174: =VLOOKUP(SEE_H_graph!B174,SEE_agrg!$C$4:$CC$160,A174,FALSE) -> 0.00631919696
A175: 61 | B175: Marambaia | C175: mais 20 SM | D175: =VLOOKUP(SEE_H_graph!B175,SEE_agrg!$C$4:$CC$160,A175,FALSE) -> 0.002367662809
A176: 53 | B176: Maré | C176: até 1/2 SM | D176: =VLOOKUP(SEE_H_graph!B176,SEE_agrg!$C$4:$CC$160,A176,FALSE) -> 0.01887654109
A177: 54 | B177: Maré | C177: até 1 SM | D177: =VLOOKUP(SEE_H_graph!B177,SEE_agrg!$C$4:$CC$160,A177,FALSE) -> 0.3995811983
A178: 55 | B178: Maré | C178: até 2 SM | D178: =VLOOKUP(SEE_H_graph!B178,SEE_agrg!$C$4:$CC$160,A178,FALSE) -> 0.4096254928
A179: 56 | B179: Maré | C179: até 3 SM | D179: =VLOOKUP(SEE_H_graph!B179,SEE_agrg!$C$4:$CC$160,A179,FALSE) -> 0.1143045066
A180: 57 | B180: Maré | C180: até 5 SM | D180: =VLOOKUP(SEE_H_graph!B180,SEE_agrg!$C$4:$CC$160,A180,FALSE) -> 0.04416321642
A181: 58 | B181: Maré | C181: até 10 SM | D181: =VLOOKUP(SEE_H_graph!B181,SEE_agrg!$C$4:$CC$160,A181,FALSE) -> 0.01237946978
A182: 59 | B182: Maré | C182: até 15 SM | D182: =VLOOKUP(SEE_H_graph!B182,SEE_agrg!$C$4:$CC$160,A182,FALSE) -> 0.0002394743236
A183: 60 | B183: Maré | C183: até 20 SM | D183: =VLOOKUP(SEE_H_graph!B183,SEE_agrg!$C$4:$CC$160,A183,FALSE) -> 0.0006451603552
A184: 61 | B184: Maré | C184: mais 20 SM | D184: =VLOOKUP(SEE_H_graph!B184,SEE_agrg!$C$4:$CC$160,A184,FALSE) -> 0.0001849403827
A185: 53 | B185: Mercadão | C185: até 1/2 SM | D185: =VLOOKUP(SEE_H_graph!B185,SEE_agrg!$C$4:$CC$160,A185,FALSE) -> 0.01302527641
A186: 54 | B186: Mercadão | C186: até 1 SM | D186: =VLOOKUP(SEE_H_graph!B186,SEE_agrg!$C$4:$CC$160,A186,FALSE) -> 0.2574940473
A187: 55 | B187: Mercadão | C187: até 2 SM | D187: =VLOOKUP(SEE_H_graph!B187,SEE_agrg!$C$4:$CC$160,A187,FALSE) -> 0.3298062569
A188: 56 | B188: Mercadão | C188: até 3 SM | D188: =VLOOKUP(SEE_H_graph!B188,SEE_agrg!$C$4:$CC$160,A188,FALSE) -> 0.1564162072
A189: 57 | B189: Mercadão | C189: até 5 SM | D189: =VLOOKUP(SEE_H_graph!B189,SEE_agrg!$C$4:$CC$160,A189,FALSE) -> 0.1443011746
A190: 58 | B190: Mercadão | C190: até 10 SM | D190: =VLOOKUP(SEE_H_graph!B190,SEE_agrg!$C$4:$CC$160,A190,FALSE) -> 0.08523815931
A191: 59 | B191: Mercadão | C191: até 15 SM | D191: =VLOOKUP(SEE_H_graph!B191,SEE_agrg!$C$4:$CC$160,A191,FALSE) -> 0.007276595706
A192: 60 | B192: Mercadão | C192: até 20 SM | D192: =VLOOKUP(SEE_H_graph!B192,SEE_agrg!$C$4:$CC$160,A192,FALSE) -> 0.004241861753
A193: 61 | B193: Mercadão | C193: mais 20 SM | D193: =VLOOKUP(SEE_H_graph!B193,SEE_agrg!$C$4:$CC$160,A193,FALSE) -> 0.002200420784
A194: 53 | B194: Merck-Santa Efigênia | C194: até 1/2 SM | D194: =VLOOKUP(SEE_H_graph!B194,SEE_agrg!$C$4:$CC$160,A194,FALSE) -> 0.006016441543
A195: 54 | B195: Merck-Santa Efigênia | C195: até 1 SM | D195: =VLOOKUP(SEE_H_graph!B195,SEE_agrg!$C$4:$CC$160,A195,FALSE) -> 0.1504043831
A196: 55 | B196: Merck-Santa Efigênia | C196: até 2 SM | D196: =VLOOKUP(SEE_H_graph!B196,SEE_agrg!$C$4:$CC$160,A196,FALSE) -> 0.3257002225
A197: 56 | B197: Merck-Santa Efigênia | C197: até 3 SM | D197: =VLOOKUP(SEE_H_graph!B197,SEE_agrg!$C$4:$CC$160,A197,FALSE) -> 0.1858220096
A198: 57 | B198: Merck-Santa Efigênia | C198: até 5 SM | D198: =VLOOKUP(SEE_H_graph!B198,SEE_agrg!$C$4:$CC$160,A198,FALSE) -> 0.1814452603
A199: 58 | B199: Merck-Santa Efigênia | C199: até 10 SM | D199: =VLOOKUP(SEE_H_graph!B199,SEE_agrg!$C$4:$CC$160,A199,FALSE) -> 0.1254164057
A200: 59 | B200: Merck-Santa Efigênia | C200: até 15 SM | D200: =VLOOKUP(SEE_H_graph!B200,SEE_agrg!$C$4:$CC$160,A200,FALSE) -> 0.01819318511
A201: 60 | B201: Merck-Santa Efigênia | C201: até 20 SM | D201: =VLOOKUP(SEE_H_graph!B201,SEE_agrg!$C$4:$CC$160,A201,FALSE) -> 0.00518857568
... 208 more rows

Sheet SEE_agrg
A1: Informações no nível de Setores Censitários agregadas por Estação
C3: estc | E3: SEE_Areain | F3: sum_rt_B_V2 | G3: sum_rt_E1_V1 | H3: sum_rt_E1_V20 | I3: sum_rt_E1_V22 | J3: sum_rt_E1_V24 | K3: sum_rt_E1_V8 | L3: sum_rt_E1_V10 | M3: sum_rt_E1_V12 | N3: sum_rt_E1_V44 | O3: sum_rt_E1_V46 | P3: sum_rt_E1_V48 | Q3: sum_rt_E1_V14 | R3: sum_rt_E1_V16 | S3: sum_rt_E1_V18 | T3: sum_rt_D1_V2 | U3: sum_rt_D1_V12 | V3: sum_rt_D1_V17 | W3: sum_rt_RR_V67 | X3: sum_rt_RR_V68 | Y3: sum_rt_RR_V69 | Z3: sum_rt_RR_V70 | AA3: sum_rt_RR_V71 | AB3: sum_rt_RR_V72 | AC3: sum_rt_RR_V73 | AD3: sum_rt_RR_V74 | AE3: sum_rt_RR_V75 | AF3: sum_rt_RR_V87 | AG3: sum_rt_PR_V67 | AH3: sum_rt_PR_V68 | AI3: sum_rt_PR_V69 | AJ3: sum_rt_PR_V70 | AK3: sum_rt_PR_V71 | AL3: sum_rt_PR_V72 | AM3: sum_rt_PR_V73 | AN3: sum_rt_PR_V74 | AO3: sum_rt_PR_V75 | AP3: sum_rt_PR_V76 | AQ3: sum_rt_PR_V86 | AR3: sum_rt_PR_V87 | AS3: BUF_dom | AT3: Perc_RR_67 | AU3: Perc_RR_68 | AV3: Perc_RR_69 | AW3: Perc_RR_70 | AX3: Perc_RR_71 | AY3: Perc_RR_72 | AZ3: Perc_RR_73 | BA3: Perc_RR_74 | BB3: Perc_RR_75 | BC3: Perc_PR_67 | BD3: Perc_PR_68 | BE3: Perc_PR_69 | BF3: Perc_PR_70 | BG3: Perc_PR_71 | BH3: Perc_PR_72 | BI3: Perc_PR_73 | BJ3: Perc_PR_74 | BK3: Perc_PR_75 | BL3: area_const | BM3: dens | BN3: calc | BO3: Ilum | BP3: arb | BQ3: agua | BR3: esgt | BS3: H_RR | BT3: H_PR | BU3: pont_dens | BV3: pont_calc | BW3: pont_ilum | BX3: pont_arb | BY3: pont_agua | BZ3: pont_esgt | CA3: pont_H_RR | CB3: pont_H_PR
A4: Proxy | B4: Corredor | C4: Estação | D4: Estação sem Caracteres Especiais | E4: SEE_Areain | F4: sum_rt_B_V2 | G4: sum_rt_E1_V1 | H4: sum_rt_E1_V20 | I4: sum_rt_E1_V22 | J4: sum_rt_E1_V24 | K4: sum_rt_E1_V8 | L4: sum_rt_E1_V10 | M4: sum_rt_E1_V12 | N4: sum_rt_E1_V44 | O4: sum_rt_E1_V46 | P4: sum_rt_E1_V48 | Q4: sum_rt_E1_V14 | R4: sum_rt_E1_V16 | S4: sum_rt_E1_V18 | T4: sum_rt_D1_V2 | U4: sum_rt_D1_V12 | V4: sum_rt_D1_V17 | W4: sum_rt_RR_V67 | X4: sum_rt_RR_V68 | Y4: sum_rt_RR_V69 | Z4: sum_rt_RR_V70 | AA4: sum_rt_RR_V71 | AB4: sum_rt_RR_V72 | AC4: sum_rt_RR_V73 | AD4: sum_rt_RR_V74 | AE4: sum_rt_RR_V75 | AF4: sum_rt_RR_V87 | AG4: sum_rt_PR_V67 | AH4: sum_rt_PR_V68 | AI4: sum_rt_PR_V69 | AJ4: sum_rt_PR_V70 | AK4: sum_rt_PR_V71 | AL4: sum_rt_PR_V72 | AM4: sum_rt_PR_V73 | AN4: sum_rt_PR_V74 | AO4: sum_rt_PR_V75 | AP4: sum_rt_PR_V76 | AQ4: sum_rt_PR_V86 | AR4: sum_rt_PR_V87 | AS4: BUF_dom | AT4: Perc_RR_67 | AU4: Perc_RR_68 | AV4: Perc_RR_69 | AW4: Perc_RR_70 | AX4: Perc_RR_71 | AY4: Perc_RR_72 | AZ4: Perc_RR_73 | BA4: Perc_RR_74 | BB4: Perc_RR_75 | BC4: Perc_PR_67 | BD4: Perc_PR_68 | BE4: Perc_PR_69 | BF4: Perc_PR_70 | BG4: Perc_PR_71 | BH4: Perc_PR_72 | BI4: Perc_PR_73 | BJ4: Perc_PR_74 | BK4: Perc_PR_75 | BL4: Área Construtível | BM4: Dens | BN4: Calc | BO4: Ilum | BP4: Arb | BQ4: Agua | BR4: Esgt | BS4: H_RR | BT4: H_PR | BU4: Pontuação Densidade | BV4: Pontuação Calçada | BW4: Pontuação Iluminação | BX4: Pontuação Arborização | BY4: Pontuação Água | BZ4: Pontuação Esgoto | CA4: Pontuação Diver. Socioec. RR | CB4: Pontuação Diver. Socioec. PR | CC4: continuou igual RR/PR?
A5: =IF(B5="TransCarioca","OK","NO") -> OK | B5: TransCarioca | C5: Aeroporto de Jacarepaguá | D5: Aeroporto de Jacarepagu | E5: 500590.2876 | F5: 102.89428 | G5: 32.61189 | H5: 18.51236 | I5: 2.90601 | J5: 11.19352 | K5: 18.51236 | L5: 2.90601 | M5: 11.19352 | N5: 18.51236 | O5: 2.90601 | P5: 11.19352 | Q5: 18.51236 | R5: 2.90601 | S5: 11.19352 | T5: 32.61189 | U5: 32.61189 | V5: 32.50426 | W5: 0 | X5: 1.0763 | Y5: 0.53815 | Z5: 0.32289 | AA5: 0.86104 | AB5: 2.04497 | AC5: 2.26023 | AD5: 9.14855 | AE5: 7.21121 | AF5: 23.46334 | AG5: 0.10763 | AH5: 2.1526 | AI5: 3.65942 | AJ5: 1.93734 | AK5: 4.84335 | AL5: 9.47144 | AM5: 4.41283 | AN5: 13.34612 | AO5: 9.36381 | AP5: 41.11466 | AQ5: 90.4092 | AR5: 49.29454 | AS5: =IF(OR(G5=0,T5=0),0,1) -> 1 | AT5: =IF($AF5=0,0,W5/$AF5) -> 0 | AU5: =IF($AF5=0,0,X5/$AF5) -> 0.04587155963 | AV5: =IF($AF5=0,0,Y5/$AF5) -> 0.02293577982 | AW5: =IF($AF5=0,0,Z5/$AF5) -> 0.01376146789 | AX5: =IF($AF5=0,0,AA5/$AF5) -> 0.03669724771 | AY5: =IF($AF5=0,0,AB5/$AF5) -> 0.0871559633 | AZ5: =IF($AF5=0,0,AC5/$AF5) -> 0.09633027523 | BA5: =IF($AF5=0,0,AD5/$AF5) -> 0.3899082569 | BB5: =IF($AF5=0,0,AE5/$AF5) -> 0.3073394495 | BC5: =IF($AR5=0,0,AG5/$AR5) -> 0.002183406114 | BD5: =IF($AR5=0,0,AH5/$AR5) -> 0.04366812227 | BE5: =IF($AR5=0,0,AI5/$AR5) -> 0.07423580786 | BF5: =IF($AR5=0,0,AJ5/$AR5) -> 0.03930131004 | BG5: =IF($AR5=0,0,AK5/$AR5) -> 0.09825327511 | BH5: =IF($AR5=0,0,AL5/$AR5) -> 0.192139738 | BI5: =IF($AR5=0,0,AM5/$AR5) -> 0.08951965066 | BJ5: =IF($AR5=0,0,AN5/$AR5) -> 0.2707423581 | BK5: =IF($AR5=0,0,AO5/$AR5) -> 0.1899563319 | BL5: =SUMIFS(UdS_data!L:L,UdS_data!N:N,1,UdS_data!E:E,SEE_agrg!D5) -> 490374.9409 | BM5: =1000000*F5/E5 -> 205.5458976 | BN5: =IF(G5=0,0,(H5+I5+J5)/G5) -> 1 | BO5: =IF(G5=0,0,(K5+L5+M5)/G5) -> 1 | BP5: =IF(G5=0,0,(N5+O5+P5)/G5) -> 1 | BQ5: =IF(T5=0,0,U5/T5) -> 1 | BR5: =IF(T5=0,0,V5/T5) -> 0.99669967 | BS5: =IF(AS5<>0,(1-SUMSQ(AT5:BB5))/(1-1/9),0) -> 0.8240310159 | BT5: =IF(AS5<>0,(1-SUMSQ(BC5:BK5))/(1-1/9),0) -> 0.9304456437 | BU5: =IF(AND($BM5<=dens_ref,$BM5<=dens_urb_mun),5,IF(AND($BM5<=dens_ref,$BM5>dens_urb_mun),3,IF(AND($BM5>dens_ref,$BM5<=dens_urb_mun),2,IF($BM5<(1+dens_toler)*dens_ref,1,0)))) -> 5 | BV5: =IF(BN5>0.95,5,IF(BN5>0.9,4,IF(BN5>0.8,2,IF(BN5>0.7,1,0)))) -> 5 | BW5: =IF(BO5>0.95,5,IF(BO5>0.9,4,IF(BO5>0.8,2,IF(BO5>0.7,1,0)))) -> 5 | BX5: =IF(BP5>0.95,5,IF(BP5>0.9,4,IF(BP5>0.8,2,IF(BP5>0.7,1,0)))) -> 5 | BY5: =IF(BQ5>0.95,5,IF(BQ5>0.9,4,IF(BQ5>0.8,2,IF(BQ5>0.7,1,0)))) -> 5 | BZ5: =IF(BR5>0.95,5,IF(BR5>0.9,4,IF(BR5>0.8,2,IF(BR5>0.7,1,0)))) -> 5 | CA5: =IF(BS5>=0.95,5,IF(BS5>=0.9,4,IF(BS5>=0.85,3,IF(BS5>=0.8,2,IF(BS5>=0.75,1,0))))) -> 2 | CB5: =IF(BT5>=0.95,5,IF(BT5>=0.9,4,IF(BT5>=0.85,3,IF(BT5>=0.8,2,IF(BT5>=0.75,1,0))))) -> 4 | CC5: =IF(CB5=CA5,1,0) -> 0
A6: OK | B6: TransCarioca | C6: André Rocha | D6: Andr Rocha | E6: 500590.2881 | F6: 5865.15477 | G6: 1960.68587 | H6: 1299.06673 | I6: 341.10622 | J6: 75.91587 | K6: 1442.78466 | L6: 409.58128 | M6: 82.37576 | N6: 891.74519 | O6: 242.61572 | P6: 51.7478 | Q6: 1441.52204 | R6: 409.58128 | S6: 82.37576 | T6: 1960.68587 | U6: 1951.95672 | V6: 1873.0282 | W6: 10.81635 | X6: 222.65823 | Y6: 443.73079 | Z6: 289.81765 | AA6: 385.65774 | AB6: 331.91014 | AC6: 55.9222 | AD6: 32.78151 | AE6: 8.24533 | AF6: 1781.53994 | AG6: 24.42403 | AH6: 626.04308 | AI6: 1073.81524 | AJ6: 542.80395 | AK6: 655.69541 | AL6: 489.67191 | AM6: 83.20035 | AN6: 37.37753 | AO6: 12.6808 | AP6: 1794.89021 | AQ6: 5340.60251 | AR6: 3545.7123 | AS6: 1 | AT6: 0.006071348588 | AU6: 0.124980768 | AV6: 0.2490714803 | AW6: 0.1626781659 | AX6: 0.2164743722 | AY6: 0.1863051917 | AZ6: 0.03138980987 | BA6: 0.0184006596 | BB6: 0.004628203845 | BC6: 0.006888328193 | BD6: 0.1765634172 | BE6: 0.302848948 | BF6: 0.1530874205 | BG6: 0.1849262869 | BH6: 0.1381025499 | BI6: 0.02346505947 | BJ6: 0.01054161388 | BK6: 0.003576375895 | BL6: =SUMIFS(UdS_data!L:L,UdS_data!N:N,1,UdS_data!E:E,SEE_agrg!D6) -> 487515.4523 | BM6: 11716.47735 | BN6: 0.8752492412 | BO6: 0.986767809 | BP6: 0.6049458142 | BQ6: 0.99554791 | BR6: 0.9552923437 | BS6: 0.9145418124 | BT6: 0.899640108 | BU6: 0 | BV6: 2 | BW6: 5 | BX6: 0 | BY6: 5 | BZ6: 5 | CA6: =IF(BS6>=0.95,5,IF(BS6>=0.9,4,IF(BS6>=0.85,3,IF(BS6>=0.8,2,IF(BS6>=0.75,1,0))))) -> 4 | CB6: =IF(BT6>=0.95,5,IF(BT6>=0.9,4,IF(BT6>=0.85,3,IF(BT6>=0.8,2,IF(BT6>=0.75,1,0))))) -> 3 | CC6: =IF(CB6=CA6,1,0) -> 0
A7: OK | B7: TransCarioca | C7: Aracy Cabral | D7: Aracy Cabral | E7: 500590.292 | F7: 5562.25052 | G7: 1957.65401 | H7: 1347.90895 | I7: 502.87499 | J7: 100.16361 | K7: 1347.90895 | L7: 502.87499 | M7: 100.16361 | N7: 1066.75724 | O7: 421.15378 | P7: 87.73025 | Q7: 1347.90895 | R7: 502.87499 | S7: 100.16361 | T7: 1957.65401 | U7: 1942.624 | V7: 1908.22082 | W7: 7.6393 | X7: 220.22904 | Y7: 388.7585 | Z7: 291.93637 | AA7: 350.63399 | AB7: 411.58938 | AC7: 60.80898 | AD7: 34.76325 | AE7: 14.56197 | AF7: 1780.92078 | AG7: 28.47436 | AH7: 592.77514 | AI7: 932.07919 | AJ7: 519.67548 | AK7: 629.58812 | AL7: 591.59755 | AM7: 83.62148 | AN7: 48.06936 | AO7: 18.08344 | AP7: 1572.02064 | AQ7: 5015.98476 | AR7: 3443.96412 | AS7: 1 | AT7: 0.004289522637 | AU7: 0.1236602113 | AV7: 0.2182907316 | AW7: 0.1639243998 | AX7: 0.1968835413 | AY7: 0.2311104372 | AZ7: 0.03414468554 | BA7: 0.01951981828 | BB7: 0.008176652305 | BC7: 0.008267902628 | BD7: 0.1721200104 | BE7: 0.2706413765 | BF7: 0.1508945686 | BG7: 0.1828091403 | BH7: 0.1717780817 | BI7: 0.02428058978 | BJ7: 0.01395756701 | BK7: 0.005250763182 | BL7: =SUMIFS(UdS_data!L:L,UdS_data!N:N,1,UdS_data!E:E,SEE_agrg!D7) -> 498888.7997 | BM7: 11111.38312 | BN7: 0.9965742363 | BO7: 0.9965742363 | BP7: 0.8048619735 | BQ7: 0.992322438 | BR7: 0.9747487606 | BS7: 0.9184261458 | BT7: 0.9118705455 | BU7: 0 | BV7: 5 | BW7: 5 | BX7: 2 | BY7: 5 | BZ7: 5 | CA7: 4 | CB7: 4 | CC7: 1
A8: OK | B8: TransCarioca | C8: Arroio Pavuna | D8: Arroio Pavuna | E8: 500590.2886 | F8: 4568.30452 | G8: 1533.66742 | H8: 1016.32349 | I8: 418.13573 | J8: 56.71958 | K8: 1017.78403 | L8: 425.81773 | M8: 59.6978 | N8: 603.54291 | O8: 275.84157 | P8: 44.28347 | Q8: 1017.78658 | R8: 425.81803 | S8: 59.69825 | T8: 1533.66742 | U8: 1529.64676 | V8: 1265.1052 | W8: 22.65606 | X8: 245.17882 | Y8: 553.56965 | Z8: 239.16965 | AA8: 172.05532 | AB8: 121.80641 | AC8: 15.94377 | AD8: 6.85035 | AE8: 1.96604 | AF8: 1379.19607 | AG8: 62.53084 | AH8: 592.78993 | AI8: 1100.82912 | AJ8: 411.09102 | AK8: 291.27301 | AL8: 193.091 | AM8: 24.00343 | AN8: 11.26604 | AO8: 4.03884 | AP8: 1260.85611 | AQ8: 3951.76934 | AR8: 2690.91323 | AS8: 1 | AT8: 0.01642700446 | AU8: 0.1777693726 | AV8: 0.4013712496 | AW8: 0.1734123633 | AX8: 0.1247504425 | AY8: 0.08831696424 | AZ8: 0.011560191 | BA8: 0.004966915255 | BB8: 0.001425497101 | BC8: 0.02323777642 | BD8: 0.2202932162 | BE8: 0.4090912734 | BF8: 0.1527700765 | BG8: 0.1082431818 | BH8: 0.07175668017 | BI8: 0.00892017986 | BJ8: 0.004186697614 | BK8: 0.001500917962 | BL8: =SUMIFS(UdS_data!L:L,UdS_data!N:N,1,UdS_data!E:E,SEE_agrg!D8) -> 488169.8332 | BM8: 9125.835287 | BN8: 0.9722960666 | BO8: 0.9801991882 | BP8: 0.6022609191 | BQ8: 0.9973784016 | BR8: 0.8248888798 | BS8: 0.8476138987 | BT8: 0.8361805275 | BU8: 1 | BV8: 5 | BW8: 5 | BX8: 0 | BY8: 5 | BZ8: 2 | CA8: 2 | CB8: 2 | CC8: 1
A9: OK | B9: TransCarioca | C9: Campinho | D9: Campinho | E9: 500590.2901 | F9: 6040.44136 | G9: 2104.6349 | H9: 1256.65808 | I9: 435.66143 | J9: 87.41047 | K9: 1260.93653 | L9: 436.30556 | M9: 87.45265 | N9: 921.02659 | O9: 318.25444 | P9: 69.49949 | Q9: 1262.19758 | R9: 436.48571 | S9: 87.45265 | T9: 2104.6349 | U9: 1981.18733 | V9: 1836.78883 | W9: 17.02626 | X9: 297.81809 | Y9: 472.17317 | Z9: 263.97106 | AA9: 397.69893 | AB9: 359.81598 | AC9: 63.0195 | AD9: 28.1171 | AE9: 15.98756 | AF9: 1915.62765 | AG9: 49.71745 | AH9: 761.37426 | AI9: 1104.7332 | AJ9: 512.67423 | AK9: 653.38254 | AL9: 515.16906 | AM9: 83.95821 | AN9: 36.5572 | AO9: 18.2662 | AP9: 1716.27045 | AQ9: 5452.1028 | AR9: 3735.83235 | AS9: 1 | AT9: 0.008888084279 | AU9: 0.1554676296 | AV9: 0.2464848375 | AW9: 0.1377987314 | AX9: 0.2076076371 | AY9: 0.1878318994 | AZ9: 0.03289757276 | BA9: 0.01467774805 | BB9: 0.008345859907 | BC9: 0.01330826583 | BD9: 0.2038031123 | BE9: 0.2957127345 | BF9: 0.1372315945 | BG9: 0.1748961085 | BH9: 0.1378994055 | BI9: 0.02247376277 | BJ9: 0.009785556892 | BK9: 0.004889459239 | BL9: =SUMIFS(UdS_data!L:L,UdS_data!N:N,1,UdS_data!E:E,SEE_agrg!D9) -> 485948.7417 | BM9: 12066.63709 | BN9: 0.8456240938 | BO9: 0.8479830587 | BP9: 0.6218563229 | BQ9: 0.9413449002 | BR9: 0.8727351381 | BS9: 0.9182907666 | BT9: 0.9020013984 | BU9: 0 | BV9: 2 | BW9: 2 | BX9: 0 | BY9: 4 | BZ9: 2 | CA9: 4 | CB9: 4 | CC9: 1
A10: OK | B10: TransCarioca | C10: Capitão Menezes | D10: Capito Menezes | E10: 500590.2896 | F10: 5474.33141 | G10: 1950.46128 | H10: 1425.8419 | I10: 350.7554 | J10: 85.58038 | K10: 1428.20218 | L10: 350.7554 | M10: 85.58038 | N10: 1352.07133 | O10: 329.60646 | P10: 79.89669 | Q10: 1410.87046 | R10: 349.28036 | S10: 85.21162 | T10: 1950.46128 | U10: 1950.46128 | V10: 1874.07671 | W10: 3.97394 | X10: 197.09159 | Y10: 334.52189 | Z10: 281.8756 | AA10: 403.6506 | AB10: 426.72194 | AC10: 94.19311 | AD10: 53.8148 | AE10: 23.46798 | AF10: 1819.31145 | AG10: 23.17439 | AH10: 554.29148 | AI10: 856.55169 | AJ10: 559.01243 | AK10: 709.09879 | AL10: 632.02497 | AM10: 125.23007 | AN10: 65.80019 | AO10: 33.71261 | AP10: 1310.6439 | AQ10: 4869.54052 | AR10: 3558.89662 | AS10: 1 | AT10: 0.002184309894 | AU10: 0.1083330674 | AV10: 0.1838727998 | AW10: 0.1549353191 | AX10: 0.2218699827 | AY10: 0.2345513408 | AZ10: 0.05177404342 | BA10: 0.02957976217 | BB10: 0.01289937465 | BC10: 0.00651167833 | BD10: 0.1557481262 | BE10: 0.2406790029 | BF10: 0.1570746469 | BG10: 0.1992468076 | BH10: 0.1775901459 | BI10: 0.03518789203 | BJ10: 0.01848892986 | BK10: 0.009472770243 | BL10: =SUMIFS(UdS_data!L:L,UdS_data!N:N,1,UdS_data!E:E,SEE_agrg!D10) -> 437453.5998 | BM10: 10935.7523 | BN10: 0.9547370661 | BO10: 0.9559471798 | BP10: 0.9031578827 | BQ10: 1 | BR10: 0.9608376896 | BS10: 0.9252927981 | BT10: 0.9227182277 | BU10: 0 | BV10: 5 | BW10: 5 | BX10: 4 | BY10: 5 | BZ10: 5 | CA10: 4 | CB10: 4 | CC10: 1
A11: OK | B11: TransCarioca | C11: Cardoso de Moraes - Viva Garcia | D11: Cardoso de Moraes - Viva Garcia | E11: 500590.2881 | F11: 8036.44568 | G11: 2866.12397 | H11: 1803.09185 | I11: 940.41911 | J11: 107.46248 | K11: 1803.09185 | L11: 940.41911 | M11: 107.46248 | N11: 1697.31904 | O11: 896.34877 | P11: 101.08108 | Q11: 1803.09185 | R11: 940.41911 | S11: 107.46248 | T11: 2866.12397 | U11: 2865.38643 | V11: 2855.73751 | W11: 15.99146 | X11: 370.00723 | Y11: 698.95528 | Z11: 447.07017 | AA11: 514.47759 | AB11: 379.31471 | AC11: 52.5758 | AD11: 19.35572 | AE11: 11.19393 | AF11: 2508.94189 | AG11: 60.64727 | AH11: 998.90206 | AI11: 1716.54009 | AJ11: 862.88364 | AK11: 875.18539 | AL11: 571.04217 | AM11: 76.32753 | AN11: 29.54073 | AO11: 13.87856 | AP11: 2108.83491 | AQ11: 7313.78235 | AR11: 5204.94744 | AS11: 1 | AT11: 0.006373786521 | AU11: 0.1474754084 | AV11: 0.278585679 | AW11: 0.1781907233 | AX11: 0.205057595 | AY11: 0.1511851317 | AZ11: 0.02095536776 | BA11: 0.00771469442 | BB11: 0.004461613896 | BC11: 0.01165185061 | BD11: 0.1919139572 | BE11: 0.329790091 | BF11: 0.165781432 | BG11: 0.1681449045 | BH11: 0.1097114191 | BI11: 0.01466441897 | BJ11: 0.005675509761 | BK11: 0.002666416935 | BL11: =SUMIFS(UdS_data!L:L,UdS_data!N:N,1,UdS_data!E:E,SEE_agrg!D11) -> 500107.7604 | BM11: 16053.93846 | BN11: 0.9947139307 | BO11: 0.9947139307 | BP11: 0.9402066757 | BQ11: 0.9997426699 | BR11: 0.9963761302 | BS11: 0.9038523972 | BT11: 0.8845026855 | BU11: 0 | BV11: 5 | BW11: 5 | BX11: 4 | BY11: 5 | BZ11: 5 | CA11: 4 | CB11: 3 | CC11: 0
A12: OK | B12: TransCarioca | C12: Centro Metropolitano | D12: Centro Metropolitano | E12: 500590.2891 | F12: 193.8674 | G12: 59.13845 | H12: 51.66833 | I12: 6.2251 | J12: 0.71144 | K12: 10.49374 | L12: 4.53543 | M12: 0.35572 | N12: 10.49374 | O12: 4.53543 | P12: 0.35572 | Q12: 10.49374 | R12: 4.53543 | S12: 0.35572 | T12: 59.13845 | U12: 58.6938 | V12: 24.18896 | W12: 6.13617 | X12: 18.58637 | Y12: 16.09633 | Z12: 3.5572 | AA12: 0.80037 | AB12: 0.44465 | AC12: 0 | AD12: 0 | AE12: 0 | AF12: 45.62109 | AG12: 10.13802 | AH12: 35.21628 | AI12: 32.19266 | AJ12: 7.47012 | AK12: 2.22325 | AL12: 0.44465 | AM12: 0 | AN12: 0 | AO12: 0 | AP12: 56.11483 | AQ12: 143.79981 | AR12: 87.68498 | AS12: 1 | AT12: 0.134502924 | AU12: 0.4074074074 | AV12: 0.3528265107 | AW12: 0.07797270955 | AX12: 0.01754385965 | AY12: 0.009746588694 | AZ12: 0 | BA12: 0 | BB12: 0 | BC12: 0.1156186613 | BD12: 0.4016227181 | BE12: 0.3671399594 | BF12: 0.08519269777 | BG12: 0.02535496957 | BH12: 0.005070993915 | BI12: 0 | BJ12: 0 | BK12: 0 | BL12: =SUMIFS(UdS_data!L:L,UdS_data!N:N,1,UdS_data!E:E,SEE_agrg!D12) -> 377417.8818 | BM12: 387.2775886 | BN12: 0.9909774436 | BO12: 0.2601503759 | BP12: 0.2601503759 | BQ12: 0.992481203 | BR12: 0.4090225564 | BS12: 0.7705789816 | BT12: 0.7679400553 | BU12: 5 | BV12: 5 | BW12: 0 | BX12: 0 | BY12: 5 | BZ12: 0 | CA12: 1 | CB12: 1 | CC12: 1
A13: OK | B13: TransCarioca | C13: Curicica TCA | D13: Curicica TCA | E13: 500590.2886 | F13: 2165.42441 | G13: 700.23433 | H13: 484.69909 | I13: 173.82055 | J13: 31.52655 | K13: 484.96083 | L13: 173.85516 | M13: 31.57337 | N13: 488.94639 | O13: 174.61694 | P13: 31.57337 | Q13: 489.16699 | R13: 174.43098 | S13: 31.53965 | T13: 700.23433 | U13: 693.00218 | V13: 594.77952 | W13: 5.20234 | X13: 101.59332 | Y13: 196.46005 | Z13: 89.54865 | AA13: 115.25583 | AB13: 102.34859 | AC13: 13.2606 | AD13: 6.7266 | AE13: 4.10488 | AF13: 634.50086 | AG13: 17.99887 | AH13: 263.5785 | AI13: 476.80185 | AJ13: 187.87415 | AK13: 194.89335 | AL13: 153.82097 | AM13: 17.41691 | AN13: 8.77193 | AO13: 5.44165 | AP13: 606.63534 | AQ13: 1933.23352 | AR13: 1326.59818 | AS13: 1 | AT13: 0.008199106302 | AU13: 0.1601153385 | AV13: 0.3096292888 | AW13: 0.1411324328 | AX13: 0.181648028 | AY13: 0.1613056758 | AZ13: 0.02089926245 | BA13: 0.01060140407 | BB13: 0.006469463257 | BC13: 0.01356768784 | BD13: 0.1986875182 | BE13: 0.3594169336 | BF13: 0.1416209918 | BG13: 0.1469121192 | BH13: 0.1159514405 | BI13: 0.01312900188 | BJ13: 0.006612348888 | BK13: 0.004101957987 | BL13: =SUMIFS(UdS_data!L:L,UdS_data!N:N,1,UdS_data!E:E,SEE_agrg!D13) -> 471821.3812 | BM13: 4325.741948 | BN13: 0.9854503849 | BO13: 0.9859404637 | BP13: 0.9927201084 | BQ13: 0.9896718146 | BR13: 0.8494006856 | BS13: 0.8987632233 | BT13: 0.8728214886 | BU13: 5 | BV13: 5 | BW13: 5 | BX13: 5 | BY13: 5 | BZ13: 2 | CA13: 3 | CB13: 3 | CC13: 1
A14: OK | B14: TransCarioca | C14: Divina Providência | D14: Divina Providncia | E14: 500590.2876 | F14: 2872.76594 | G14: 927.99383 | H14: 544.37444 | I14: 160.16888 | J14: 18.14842 | K14: 544.37444 | L14: 160.16888 | M14: 18.14842 | N14: 488.53987 | O14: 148.68812 | P14: 16.77368 | Q14: 544.37444 | R14: 160.16888 | S14: 18.14842 | T14: 927.99383 | U14: 927.31793 | V14: 906.98883 | W14: 6.38689 | X14: 163.55185 | Y14: 289.91492 | Z14: 130.91297 | AA14: 112.16156 | AB14: 101.8961 | AC14: 16.01263 | AD14: 6.67536 | AE14: 4.40063 | AF14: 831.91291 | AG14: 25.00209 | AH14: 390.13873 | AI14: 658.8377 | AJ14: 228.74247 | AK14: 193.77267 | AL14: 139.58162 | AM14: 21.13025 | AN14: 8.19477 | AO14: 4.40063 | AP14: 851.52933 | AQ14: 2521.33026 | AR14: 1669.80093 | AS14: 1 | AT14: 0.007677354112 | AU14: 0.1965973217 | AV14: 0.3484919113 | AW14: 0.1573637918 | AX14: 0.13482368 | AY14: 0.1224840951 | AZ14: 0.01924796431 | BA14: 0.008024109158 | BB14: 0.005289772459 | BC14: 0.01497309622 | BD14: 0.2336438572 | BE14: 0.3945606259 | BF14: 0.1369878684 | BG14: 0.1160453719 | BH14: 0.08359177282 | BI14: 0.01265435276 | BJ14: 0.004907632912 | BK14: 0.002635421936 | BL14: =SUMIFS(UdS_data!L:L,UdS_data!N:N,1,UdS_data!E:E,SEE_agrg!D14) -> 500590.2881 | BM14: 5738.756846 | BN14: 0.7787678287 | BO14: 0.7787678287 | BP14: 0.7047478645 | BQ14: 0.9992716546 | BR14: 0.9773651512 | BS14: 0.879117689 | BT14: 0.8438594794 | BU14: 5 | BV14: 1 | BW14: 1 | BX14: 1 | BY14: 5 | BZ14: 5 | CA14: 3 | CB14: 2 | CC14: 0
A15: OK | B15: TransCarioca | C15: Galeão - Tom Jobim 1 | D15: Galeo - Tom Jobim 1 | E15: 500590.2876 | F15: 53.69404 | G15: 15.38612 | H15: 0.46824 | I15: 0.0008 | J15: 14.52668 | K15: 0.85644 | L15: 0.0008 | M15: 14.52668 | N15: 0.85439 | O15: 0.00055 | P15: 14.52638 | Q15: 0.85644 | R15: 0.0008 | S15: 14.52668 | T15: 15.38612 | U15: 15.38612 | V15: 15.23024 | W15: 0.00025 | X15: 0.15593 | Y15: 0.70101 | Z15: 0.54478 | AA15: 2.87628 | AB15: 8.77782 | AC15: 0.85409 | AD15: 0.15553 | AE15: 0.38825 | AF15: 14.45394 | AG15: 0.0004 | AH15: 1.63419 | AI15: 5.59643 | AJ15: 1.94385 | AK15: 5.59523 | AL15: 11.57376 | AM15: 1.39772 | AN15: 0.15558 | AO15: 0.54353 | AP15: 18.95786 | AQ15: 47.39855 | AR15: 28.44069 | AS15: 1 | AT15: 1.729632197e-05 | AU15: 0.01078806194 | AV15: 0.04849957866 | AW15: 0.03769076114 | AX15: 0.1989962598 | AY15: 0.6072960037 | AZ15: 0.05909046253 | BA15: 0.01076038783 | BB15: 0.02686118802 | BC15: 1.406435639e-05 | BD15: 0.0574595764 | BE15: 0.196775465 | BF15: 0.0683474979 | BG15: 0.1967332719 | BH15: 0.4069437134 | BI15: 0.04914508052 | BJ15: 0.005470331416 | BK15: 0.01911099907 | BL15: =SUMIFS(UdS_data!L:L,UdS_data!N:N,1,UdS_data!E:E,SEE_agrg!D15) -> 434077.7307 | BM15: 107.2614498 | BN15: 0.9746264815 | BO15: 0.999857014 | BP15: 0.9996880305 | BQ15: 1 | BR15: 0.9898687908 | BS15: 0.6562956095 | BT15: 0.839462482 | BU15: 5 | BV15: 5 | BW15: 5 | BX15: 5 | BY15: 5 | BZ15: 5 | CA15: 0 | CB15: 2 | CC15: 0
A16: OK | B16: TransCarioca | C16: Galeão - Tom Jobim 2 | D16: Galeo - Tom Jobim 2 | E16: 500590.2881 | F16: 60.72049 | G16: 16.89642 | H16: 0.90834 | I16: 0.0336 | J16: 14.79433 | K16: 1.65689 | L16: 0.0504 | M16: 14.79433 | N16: 0.95129 | O16: 0.0084 | P16: 14.69353 | Q16: 1.65689 | R16: 0.0504 | S16: 14.79433 | T16: 16.89642 | U16: 16.89642 | V16: 16.73644 | W16: 0 | X16: 0.21878 | Y16: 1.09371 | Z16: 0.66493 | AA16: 3.14023 | AB16: 9.00947 | AC16: 0.88409 | AD16: 0.15158 | AE16: 0.37895 | AF16: 15.54174 | AG16: 0 | AH16: 1.87719 | AI16: 6.52368 | AJ16: 2.31475 | AK16: 6.24648 | AL16: 11.98991 | AM16: 1.43982 | AN16: 0.16838 | AO16: 0.53053 | AP16: 21.46636 | AQ16: 52.5571 | AR16: 31.09074 | AS16: 1 | AT16: 0 | AU16: 0.0140769309 | AV16: 0.07037242934 | AW16: 0.04278349786 | AX16: 0.2020513791 | AY16: 0.5796950663 | AZ16: 0.05688487904 | BA16: 0.009753090709 | BB16: 0.02438272677 | BC16: 0 | BD16: 0.06037778451 | BE16: 0.2098271061 | BF16: 0.0744514283 | BG16: 0.2009112681 | BH16: 0.3856424775 | BI16: 0.04631025186 | BJ16: 0.005415760448 | BK16: 0.01706392321 | BL16: =SUMIFS(UdS_data!L:L,UdS_data!N:N,1,UdS_data!E:E,SEE_agrg!D16) -> 389483.6817 | BM16: 121.2977787 | BN16: 0.9313375259 | BO16: 0.9766341036 | BP16: 0.9264222835 | BQ16: 1 | BR16: 0.9905317221 | BS16: 0.6887502835 | BT16: 0.8496376741 | BU16: 5 | BV16: 4 | BW16: 5 | BX16: 4 | BY16: 5 | BZ16: 5 | CA16: 0 | CB16: 2 | CC16: 0
A17: OK | B17: TransCarioca | C17: Guaporé | D17: Guapor | E17: 500590.2881 | F17: 9007.33981 | G17: 3017.41479 | H17: 2000.19925 | I17: 605.2547 | J17: 107.44273 | K17: 1997.90171 | L17: 603.9926 | M17: 107.44273 | N17: 1145.55619 | O17: 369.53222 | P17: 60.11566 | Q17: 2000.19925 | R17: 605.2547 | S17: 107.44273 | T17: 3017.41479 | U17: 3012.77986 | V17: 3004.27806 | W17: 21.85116 | X17: 576.63111 | Y17: 875.33992 | Z17: 416.07005 | AA17: 366.37039 | AB17: 263.31911 | AC17: 29.1262 | AD17: 18.87677 | AE17: 5.93575 | AF17: 2573.52046 | AG17: 65.94 | AH17: 1426.92803 | AI17: 1968.69699 | AJ17: 783.09925 | AK17: 590.61538 | AL17: 388.17685 | AM17: 41.04744 | AN17: 25.76915 | AO17: 5.93575 | AP17: 2724.32504 | AQ17: 8020.53388 | AR17: 5296.20884 | AS17: 1 | AT17: 0.008490765991 | AU17: 0.2240631536 | AV17: 0.3401332663 | AW17: 0.1616734961 | AX17: 0.142361561 | AY17: 0.1023186386 | AZ17: 0.01131764851 | BA17: 0.007334999 | BB17: 0.00230647088 | BC17: 0.01245041538 | BD17: 0.2694244266 | BE17: 0.3717181572 | BF17: 0.1478603419 | BG17: 0.1115166335 | BH17: 0.07329334279 | BI17: 0.007750343923 | BJ17: 0.00486558419 | BK17: 0.001120754521 | BL17: =SUMIFS(UdS_data!L:L,UdS_data!N:N,1,UdS_data!E:E,SEE_agrg!D17) -> 500583.251 | BM17: 17993.437 | BN17: 0.899079798 | BO17: 0.8979000994 | BP17: 0.5220376314 | BQ17: 0.9984639401 | BR17: 0.9956463626 | BS17: 0.8740929632 | BT17: 0.8429912156 | BU17: 0 | BV17: 2 | BW17: 2 | BX17: 0 | BY17: 5 | BZ17: 5 | CA17: 3 | CB17: 2 | CC17: 0
A18: OK | B18: TransCarioca | C18: Hospital Sarah | D18: Hospital Sarah | E18: 500590.2866 | F18: 251.46444 | G18: 79.95963 | H18: 46.59039 | I18: 5.6133 | J18: 0.64152 | K18: 23.10978 | L18: 15.42665 | M18: 1.96972 | N18: 21.46242 | O18: 15.08969 | P18: 1.32076 | Q18: 11.10978 | R18: 4.42665 | S18: 0.96972 | T18: 79.95963 | U18: 78.55868 | V18: 31.30928 | W18: 5.53311 | X18: 18.78467 | Y18: 27.61423 | Z18: 7.25752 | AA18: 3.87147 | AB18: 1.21215 | AC18: 0.47424 | AD18: 0.44928 | AE18: 0.3744 | AF18: 65.57107 | AG18: 10.15414 | AH18: 34.86756 | AI18: 54.42814 | AJ18: 15.01052 | AK18: 6.59131 | AL18: 1.76127 | AM18: 0.72384 | AN18: 0.4992 | AO18: 0.44928 | AP18: 67.88373 | AQ18: 192.36899 | AR18: 124.48526 | AS18: 1 | AT18: 0.08438340262 | AU18: 0.2864780154 | AV18: 0.4211343509 | AW18: 0.1106817382 | AX18: 0.05904234901 | AY18: 0.0184860488 | AZ18: 0.007232457851 | BA18: 0.006851802174 | BB18: 0.005709835145 | BC18: 0.08156901468 | BD18: 0.2800938842 | BE18: 0.43722558 | BF18: 0.1205807017 | BG18: 0.05294851776 | BH18: 0.01414842207 | BI18: 0.005814664323 | BJ18: 0.004010113326 | BK18: 0.003609101993 | BL18: =SUMIFS(UdS_data!L:L,UdS_data!N:N,1,UdS_data!E:E,SEE_agrg!D18) -> 392433.0207 | BM18: 502.3358358 | BN18: 0.660898631 | BO18: 0.5065825092 | BP18: 0.4736498906 | BQ18: 0.9824792836 | BR18: 0.3915635928 | BS18: 0.8069013097 | BT18: 0.7943865279 | BU18: 5 | BV18: 0 | BW18: 0 | BX18: 0 | BY18: 5 | BZ18: 0 | CA18: 2 | CB18: 1 | CC18: 0
A19: OK | B19: TransCarioca | C19: Ibiapina | D19: Ibiapina | E19: 500590.2861 | F19: 5525.27553 | G19: 1925.41977 | H19: 1366.47715 | I19: 483.88412 | J19: 53.11884 | K19: 1375.86631 | L19: 483.88412 | M19: 54.6837 | N19: 1277.32875 | O19: 449.75384 | P19: 50.3588 | Q19: 1375.86631 | R19: 483.88412 | S19: 54.6837 | T19: 1925.41977 | U19: 1924.62357 | V19: 1918.39987 | W19: 11.95862 | X19: 255.21241 | Y19: 430.09225 | Z19: 318.20828 | AA19: 357.50496 | AB19: 306.30385 | AC19: 38.92169 | AD19: 31.50732 | AE19: 5.49654 | AF19: 1755.20592 | AG19: 37.82593 | AH19: 679.29763 | AI19: 1055.71773 | AJ19: 594.36684 | AK19: 595.15276 | AL19: 457.15096 | AM19: 60.34897 | AN19: 44.13775 | AO19: 7.19046 | AP19: 1474.44612 | AQ19: 5005.63515 | AR19: 3531.18903 | AS19: 1 | AT19: 0.006813229071 | AU19: 0.145403116 | AV19: 0.245038058 | AW19: 0.1812939874 | AX19: 0.2036826312 | AY19: 0.1745116322 | AZ19: 0.02217499927 | BA19: 0.01795078266 | BB19: 0.003131564187 | BC19: 0.01071195274 | BD19: 0.1923707919 | BE19: 0.2989694749 | BF19: 0.1683191794 | BG19: 0.1685417447 | BH19: 0.1294609142 | BI19: 0.01709026888 | BJ19: 0.01249940165 | BK19: 0.002036271618 | BL19: =SUMIFS(UdS_data!L:L,UdS_data!N:N,1,UdS_data!E:E,SEE_agrg!D19) -> 400732.2617 | BM19: 11037.52047 | BN19: 0.9886052588 | BO19: 0.9942944182 | BP19: 0.9231448735 | BQ19: 0.9995864798 | BR19: 0.9963540937 | BS19: 0.9147776199 | BT19: 0.8994889493 | BU19: 0 | BV19: 5 | BW19: 5 | BX19: 4 | BY19: 5 | BZ19: 5 | CA19: 4 | CB19: 3 | CC19: 0
A20: OK | B20: TransCarioca | C20: IPASE | D20: IPASE | E20: 500590.2901 | F20: 7149.31164 | G20: 2308.8861 | H20: 954.8019 | I20: 229.27553 | J20: 8.84698 | K20: 963.5015 | L20: 230.44663 | M20: 8.84698 | N20: 940.09692 | O20: 222.27408 | P20: 8.79962 | Q20: 959.8209 | R20: 230.44663 | S20: 8.84698 | T20: 2308.8861 | U20: 2302.79227 | V20: 2257.5405 | W20: 27.77644 | X20: 473.74356 | Y20: 732.21955 | Z20: 310.17672 | AA20: 242.46923 | AB20: 172.43652 | AC20: 20.10748 | AD20: 8.98712 | AE20: 1.34313 | AF20: 1989.25975 | AG20: 103.59986 | AH20: 1153.54667 | AI20: 1562.25083 | AJ20: 528.25914 | AK20: 400.3445 | AL20: 247.32042 | AM20: 25.77006 | AN20: 13.86153 | AO20: 2.42814 | AP20: 2097.16745 | AQ20: 6134.5486 | AR20: 4037.38115 | AS20: 1 | AT20: 0.01396320415 | AU20: 0.2381506789 | AV20: 0.3680864452 | AW20: 0.1559257005 | AX20: 0.1218891751 | AY20: 0.08668376264 | AZ20: 0.01010802134 | BA20: 0.004517821265 | BB20: 0.0006751908593 | BC20: 0.0256601634 | BD20: 0.2857165641 | BE20: 0.3869465805 | BF20: 0.1308420286 | BG20: 0.09915945142 | BH20: 0.06125763479 | BI20: 0.006382865289 | BJ20: 0.003433297349 | BK20: 0.0006014146076 | BL20: =SUMIFS(UdS_data!L:L,UdS_data!N:N,1,UdS_data!E:E,SEE_agrg!D20) -> 387409.3848 | BM20: 14281.76252 | BN20: 0.5166666342 | BO20: 0.520941726 | BP20: 0.5072448658 | BQ20: 0.9973607057 | BR20: 0.9777617441 | BS20: 0.8558940864 | BT20: 0.8293751141 | BU20: 0 | BV20: 0 | BW20: 0 | BX20: 0 | BY20: 5 | BZ20: 5 | CA20: 3 | CB20: 2 | CC20: 0
A21: OK | B21: TransCarioca | C21: Lourenço Jorge | D21: Loureno Jorge | E21: 500590.2876 | F21: 46.25128 | G21: 14.65914 | H21: 8.32136 | I21: 1.30626 | J21: 5.03152 | K21: 8.32136 | L21: 1.30626 | M21: 5.03152 | N21: 8.32136 | O21: 1.30626 | P21: 5.03152 | Q21: 8.32136 | R21: 1.30626 | S21: 5.03152 | T21: 14.65914 | U21: 14.65914 | V21: 14.61076 | W21: 0 | X21: 0.4838 | Y21: 0.2419 | Z21: 0.14514 | AA21: 0.38704 | AB21: 0.91922 | AC21: 1.01598 | AD21: 4.1123 | AE21: 3.24146 | AF21: 10.54684 | AG21: 0.04838 | AH21: 0.9676 | AI21: 1.64492 | AJ21: 0.87084 | AK21: 2.1771 | AL21: 4.25744 | AM21: 1.98358 | AN21: 5.99912 | AO21: 4.20906 | AP21: 18.48116 | AQ21: 40.6392 | AR21: 22.15804 | AS21: 1 | AT21: 0 | AU21: 0.04587155963 | AV21: 0.02293577982 | AW21: 0.01376146789 | AX21: 0.03669724771 | AY21: 0.0871559633 | AZ21: 0.09633027523 | BA21: 0.3899082569 | BB21: 0.3073394495 | BC21: 0.002183406114 | BD21: 0.04366812227 | BE21: 0.07423580786 | BF21: 0.03930131004 | BG21: 0.09825327511 | BH21: 0.192139738 | BI21: 0.08951965066 | BJ21: 0.2707423581 | BK21: 0.1899563319 | BL21: =SUMIFS(UdS_data!L:L,UdS_data!N:N,1,UdS_data!E:E,SEE_agrg!D21) -> 473084.8653 | BM21: 92.39348255 | BN21: 1 | BO21: 1 | BP21: 1 | BQ21: 1 | BR21: 0.99669967 | BS21: 0.8240310159 | BT21: 0.9304456437 | BU21: 5 | BV21: 5 | BW21: 5 | BX21: 5 | BY21: 5 | BZ21: 5 | CA21: 2 | CB21: 4 | CC21: 0
A22: OK | B22: TransCarioca | C22: Madureira | D22: Madureira | E22: 573948.4028 | F22: 5436.17485 | G22: 1880.31727 | H22: 1185.59006 | I22: 491.87326 | J22: 44.14962 | K22: 1240.1672 | L22: 506.59163 | M22: 46.86802 | N22: 793.06036 | O22: 349.97886 | P22: 29.63228 | Q22: 1241.90294 | R22: 508.41871 | S22: 46.86802 | T22: 1880.31727 | U22: 1876.51718 | V22: 1754.81146 | W22: 11.07631 | X22: 177.36483 | Y22: 358.14353 | Z22: 265.14892 | AA22: 400.4219 | AB22: 389.24017 | AC22: 75.62243 | AD22: 22.71803 | AE22: 14.23042 | AF22: 1713.96654 | AG22: 36.0813 | AH22: 522.11552 | AI22: 931.02103 | AJ22: 511.20307 | AK22: 664.89263 | AL22: 557.29357 | AM22: 96.74759 | AN22: 28.58055 | AO22: 17.40712 | AP22: 1598.43854 | AQ22: 4963.78092 | AR22: 3365.34238 | AS22: 1 | AT22: 0.006462384032 | AU22: 0.1034820843 | AV22: 0.2089559636 | AW22: 0.154699006 | AX22: 0.2336229388 | AY22: 0.2270990483 | AZ22: 0.04412129889 | BA22: 0.01325465198 | BB22: 0.008302624157 | BC22: 0.01072143512 | BD22: 0.1551448444 | BE22: 0.2766497209 | BF22: 0.1519022472 | BG22: 0.1975705753 | BH22: 0.1655978819 | BI22: 0.0287482161 | BJ22: 0.008492612868 | BK22: 0.005172466286 | BL22: =SUMIFS(UdS_data!L:L,UdS_data!N:N,1,UdS_data!E:E,SEE_agrg!D22) -> 544620.1593 | BM22: 9471.539294 | BN22: 0.9155970471 | BO22: 0.953895855 | BP22: 0.6236561876 | BQ22: 0.9979790166 | BR22: 0.9332528547 | BS22: 0.9149741494 | BT22: 0.9099265925 | BU22: 1 | BV22: 4 | BW22: 5 | BX22: 0 | BY22: 5 | BZ22: 4 | CA22: 4 | CB22: 4 | CC22: 1
A23: OK | B23: TransCarioca | C23: Marambaia | D23: Marambaia | E23: 500590.2871 | F23: 7649.32554 | G23: 2666.25396 | H23: 1821.44121 | I23: 599.13753 | J23: 160.96176 | K23: 1840.44121 | L23: 605.13753 | M23: 161.96176 | N23: 1782.59009 | O23: 572.19383 | P23: 159.00215 | Q23: 1833.44121 | R23: 604.13753 | S23: 160.96176 | T23: 2666.25396 | U23: 2664.53289 | V23: 2655.67018 | W23: 13.94013 | X23: 352.36437 | Y23: 671.45716 | Z23: 448.12554 | AA23: 478.55967 | AB23: 378.96826 | AC23: 70.07664 | AD23: 22.89272 | AE23: 9.59505 | AF23: 2445.97954 | AG23: 47.33957 | AH23: 866.85159 | AI23: 1573.13839 | AJ23: 814.19606 | AK23: 770.24549 | AL23: 555.7941 | AM23: 84.82806 | AN23: 30.03949 | AO23: 11.25513 | AP23: 2129.66486 | AQ23: 6883.35274 | AR23: 4753.68788 | AS23: 1 | AT23: 0.005699201392 | AU23: 0.1440585926 | AV23: 0.2745146266 | AW23: 0.1832090304 | AX23: 0.1956515425 | AY23: 0.1549351717 | AZ23: 0.02864972452 | BA23: 0.009359326039 | BB23: 0.003922784244 | BC23: 0.009958493531 | BD23: 0.1823534931 | BE23: 0.3309300967 | BF23: 0.1712767183 | BG23: 0.162031145 | BH23: 0.1169185092 | BI23: 0.01784468441 | BJ23: 0.00631919696 | BK23: 0.002367662809 | BL23: =SUMIFS(UdS_data!L:L,UdS_data!N:N,1,UdS_data!E:E,SEE_agrg!D23) -> 500590.2881 | BM23: 15280.61118 | BN23: 0.9682275352 | BO23: 0.9779790444 | BP23: 0.9428156911 | BQ23: 0.9993544988 | BR23: 0.9960304682 | BS23: 0.9079679098 | BT23: 0.8859482868 | BU23: 0 | BV23: 5 | BW23: 5 | BX23: 4 | BY23: 5 | BZ23: 5 | CA23: 4 | CB23: 3 | CC23: 0
A24: OK | B24: TransCarioca | C24: Maré | D24: Mar | E24: 428499.166 | F24: 11345.40109 | G24: 3582.66583 | H24: 50.55888 | I24: 40.68317 | J24: 2.23127 | K24: 67.73844 | L24: 49.71495 | M24: 2.32641 | N24: 19.65127 | O24: 7.60509 | P24: 0.84632 | Q24: 47.4786 | R24: 36.97635 | S24: 2.24289 | T24: 3582.67714 | U24: 3579.5501 | V24: 3572.6237 | W24: 20.3501 | X24: 1084.62942 | Y24: 1344.6135 | Z24: 459.01138 | AA24: 195.10101 | AB24: 54.95151 | AC24: 1.20241 | AD24: 3.6988 | AE24: 1.09481 | AF24: 3164.65294 | AG24: 111.74534 | AH24: 2365.44061 | AI24: 2424.90082 | AJ24: 676.65977 | AK24: 261.43739 | AL24: 73.28398 | AM24: 1.41764 | AN24: 3.81922 | AO24: 1.09481 | AP24: 3688.96732 | AQ24: 9608.7669 | AR24: 5919.79958 | AS24: 1 | AT24: 0.006430436571 | AU24: 0.342732502 | AV24: 0.4248849796 | AW24: 0.1450431971 | AX24: 0.06165004937 | AY24: 0.01736415052 | AZ24: 0.0003799500365 | BA24: 0.001168785352 | BB24: 0.0003459494677 | BC24: 0.01887654109 | BD24: 0.3995811983 | BE24: 0.4096254928 | BF24: 0.1143045066 | BG24: 0.04416321642 | BH24: 0.01237946978 | BI24: 0.0002394743236 | BJ24: 0.0006451603552 | BK24: 0.0001849403827 | BL24: =SUMIFS(UdS_data!L:L,UdS_data!N:N,1,UdS_data!E:E,SEE_agrg!D24) -> 411260.3862 | BM24: 26477.06691 | BN24: 0.0260904378 | BO24: 0.03343314886 | BP24: 0.007844069565 | BQ24: 0.9991271778 | BR24: 0.997193875 | BS24: 0.7614274885 | BT24: 0.7391428075 | BU24: 0 | BV24: 0 | BW24: 0 | BX24: 0 | BY24: 5 | BZ24: 5 | CA24: 1 | CB24: 0 | CC24: 0
A25: OK | B25: TransCarioca | C25: Mercadão | D25: Mercado | E25: 500590.2895 | F25: 5705.84604 | G25: 1931.45825 | H25: 979.40474 | I25: 544.55617 | J25: 85.88652 | K25: 951.7765 | L25: 523.89649 | M25: 83.44324 | N25: 607.48125 | O25: 326.4573 | P25: 35.29549 | Q25: 1017.81842 | R25: 554.58286 | S25: 86.99996 | T25: 1931.45825 | U25: 1785.86534 | V25: 1583.41161 | W25: 12.07994 | X25: 363.70143 | Y25: 513.97751 | Z25: 313.56094 | AA25: 298.23174 | AB25: 200.28095 | AC25: 18.09887 | AD25: 10.81524 | AE25: 5.43223 | AF25: 1736.17885 | AG25: 44.68319 | AH25: 883.33292 | AI25: 1131.39984 | AJ25: 536.58555 | AK25: 495.02495 | AL25: 292.40937 | AM25: 24.96235 | AN25: 14.5517 | AO25: 7.54854 | AP25: 1659.49873 | AQ25: 5089.99714 | AR25: 3430.49841 | AS25: 1 | AT25: 0.006957773964 | AU25: 0.2094838501 | AV25: 0.296039495 | AW25: 0.1806040547 | AX25: 0.17177478 | AY25: 0.1153573262 | AZ25: 0.01042454238 | BA25: 0.006229335186 | BB25: 0.0031288424 | BC25: 0.01302527641 | BD25: 0.2574940473 | BE25: 0.3298062569 | BF25: 0.1564162072 | BG25: 0.1443011746 | BH25: 0.08523815931 | BI25: 0.007276595706 | BJ25: 0.004241861753 | BK25: 0.002200420784 | BL25: =SUMIFS(UdS_data!L:L,UdS_data!N:N,1,UdS_data!E:E,SEE_agrg!D25) -> 491568.7266 | BM25: 11398.23556 | BN25: 0.8334880808 | BO25: 0.8072223306 | BP25: 0.501814647 | BQ25: 0.9246202138 | BR25: 0.8198011062 | BS25: 0.8919447138 | BT25: 0.8686404044 | BU25: 0 | BV25: 2 | BW25: 2 | BX25: 0 | BY25: 4 | BZ25: 2 | CA25: 3 | CB25: 3 | CC25: 1
A26: OK | B26: TransCarioca | C26: Merck-Santa Efigênia | D26: Merck-Santa Efigenia | E26: 594864.5752 | F26: 6966.74053 | G26: 2524.74391 | H26: 1917.92375 | I26: 513.64655 | J26: 76.81689 | K26: 1919.65128 | L26: 514.54861 | M26: 76.89348 | N26: 1916.0239 | O26: 512.57055 | P26: 75.81015 | Q26: 1919.63426 | R26: 514.54861 | S26: 76.89348 | T26: 2524.74391 | U26: 2521.57059 | V26: 2472.66318 | W26: 7.05488 | X26: 228.17611 | Y26: 595.85277 | Z26: 416.10205 | AA26: 501.91384 | AB26: 381.74235 | AC26: 60.83945 | AD26: 17.9133 | AE26: 7.00253 | AF26: 2216.59728 | AG26: 25.7996 | AH26: 644.96146 | AI26: 1396.66203 | AJ26: 796.83871 | AK26: 778.07041 | AL26: 537.80845 | AM26: 78.0157 | AN26: 22.24956 | AO26: 7.77669 | AP26: 2080.0803 | AQ26: 6368.26291 | AR26: 4288.18261 | AS26: 1 | AT26: 0.003182752259 | AU26: 0.1029398132 | AV26: 0.2688141754 | AW26: 0.1877210866 | AX26: 0.2264343841 | AY26: 0.1722199849 | AZ26: 0.02744722758 | BA26: 0.008081440937 | BB26: 0.003159134978 | BC26: 0.006016441543 | BD26: 0.1504043831 | BE26: 0.3257002225 | BF26: 0.1858220096 | BG26: 0.1814452603 | BH26: 0.1254164057 | BI26: 0.01819318511 | BJ26: 0.00518857568 | BK26: 0.001813516519 | BL26: =SUMIFS(UdS_data!L:L,UdS_data!N:N,1,UdS_data!E:E,SEE_agrg!D26) -> 594864.5766 | BM26: 11711.4732 | BN26: 0.993521434 | BO26: 0.9945932972 | BP26: 0.9919440107 | BQ26: 0.9987431121 | BR26: 0.9793718762 | BS26: 0.9001486171 | BT26: 0.8861838867 | BU26: 0 | BV26: 5 | BW26: 5 | BX26: 5 | BY26: 5 | BZ26: 5 | CA26: 4 | CB26: 3 | CC26: 0
A27: OK | B27: TransCarioca | C27: Olaria - Cacique de Ramos | D27: Olaria - Cacique de Ramos | E27: 500590.2896 | F27: 8345.97673 | G27: 3072.88548 | H27: 1937.7931 | I27: 1024.79885 | J27: 91.17437 | K27: 1932.90159 | L27: 1016.15625 | M27: 89.17437 | N27: 1641.88228 | O27: 874.25753 | P27: 78.89928 | Q27: 1946.93769 | R27: 1026.15625 | S27: 91.17437 | T27: 3072.88548 | U27: 3070.34013 | V27: 3071.58602 | W27: 10.94952 | X27: 346.0629 | Y27: 731.95958 | Z27: 498.03803 | AA27: 599.57025 | AB27: 454.11688 | AC27: 73.72234 | AD27: 33.16921 | AE27: 14.26361 | AF27: 2761.85232 | AG27: 27.56683 | AH27: 959.06202 | AI27: 1759.75554 | AJ27: 880.38878 | AK27: 967.86523 | AL27: 689.82492 | AM27: 99.09309 | AN27: 51.21056 | AO27: 18.48604 | AP27: 2214.93455 | AQ27: 7668.18756 | AR27: 5453.25301 | AS27: 1 | AT27: 0.003964556657 | AU27: 0.1253010154 | AV27: 0.2650248801 | AW27: 0.1803275383 | AX27: 0.2170899022 | AY27: 0.164424751 | AZ27: 0.02669307822 | BA27: 0.01200976959 | BB27: 0.005164508579 | BC27: 0.005055116634 | BD27: 0.175869709 | BE27: 0.3226983118 | BF27: 0.1614428633 | BG27: 0.1774840133 | BH27: 0.1264978754 | BI27: 0.01817137217 | BJ27: 0.009390827806 | BK27: 0.003389910566 | BL27: =SUMIFS(UdS_data!L:L,UdS_data!N:N,1,UdS_data!E:E,SEE_agrg!D27) -> 500590.2881 | BM27: 16672.27053 | BN27: 0.9937781085 | BO27: 0.9887228892 | BP27: 0.8444958678 | BQ27: 0.9991716743 | BR27: 0.9995771206 | BS27: 0.9072908755 | BT27: 0.8897783933 | BU27: 0 | BV27: 5 | BW27: 5 | BX27: 2 | BY27: 5 | BZ27: 5 | CA27: 4 | CB27: 3 | CC27: 0
A28: OK | B28: TransCarioca | C28: Otaviano | D28: Otaviano | E28: 500590.2886 | F28: 9256.57395 | G28: 3124.72094 | H28: 1447.87488 | I28: 658.38959 | J28: 58.18231 | K28: 1433.03646 | L28: 646.52837 | M28: 57.38433 | N28: 1190.28483 | O28: 546.79185 | P28: 42.14947 | Q28: 1457.78078 | R28: 659.43845 | S28: 58.99809 | T28: 3124.72094 | U28: 3090.97351 | V28: 3038.45253 | W28: 27.32005 | X28: 675.97918 | Y28: 953.23651 | Z28: 435.72727 | AA28: 366.93093 | AB28: 224.69292 | AC28: 19.99354 | AD28: 8.29071 | AE28: 3.8285 | AF28: 2715.99961 | AG28: 107.20347 | AH28: 1495.53277 | AI28: 2051.26568 | AJ28: 751.4323 | AK28: 605.09306 | AL28: 317.6165 | AM28: 25.3032 | AN28: 11.18996 | AO28: 6.87138 | AP28: 2781.37636 | AQ28: 8152.88468 | AR28: 5371.50832 | AS28: 1 | AT28: 0.01005893002 | AU28: 0.2488878045 | AV28: 0.3509707831 | AW28: 0.1604297984 | AX28: 0.1350997727 | AY28: 0.08272936387 | AZ28: 0.00736139281 | BA28: 0.003052544621 | BB28: 0.001409609923 | BC28: 0.01995779651 | BD28: 0.2784195203 | BE28: 0.3818788984 | BF28: 0.1398922342 | BG28: 0.1126486313 | BH28: 0.05912985349 | BI28: 0.00471063219 | BJ28: 0.002083206305 | BK28: 0.001279227284 | BL28: =SUMIFS(UdS_data!L:L,UdS_data!N:N,1,UdS_data!E:E,SEE_agrg!D28) -> 500590.2849 | BM28: 18491.31747 | BN28: 0.6926848258 | BO28: 0.6838848016 | BP28: 0.5694032153 | BQ28: 0.989199858 | BR28: 0.9723916434 | BS28: 0.8593581111 | BT28: 0.8330272952 | BU28: 0 | BV28: 0 | BW28: 0 | BX28: 0 | BY28: 5 | BZ28: 5 | CA28: 3 | CB28: 2 | CC28: 0
A29: OK | B29: TransCarioca | C29: Pastor José Santos | D29: Pastor Jos Santos | E29: 500590.2891 | F29: 5980.10112 | G29: 2075.54808 | H29: 1364.8341 | I29: 636.86713 | J29: 59.40546 | K29: 1363.58914 | L29: 635.62217 | M29: 59.40546 | N29: 1221.69772 | O29: 541.60018 | P29: 49.82726 | Q29: 1364.8341 | R29: 636.86713 | S29: 59.40546 | T29: 2075.54808 | U29: 2072.85442 | V29: 2040.83502 | W29: 14.86044 | X29: 253.36991 | Y29: 481.76924 | Z29: 352.39019 | AA29: 417.89722 | AB29: 304.57215 | AC29: 48.27189 | AD29: 16.69455 | AE29: 8.9609 | AF29: 1898.78649 | AG29: 29.92427 | AH29: 710.04708 | AI29: 1176.92175 | AJ29: 624.7756 | AK29: 639.72552 | AL29: 430.99282 | AM29: 65.627 | AN29: 22.9615 | AO29: 10.35648 | AP29: 1683.52925 | AQ29: 5394.86127 | AR29: 3711.33202 | AS29: 1 | AT29: 0.007826282775 | AU29: 0.1334378095 | AV29: 0.2537248093 | AW29: 0.1855870536 | AX29: 0.2200864722 | AY29: 0.1604035797 | AZ29: 0.02542249497 | BA29: 0.008792220762 | BB29: 0.004719277311 | BC29: 0.00806294609 | BD29: 0.191318663 | BE29: 0.3171157266 | BF29: 0.1683426858 | BG29: 0.1723708675 | BH29: 0.1161288771 | BI29: 0.01768286956 | BJ29: 0.006186862258 | BK29: 0.002790502155 | BL29: =SUMIFS(UdS_data!L:L,UdS_data!N:N,1,UdS_data!E:E,SEE_agrg!D29) -> 500746.4007 | BM29: 11946.09894 | BN29: 0.9930421318 | BO29: 0.9918424872 | BP29: 0.8735645189 | BQ29: 0.9987021934 | BR29: 0.9832752321 | BS29: 0.9094511536 | BT29: 0.8897334009 | BU29: 0 | BV29: 5 | BW29: 5 | BX29: 2 | BY29: 5 | BZ29: 5 | CA29: 4 | CB29: 3 | CC29: 0
A30: OK | B30: TransCarioca | C30: Pedro Correia | D30: Pedro Correia | E30: 500590.2886 | F30: 2694.28424 | G30: 1000.30164 | H30: 657.53689 | I30: 239.16879 | J30: 15.35529 | K30: 674.88487 | L30: 243.64554 | M30: 15.49535 | N30: 659.33821 | O30: 230.4799 | P30: 15.21523 | Q30: 668.02193 | R30: 241.54464 | S30: 15.35529 | T30: 1000.30164 | U30: 998.38248 | V30: 757.4474 | W30: 5.29314 | X30: 56.68369 | Y30: 76.57395 | Z30: 54.52917 | AA30: 87.67293 | AB30: 297.59049 | AC30: 130.17142 | AD30: 125.01529 | AE30: 73.41687 | AF30: 906.94695 | AG30: 11.72791 | AH30: 151.33037 | AI30: 221.2319 | AJ30: 148.99995 | AK30: 256.01373 | AL30: 524.90463 | AM30: 181.66429 | AN30: 158.20566 | AO30: 89.59451 | AP30: 645.22318 | AQ30: 2388.89613 | AR30: 1743.67295 | AS30: 1 | AT30: 0.005836217874 | AU30: 0.0624994549 | AV30: 0.084430462 | AW30: 0.06012388045 | AX30: 0.09666820094 | AY30: 0.3281233704 | AZ30: 0.1435270497 | BA30: 0.1378418991 | BB30: 0.08094946457 | BC30: 0.006725980351 | BD30: 0.08678827644 | BE30: 0.1268769467 | BF30: 0.0854517758 | BG30: 0.1468243973 | BH30: 0.3010338779 | BI30: 0.1041848415 | BJ30: 0.0907312693 | BK30: 0.05138263457 | BL30: =SUMIFS(UdS_data!L:L,UdS_data!N:N,1,UdS_data!E:E,SEE_agrg!D30) -> 499777.7987 | BM30: 5382.214361 | BN30: 0.9117859389 | BO30: 0.9337441054 | BP30: 0.9047604281 | BQ30: 0.9980814187 | BR30: 0.7572189925 | BS30: 0.9249226499 | BT30: 0.9395068182 | BU30: 5 | BV30: 4 | BW30: 4 | BX30: 4 | BY30: 5 | BZ30: 1 | CA30: 4 | CB30: 4 | CC30: 1
A31: OK | B31: TransCarioca | C31: Pedro Taques | D31: Pedro Taques | E31: 500590.2876 | F31: 7969.9964 | G31: 2759.0082 | H31: 1942.19871 | I31: 741.86703 | J31: 57.59094 | K31: 1937.19871 | L31: 741.86703 | M31: 57.59094 | N31: 1735.25209 | O31: 651.31403 | P31: 54.04512 | Q31: 1942.19871 | R31: 741.86703 | S31: 57.59094 | T31: 2759.0082 | U31: 2758.28184 | V31: 2752.37801 | W31: 14.94287 | X31: 321.41911 | Y31: 640.94339 | Z31: 437.01386 | AA31: 526.94802 | AB31: 426.94305 | AC31: 71.90162 | AD31: 37.94383 | AE31: 10.98874 | AF31: 2489.04449 | AG31: 42.4526 | AH31: 890.44143 | AI31: 1463.22194 | AJ31: 806.05029 | AK31: 834.77087 | AL31: 626.80655 | AM31: 102.86437 | AN31: 50.66989 | AO31: 13.67274 | AP31: 2415.68592 | AQ31: 7246.6366 | AR31: 4830.95068 | AS31: 1 | AT31: 0.006003456371 | AU31: 0.1291335335 | AV31: 0.2575057989 | AW31: 0.1755749492 | AX31: 0.211706951 | AY31: 0.1715288946 | AZ31: 0.02888723777 | BA31: 0.01524433579 | BB31: 0.004414842742 | BC31: 0.008787628525 | BD31: 0.1843201243 | BE31: 0.3028848848 | BF31: 0.166851277 | BG31: 0.1727963967 | BH31: 0.1297480748 | BI31: 0.02129278 | BJ31: 0.010488596 | BK31: 0.002830237961 | BL31: =SUMIFS(UdS_data!L:L,UdS_data!N:N,1,UdS_data!E:E,SEE_agrg!D31) -> 497449.2702 | BM31: 15921.19663 | BN31: 0.9937109574 | BO31: 0.991898712 | BP31: 0.8845973129 | BQ31: 0.9997367315 | BR31: 0.9975968937 | BS31: 0.9121773846 | BT31: 0.8989939196 | BU31: 0 | BV31: 5 | BW31: 5 | BX31: 2 | BY31: 5 | BZ31: 5 | CA31: 4 | CB31: 3 | CC31: 0
A32: OK | B32: TransCarioca | C32: Penha | D32: Penha | E32: 561578.0796 | F32: 7447.94378 | G32: 2692.45032 | H32: 1794.06831 | I32: 709.71043 | J32: 59.18498 | K32: 1798.8693 | L32: 709.71043 | M32: 60.0395 | N32: 1699.84172 | O32: 651.09808 | P32: 55.60597 | Q32: 1799.19543 | R32: 709.71043 | S32: 60.0395 | T32: 2692.45032 | U32: 2691.88188 | V32: 2640.93289 | W32: 19.1373 | X32: 276.00327 | Y32: 514.26701 | Z32: 461.14288 | AA32: 555.75159 | AB32: 507.71528 | AC32: 88.54652 | AD32: 35.42544 | AE32: 9.96932 | AF32: 2467.95861 | AG32: 50.80167 | AH32: 788.9255 | AI32: 1341.08768 | AJ32: 837.66156 | AK32: 908.86618 | AL32: 719.01522 | AM32: 113.4254 | AN32: 41.68954 | AO32: 12.55036 | AP32: 1932.63559 | AQ32: 6746.6587 | AR32: 4814.02311 | AS32: 1 | AT32: 0.007754303465 | AU32: 0.111834643 | AV32: 0.2083774857 | AW32: 0.1868519505 | AX32: 0.2251867547 | AY32: 0.2057227694 | AZ32: 0.03587844611 | BA32: 0.01435414673 | BB32: 0.004039500484 | BC32: 0.01055285129 | BD32: 0.1638807048 | BE32: 0.2785794022 | BF32: 0.1740044742 | BG32: 0.1887955582 | BH32: 0.1493584895 | BI32: 0.02356145731 | BJ32: 0.008660020745 | BK32: 0.002607041909 | BL32: =SUMIFS(UdS_data!L:L,UdS_data!N:N,1,UdS_data!E:E,SEE_agrg!D32) -> 426353.1331 | BM32: 13262.52582 | BN32: 0.9519075249 | BO32: 0.9540080316 | BP32: 0.8938125068 | BQ32: 0.9997888763 | BR32: 0.9808659682 | BS32: 0.9163771888 | BT32: 0.9073789375 | BU32: 0 | BV32: 5 | BW32: 5 | BX32: 2 | BY32: 5 | BZ32: 5 | CA32: 4 | CB32: 4 | CC32: 1
A33: OK | B33: TransCarioca | C33: Pinto Teles | D33: Pinto Teles | E33: 500590.2871 | F33: 6085.19438 | G33: 2077.19902 | H33: 1176.81502 | I33: 396.04601 | J33: 72.91929 | K33: 1176.81502 | L33: 396.04601 | M33: 72.91929 | N33: 1011.25452 | O33: 327.23183 | P33: 63.82832 | Q33: 1151.37533 | R33: 393.88093 | S33: 72.37802 | T33: 2077.19902 | U33: 2073.2488 | V33: 1904.38873 | W33: 20.87104 | X33: 332.65269 | Y33: 473.10301 | Z33: 276.08162 | AA33: 353.65007 | AB33: 346.6731 | AC33: 66.3274 | AD33: 28.12913 | AE33: 13.34832 | AF33: 1910.83638 | AG33: 64.16336 | AH33: 815.26775 | AI33: 1031.28354 | AJ33: 526.42268 | AK33: 605.01069 | AL33: 503.09981 | AM33: 88.18724 | AN33: 39.73682 | AO33: 18.12771 | AP33: 1615.52585 | AQ33: 5306.82545 | AR33: 3691.2996 | AS33: 1 | AT33: 0.01092246318 | AU33: 0.17408748 | AV33: 0.2475894927 | AW33: 0.1444820828 | AX33: 0.1850760608 | AY33: 0.1814247958 | AZ33: 0.03471118757 | BA33: 0.014720847 | BB33: 0.006985590258 | BC33: 0.01738232248 | BD33: 0.2208619831 | BE33: 0.2793822371 | BF33: 0.1426117457 | BG33: 0.1639018112 | BH33: 0.13629341 | BI33: 0.02389056689 | BJ33: 0.01076499453 | BK33: 0.004910928931 | BL33: =SUMIFS(UdS_data!L:L,UdS_data!N:N,1,UdS_data!E:E,SEE_agrg!D33) -> 470449.0468 | BM33: 12156.03766 | BN33: 0.7923074795 | BO33: 0.7923074795 | BP33: 0.6750988502 | BQ33: 0.9980982949 | BR33: 0.9168060988 | BS33: 0.9211051652 | BT33: 0.9071716905 | BU33: 0 | BV33: 1 | BW33: 1 | BX33: 0 | BY33: 5 | BZ33: 4 | CA33: 4 | CB33: 4 | CC33: 1
A34: OK | B34: TransCarioca | C34: Praça do Bandolim | D34: Praa do Bandolim | E34: 500590.2871 | F34: 2120.56127 | G34: 706.52965 | H34: 454.03428 | I34: 199.87487 | J34: 48.05173 | K34: 451.73174 | L34: 199.47589 | M34: 48.12038 | N34: 449.84955 | O34: 197.74404 | P34: 47.83449 | Q34: 427.99999 | R34: 188.21331 | S34: 46.12038 | T34: 706.52965 | U34: 699.82155 | V34: 651.75467 | W34: 7.73512 | X34: 117.60444 | Y34: 185.24647 | Z34: 105.99707 | AA34: 116.9117 | AB34: 89.04992 | AC34: 14.37835 | AD34: 6.01798 | AE34: 4.27058 | AF34: 647.21163 | AG34: 22.11 | AH34: 285.65588 | AI34: 458.89961 | AJ34: 199.56995 | AK34: 191.77914 | AL34: 129.98503 | AM34: 18.23676 | AN34: 7.60204 | AO34: 4.32256 | AP34: 583.22652 | AQ34: 1901.38749 | AR34: 1318.16097 | AS34: 1 | AT34: 0.01195145396 | AU34: 0.1817094047 | AV34: 0.2862224061 | AW34: 0.1637749773 | AX34: 0.1806390593 | AY34: 0.137590111 | AZ34: 0.02221583997 | BA34: 0.009298318697 | BB34: 0.006598429018 | BC34: 0.01677336873 | BD34: 0.2167078881 | BE34: 0.3481362447 | BF34: 0.1514002876 | BG34: 0.1454899245 | BH34: 0.09861089272 | BI34: 0.01383500226 | BJ34: 0.00576715604 | BK34: 0.003279235312 | BL34: =SUMIFS(UdS_data!L:L,UdS_data!N:N,1,UdS_data!E:E,SEE_agrg!D34) -> 375735.8652 | BM34: 4236.121484 | BN34: 0.9935335056 | BO34: 0.9898070237 | BP34: 0.9842871846 | BQ34: 0.9905055648 | BR34: 0.9224732041 | BS34: 0.9066468331 | BT34: 0.8746971821 | BU34: 5 | BV34: 5 | BW34: 5 | BX34: 5 | BY34: 5 | BZ34: 4 | CA34: 4 | CB34: 3 | CC34: 0
A35: OK | B35: TransCarioca | C35: Praça do Carmo | D35: Praa do Carmo | E35: 500590.2876 | F35: 8836.95242 | G35: 3006.02201 | H35: 1913.19 | I35: 741.85882 | J35: 178.37031 | K35: 1980.36916 | L35: 749.38336 | M35: 179.25555 | N35: 1768.22919 | O35: 673.61564 | P35: 175.02181 | Q35: 1979.14038 | R35: 749.38336 | S35: 179.25555 | T35: 3006.02201 | U35: 2997.70131 | V35: 2926.78683 | W35: 26.13107 | X35: 500.07162 | Y35: 883.93331 | Z35: 475.8471 | AA35: 451.25228 | AB35: 341.99513 | AC35: 31.49727 | AD35: 20.18145 | AE35: 8.28334 | AF35: 2739.19257 | AG35: 90.87068 | AH35: 1265.10176 | AI35: 1820.5267 | AJ35: 816.83471 | AK35: 695.75218 | AL35: 470.77035 | AM35: 43.05694 | AN35: 24.54769 | AO35: 8.50002 | AP35: 2650.13443 | AQ35: 7886.09546 | AR35: 5235.96103 | AS35: 1 | AT35: 0.009539698043 | AU35: 0.1825616882 | AV35: 0.3226984914 | AW35: 0.1737180165 | AX35: 0.1647391589 | AY35: 0.1248525327 | AZ35: 0.01149874249 | BA35: 0.007367663822 | BB35: 0.00302400791 | BC35: 0.01735511007 | BD35: 0.2416178716 | BE35: 0.3476967627 | BF35: 0.1560047344 | BG35: 0.1328795566 | BH35: 0.08991097285 | BI35: 0.008223311777 | BJ35: 0.004688287376 | BK35: 0.001623392526 | BL35: =SUMIFS(UdS_data!L:L,UdS_data!N:N,1,UdS_data!E:E,SEE_agrg!D35) -> 500608.0739 | BM35: 17653.06407 | BN35: 0.942580966 | BO35: 0.9677268032 | BP35: 0.8705414103 | BQ35: 0.9972319897 | BR35: 0.9736411844 | BS35: 0.8880133106 | BT35: 0.8665378767 | BU35: 0 | BV35: 4 | BW35: 5 | BX35: 2 | BY35: 5 | BZ35: 5 | CA35: 3 | CB35: 3 | CC35: 1
A36: OK | B36: TransCarioca | C36: Praça Seca | D36: Praa Seca | E36: 500590.2886 | F36: 7146.78923 | G36: 2488.70698 | H36: 1893.14424 | I36: 496.82352 | J36: 69.21998 | K36: 1870.08936 | L36: 488.15214 | M36: 69.21998 | N36: 1639.17754 | O36: 419.65771 | P36: 51.1179 | Q36: 1908.28274 | R36: 497.12291 | S36: 69.21998 | T36: 2488.70698 | U36: 2488.65926 | V36: 2319.84447 | W36: 11.77982 | X36: 144.64983 | Y36: 337.49745 | Z36: 333.65427 | AA36: 544.95071 | AB36: 690.67786 | AC36: 179.75428 | AD36: 76.45576 | AE36: 29.24756 | AF36: 2348.66754 | AG36: 30.296 | AH36: 485.80539 | AI36: 1021.07692 | AJ36: 720.92695 | AK36: 989.0172 | AL36: 1048.40331 | AM36: 240.9529 | AN36: 101.48051 | AO36: 39.24264 | AP36: 1781.80484 | AQ36: 6459.00666 | AR36: 4677.20182 | AS36: 1 | AT36: 0.00501553319 | AU36: 0.06158803983 | AV36: 0.1436974132 | AW36: 0.1420610897 | AX36: 0.2320254786 | AY36: 0.2940722125 | AZ36: 0.07653457841 | BA36: 0.03255282355 | BB36: 0.01245283102 | BC36: 0.006477377108 | BD36: 0.1038666726 | BE36: 0.2183093566 | BF36: 0.1541363785 | BG36: 0.2114548908 | BH36: 0.224151822 | BI36: 0.05151646418 | BJ36: 0.02169684224 | BK36: 0.008390196 | BL36: =SUMIFS(UdS_data!L:L,UdS_data!N:N,1,UdS_data!E:E,SEE_agrg!D36) -> 478627.4418 | BM36: 14276.72369 | BN36: 0.9881387241 | BO36: 0.9753906344 | BP36: 0.8478109986 | BQ36: 0.9999808254 | BR36: 0.9321484966 | BS36: 0.9089604766 | BT36: 0.9220505118 | BU36: 0 | BV36: 5 | BW36: 5 | BX36: 2 | BY36: 5 | BZ36: 4 | CA36: 4 | CB36: 4 | CC36: 1
A37: OK | B37: TransCarioca | C37: Recanto das Palmeiras - Jardim São Luiz | D37: Recanto das Palmeiras - Jardim So Luiz | E37: 500590.2876 | F37: 6385.21416 | G37: 1964.24066 | H37: 1162.96355 | I37: 301.14516 | J37: 60.7338 | K37: 1232.54507 | L37: 345.7041 | M37: 75.31349 | N37: 427.29701 | O37: 135.30785 | P37: 27.93669 | Q37: 1245.83895 | R37: 352.98044 | S37: 75.76153 | T37: 1964.24066 | U37: 1958.84099 | V37: 1880.49163 | W37: 53.76648 | X37: 523.55602 | Y37: 696.55875 | Z37: 259.09266 | AA37: 122.05978 | AB37: 75.12196 | AC37: 5.44387 | AD37: 2.75455 | AE37: 2.49866 | AF37: 1740.85273 | AG37: 140.54512 | AH37: 1181.6076 | AI37: 1411.82083 | AJ37: 414.87581 | AK37: 186.22348 | AL37: 107.54818 | AM37: 5.97232 | AN37: 3.75224 | AO37: 2.50025 | AP37: 1864.88985 | AQ37: 5319.73568 | AR37: 3454.84583 | AS37: 1 | AT37: 0.03088513984 | AU37: 0.3007468759 | AV37: 0.4001250295 | AW37: 0.1488308893 | AX37: 0.07011493729 | AY37: 0.04315239233 | AZ37: 0.003127128393 | BA37: 0.001582299268 | BB37: 0.001435308086 | BC37: 0.04068057648 | BD37: 0.3420145668 | BE37: 0.4086494447 | BF37: 0.1200851877 | BG37: 0.05390211001 | BH37: 0.03112966115 | BI37: 0.001728679164 | BJ37: 0.001086080301 | BK37: 0.0007236936532 | BL37: =SUMIFS(UdS_data!L:L,UdS_data!N:N,1,UdS_data!E:E,SEE_agrg!D37) -> 480106.9939 | BM37: 12755.36965 | BN37: 0.7763012654 | BO37: 0.8418330267 | BP37: 0.3006462304 | BQ37: 0.997251014 | BR37: 0.9573631522 | BS37: 0.8094984477 | BT37: 0.783086761 | BU37: =IF(AND($BM37<=dens_ref,$BM37<=dens_urb_mun),5,IF(AND($BM37<=dens_ref,$BM37>dens_urb_mun),3,IF(AND($BM37>dens_ref,$BM37<=dens_urb_mun),2,IF($BM37<(1+dens_toler)*dens_ref,1,0)))) -> 0 | BV37: =IF(BN37>0.95,5,IF(BN37>0.9,4,IF(BN37>0.8,2,IF(BN37>0.7,1,0)))) -> 1 | BW37: =IF(BO37>0.95,5,IF(BO37>0.9,4,IF(BO37>0.8,2,IF(BO37>0.7,1,0)))) -> 2 | BX37: =IF(BP37>0.95,5,IF(BP37>0.9,4,IF(BP37>0.8,2,IF(BP37>0.7,1,0)))) -> 0 | BY37: =IF(BQ37>0.95,5,IF(BQ37>0.9,4,IF(BQ37>0.8,2,IF(BQ37>0.7,1,0)))) -> 5 | BZ37: =IF(BR37>0.95,5,IF(BR37>0.9,4,IF(BR37>0.8,2,IF(BR37>0.7,1,0)))) -> 5 | CA37: 2 | CB37: 1 | CC37: 0
A38: OK | B38: TransCarioca | C38: Rio II | D38: Rio II | E38: 500590.2896 | F38: 5791.66995 | G38: 2078.69193 | H38: 1559.36181 | I38: 450.38766 | J38: 42.14196 | K38: 1572.85485 | L38: 453.0604 | M38: 46.8386 | N38: 1560.93261 | O38: 450.62176 | P38: 42.14196 | Q38: 1572.85485 | R38: 453.0604 | S38: 46.8386 | T38: 2078.69193 | U38: 2059.06054 | V38: 1817.62561 | W38: 2.01533 | X38: 32.62689 | Y38: 57.48234 | Z38: 44.6982 | AA38: 159.20705 | AB38: 559.84631 | AC38: 334.92734 | AD38: 385.92314 | AE38: 331.49383 | AF38: 1908.22043 | AG38: 4.21335 | AH38: 119.42821 | AI38: 302.20653 | AJ38: 185.95655 | AK38: 410.16268 | AL38: 1122.54643 | AM38: 532.78284 | AN38: 550.65743 | AO38: 437.28321 | AP38: 1394.08003 | AQ38: 5059.31726 | AR38: 3665.23723 | AS38: 1 | AT38: 0.001056130606 | AU38: 0.01709807184 | AV38: 0.03012353243 | AW38: 0.0234240234 | AX38: 0.08343221124 | AY38: 0.2933866031 | AZ38: 0.1755181607 | BA38: 0.2022424317 | BB38: 0.173718835 | BC38: 0.0011495436 | BD38: 0.03258403277 | BE38: 0.08245210638 | BF38: 0.05073520166 | BG38: 0.1119061753 | BH38: 0.306268424 | BI38: 0.1453610794 | BJ38: 0.1502378688 | BK38: 0.1193055681 | BL38: =SUMIFS(UdS_data!L:L,UdS_data!N:N,1,UdS_data!E:E,SEE_agrg!D38) -> 345571.066 | BM38: 11569.68098 | BN38: 0.9871070361 | BO38: 0.9971433574 | BP38: 0.9879753225 | BQ38: 0.9905558925 | BR38: 0.8744083641 | BS38: 0.9037428032 | BT38: 0.9284693963 | BU38: 0 | BV38: 5 | BW38: 5 | BX38: 5 | BY38: 5 | BZ38: 2 | CA38: 4 | CB38: 4 | CC38: 1
A39: OK | B39: TransCarioca | C39: Santa Luzia | D39: Santa Luzia | E39: 500590.2886 | F39: 7268.32781 | G39: 2563.94825 | H39: 1722.64887 | I39: 613.30932 | J39: 79.01769 | K39: 1833.79868 | L39: 638.77041 | M39: 86.47878 | N39: 1659.1567 | O39: 573.45879 | P39: 80.01769 | Q39: 1833.79868 | R39: 638.77041 | S39: 86.47878 | T39: 2563.94825 | U39: 2558.43147 | V39: 2517.50224 | W39: 18.57553 | X39: 382.90575 | Y39: 777.10658 | Z39: 454.02537 | AA39: 420.33627 | AB39: 254.35068 | AC39: 25.92323 | AD39: 6.82273 | AE39: 5.50648 | AF39: 2345.55262 | AG39: 54.93499 | AH39: 919.40897 | AI39: 1758.41121 | AJ39: 783.22537 | AK39: 651.56125 | AL39: 351.81041 | AM39: 33.36646 | AN39: 9.57071 | AO39: 6.33566 | AP39: 1994.5452 | AQ39: 6563.17023 | AR39: 4568.62503 | AS39: 1 | AT39: 0.007919468462 | AU39: 0.1632475634 | AV39: 0.3313106572 | AW39: 0.1935686141 | AX39: 0.1792056449 | AY39: 0.108439554 | AZ39: 0.01105207778 | BA39: 0.002908794261 | BB39: 0.002347625866 | BC39: 0.01202440332 | BD39: 0.2012441301 | BE39: 0.3848884946 | BF39: 0.1714356869 | BG39: 0.1426164865 | BH39: 0.07700575287 | BI39: 0.007303392111 | BJ39: 0.002094877548 | BK39: 0.0013867761 | BL39: =SUMIFS(UdS_data!L:L,UdS_data!N:N,1,UdS_data!E:E,SEE_agrg!D39) -> 490376.0947 | BM39: 14519.51421 | BN39: 0.9418972789 | BO39: 0.9980887368 | BP39: 0.9019812237 | BQ39: 0.9978483263 | BR39: 0.9818849659 | BS39: 0.8797972885 | BT39: 0.8499350998 | BU39: 0 | BV39: 4 | BW39: 5 | BX39: 4 | BY39: 5 | BZ39: 5 | CA39: 3 | CB39: 2 | CC39: 0
A40: OK | B40: TransCarioca | C40: Tanque / Terminal Mestre Candeia | D40: Tanque / Terminal Mestre Candeia | E40: 500590.2905 | F40: 5643.54462 | G40: 1844.17493 | H40: 475.87011 | I40: 243.31167 | J40: 21.70877 | K40: 1131.58344 | L40: 574.19231 | M40: 51.5961 | N40: 339.69434 | O40: 117.47075 | P40: 25.22728 | Q40: 737.65623 | R40: 310.57845 | S40: 37.75272 | T40: 1844.17493 | U40: 1834.05116 | V40: 1691.4143 | W40: 26.63621 | X40: 351.56906 | Y40: 634.5678 | Z40: 227.42055 | AA40: 185.46048 | AB40: 144.17647 | AC40: 19.28454 | AD40: 5.60793 | AE40: 5.24185 | AF40: 1599.96489 | AG40: 79.06581 | AH40: 846.0893 | AI40: 1219.69318 | AJ40: 367.90033 | AK40: 280.49563 | AL40: 209.6944 | AM40: 22.1424 | AN40: 8.3068 | AO40: 7.05491 | AP40: 1651.79636 | AQ40: 4692.23912 | AR40: 3040.44276 | AS40: 1 | AT40: 0.01664799657 | AU40: 0.2197354843 | AV40: 0.3966135782 | AW40: 0.1421409629 | AX40: 0.1159153436 | AY40: 0.09011227115 | AZ40: 0.01205310199 | BA40: 0.003505033164 | BB40: 0.003276228143 | BC40: 0.02600470268 | BD40: 0.2782783189 | BE40: 0.4011564355 | BF40: 0.1210022221 | BG40: 0.09225486291 | BH40: 0.06896837617 | BI40: 0.007282623535 | BJ40: 0.002732102084 | BK40: 0.002320356131 | BL40: =SUMIFS(UdS_data!L:L,UdS_data!N:N,1,UdS_data!E:E,SEE_agrg!D40) -> 413836.5273 | BM40: 11273.77963 | BN40: 0.4017463517 | BO40: 0.9529312114 | BP40: 0.261576254 | BQ40: 0.9945104069 | BR40: 0.9171658678 | BS40: 0.8462338795 | BT40: 0.8246063559 | BU40: 0 | BV40: 0 | BW40: 5 | BX40: 0 | BY40: 5 | BZ40: 4 | CA40: 2 | CB40: 2 | CC40: 1
A41: OK | B41: TransCarioca | C41: Taquara | D41: Taquara | E41: 500590.2886 | F41: 3350.81437 | G41: 1207.41361 | H41: 856.16184 | I41: 303.12074 | J41: 45.04181 | K41: 856.16184 | L41: 303.12074 | M41: 45.04181 | N41: 816.22624 | O41: 281.41059 | P41: 41.57332 | Q41: 856.16184 | R41: 303.12074 | S41: 45.04181 | T41: 1207.41361 | U41: 1195.44717 | V41: 928.42361 | W41: 5.56921 | X41: 90.56323 | Y41: 203.12205 | Z41: 183.52933 | AA41: 243.38988 | AB41: 275.85804 | AC41: 54.02721 | AD41: 31.68559 | AE41: 14.79859 | AF41: 1102.54313 | AG41: 13.74346 | AH41: 263.16777 | AI41: 552.8128 | AJ41: 344.56177 | AK41: 414.37227 | AL41: 414.39819 | AM41: 83.00145 | AN41: 44.85573 | AO41: 19.10703 | AP41: 918.12662 | AQ41: 3068.14709 | AR41: 2150.02047 | AS41: 1 | AT41: 0.005051240036 | AU41: 0.08214030593 | AV41: 0.1842304799 | AW41: 0.1664600005 | AX41: 0.22075316 | AY41: 0.2502015862 | AZ41: 0.04900235513 | BA41: 0.02873863991 | BB41: 0.01342223229 | BC41: 0.006392246117 | BD41: 0.1224024486 | BE41: 0.2571197845 | BF41: 0.1602597626 | BG41: 0.1927294534 | BH41: 0.1927415091 | BI41: 0.03860495803 | BJ41: 0.0208629316 | BK41: 0.008886906086 | BL41: =SUMIFS(UdS_data!L:L,UdS_data!N:N,1,UdS_data!E:E,SEE_agrg!D41) -> 462809.3321 | BM41: 6693.72628 | BN41: 0.9974414567 | BO41: 0.9974414567 | BP41: 0.943512762 | BQ41: 0.9900891957 | BR41: 0.7689358496 | BS41: 0.9189422614 | BT41: 0.9189950528 | BU41: 5 | BV41: 5 | BW41: 5 | BX41: 4 | BY41: 5 | BZ41: 1 | CA41: 4 | CB41: 4 | CC41: 1
A42: OK | B42: TransCarioca | C42: Terminal Alvorada TCA | D42: Terminal Alvorada TCA | E42: 500590.2891 | F42: 374.9998 | G42: 120.74618 | H42: 104.34328 | I42: 13.31106 | J42: 2.82302 | K42: 104.34328 | L42: 13.31106 | M42: 2.82302 | N42: 104.34328 | O42: 13.31106 | P42: 2.82302 | Q42: 104.34328 | R42: 13.31106 | S42: 2.82302 | T42: 120.74618 | U42: 120.74618 | V42: 120.29488 | W42: 0 | X42: 0.6937 | Y42: 2.2565 | Z42: 2.41651 | AA42: 3.17926 | AB42: 12.43201 | AC42: 3.72044 | AD42: 25.42905 | AE42: 46.62006 | AF42: 96.74753 | AG42: 0.00749 | AH42: 2.5185 | AI42: 11.16739 | AJ42: 7.71007 | AK42: 7.43801 | AL42: 26.03745 | AM42: 8.98296 | AN42: 37.46055 | AO42: 65.44789 | AP42: 172.95647 | AQ42: 339.72678 | AR42: 166.77031 | AS42: 1 | AT42: 0 | AU42: 0.007170208893 | AV42: 0.02332359286 | AW42: 0.02497748521 | AX42: 0.03286140742 | AY42: 0.1284995079 | AZ42: 0.03845514196 | BA42: 0.2628392684 | BB42: 0.4818733874 | BC42: 4.491207098e-05 | BD42: 0.01510160891 | BE42: 0.06696269858 | BF42: 0.04623167037 | BG42: 0.04460032484 | BH42: 0.1561276105 | BI42: 0.05386426397 | BJ42: 0.2246236156 | BK42: 0.3924432952 | BL42: =SUMIFS(UdS_data!L:L,UdS_data!N:N,1,UdS_data!E:E,SEE_agrg!D42) -> 500590.2881 | BM42: 749.115211 | BN42: 0.997773677 | BO42: 0.997773677 | BP42: 0.997773677 | BQ42: 1 | BR42: 0.9962624076 | BS42: 0.7632264233 | BT42: 0.854343767 | BU42: 5 | BV42: 5 | BW42: 5 | BX42: 5 | BY42: 5 | BZ42: 5 | CA42: 1 | CB42: 3 | CC42: 0
A43: OK | B43: TransCarioca | C43: Terminal Fundão - Aroldo Melodia | D43: Terminal Fundo - Aroldo Melodia | E43: 281769.0181 | F43: 3.40835 | G43: 0 | H43: 0 | I43: 0 | J43: 0 | K43: 0 | L43: 0 | M43: 0 | N43: 0 | O43: 0 | P43: 0 | Q43: 0 | R43: 0 | S43: 0 | T43: 0.18591 | U43: 0 | V43: 0 | W43: 0 | X43: 0 | Y43: 0 | Z43: 0 | AA43: 0 | AB43: 0 | AC43: 0 | AD43: 0 | AE43: 0 | AF43: 0 | AG43: 0 | AH43: 0 | AI43: 0 | AJ43: 0 | AK43: 0 | AL43: 0 | AM43: 0 | AN43: 0 | AO43: 0 | AP43: 0 | AQ43: 0 | AR43: 0 | AS43: 0 | AT43: 0 | AU43: 0 | AV43: 0 | AW43: 0 | AX43: 0 | AY43: 0 | AZ43: 0 | BA43: 0 | BB43: 0 | BC43: 0 | BD43: 0 | BE43: 0 | BF43: 0 | BG43: 0 | BH43: 0 | BI43: 0 | BJ43: 0 | BK43: 0 | BL43: =SUMIFS(UdS_data!L:L,UdS_data!N:N,1,UdS_data!E:E,SEE_agrg!D43) -> 202275.4269 | BM43: 12.09625538 | BN43: 0 | BO43: 0 | BP43: 0 | BQ43: 0 | BR43: 0 | BS43: 0 | BT43: 0 | BU43: 5 | BV43: 0 | BW43: 0 | BX43: 0 | BY43: 0 | BZ43: 0 | CA43: 0 | CB43: 0 | CC43: 1
A44: OK | B44: TransCarioca | C44: Vaz Lobo | D44: Vaz Lobo | E44: 500590.2871 | F44: 8003.55569 | G44: 2665.54227 | H44: 1779.45617 | I44: 703.99779 | J44: 59.12826 | K44: 1840.00427 | L44: 724.44154 | M44: 72.20324 | N44: 1518.79349 | O44: 595.75872 | P44: 50.84878 | Q44: 1822.59239 | R44: 719.55772 | S44: 70.9292 | T44: 2665.54227 | U44: 2663.3215 | V44: 2632.9748 | W44: 14.38925 | X44: 346.87672 | Y44: 783.07037 | Z44: 421.86865 | AA44: 378.87142 | AB44: 245.17525 | AC44: 37.30714 | AD44: 14.81002 | AE44: 7.16529 | AF44: 2249.53411 | AG44: 54.59247 | AH44: 918.41499 | AI44: 1730.18381 | AJ44: 748.87232 | AK44: 555.19376 | AL44: 356.95968 | AM44: 50.12621 | AN44: 19.36999 | AO44: 8.19292 | AP44: 2640.90138 | AQ44: 7082.80753 | AR44: 4441.90615 | AS44: 1 | AT44: 0.006396546705 | AU44: 0.15419936 | AV44: 0.3481033546 | AW44: 0.1875360094 | AX44: 0.1684221716 | AY44: 0.1089893454 | AZ44: 0.01658438511 | BA44: 0.006583594325 | BB44: 0.003185232875 | BC44: 0.01229032495 | BD44: 0.2067614576 | BE44: 0.3895138149 | BF44: 0.1685925579 | BG44: 0.1249899798 | BH44: 0.08036182394 | BI44: 0.01128484221 | BJ44: 0.004360738238 | BK44: 0.001844460401 | BL44: =SUMIFS(UdS_data!L:L,UdS_data!N:N,1,UdS_data!E:E,SEE_agrg!D44) -> 500590.2958 | BM44: 15988.23608 | BN44: 0.9538705308 | BO44: 0.989160472 | BP44: 0.8123679052 | BQ44: 0.99916686 | BR44: 0.9877820471 | BS44: 0.8766705428 | BT44: 0.8490643891 | BU44: 0 | BV44: 5 | BW44: 5 | BX44: 2 | BY44: 5 | BZ44: 5 | CA44: 3 | CB44: 2 | CC44: 0
A45: OK | B45: TransCarioca | C45: Via Parque | D45: Via Parque | E45: 500590.2895 | F45: 95.84856 | G45: 30.37878 | H45: 17.24472 | I45: 2.70702 | J45: 10.42704 | K45: 17.24472 | L45: 2.70702 | M45: 10.42704 | N45: 17.24472 | O45: 2.70702 | P45: 10.42704 | Q45: 17.24472 | R45: 2.70702 | S45: 10.42704 | T45: 30.37878 | U45: 30.37878 | V45: 30.27852 | W45: 0 | X45: 1.0026 | Y45: 0.5013 | Z45: 0.30078 | AA45: 0.80208 | AB45: 1.90494 | AC45: 2.10546 | AD45: 8.5221 | AE45: 6.71742 | AF45: 21.85668 | AG45: 0.10026 | AH45: 2.0052 | AI45: 3.40884 | AJ45: 1.80468 | AK45: 4.5117 | AL45: 8.82288 | AM45: 4.11066 | AN45: 12.43224 | AO45: 8.72262 | AP45: 38.29932 | AQ45: 84.2184 | AR45: 45.91908 | AS45: 1 | AT45: 0 | AU45: 0.04587155963 | AV45: 0.02293577982 | AW45: 0.01376146789 | AX45: 0.03669724771 | AY45: 0.0871559633 | AZ45: 0.09633027523 | BA45: 0.3899082569 | BB45: 0.3073394495 | BC45: 0.002183406114 | BD45: 0.04366812227 | BE45: 0.07423580786 | BF45: 0.03930131004 | BG45: 0.09825327511 | BH45: 0.192139738 | BI45: 0.08951965066 | BJ45: 0.2707423581 | BK45: 0.1899563319 | BL45: =SUMIFS(UdS_data!L:L,UdS_data!N:N,1,UdS_data!E:E,SEE_agrg!D45) -> 464038.9889 | BM45: 191.4710733 | BN45: 1 | BO45: 1 | BP45: 1 | BQ45: 1 | BR45: 0.99669967 | BS45: 0.8240310159 | BT45: 0.9304456437 | BU45: 5 | BV45: 5 | BW45: 5 | BX45: 5 | BY45: 5 | BZ45: 5 | CA45: 2 | CB45: 4 | CC45: 0
A46: OK | B46: TransCarioca | C46: Vicente de Carvalho | D46: Vicente de Carvalho | E46: 500590.2891 | F46: 4704.13964 | G46: 1714.3561 | H46: 1114.01972 | I46: 511.027 | J46: 55.78108 | K46: 1117.07029 | L46: 512.42399 | M46: 55.98065 | N46: 1090.10815 | O46: 500.92474 | P46: 53.02181 | Q46: 1117.07029 | R46: 512.42399 | S46: 55.98065 | T46: 1714.3561 | U46: 1695.53244 | V46: 1654.08258 | W46: 12.84341 | X46: 273.84022 | Y46: 391.25066 | Z46: 245.34362 | AA46: 317.63027 | AB46: 251.26036 | AC46: 47.71351 | AD46: 24.14952 | AE46: 6.34358 | AF46: 1570.37515 | AG46: 39.86893 | AH46: 690.43131 | AI46: 897.53456 | AJ46: 463.71548 | AK46: 504.35933 | AL46: 355.71642 | AM46: 58.574 | AN46: 29.1341 | AO46: 8.21011 | AP46: 1218.42344 | AQ46: 4265.96768 | AR46: 3047.54424 | AS46: 1 | AT46: 0.008178561664 | AU46: 0.1743788546 | AV46: 0.2491447091 | AW46: 0.1562324901 | AX46: 0.2022639431 | AY46: 0.160000214 | AZ46: 0.03038351059 | BA46: 0.01537818527 | BB46: 0.004039531573 | BC46: 0.01308231378 | BD46: 0.2265533346 | BE46: 0.2945107566 | BF46: 0.1521603768 | BG46: 0.1654969675 | BH46: 0.1167223154 | BI46: 0.01922006553 | BJ46: 0.009559861221 | BK46: 0.002694008472 | BL46: =SUMIFS(UdS_data!L:L,UdS_data!N:N,1,UdS_data!E:E,SEE_agrg!D46) -> 500590.2881 | BM46: 9397.185169 | BN46: 0.980442628 | BO46: 0.9831533425 | BP46: 0.9589925337 | BQ46: 0.9890199825 | BR46: 0.9648418902 | BS46: 0.9172763031 | BT46: 0.8967731275 | BU46: 1 | BV46: 5 | BW46: 5 | BX46: 5 | BY46: 5 | BZ46: 5 | CA46: 4 | CB46: 3 | CC46: 0
A47: OK | B47: TransCarioca | C47: Vila Kosmos - Nossa Senhora do Carmo | D47: Vila Kosmos - Nossa Senhora do Carmo | E47: 500590.2871 | F47: 9312.17556 | G47: 3274.94895 | H47: 2056.22485 | I47: 741.80412 | J47: 187.52171 | K47: 2257.85605 | L47: 764.72646 | M47: 193.3421 | N47: 1947.56903 | O47: 705.13282 | P47: 158.70848 | Q47: 2265.85605 | R47: 764.72646 | S47: 193.3421 | T47: 3274.94895 | U47: 3272.28587 | V47: 3246.6471 | W47: 19.39288 | X47: 371.69186 | Y47: 607.52805 | Z47: 512.99272 | AA47: 643.99971 | AB47: 627.69503 | AC47: 119.50149 | AD47: 72.02329 | AE47: 38.62002 | AF47: 3013.44505 | AG47: 44.74559 | AH47: 1049.89583 | AI47: 1577.79115 | AJ47: 949.09185 | AK47: 1081.23118 | AL47: 931.39842 | AM47: 146.29756 | AN47: 91.2968 | AO47: 44.3202 | AP47: 2619.00242 | AQ47: 8535.071 | AR47: 5916.06858 | AS47: 1 | AT47: 0.006435451677 | AU47: 0.1233444957 | AV47: 0.2016058166 | AW47: 0.1702346356 | AX47: 0.2137087949 | AY47: 0.2082981503 | AZ47: 0.0396561039 | BA47: 0.0239006482 | BB47: 0.01281590318 | BC47: 0.007563399476 | BD47: 0.1774651216 | BE47: 0.2666958857 | BF47: 0.1604261068 | BG47: 0.1827617725 | BH47: 0.1574353656 | BI47: 0.02472884789 | BJ47: 0.01543200502 | BK47: 0.007491495306 | BL47: =SUMIFS(UdS_data!L:L,UdS_data!N:N,1,UdS_data!E:E,SEE_agrg!D47) -> 500590.2881 | BM47: 18602.38962 | BN47: 0.9116327386 | BO47: 0.9819770198 | BP47: 0.8584592838 | BQ47: 0.9991868331 | BR47: 0.991358079 | BS47: 0.9267213606 | BT47: 0.914053668 | BU47: 0 | BV47: 4 | BW47: 5 | BX47: 2 | BY47: 5 | BZ47: 5 | CA47: 4 | CB47: 4 | CC47: 1
A48: OK | B48: TransCarioca | C48: Vila Queiroz | D48: Vila Queiroz | E48: 500590.2896 | F48: 8811.23084 | G48: 2845.80815 | H48: 1559.69792 | I48: 593.87575 | J48: 86.43947 | K48: 1658.8559 | L48: 604.71714 | M48: 93.43947 | N48: 742.09667 | O48: 223.83569 | P48: 47.32213 | Q48: 1556.7829 | R48: 581.63182 | S48: 87.43947 | T48: 2845.80815 | U48: 2832.79752 | V48: 2737.02678 | W48: 46.03431 | X48: 575.56304 | Y48: 833.72246 | Z48: 441.81318 | AA48: 355.09427 | AB48: 232.62172 | AC48: 28.05417 | AD48: 7.25958 | AE48: 3.95065 | AF48: 2524.11338 | AG48: 120.56053 | AH48: 1357.73158 | AI48: 1866.41361 | AJ48: 739.20869 | AK48: 528.49407 | AL48: 326.73096 | AM48: 38.74994 | AN48: 8.13074 | AO48: 4.95065 | AP48: 2653.21536 | AQ48: 7644.18613 | AR48: 4990.97077 | AS48: 1 | AT48: 0.01823781387 | AU48: 0.2280258266 | AV48: 0.3303030944 | AW48: 0.1750369787 | AX48: 0.1406807922 | AY48: 0.09215977453 | AZ48: 0.01111446507 | BA48: 0.002876091089 | BB48: 0.001565163448 | BC48: 0.02415572752 | BD48: 0.272037574 | BE48: 0.3739580326 | BF48: 0.1481092004 | BG48: 0.1058900351 | BH48: 0.06546441064 | BI48: 0.007764008604 | BJ48: 0.001629089885 | BK48: 0.000991921257 | BL48: =SUMIFS(UdS_data!L:L,UdS_data!N:N,1,UdS_data!E:E,SEE_agrg!D48) -> 489269.1554 | BM48: 17601.6815 | BN48: 0.7871272489 | BO48: 0.8282401293 | BP48: 0.3560515806 | BQ48: 0.9954281423 | BR48: 0.9617748758 | BS48: 0.8769541096 | BT48: 0.8415775209 | BU48: 0 | BV48: 1 | BW48: 2 | BX48: 0 | BY48: 5 | BZ48: 5 | CA48: 3 | CB48: 2 | CC48: 0
A49: OK | B49: TransCarioca | C49: Vila Sapê - IV Centenário | D49: Vila Sap - IV Centenrio | E49: 500590.2881 | F49: 6298.37657 | G49: 1981.52911 | H49: 1336.4151 | I49: 360.7952 | J49: 53.1033 | K49: 1314.48751 | L49: 364.21511 | M49: 53.62539 | N49: 642.4566 | O49: 195.3965 | P49: 32.56798 | Q49: 1308.72212 | R49: 362.28191 | S49: 53.63472 | T49: 1981.52911 | U49: 1978.2694 | V49: 1824.99446 | W49: 30.04844 | X49: 469.31361 | Y49: 729.80153 | Z49: 318.77377 | AA49: 160.81649 | AB49: 83.62672 | AC49: 7.10541 | AD49: 2.52465 | AE49: 0.09632 | AF49: 1802.10694 | AG49: 92.26056 | AH49: 1082.23781 | AI49: 1469.12647 | AJ49: 499.59354 | AK49: 243.39737 | AL49: 115.37041 | AM49: 11.54096 | AN49: 3.76445 | AO49: 0.28896 | AP49: 1830.54207 | AQ49: 5348.1226 | AR49: 3517.58053 | AS49: 1 | AT49: 0.01667406042 | AU49: 0.2604249501 | AV49: 0.4049712666 | AW49: 0.1768894858 | AX49: 0.08923803934 | AY49: 0.04640497084 | AZ49: 0.003942834824 | BA49: 0.001400943498 | BB49: 5.34485484e-05 | BC49: 0.02622841445 | BD49: 0.3076653969 | BE49: 0.4176525477 | BF49: 0.1420276055 | BG49: 0.06919454094 | BH49: 0.0327982285 | BI49: 0.003280936968 | BJ49: 0.001070181611 | BK49: 8.214737304e-05 | BL49: =SUMIFS(UdS_data!L:L,UdS_data!N:N,1,UdS_data!E:E,SEE_agrg!D49) -> 483348.1867 | BM49: 12581.89925 | BN49: 0.8833146034 | BO49: 0.8742379818 | BP49: 0.4392673696 | BQ49: 0.9983549523 | BR49: 0.9210031035 | BS49: 0.8172841991 | BT49: 0.7921946898 | BU49: 0 | BV49: 2 | BW49: 2 | BX49: 0 | BY49: 5 | BZ49: 4 | CA49: 2 | CB49: 1 | CC49: 0
A50: =IF(B50="TransCarioca","OK","NO") -> NO | B50: TransOeste | C50: 31 de Outubro | D50: 31 de Outubro | E50: 500590.2891 | F50: 5040.70232 | G50: 1552.01333 | H50: 778.06545 | I50: 176.83528 | J50: 74.73359 | K50: 841.05967 | L50: 189.18095 | M50: 74.91466 | N50: 461.32891 | O50: 102.7757 | P50: 33.63719 | Q50: 825.77948 | R50: 187.94231 | S50: 74.57222 | T50: 1552.01333 | U50: 1547.96599 | V50: 1337.1803 | W50: 38.27812 | X50: 401.65531 | Y50: 524.24634 | Z50: 206.51116 | AA50: 128.15052 | AB50: 64.40153 | AC50: 5.31539 | AD50: 1.58797 | AE50: 0.13112 | AF50: 1370.27746 | AG50: 139.94096 | AH50: 855.3227 | AI50: 989.63659 | AJ50: 331.58638 | AK50: 195.3808 | AL50: 89.85425 | AM50: 8.19053 | AN50: 1.72265 | AO50: 0.13112 | AP50: 1559.98319 | AQ50: 4171.74917 | AR50: 2611.76598 | AS50: =IF(OR(G50=0,T50=0),0,1) -> 1 | AT50: =IF($AF50=0,0,W50/$AF50) -> 0.02793457611 | AU50: =IF($AF50=0,0,X50/$AF50) -> 0.2931196942 | AV50: =IF($AF50=0,0,Y50/$AF50) -> 0.382584079 | AW50: =IF($AF50=0,0,Z50/$AF50) -> 0.1507075509 | AX50: =IF($AF50=0,0,AA50/$AF50) -> 0.09352158504 | AY50: =IF($AF50=0,0,AB50/$AF50) -> 0.04699889758 | AZ50: =IF($AF50=0,0,AC50/$AF50) -> 0.003879061106 | BA50: =IF($AF50=0,0,AD50/$AF50) -> 0.00115886749 | BB50: =IF($AF50=0,0,AE50/$AF50) -> 9.56886498e-05 | BC50: =IF($AR50=0,0,AG50/$AR50) -> 0.05358097206 | BD50: =IF($AR50=0,0,AH50/$AR50) -> 0.3274882614 | BE50: =IF($AR50=0,0,AI50/$AR50) -> 0.3789147257 | BF50: =IF($AR50=0,0,AJ50/$AR50) -> 0.1269586872 | BG50: =IF($AR50=0,0,AK50/$AR50) -> 0.07480792747 | BH50: =IF($AR50=0,0,AL50/$AR50) -> 0.0344036375 | BI50: =IF($AR50=0,0,AM50/$AR50) -> 0.003136012209 | BJ50: =IF($AR50=0,0,AN50/$AR50) -> 0.0006595728764 | BK50: =IF($AR50=0,0,AO50/$AR50) -> 5.020357911e-05 | BL50: =SUMIFS(UdS_data!L:L,UdS_data!N:N,1,UdS_data!E:E,SEE_agrg!D50) -> 499733.9079 | BM50: =1000000*F50/E50 -> 10069.51679 | BN50: =IF(G50=0,0,(H50+I50+J50)/G50) -> 0.6634184772 | BO50: =IF(G50=0,0,(K50+L50+M50)/G50) -> 0.7120784716 | BP50: =IF(G50=0,0,(N50+O50+P50)/G50) -> 0.3851396044 | BQ50: =IF(T50=0,0,U50/T50) -> 0.9973922002 | BR50: =IF(T50=0,0,V50/T50) -> 0.8615778448 | BS50: =IF(AS50<>0,(1-SUMSQ(AT50:BB50))/(1-1/9),0) -> 0.8249012758 | BT50: =IF(AS50<>0,(1-SUMSQ(BC50:BK50))/(1-1/9),0) -> 0.8138199735 | BU50: 0 | BV50: 0 | BW50: 1 | BX50: 0 | BY50: 5 | BZ50: 2 | CA50: 2 | CB50: 2 | CC50: 1
A51: NO | B51: TransOeste | C51: Amricas Park | D51: Amricas Park | E51: 500590.2871 | F51: 5361.24937 | G51: 1772.58908 | H51: 1427.39997 | I51: 298.17733 | J51: 32.01802 | K51: 1439.41197 | L51: 298.86373 | M51: 32.59002 | N51: 1121.96174 | O51: 239.87872 | P51: 23.8548 | Q51: 1439.41197 | R51: 298.86373 | S51: 32.59002 | T51: 1772.58908 | U51: 1768.79084 | V51: 1698.21702 | W51: 4.76544 | X51: 35.16118 | Y51: 43.13847 | Z51: 52.87288 | AA51: 80.534 | AB51: 271.88124 | AC51: 188.14305 | AD51: 311.47012 | AE51: 630.49594 | AF51: 1618.46232 | AG51: 12.34552 | AH51: 107.75001 | AI51: 270.7954 | AJ51: 191.14232 | AK51: 298.94702 | AL51: 694.39714 | AM51: 302.68008 | AN51: 489.41119 | AO51: 842.85471 | AP51: 1546.32902 | AQ51: 4756.65241 | AR51: 3210.32339 | AS51: 1 | AT51: 0.002944424434 | AU51: 0.0217250532 | AV51: 0.02665398475 | AW51: 0.03266858879 | AX51: 0.04975957673 | AY51: 0.1679873771 | AZ51: 0.1162480261 | BA51: 0.1924481751 | BB51: 0.3895647938 | BC51: 0.003845568966 | BD51: 0.03356359996 | BE51: 0.08435143975 | BF51: 0.05953989576 | BG51: 0.09312053139 | BH51: 0.2163013054 | BI51: 0.09428336128 | BJ51: 0.1524491867 | BK51: 0.2625451108 | BL51: =SUMIFS(UdS_data!L:L,UdS_data!N:N,1,UdS_data!E:E,SEE_agrg!D51) -> 486652.639 | BM51: 10709.85496 | BN51: 0.9915413221 | BO51: 0.9990277724 | BP51: 0.7817351893 | BQ51: 0.997857236 | BR51: 0.9580432595 | BS51: 0.8603271835 | BT51: 0.935640902 | BU51: 0 | BV51: 5 | BW51: 5 | BX51: 1 | BY51: 5 | BZ51: 5 | CA51: 3 | CB51: 4 | CC51: 0
A52: NO | B52: TransOeste | C52: Ana Gonzaga | D52: Ana Gonzaga | E52: 500590.2881 | F52: 3228.58766 | G52: 977.71053 | H52: 762.21861 | I52: 124.25109 | J52: 31.12534 | K52: 774.88553 | L52: 128.79728 | M52: 31.52146 | N52: 359.0403 | O52: 67.44229 | P52: 14.95123 | Q52: 771.43314 | R52: 128.34235 | S52: 31.5251 | T52: 977.71053 | U52: 964.93423 | V52: 923.22293 | W52: 28.83405 | X52: 188.12954 | Y52: 234.71113 | Z52: 87.54809 | AA52: 42.25892 | AB52: 18.17325 | AC52: 1.89388 | AD52: 0.09994 | AE52: 0 | AF52: 601.6488 | AG52: 63.5391 | AH52: 473.40984 | AI52: 492.88294 | AJ52: 152.39488 | AK52: 83.11834 | AL52: 35.25822 | AM52: 3.89534 | AN52: 1.09994 | AO52: 0 | AP52: 1430.9003 | AQ52: 2736.4989 | AR52: 1305.5986 | AS52: 1 | AT52: 0.04792505196 | AU52: 0.3126899613 | AV52: 0.3901131856 | AW52: 0.1455136119 | AX52: 0.07023851789 | AY52: 0.03020574461 | AZ52: 0.003147816467 | BA52: 0.0001661101958 | BB52: 0 | BC52: 0.04866664226 | BD52: 0.3625998373 | BE52: 0.3775149116 | BF52: 0.1167241448 | BG52: 0.06366301251 | BH52: 0.0270054058 | BI52: 0.002983566312 | BJ52: 0.0008424794573 | BK52: 0 | BL52: =SUMIFS(UdS_data!L:L,UdS_data!N:N,1,UdS_data!E:E,SEE_agrg!D52) -> 287792.8451 | BM52: 6449.561122 | BN52: 0.9385140201 | BO52: 0.9565246986 | BP52: 0.4514974591 | BQ52: 0.9869324308 | BR52: 0.9442702126 | BS52: 0.8107986329 | BT52: 0.7933713738 | BU52: 5 | BV52: 4 | BW52: 5 | BX52: 0 | BY52: 5 | BZ52: 4 | CA52: 2 | CB52: 1 | CC52: 0
A53: NO | B53: TransOlmpica | C53: Bandeirantes | D53: Bandeirantes | E53: 500590.2876 | F53: 4479.95015 | G53: 1483.97704 | H53: 460.09104 | I53: 263.68916 | J53: 18.56887 | K53: 632.04656 | L53: 332.00852 | M53: 23.51731 | N53: 504.74256 | O53: 231.07932 | P53: 20.70211 | Q53: 564.7312 | R53: 309.23961 | S53: 21.58982 | T53: 1483.97704 | U53: 1427.81463 | V53: 1072.84867 | W53: 31.14362 | X53: 326.93898 | Y53: 468.49321 | Z53: 172.21349 | AA53: 117.24553 | AB53: 75.72419 | AC53: 11.14131 | AD53: 6.65661 | AE53: 1.38709 | AF53: 1210.94403 | AG53: 64.80576 | AH53: 792.65937 | AI53: 1027.02376 | AJ53: 302.98806 | AK53: 168.41879 | AL53: 106.9908 | AM53: 14.7127 | AN53: 8.62011 | AO53: 1.76624 | AP53: 1345.19988 | AQ53: 3833.18547 | AR53: 2487.98559 | AS53: 1 | AT53: 0.02571846364 | AU53: 0.2699868631 | AV53: 0.3868826291 | AW53: 0.1422142442 | AX53: 0.09682159298 | AY53: 0.06253318743 | AZ53: 0.009200516063 | BA53: 0.005497041841 | BB53: 0.001145461694 | BC53: 0.02604748205 | BD53: 0.3185948396 | BE53: 0.4127932911 | BF53: 0.1217804722 | BG53: 0.06769283177 | BH53: 0.04300298218 | BI53: 0.00591349888 | BJ53: 0.003464694504 | BK53: 0.0007099076486 | BL53: =SUMIFS(UdS_data!L:L,UdS_data!N:N,1,UdS_data!E:E,SEE_agrg!D53) -> 469974.4718 | BM53: 8949.334937 | BN53: 0.500242962 | BO53: 0.6654903434 | BP53: 0.5097949426 | BQ53: 0.9621541247 | BR53: 0.7229550331 | BS53: 0.8360342944 | BT53: 0.7943748961 | BU53: 3 | BV53: 0 | BW53: 0 | BX53: 0 | BY53: 5 | BZ53: 1 | CA53: 2 | CB53: 1 | CC53: 0
A54: NO | B54: TransOeste | C54: Barra Shopping | D54: Barra Shopping | E54: 500590.2876 | F54: 829.59835 | G54: 280.82557 | H54: 224.00504 | I54: 52.24853 | J54: 2.61759 | K54: 224.00504 | L54: 52.24853 | M54: 2.61759 | N54: 224.00504 | O54: 52.24853 | P54: 2.61759 | Q54: 224.00504 | R54: 52.24853 | S54: 2.61759 | T54: 280.82557 | U54: 280.82557 | V54: 278.87116 | W54: 1.06106 | X54: 4.09192 | Y54: 8.09015 | Z54: 7.5904 | AA54: 19.06222 | AB54: 42.8685 | AC54: 18.06024 | AD54: 59.34952 | AE54: 69.08748 | AF54: 229.26149 | AG54: 1.19754 | AH54: 10.62554 | AI54: 42.11674 | AJ54: 22.82255 | AK54: 40.80877 | AL54: 93.67566 | AM54: 34.74412 | AN54: 94.56358 | AO54: 106.98211 | AP54: 320.81396 | AQ54: 768.35057 | AR54: 447.53661 | AS54: 1 | AT54: 0.004628164983 | AU54: 0.01784826575 | AV54: 0.0352878715 | AW54: 0.03310804619 | AX54: 0.08314619259 | AY54: 0.1869851757 | AZ54: 0.07877572461 | BA54: 0.2588726087 | BB54: 0.3013479499 | BC54: 0.002675848128 | BD54: 0.02374228111 | BE54: 0.09410792114 | BF54: 0.05099593975 | BG54: 0.09118532225 | BH54: 0.2093139598 | BI54: 0.07763414037 | BJ54: 0.2112979763 | BK54: 0.2390466112 | BL54: =SUMIFS(UdS_data!L:L,UdS_data!N:N,1,UdS_data!E:E,SEE_agrg!D54) -> 500590.2881 | BM54: 1657.240203 | BN54: 0.9930404842 | BO54: 0.9930404842 | BP54: 0.9930404842 | BQ54: 1 | BR54: 0.9930404842 | BS54: 0.8903370019 | BT54: 0.9315314816 | BU54: 5 | BV54: 5 | BW54: 5 | BX54: 5 | BY54: 5 | BZ54: 5 | CA54: 3 | CB54: 4 | CC54: 0
A55: NO | B55: TransBrasil | C55: Barros Filho | D55: Barros Filho | E55: 500590.29 | F55: 3866.54457 | G55: 1297.94086 | H55: 327.41325 | I55: 88.68314 | J55: 5.86739 | K55: 326.5572 | L55: 88.66119 | M55: 5.80154 | N55: 297.51869 | O55: 85.45149 | P55: 5.77959 | Q55: 327.88706 | R55: 88.83679 | S55: 5.86739 | T55: 1297.94086 | U55: 1267.75839 | V55: 1205.49442 | W55: 23.34446 | X55: 366.14028 | Y55: 377.57673 | Z55: 141.58745 | AA55: 90.34052 | AB55: 41.47976 | AC55: 4.48766 | AD55: 1.58801 | AE55: 2.38079 | AF55: 1048.92566 | AG55: 52.75266 | AH55: 818.61168 | AI55: 725.19844 | AJ55: 240.67428 | AK55: 126.97099 | AL55: 56.99459 | AM55: 6.43858 | AN55: 2.44905 | AO55: 2.38079 | AP55: 1334.11828 | AQ55: 3366.58934 | AR55: 2032.47106 | AS55: 1 | AT55: 0.02225559054 | AU55: 0.3490621823 | AV55: 0.3599651952 | AW55: 0.1349833028 | AX55: 0.08612671369 | AY55: 0.03954499502 | AZ55: 0.00427833942 | BA55: 0.00151393951 | BB55: 0.002269741404 | BC55: 0.02595493783 | BD55: 0.402766709 | BE55: 0.3568062809 | BF55: 0.118414616 | BG55: 0.06247124129 | BH55: 0.02804201798 | BI55: 0.003167858144 | BJ55: 0.001204961806 | BK55: 0.001171377072 | BL55: =SUMIFS(UdS_data!L:L,UdS_data!N:N,1,UdS_data!E:E,SEE_agrg!D55) -> 489145.0645 | BM55: 7723.970374 | BN55: 0.3251024704 | BO55: 0.3243752801 | BP55: 0.2995126989 | BQ55: 0.9767458819 | BR55: 0.928774536 | BS55: 0.8109646676 | BT55: 0.777454544 | BU55: 5 | BV55: 0 | BW55: 0 | BX55: 0 | BY55: 5 | BZ55: 4 | CA55: 2 | CB55: 1 | CC55: 0
A56: NO | B56: TransOeste | C56: Benvindo de Novaes | D56: Benvindo de Novaes | E56: 500590.2891 | F56: 3997.47469 | G56: 1386.40319 | H56: 931.99245 | I56: 244.54176 | J56: 87.40714 | K56: 989.79357 | L56: 269.77016 | M56: 98.56226 | N56: 982.09917 | O56: 268.616 | P56: 98.56226 | Q56: 938.14867 | R56: 245.72231 | S56: 90.01675 | T56: 1386.40319 | U56: 1345.60674 | V56: 1289.80594 | W56: 5.51141 | X56: 51.85815 | Y56: 151.72908 | Z56: 81.32338 | AA56: 137.68069 | AB56: 345.07173 | AC56: 158.43065 | AD56: 177.56492 | AE56: 143.69595 | AF56: 1252.86596 | AG56: 11.46692 | AH56: 151.03995 | AI56: 370.10636 | AJ56: 200.54679 | AK56: 337.15571 | AL56: 687.46488 | AM56: 269.94254 | AN56: 269.56654 | AO56: 210.83491 | AP56: 1015.87498 | AQ56: 3523.99958 | AR56: 2508.1246 | AS56: 1 | AT56: 0.004399042017 | AU56: 0.04139161862 | AV56: 0.121105597 | AW56: 0.0649098807 | AX56: 0.1098925938 | AY56: 0.2754258963 | AZ56: 0.126454589 | BA56: 0.1417269889 | BB56: 0.1146937937 | BC56: 0.004571910024 | BD56: 0.06022027375 | BE56: 0.1475629879 | BF56: 0.07995886249 | BG56: 0.1344254229 | BH56: 0.2740951865 | BI56: 0.1076272447 | BJ56: 0.1074773319 | BK56: 0.08406077992 | BL56: =SUMIFS(UdS_data!L:L,UdS_data!N:N,1,UdS_data!E:E,SEE_agrg!D56) -> 500590.2881 | BM56: 7985.521848 | BN56: 0.9116693896 | BO56: 0.9796039131 | BP56: 0.9732215273 | BQ56: 0.970573892 | BR56: 0.9303252829 | BS56: 0.9474972174 | BT56: 0.9503828777 | BU56: 5 | BV56: 4 | BW56: 5 | BX56: 5 | BY56: 5 | BZ56: 4 | CA56: 4 | CB56: 5 | CC56: 0
A57: NO | B57: TransOlmpica | C57: Boina | D57: Boina | E57: 500590.2876 | F57: 5061.20335 | G57: 1505.48474 | H57: 907.75762 | I57: 246.87458 | J57: 17.84416 | K57: 1147.33194 | L57: 312.50001 | M57: 19.67652 | N57: 764.99285 | O57: 171.72038 | P57: 7.07551 | Q57: 1113.11382 | R57: 303.35637 | S57: 19.6712 | T57: 1505.48474 | U57: 1501.65401 | V57: 1222.32818 | W57: 15.76662 | X57: 303.8378 | Y57: 385.51486 | Z57: 147.57259 | AA57: 157.69434 | AB57: 188.90059 | AC57: 38.17092 | AD57: 36.01509 | AE57: 17.55965 | AF57: 1291.03246 | AG57: 60.12169 | AH57: 682.32861 | AI57: 834.45559 | AJ57: 276.44921 | AK57: 300.77921 | AL57: 386.83408 | AM57: 64.57854 | AN57: 55.97426 | AO57: 22.2175 | AP57: 1699.86754 | AQ57: 4383.60623 | AR57: 2683.73869 | AS57: 1 | AT57: 0.01221241176 | AU57: 0.2353448185 | AV57: 0.2986097344 | AW57: 0.1143058711 | AX57: 0.1221459141 | AY57: 0.1463174597 | AZ57: 0.02956619696 | BA57: 0.02789634739 | BB57: 0.01360124594 | BC57: 0.02240221458 | BD57: 0.2542455465 | BE57: 0.310930268 | BF57: 0.1030089893 | BG57: 0.1120747005 | BH57: 0.1441399945 | BI57: 0.02406290159 | BJ57: 0.02085682194 | BK57: 0.008278563067 | BL57: =SUMIFS(UdS_data!L:L,UdS_data!N:N,1,UdS_data!E:E,SEE_agrg!D57) -> 397023.3304 | BM57: 10110.47053 | BN57: 0.7788032179 | BO57: 0.9827455773 | BP57: 0.6269002368 | BQ57: 0.997455484 | BR57: 0.8119166854 | BS57: 0.9045723198 | BT57: 0.8922928703 | BU57: 0 | BV57: 1 | BW57: 5 | BX57: 0 | BY57: 5 | BZ57: 2 | CA57: 4 | CB57: 3 | CC57: 0
A58: NO | B58: TransOeste | C58: Bosque da Barra | D58: Bosque da Barra | E58: 500590.2861 | F58: 3962.91234 | G58: 1409.96411 | H58: 1115.16751 | I58: 200.40815 | J58: 28.84374 | K58: 1123.60237 | L58: 201.07406 | M58: 28.84374 | N58: 1123.16951 | O58: 201.07406 | P58: 28.84374 | Q58: 1123.60237 | R58: 201.07406 | S58: 28.84374 | T58: 1409.96411 | U58: 1409.96411 | V58: 1361.45916 | W58: 2.93941 | X58: 10.60504 | Y58: 33.27663 | Z58: 43.02204 | AA58: 106.37325 | AB58: 291.92705 | AC58: 164.43135 | AD58: 221.88986 | AE58: 352.627 | AF58: 1227.09163 | AG58: 4.83656 | AH58: 54.99676 | AI58: 191.36339 | AJ58: 139.27326 | AK58: 279.9281 | AL58: 649.64759 | AM58: 274.82411 | AN58: 325.6189 | AO58: 456.69375 | AP58: 1271.28509 | AQ58: 3648.46751 | AR58: 2377.18242 | AS58: 1 | AT58: 0.002395428286 | AU58: 0.008642418985 | AV58: 0.02711829271 | AW58: 0.03506016906 | AX58: 0.08668729164 | AY58: 0.2379015901 | AZ58: 0.1340008733 | BA58: 0.180825828 | BB58: 0.287368108 | BC58: 0.002034576715 | BD58: 0.02313527121 | BE58: 0.08050008632 | BF58: 0.05858753574 | BG58: 0.1177562553 | BH58: 0.2732847023 | BI58: 0.1156091799 | BJ58: 0.1369768249 | BK58: 0.1921155676 | BL58: =SUMIFS(UdS_data!L:L,UdS_data!N:N,1,UdS_data!E:E,SEE_agrg!D58) -> 500590.2881 | BM58: 7916.478705 | BN58: 0.9535132068 | BO58: 0.9599678179 | BP58: 0.9596608172 | BQ58: 1 | BR58: 0.9655984506 | BS58: 0.9006845137 | BT58: 0.9359553014 | BU58: 5 | BV58: 5 | BW58: 5 | BX58: 5 | BY58: 5 | BZ58: 5 | CA58: 4 | CB58: 4 | CC58: 1
A59: NO | B59: TransBrasil | C59: Brs de Pina | D59: Brs de Pina | E59: 500590.2856 | F59: 7137.40899 | G59: 2084.35569 | H59: 1399.17883 | I59: 377.06493 | J59: 52.5591 | K59: 1496.7062 | L59: 397.32475 | M59: 59.3123 | N59: 202.47501 | O59: 55.57135 | P59: 5.10285 | Q59: 1561.64362 | R59: 418.69146 | S59: 59.67398 | T59: 2084.35569 | U59: 2073.59692 | V59: 2023.46351 | W59: 36.1402 | X59: 639.88762 | Y59: 714.0637 | Z59: 226.48507 | AA59: 160.89531 | AB59: 60.37925 | AC59: 7.58019 | AD59: 3.15456 | AE59: 1 | AF59: 1849.5859 | AG59: 102.06646 | AH59: 1411.1622 | AI59: 1480.86039 | AJ59: 353.01874 | AK59: 223.41436 | AL59: 78.87694 | AM59: 7.73475 | AN59: 5.15456 | AO59: 2 | AP59: 2506.37867 | AQ59: 6170.66707 | AR59: 3664.2884 | AS59: 1 | AT59: 0.01953961695 | AU59: 0.3459626395 | AV59: 0.3860667947 | AW59: 0.1224517715 | AX59: 0.08698990947 | AY59: 0.03264473956 | AZ59: 0.004098317358 | BA59: 0.001705549334 | BB59: 0.0005406615611 | BC59: 0.02785437413 | BD59: 0.385112209 | BE59: 0.4041331436 | BF59: 0.09634032627 | BG59: 0.06097073582 | BH59: 0.02152585479 | BI59: 0.002110846406 | BJ59: 0.001406701503 | BK59: 0.0005458085668 | BL59: =SUMIFS(UdS_data!L:L,UdS_data!N:N,1,UdS_data!E:E,SEE_agrg!D59) -> 481007.8029 | BM59: 14257.98541 | BN59: 0.8773948078 | BO59: 0.9371448738 | BP59: 0.1262496661 | BQ59: 0.9948383234 | BR59: 0.9707860898 | BS59: 0.7956372693 | BT59: 0.7583851561 | BU59: 0 | BV59: 2 | BW59: 4 | BX59: 0 | BY59: 5 | BZ59: 5 | CA59: 1 | CB59: 1 | CC59: 1
A60: NO | B60: TransOeste | C60: Cajueiros | D60: Cajueiros | E60: 500590.289 | F60: 6283.13123 | G60: 1951.62383 | H60: 1203.05947 | I60: 212.89645 | J60: 34.77722 | K60: 1473.54604 | L60: 269.56819 | M60: 42.69046 | N60: 347.19307 | O60: 82.89649 | P60: 11.36609 | Q60: 1352.49264 | R60: 260.25143 | S60: 39.31691 | T60: 1951.62383 | U60: 1908.00163 | V60: 1793.04369 | W60: 28.93051 | X60: 419.9449 | Y60: 639.04641 | Z60: 223.60083 | AA60: 179.71369 | AB60: 93.28792 | AC60: 16.48155 | AD60: 3.45195 | AE60: 4.67106 | AF60: 1609.12882 | AG60: 96.5107 | AH60: 956.46423 | AI60: 1284.3727 | AJ60: 342.61646 | AK60: 262.04672 | AL60: 143.15042 | AM60: 21.38004 | AN60: 5.44297 | AO60: 6.66208 | AP60: 2299.65112 | AQ60: 5418.29744 | AR60: 3118.64632 | AS60: 1 | AT60: 0.0179789894 | AU60: 0.2609765575 | AV60: 0.3971381297 | AW60: 0.1389576939 | AX60: 0.1116838427 | AY60: 0.0579741776 | AZ60: 0.01024252987 | BA60: 0.002145229118 | BB60: 0.002902850252 | BC60: 0.03094634341 | BD60: 0.3066921131 | BE60: 0.411836601 | BF60: 0.1098606334 | BG60: 0.08402578975 | BH60: 0.04590146022 | BI60: 0.006855551353 | BJ60: 0.001745298903 | BK60: 0.002136208892 | BL60: =SUMIFS(UdS_data!L:L,UdS_data!N:N,1,UdS_data!E:E,SEE_agrg!D60) -> 485798.0918 | BM60: 12551.4445 | BN60: 0.7433467032 | BO60: 0.9150352965 | BP60: 0.2261991492 | BQ60: 0.9776482541 | BR60: 0.9187445154 | BS60: 0.8309113129 | BT60: 0.8033418467 | BU60: 0 | BV60: 1 | BW60: 4 | BX60: 0 | BY60: 5 | BZ60: 4 | CA60: 2 | CB60: 2 | CC60: 1
A61: NO | B61: TransBrasil | C61: Carrefour | D61: Carrefour | E61: 500590.2866 | F61: 7130.23145 | G61: 2411.05257 | H61: 1840.44584 | I61: 452.63212 | J61: 91.90717 | K61: 1841.44584 | L61: 455.63212 | M61: 92.90717 | N61: 1715.48447 | O61: 422.46857 | P61: 77.94915 | Q61: 1845.10064 | R61: 453.46397 | S61: 93.90717 | T61: 2411.05257 | U61: 2410.67216 | V61: 2402.23052 | W61: 19.54398 | X61: 390.19034 | Y61: 642.71984 | Z61: 361.66809 | AA61: 323.23349 | AB61: 194.29532 | AC61: 27.66734 | AD61: 8.82908 | AE61: 20.56369 | AF61: 1988.71117 | AG61: 48.84435 | AH61: 949.79985 | AI61: 1422.11505 | AJ61: 654.00514 | AK61: 540.15151 | AL61: 301.87309 | AM61: 41.13644 | AN61: 12.63684 | AO61: 25.46285 | AP61: 2359.14339 | AQ61: 6355.16851 | AR61: 3996.02512 | AS61: 1 | AT61: 0.009827460264 | AU61: 0.196202619 | AV61: 0.3231841052 | AW61: 0.1818605414 | AX61: 0.1625341552 | AY61: 0.09769911435 | AZ61: 0.01391219621 | BA61: 0.004439598939 | BB61: 0.01034020943 | BC61: 0.01222323397 | BD61: 0.237686156 | BE61: 0.35588241 | BF61: 0.1636639211 | BG61: 0.1351722008 | BH61: 0.07554334143 | BI61: 0.01029433969 | BJ61: 0.003162352493 | BK61: 0.006372044528 | BL61: =SUMIFS(UdS_data!L:L,UdS_data!N:N,1,UdS_data!E:E,SEE_agrg!D61) -> 497838.0935 | BM61: 14243.64723 | BN61: 0.9891883569 | BO61: 0.9912621399 | BP61: 0.9190600892 | BQ61: 0.9998422224 | BR61: 0.9963409964 | BS61: 0.8860545936 | BT61: 0.8615056701 | BU61: 0 | BV61: 5 | BW61: 5 | BX61: 4 | BY61: 5 | BZ61: 5 | CA61: 3 | CB61: 3 | CC61: 1
A62: NO | B62: TransOeste | C62: Cesarinho | D62: Cesarinho | E62: 500590.2895 | F62: 3599.84737 | G62: 1012.68883 | H62: 822.31674 | I62: 99.07917 | J62: 21.91146 | K62: 848.34793 | L62: 104.89328 | M62: 22.23737 | N62: 391.73175 | O62: 36.14377 | P62: 6.37811 | Q62: 823.57322 | R62: 101.31089 | S62: 21.23737 | T62: 1012.68883 | U62: 1009.50469 | V62: 934.69578 | W62: 20.93831 | X62: 258.90183 | Y62: 314.75683 | Z62: 124.24628 | AA62: 77.58443 | AB62: 43.96272 | AC62: 0.91979 | AD62: 0.31113 | AE62: 0.41761 | AF62: 842.03893 | AG62: 65.01793 | AH62: 549.64372 | AI62: 626.51862 | AJ62: 182.02955 | AK62: 113.03997 | AL62: 59.82087 | AM62: 1.42266 | AN62: 0.31113 | AO62: 0.41761 | AP62: 1166.65055 | AQ62: 2764.87261 | AR62: 1598.22206 | AS62: 1 | AT62: 0.02486620185 | AU62: 0.3074701427 | AV62: 0.3738031803 | AW62: 0.1475540804 | AX62: 0.09213876845 | AY62: 0.0522098426 | AZ62: 0.001092336669 | BA62: 0.0003694959804 | BB62: 0.0004959509414 | BC62: 0.04068141194 | BD62: 0.3439094815 | BE62: 0.3920097436 | BF62: 0.1138950303 | BG62: 0.07072857573 | BH62: 0.03742963603 | BI62: 0.0008901516476 | BJ62: 0.0001946725726 | BK62: 0.0002612966061 | BL62: =SUMIFS(UdS_data!L:L,UdS_data!N:N,1,UdS_data!E:E,SEE_agrg!D62) -> 460790.5297 | BM62: 7191.204954 | BN62: 0.9314878787 | BO62: 0.9632559885 | BP62: 0.4288125011 | BQ62: 0.9968557568 | BR62: 0.9229841905 | BS62: 0.8236414834 | BT62: 0.7954010624 | BU62: 5 | BV62: 4 | BW62: 5 | BX62: 0 | BY62: 5 | BZ62: 4 | CA62: 2 | CB62: 1 | CC62: 0
A63: NO | B63: TransOeste | C63: Cesaro I | D63: Cesaro I | E63: 500590.2881 | F63: 4964.71445 | G63: 1505.02511 | H63: 845.22393 | I63: 110.04113 | J63: 14.23368 | K63: 1127.02797 | L63: 159.05769 | M63: 24.78568 | N63: 125.02982 | O63: 26.2557 | P63: 2.88844 | Q63: 983.67738 | R63: 129.36061 | S63: 19.17185 | T63: 1505.02511 | U63: 1497.13219 | V63: 1314.93863 | W63: 34.2477 | X63: 397.33773 | Y63: 517.24068 | Z63: 171.1742 | AA63: 100.78094 | AB63: 30.25924 | AC63: 4.50597 | AD63: 0.74246 | AE63: 0.65297 | AF63: 1256.94189 | AG63: 92.10914 | AH63: 894.56232 | AI63: 993.14881 | AJ63: 238.94738 | AK63: 143.84846 | AL63: 38.56089 | AM63: 5.99162 | AN63: 0.74246 | AO63: 0.65297 | AP63: 1804.95137 | AQ63: 4213.51542 | AR63: 2408.56405 | AS63: 1 | AT63: 0.02724684432 | AU63: 0.3161146376 | AV63: 0.4115072336 | AW63: 0.1361830657 | AX63: 0.08017947433 | AY63: 0.02407369843 | AZ63: 0.003584867396 | BA63: 0.0005906876093 | BB63: 0.0005194910005 | BC63: 0.0382423461 | BD63: 0.3714089812 | BE63: 0.4123406268 | BF63: 0.09920740119 | BG63: 0.05972374287 | BH63: 0.01600990848 | BI63: 0.002487631583 | BJ63: 0.0003082583583 | BK63: 0.0002711034402 | BL63: =SUMIFS(UdS_data!L:L,UdS_data!N:N,1,UdS_data!E:E,SEE_agrg!D63) -> 500590.2881 | BM63: 9917.720276 | BN63: 0.6441744616 | BO63: 0.8709963251 | BP63: 0.1024394603 | BQ63: 0.9947556224 | BR63: 0.8736987983 | BS63: 0.7924762727 | BT63: 0.7615084401 | BU63: 0 | BV63: 0 | BW63: 2 | BX63: 0 | BY63: 5 | BZ63: 2 | CA63: 1 | CB63: 1 | CC63: 1
A64: NO | B64: TransOeste | C64: Cesaro II | D64: Cesaro II | E64: 500590.2861 | F64: 4864.34637 | G64: 1440.3713 | H64: 737.78534 | I64: 66.47344 | J64: 10.57441 | K64: 1119.43853 | L64: 118.67173 | M64: 27.09041 | N64: 43.12606 | O64: 6.49663 | P64: 0.27683 | Q64: 850.46278 | R64: 83.73112 | S64: 16.29986 | T64: 1440.3713 | U64: 1437.77401 | V64: 1273.70484 | W64: 39.46452 | X64: 382.46849 | Y64: 519.53156 | Z64: 156.44084 | AA64: 83.74121 | AB64: 23.08556 | AC64: 2.57954 | AD64: 0.05696 | AE64: 0 | AF64: 1207.36868 | AG64: 123.49777 | AH64: 855.32104 | AI64: 969.76726 | AJ64: 226.66715 | AK64: 119.6609 | AL64: 32.14201 | AM64: 2.58239 | AN64: 0.1363 | AO64: 0 | AP64: 1724.9082 | AQ64: 4054.68302 | AR64: 2329.77482 | AS64: 1 | AT64: 0.03268638706 | AU64: 0.3167785419 | AV64: 0.4303006767 | AW64: 0.1295717229 | AX64: 0.06935844153 | AY64: 0.01912055562 | AZ64: 0.002136497362 | BA64: 4.717697332e-05 | BB64: 0 | BC64: 0.0530084577 | BD64: 0.3671260556 | BE64: 0.4162493524 | BF64: 0.09729144124 | BG64: 0.05136157322 | BH64: 0.01379618739 | BI64: 0.001108429011 | BJ64: 5.850350808e-05 | BK64: 0 | BL64: =SUMIFS(UdS_data!L:L,UdS_data!N:N,1,UdS_data!E:E,SEE_agrg!D64) -> 495412.7106 | BM64: 9717.220859 | BN64: 0.5657105151 | BO64: 0.8783850872 | BP64: 0.03464351171 | BQ64: 0.9981967913 | BR64: 0.8842892385 | BS64: 0.7778865329 | BT64: 0.7614560664 | BU64: 1 | BV64: 0 | BW64: 2 | BX64: 0 | BY64: 5 | BZ64: 2 | CA64: 1 | CB64: 1 | CC64: 1
A65: NO | B65: TransOeste | C65: Cesaro III | D65: Cesaro III | E65: 500590.2871 | F65: 5021.37685 | G65: 1512.61206 | H65: 1075.67426 | I65: 127.4228 | J65: 26.64613 | K65: 1248.09421 | L65: 149.11522 | M65: 33.75994 | N65: 44.30462 | O65: 6.17377 | P65: 0.7794 | Q65: 1173.83732 | R65: 140.07138 | S65: 29.18341 | T65: 1512.61206 | U65: 1510.23308 | V65: 1352.69666 | W65: 41.6761 | X65: 385.48646 | Y65: 549.27054 | Z65: 200.11719 | AA65: 97.98805 | AB65: 34.38977 | AC65: 7.19973 | AD65: 0 | AE65: 0 | AF65: 1316.12784 | AG65: 129.38107 | AH65: 873.36682 | AI65: 1067.84003 | AJ65: 304.06688 | AK65: 153.54202 | AL65: 46.14366 | AM65: 7.88917 | AN65: 2.37888 | AO65: 0 | AP65: 1661.82183 | AQ65: 4246.43036 | AR65: 2584.60853 | AS65: 1 | AT65: 0.0316656929 | AU65: 0.2928943893 | AV65: 0.4173382884 | AW65: 0.1520499635 | AX65: 0.0744517721 | AY65: 0.02612950578 | AZ65: 0.005470388044 | BA65: 0 | BB65: 0 | BC65: 0.05005828484 | BD65: 0.3379106777 | BE65: 0.4131534883 | BF65: 0.1176452358 | BG65: 0.05940629624 | BH65: 0.01785324913 | BI65: 0.003052365536 | BJ65: 0.000920402441 | BK65: 0 | BL65: =SUMIFS(UdS_data!L:L,UdS_data!N:N,1,UdS_data!E:E,SEE_agrg!D65) -> 476332.5023 | BM65: 10030.91146 | BN65: 0.8129931147 | BO65: 0.9460253609 | BP65: 0.03388693728 | BQ65: 0.9984272372 | BR65: 0.8942786427 | BS65: 0.7983719771 | BT65: 0.7817808656 | BU65: 0 | BV65: 2 | BW65: 4 | BX65: 0 | BY65: 5 | BZ65: 2 | CA65: 1 | CB65: 1 | CC65: 1
A66: NO | B66: TransOeste | C66: Cetex | D66: Cetex | E66: 500590.2876 | F66: 127.47859 | G66: 39.6505 | H66: 3.12696 | I66: 0.4343 | J66: 0.26058 | K66: 22.57088 | L66: 3.9087 | M66: 0.69488 | N66: 11.63924 | O66: 2.08464 | P66: 0.52116 | Q66: 12.13158 | R66: 1.91092 | S66: 0.69488 | T66: 39.6505 | U66: 31.22508 | V66: 7.58097 | W66: 0.26863 | X66: 5.38234 | Y66: 13.80607 | Z66: 4.97517 | AA66: 4.01971 | AB66: 5.74886 | AC66: 1.99778 | AD66: 1.38976 | AE66: 0.26058 | AF66: 37.8489 | AG66: 2.48843 | AH66: 14.13612 | AI66: 26.57151 | AJ66: 6.89414 | AK66: 6.9971 | AL66: 7.8335 | AM66: 2.43208 | AN66: 1.38976 | AO66: 0.44235 | AP66: 39.06832 | AQ66: 108.25331 | AR66: 69.18499 | AS66: 1 | AT66: 0.007097432158 | AU66: 0.1422059822 | AV66: 0.3647680646 | AW66: 0.1314482059 | AX66: 0.1062041433 | AY66: 0.1518897511 | AZ66: 0.05278303993 | BA66: 0.03671863647 | BB66: 0.006884744339 | BC66: 0.03596777278 | BD66: 0.2043235101 | BE66: 0.3840646649 | BF66: 0.09964791496 | BG66: 0.101136099 | BH66: 0.1132254265 | BI66: 0.03515328975 | BJ66: 0.02008759414 | BK66: 0.006393727888 | BL66: =SUMIFS(UdS_data!L:L,UdS_data!N:N,1,UdS_data!E:E,SEE_agrg!D66) -> 123560.966 | BM66: 254.6565388 | BN66: 0.09638819183 | BO66: 0.6853497434 | BP66: 0.3592650786 | BQ66: 0.7875078498 | BR66: 0.1911948147 | BS66: 0.8897188382 | BT66: 0.8716434706 | BU66: 5 | BV66: 0 | BW66: 0 | BX66: 0 | BY66: 1 | BZ66: 0 | CA66: 3 | CB66: 3 | CC66: 1
A67: NO | B67: TransOeste | C67: Citt Amrica | D67: Citt Amrica | E67: 500590.2886 | F67: 9932.35278 | G67: 3880.01993 | H67: 2548.44654 | I67: 1096.04651 | J67: 113.13828 | K67: 2550.04398 | L67: 1096.57899 | M67: 113.13828 | N67: 2523.95246 | O67: 1082.06891 | P67: 113.13828 | Q67: 2550.04398 | R67: 1096.57899 | S67: 113.13828 | T67: 3880.01993 | U67: 3864.2313 | V67: 3079.72286 | W67: 5.98456 | X67: 41.82173 | Y67: 140.361 | Z67: 143.64774 | AA67: 384.69622 | AB67: 1033.29961 | AC67: 546.92771 | AD67: 573.63913 | AE67: 649.66589 | AF67: 3520.04359 | AG67: 35.30212 | AH67: 177.37049 | AI67: 541.75691 | AJ67: 413.10478 | AK67: 909.39877 | AL67: 2028.06652 | AM67: 893.13155 | AN67: 885.72636 | AO67: 882.53051 | AP67: 2292.55183 | AQ67: 9058.93984 | AR67: 6766.38801 | AS67: 1 | AT67: 0.001700138037 | AU67: 0.01188102617 | AV67: 0.0398747903 | AW67: 0.04080851169 | AX67: 0.1092873455 | AY67: 0.2935473904 | AZ67: 0.1553752662 | BA67: 0.1629636439 | BB67: 0.1845618878 | BC67: 0.005217276921 | BD67: 0.02621346718 | BE67: 0.08006589471 | BF67: 0.06105248168 | BG67: 0.1343994416 | BH67: 0.299726607 | BI67: 0.1319953199 | BJ67: 0.1309009118 | BK67: 0.1304285992 | BL67: =SUMIFS(UdS_data!L:L,UdS_data!N:N,1,UdS_data!E:E,SEE_agrg!D67) -> 454799.4782 | BM67: 19841.2814 | BN67: 0.9684567084 | BO67: 0.9690056541 | BP67: 0.9585413779 | BQ67: 0.9959307864 | BR67: 0.793738928 | BS67: 0.9154407486 | BT67: 0.9333888746 | BU67: 0 | BV67: 5 | BW67: 5 | BX67: 5 | BY67: 5 | BZ67: 1 | CA67: 4 | CB67: 4 | CC67: 1
A68: NO | B68: TransOeste | C68: Cndido Magalhes | D68: Cndido Magalhes | E68: 500590.2852 | F68: 2076.23613 | G68: 736.89362 | H68: 501.07182 | I68: 193.17147 | J68: 22.95163 | K68: 501.76161 | L68: 193.06293 | M68: 24.93873 | N68: 458.82968 | O68: 176.00086 | P68: 21.9753 | Q68: 510.2634 | R68: 193.8716 | S68: 24.93873 | T68: 736.89362 | U68: 734.99266 | V68: 604.62931 | W68: 3.64829 | X68: 85.99807 | Y68: 136.07367 | Z68: 85.58775 | AA68: 129.85607 | AB68: 154.21631 | AC68: 35.67922 | AD68: 24.146 | AE68: 15.05609 | AF68: 670.26147 | AG68: 14.39617 | AH68: 211.85373 | AI68: 315.21165 | AJ68: 173.16485 | AK68: 227.68539 | AL68: 258.30495 | AM68: 52.38632 | AN68: 35.08217 | AO68: 26.39914 | AP68: 563.46651 | AQ68: 1877.95088 | AR68: 1314.48437 | AS68: 1 | AT68: 0.005443084771 | AU68: 0.1283052568 | AV68: 0.2030158022 | AW68: 0.1276930777 | AX68: 0.1937394223 | AY68: 0.230083806 | AZ68: 0.05323179326 | BA68: 0.03602474718 | BB68: 0.02246300985 | BC68: 0.01095195221 | BD68: 0.1611686946 | BE68: 0.2397987053 | BF68: 0.1317359521 | BG68: 0.1732127024 | BH68: 0.1965066728 | BI68: 0.03985313268 | BJ68: 0.02668892138 | BK68: 0.02008326657 | BL68: =SUMIFS(UdS_data!L:L,UdS_data!N:N,1,UdS_data!E:E,SEE_agrg!D68) -> 489703.8765 | BM68: 4147.575755 | BN68: 0.9732679189 | BO68: 0.9767532931 | BP68: 0.8913170398 | BQ68: 0.9974203061 | BR68: 0.820510985 | BS68: 0.9347373915 | BT68: 0.9311911937 | BU68: 5 | BV68: 5 | BW68: 5 | BX68: 2 | BY68: 5 | BZ68: 2 | CA68: 4 | CB68: 4 | CC68: 1
A69: =IF(B69="TransCarioca","OK","NO") -> NO | B69: TransBrasil | C69: Coelho Neto | D69: Coelho Neto | E69: 500590.2866 | F69: 7720.61829 | G69: 2683.76836 | H69: 2052.81191 | I69: 490.80229 | J69: 76.32656 | K69: 2058.36743 | L69: 491.61247 | M69: 76.67378 | N69: 2051.99965 | O69: 486.56005 | P69: 76.67378 | Q69: 2058.36743 | R69: 491.61247 | S69: 76.67378 | T69: 2683.76836 | U69: 2682.25885 | V69: 2419.61196 | W69: 38.29945 | X69: 448.64737 | Y69: 843.13538 | Z69: 425.8413 | AA69: 345.70602 | AB69: 205.62872 | AC69: 14.7814 | AD69: 5.48896 | AE69: 0.91854 | AF69: 2328.44714 | AG69: 108.44221 | AH69: 1050.44355 | AI69: 1781.19539 | AJ69: 658.64344 | AK69: 521.91585 | AL69: 269.41639 | AM69: 23.18308 | AN69: 5.89054 | AO69: 2.43586 | AP69: 2409.22059 | AQ69: 6830.7869 | AR69: 4421.56631 | AS69: =IF(OR(G69=0,T69=0),0,1) -> 1 | AT69: =IF($AF69=0,0,W69/$AF69) -> 0.01644849451 | AU69: =IF($AF69=0,0,X69/$AF69) -> 0.1926809341 | AV69: =IF($AF69=0,0,Y69/$AF69) -> 0.3621020059 | AW69: =IF($AF69=0,0,Z69/$AF69) -> 0.1828863935 | AX69: =IF($AF69=0,0,AA69/$AF69) -> 0.1484706327 | AY69: =IF($AF69=0,0,AB69/$AF69) -> 0.08831152594 | AZ69: =IF($AF69=0,0,AC69/$AF69) -> 0.006348179328 | BA69: =IF($AF69=0,0,AD69/$AF69) -> 0.00235734791 | BB69: =IF($AF69=0,0,AE69/$AF69) -> 0.0003944860866 | BC69: 0.02452574549 | BD69: 0.2375727234 | BE69: 0.4028426275 | BF69: 0.1489615656 | BG69: 0.1180386798 | BH69: 0.06093234187 | BI69: 0.005243182704 | BJ69: 0.001332229257 | BK69: 0.0005509043242 | BL69: =SUMIFS(UdS_data!L:L,UdS_data!N:N,1,UdS_data!E:E,SEE_agrg!D69) -> 500590.2881 | BM69: =1000000*F69/E69 -> 15423.02857 | BN69: =IF(G69=0,0,(H69+I69+J69)/G69) -> 0.9762171725 | BO69: =IF(G69=0,0,(K69+L69+M69)/G69) -> 0.9787184763 | BP69: =IF(G69=0,0,(N69+O69+P69)/G69) -> 0.974463191 | BQ69: =IF(T69=0,0,U69/T69) -> 0.9994375409 | BR69: =IF(T69=0,0,V69/T69) -> 0.9015725783 | BS69: =IF(AS69<>0,(1-SUMSQ(AT69:BB69))/(1-1/9),0) -> 0.8641684604 | BT69: 0.8334118224 | BU69: =IF(AND($BM69<=dens_ref,$BM69<=dens_urb_mun),5,IF(AND($BM69<=dens_ref,$BM69>dens_urb_mun),3,IF(AND($BM69>dens_ref,$BM69<=dens_urb_mun),2,IF($BM69<(1+dens_toler)*dens_ref,1,0)))) -> 0 | BV69: =IF(BN69>0.95,5,IF(BN69>0.9,4,IF(BN69>0.8,2,IF(BN69>0.7,1,0)))) -> 5 | BW69: =IF(BO69>0.95,5,IF(BO69>0.9,4,IF(BO69>0.8,2,IF(BO69>0.7,1,0)))) -> 5 | BX69: =IF(BP69>0.95,5,IF(BP69>0.9,4,IF(BP69>0.8,2,IF(BP69>0.7,1,0)))) -> 5 | BY69: =IF(BQ69>0.95,5,IF(BQ69>0.9,4,IF(BQ69>0.8,2,IF(BQ69>0.7,1,0)))) -> 5 | BZ69: =IF(BR69>0.95,5,IF(BR69>0.9,4,IF(BR69>0.8,2,IF(BR69>0.7,1,0)))) -> 4 | CA69: 3 | CB69: 2 | CC69: 0
A70: NO | B70: TransOlmpica | C70: Colonia Juliano Moreira | D70: Colonia Juliano Moreira | E70: 500590.2871 | F70: 2049.22924 | G70: 675.48614 | H70: 483.51594 | I70: 107.2881 | J70: 15.06002 | K70: 525.08868 | L70: 116.15023 | M70: 15.46084 | N70: 467.27525 | O70: 105.12062 | P70: 14.788 | Q70: 524.88162 | R70: 116.12524 | S70: 15.4537 | T70: 675.48614 | U70: 670.17007 | V70: 407.16738 | W70: 2.65624 | X70: 106.49892 | Y70: 188.43475 | Z70: 118.83426 | AA70: 108.63524 | AB70: 79.11582 | AC70: 11.86257 | AD70: 8.11194 | AE70: 2.80012 | AF70: 626.94986 | AG70: 14.47327 | AH70: 280.36659 | AI70: 435.45308 | AJ70: 202.81963 | AK70: 178.35028 | AL70: 112.60135 | AM70: 16.34274 | AN70: 8.55277 | AO70: 3.22705 | AP70: 562.31024 | AQ70: 1814.497 | AR70: 1252.18676 | AS70: 1 | AT70: 0.004236766238 | AU70: 0.1698683209 | AV70: 0.3005579266 | AW70: 0.1895434828 | AX70: 0.1732758023 | AY70: 0.1261916224 | AZ70: 0.01892108246 | BA70: 0.01293873804 | BB70: 0.004466258275 | BC70: =IF($AR70=0,0,AG70/$AR70) -> 0.01155839565 | BD70: =IF($AR70=0,0,AH70/$AR70) -> 0.2239015768 | BE70: =IF($AR70=0,0,AI70/$AR70) -> 0.3477541002 | BF70: =IF($AR70=0,0,AJ70/$AR70) -> 0.1619723483 | BG70: =IF($AR70=0,0,AK70/$AR70) -> 0.142431054 | BH70: =IF($AR70=0,0,AL70/$AR70) -> 0.08992376664 | BI70: =IF($AR70=0,0,AM70/$AR70) -> 0.01305135985 | BJ70: =IF($AR70=0,0,AN70/$AR70) -> 0.006830267076 | BK70: =IF($AR70=0,0,AO70/$AR70) -> 0.002577131545 | BL70: =SUMIFS(UdS_data!L:L,UdS_data!N:N,1,UdS_data!E:E,SEE_agrg!D70) -> 319777.301 | BM70: 4093.625651 | BN70: 0.8969304093 | BO70: 0.9721883413 | BP70: 0.8692759706 | BQ70: 0.9921300088 | BR70: 0.602776809 | BS70: 0.8981671604 | BT70: =IF(AS70<>0,(1-SUMSQ(BC70:BK70))/(1-1/9),0) -> 0.8707162618 | BU70: 5 | BV70: 2 | BW70: 5 | BX70: 2 | BY70: 5 | BZ70: 0 | CA70: =IF(BS70>=0.95,5,IF(BS70>=0.9,4,IF(BS70>=0.85,3,IF(BS70>=0.8,2,IF(BS70>=0.75,1,0))))) -> 3 | CB70: =IF(BT70>=0.95,5,IF(BT70>=0.9,4,IF(BT70>=0.85,3,IF(BT70>=0.8,2,IF(BT70>=0.75,1,0))))) -> 3 | CC70: =IF(CB70=CA70,1,0) -> 1
A71: NO | B71: TransBrasil | C71: Correia Andrade | D71: Correia Andrade | E71: 500590.2861 | F71: 2911.83041 | G71: 991.57172 | H71: 696.20387 | I71: 198.79079 | J71: 38.20965 | K71: 721.23919 | L71: 208.6367 | M71: 40.15939 | N71: 640.92806 | O71: 177.80888 | P71: 34.93014 | Q71: 696.83055 | R71: 198.76249 | S71: 38.20965 | T71: 991.57172 | U71: 978.24593 | V71: 962.05743 | W71: 6.3791 | X71: 218.64974 | Y71: 300.88116 | Z71: 172.20139 | AA71: 100.01776 | AB71: 61.25151 | AC71: 10.72325 | AD71: 3.57794 | AE71: 0.68218 | AF71: 874.36403 | AG71: 34.25619 | AH71: 527.3704 | AI71: 645.48638 | AJ71: 274.21191 | AK71: 157.32352 | AL71: 93.18802 | AM71: 11.99118 | AN71: 4.04367 | AO71: 0.68218 | AP71: 816.01755 | AQ71: 2564.571 | AR71: 1748.55345 | AS71: 1 | AT71: 0.007295702683 | AU71: 0.2500671717 | AV71: 0.344114293 | AW71: 0.1969447325 | AX71: 0.1143891521 | AY71: 0.07005264158 | AZ71: 0.01226405665 | BA71: 0.00409204848 | BB71: 0.0007802013539 | BC71: 0.01959115977 | BD71: 0.30160382 | BE71: 0.3691545031 | BF71: 0.1568221492 | BG71: 0.0899735264 | BH71: 0.05329435025 | BI71: 0.006857771491 | BJ71: 0.00231258015 | BK71: 0.0003901396323 | BL71: =SUMIFS(UdS_data!L:L,UdS_data!N:N,1,UdS_data!E:E,SEE_agrg!D71) -> 500590.2881 | BM71: 5816.793675 | BN71: 0.9411364717 | BO71: 0.978280502 | BP71: 0.8609231816 | BQ71: 0.9865609419 | BR71: 0.9702348409 | BS71: 0.8573077088 | BT71: 0.8288944156 | BU71: 5 | BV71: 4 | BW71: 5 | BX71: 2 | BY71: 5 | BZ71: 5 | CA71: 3 | CB71: 2 | CC71: 0
A72: NO | B72: TransOeste | C72: Cosmos | D72: Cosmos | E72: 500590.2886 | F72: 2765.95698 | G72: 919.00965 | H72: 732.74938 | I72: 95.39703 | J72: 16.96125 | K72: 713.95513 | L72: 95.84632 | M72: 17.2961 | N72: 429.12289 | O72: 42.01606 | P72: 7.08589 | Q72: 762.30595 | R72: 102.21036 | S72: 18.19401 | T72: 920.52469 | U72: 917.77279 | V72: 881.78275 | W72: 12.91046 | X72: 137.1636 | Y72: 278.82304 | Z72: 192.87231 | AA72: 145.49993 | AB72: 73.06693 | AC72: 5.56726 | AD72: 3.67779 | AE72: 0.11346 | AF72: 849.69478 | AG72: 36.52069 | AH72: 317.09681 | AI72: 564.82712 | AJ72: 276.49981 | AK72: 212.60755 | AL72: 95.78687 | AM72: 7.07578 | AN72: 3.67779 | AO72: 0.76968 | AP72: 888.86322 | AQ72: 2403.72532 | AR72: 1514.8621 | AS72: 1 | AT72: 0.01519423245 | AU72: 0.1614269067 | AV72: 0.3281449369 | AW72: 0.2269901081 | AX72: 0.1712378767 | AY72: 0.08599197232 | AZ72: 0.00655207038 | BA72: 0.004328366005 | BB72: 0.0001335303013 | BC72: 0.02410826042 | BD72: 0.2093238784 | BE72: 0.3728571201 | BF72: 0.1825247394 | BG72: 0.1403477914 | BH72: 0.06323141228 | BI72: 0.004670907009 | BJ72: 0.002427805145 | BK72: 0.0005080858515 | BL72: =SUMIFS(UdS_data!L:L,UdS_data!N:N,1,UdS_data!E:E,SEE_agrg!D72) -> 437323.3107 | BM72: 5525.39081 | BN72: 0.9195851861 | BO72: 0.8999878837 | BP72: 0.5203697698 | BQ72: 0.9970105093 | BR72: 0.9579131984 | BS72: 0.8749441893 | BT72: 0.8544835231 | BU72: 5 | BV72: 4 | BW72: 2 | BX72: 0 | BY72: 5 | BZ72: 5 | CA72: 3 | CB72: 3 | CC72: 1
A73: NO | B73: TransOlmpica | C73: Curicica TOL | D73: Curicica TOL | E73: 500590.2891 | F73: 8679.08943 | G73: 2745.00483 | H73: 595.21818 | I73: 240.59995 | J73: 31.11825 | K73: 1209.80964 | L73: 516.27067 | M73: 44.12235 | N73: 589.62145 | O73: 233.73989 | P73: 30.83888 | Q73: 1095.67994 | R73: 465.40707 | S73: 44.09987 | T73: 2745.00483 | U73: 2628.70121 | V73: 2290.67864 | W73: 35.99341 | X73: 570.73859 | Y73: 993.3084 | Z73: 353.84508 | AA73: 221.05553 | AB73: 104.01159 | AC73: 7.86489 | AD73: 5.95078 | AE73: 3.60027 | AF73: 2296.36854 | AG73: 129.07163 | AH73: 1505.11137 | AI73: 2040.52358 | AJ73: 579.55448 | AK73: 338.35376 | AL73: 160.86701 | AM73: 13.76638 | AN73: 8.76811 | AO73: 3.79362 | AP73: 2595.69165 | AQ73: 7375.50159 | AR73: 4779.80994 | AS73: 1 | AT73: 0.0156740564 | AU73: 0.2485396312 | AV73: 0.4325561785 | AW73: 0.1540889774 | AX73: 0.09626308937 | AY73: 0.04529394485 | AZ73: 0.00342492499 | BA73: 0.002591387182 | BB73: 0.001567810191 | BC73: 0.02700350675 | BD73: 0.3148893761 | BE73: 0.4269047526 | BF73: 0.1212505282 | BG73: 0.07078812008 | BH73: 0.03365552439 | BI73: 0.002880110333 | BJ73: 0.001834405575 | BK73: 0.0007936759092 | BL73: =SUMIFS(UdS_data!L:L,UdS_data!N:N,1,UdS_data!E:E,SEE_agrg!D73) -> 457627.5177 | BM73: 17337.71034 | BN73: 0.3158232621 | BO73: 0.6448814372 | BP73: 0.3111835035 | BQ73: 0.9576308141 | BR73: 0.8344898395 | BS73: 0.805269474 | BT73: 0.7841364646 | BU73: 0 | BV73: 0 | BW73: 0 | BX73: 0 | BY73: 5 | BZ73: 2 | CA73: 2 | CB73: 1 | CC73: 0
A74: NO | B74: TransOeste | C74: Curral Falso | D74: Curral Falso | E74: 500590.2881 | F74: 4153.84613 | G74: 1271.54018 | H74: 831.83099 | I74: 116.2621 | J74: 22.55657 | K74: 988.52921 | L74: 149.57433 | M74: 27.65693 | N74: 255.34467 | O74: 45.39718 | P74: 7.1105 | Q74: 952.29387 | R74: 135.0297 | S74: 26.47628 | T74: 1271.54018 | U74: 1256.07553 | V74: 1168.93705 | W74: 23.29908 | X74: 282.05689 | Y74: 441.62234 | Z74: 172.95631 | AA74: 117.50049 | AB74: 39.22283 | AC74: 5.26905 | AD74: 1.63714 | AE74: 1.57707 | AF74: 1085.1412 | AG74: 71.50176 | AH74: 702.29584 | AI74: 878.1888 | AJ74: 244.9204 | AK74: 169.95057 | AL74: 48.75999 | AM74: 7.14371 | AN74: 1.63714 | AO74: 1.57707 | AP74: 1454.97021 | AQ74: 3580.94549 | AR74: 2125.97528 | AS74: 1 | AT74: 0.02147101225 | AU74: 0.2599264409 | AV74: 0.4069722355 | AW74: 0.1593859951 | AX74: 0.108281291 | AY74: 0.03614536984 | AZ74: 0.004855635377 | BA74: 0.001508688455 | BB74: 0.001453331603 | BC74: 0.03363245127 | BD74: 0.3303405485 | BE74: 0.4130757344 | BF74: 0.1152037854 | BG74: 0.07994004991 | BH74: 0.02293535135 | BI74: 0.003360203699 | BJ74: 0.0007700653979 | BK74: 0.0007418101305 | BL74: =SUMIFS(UdS_data!L:L,UdS_data!N:N,1,UdS_data!E:E,SEE_agrg!D74) -> 500590.2881 | BM74: 8297.895962 | BN74: 0.7633653071 | BO74: 0.9168097779 | BP74: 0.2421098089 | BQ74: 0.9878378598 | BR74: 0.9193079923 | BS74: 0.8188736105 | BT74: 0.7862755833 | BU74: 5 | BV74: 1 | BW74: 4 | BX74: 0 | BY74: 5 | BZ74: 4 | CA74: 2 | CB74: 1 | CC74: 0
A75: NO | B75: TransOeste | C75: Dom Bosco | D75: Dom Bosco | E75: 500590.2891 | F75: 119.05242 | G75: 38.95434 | H75: 2.6775 | I75: 0.0765 | J75: 0.0765 | K75: 24.24867 | L75: 4.76283 | M75: 2.55021 | N75: 26.80941 | O75: 5.93325 | P75: 3.16221 | Q75: 17.89884 | R75: 3.17181 | S75: 2.14386 | T75: 38.95434 | U75: 10.50777 | V75: 5.17227 | W75: 0.38343 | X75: 4.66341 | Y75: 9.92457 | Z75: 4.50762 | AA75: 5.93913 | AB75: 5.27076 | AC75: 0.78699 | AD75: 1.39992 | AE75: 0.8415 | AF75: 33.71733 | AG75: 0.74487 | AH75: 11.22972 | AI75: 21.38193 | AJ75: 8.42523 | AK75: 11.23467 | AL75: 9.53649 | AM75: 1.55292 | AN75: 1.96887 | AO75: 1.09299 | AP75: 36.28428 | AQ75: 103.45197 | AR75: 67.16769 | AS75: 1 | AT75: 0.01137189689 | AU75: 0.1383089942 | AV75: 0.2943462605 | AW75: 0.1336885216 | AX75: 0.1761447303 | AY75: 0.1563219863 | AZ75: 0.02334081613 | BA75: 0.0415193018 | BB75: 0.02495749219 | BC75: 0.01108970697 | BD75: 0.1671893138 | BE75: 0.3183365395 | BF75: 0.1254357564 | BG75: 0.1672630099 | BH75: 0.1419803182 | BI75: 0.02312004477 | BJ75: 0.02931275439 | BK75: 0.01627255605 | BL75: =SUMIFS(UdS_data!L:L,UdS_data!N:N,1,UdS_data!E:E,SEE_agrg!D75) -> 299166.4377 | BM75: 237.8240701 | BN75: 0.0726619935 | BO75: 0.8102231998 | BP75: 0.92171681 | BQ75: 0.2697458101 | BR75: 0.1327777598 | BS75: 0.9201081468 | BT75: 0.9056908969 | BU75: 5 | BV75: 0 | BW75: 2 | BX75: 4 | BY75: 0 | BZ75: 0 | CA75: 4 | CB75: 4 | CC75: 1
A76: NO | B76: TransOeste | C76: Embrapa | D76: Embrapa | E76: 500590.29 | F76: 43.28456 | G76: 13.68752 | H76: 0 | I76: 0 | J76: 0.62216 | K76: 9.7768 | L76: 0.97768 | M76: 1.95536 | N76: 9.7768 | O76: 0.97768 | P76: 1.95536 | Q76: 8.08808 | R76: 0.71104 | S76: 1.7776 | T76: 13.68752 | U76: 13.68752 | V76: 2.84416 | W76: 0.26664 | X76: 3.02192 | Y76: 4.26624 | Z76: 1.15544 | AA76: 1.59984 | AB76: 0.8888 | AC76: 0.17776 | AD76: 0.08888 | AE76: 0 | AF76: 11.46552 | AG76: 0.8888 | AH76: 5.68832 | AI76: 10.04344 | AJ76: 2.04424 | AK76: 3.02192 | AL76: 1.3332 | AM76: 0.17776 | AN76: 0.08888 | AO76: 0 | AP76: 14.93184 | AQ76: 38.2184 | AR76: 23.28656 | AS76: 1 | AT76: 0.02325581395 | AU76: 0.2635658915 | AV76: 0.3720930233 | AW76: 0.1007751938 | AX76: 0.1395348837 | AY76: 0.07751937984 | AZ76: 0.01550387597 | BA76: 0.007751937984 | BB76: 0 | BC76: 0.03816793893 | BD76: 0.2442748092 | BE76: 0.4312977099 | BF76: 0.08778625954 | BG76: 0.1297709924 | BH76: 0.0572519084 | BI76: 0.007633587786 | BJ76: 0.003816793893 | BK76: 0 | BL76: =SUMIFS(UdS_data!L:L,UdS_data!N:N,1,UdS_data!E:E,SEE_agrg!D76) -> 100804.7598 | BM76: 86.46703874 | BN76: 0.04545454545 | BO76: 0.9285714286 | BP76: 0.9285714286 | BQ76: 1 | BR76: 0.2077922078 | BS76: 0.8500540833 | BT76: 0.8155774722 | BU76: 5 | BV76: 0 | BW76: 4 | BX76: 4 | BY76: 5 | BZ76: 0 | CA76: 3 | CB76: 2 | CC76: 0
A77: NO | B77: TransOlmpica | C77: Equitao | D77: Equitao | E77: 500590.2871 | F77: 414.98273 | G77: 131.08373 | H77: 48.20232 | I77: 17.61973 | J77: 51.69763 | K77: 47.6779 | L77: 17.74236 | M77: 55.79211 | N77: 16.25073 | O77: 8.57698 | P77: 53.39046 | Q77: 48.20232 | R77: 17.74236 | S77: 54.1829 | T77: 131.08373 | U77: 130.81452 | V77: 85.97757 | W77: 0.69363 | X77: 17.15158 | Y77: 22.97493 | Z77: 13.84301 | AA77: 16.96053 | AB77: 31.63001 | AC77: 10.13777 | AD77: 2.55568 | AE77: 0.5096 | AF77: 116.45674 | AG77: 3.91136 | AH77: 46.92583 | AI77: 50.07992 | AJ77: 22.14128 | AK77: 24.02734 | AL77: 44.1569 | AM77: 16.50433 | AN77: 4.61577 | AO77: 0.7644 | AP77: 130.48346 | AQ77: 343.61059 | AR77: 213.12713 | AS77: 1 | AT77: 0.005956117267 | AU77: 0.1472785517 | AV77: 0.1972829567 | AW77: 0.1188682596 | AX77: 0.1456380283 | AY77: 0.2716030863 | AZ77: 0.08705180997 | BA77: 0.02194531635 | BB77: 0.004375873822 | BC77: 0.01835223887 | BD77: 0.220177647 | BE77: 0.2349767484 | BF77: 0.1038876655 | BG77: 0.1127371255 | BH77: 0.2071857299 | BI77: 0.07743889762 | BJ77: 0.0216573554 | BK77: 0.003586591721 | BL77: =SUMIFS(UdS_data!L:L,UdS_data!N:N,1,UdS_data!E:E,SEE_agrg!D77) -> 500590.2881 | BM77: 828.9867795 | BN77: 0.8965237715 | BO77: 0.9246942393 | BP77: 0.5967038777 | BQ77: 0.9979462745 | BR77: 0.6558981042 | BS77: 0.9249366264 | BT77: 0.9259470068 | BU77: 5 | BV77: 2 | BW77: 4 | BX77: 0 | BY77: 5 | BZ77: 0 | CA77: 4 | CB77: 4 | CC77: 1
A78: NO | B78: TransOlmpica | C78: Estaao 1 | D78: Estaao 1 | E78: 500590.2876 | F78: 538.64677 | G78: 195.04741 | H78: 130.569 | I78: 27.99106 | J78: 1.96537 | K78: 144.5326 | L78: 42.16276 | M78: 2.55893 | N78: 45.88156 | O78: 10.9709 | P78: 1.11097 | Q78: 131.17972 | R78: 28.07434 | S78: 1.99313 | T78: 195.04741 | U78: 193.65248 | V78: 143.94313 | W78: 0.56474 | X78: 11.79945 | Y78: 19.56762 | Z78: 8.56324 | AA78: 7.08015 | AB78: 40.33093 | AC78: 23.19038 | AD78: 29.99784 | AE78: 33.48932 | AF78: 174.58367 | AG78: 2.84847 | AH78: 28.13278 | AI78: 48.18246 | AJ78: 20.3426 | AK78: 24.3515 | AL78: 73.90676 | AM78: 32.61589 | AN78: 46.54453 | AO78: 45.40386 | AP78: 136.68664 | AQ78: 459.01549 | AR78: 322.32885 | AS78: 1 | AT78: 0.003234781352 | AU78: 0.06758621812 | AV78: 0.1120816168 | AW78: 0.04904949014 | AX78: 0.04055448027 | AY78: 0.2310120414 | AZ78: 0.1328324694 | BA78: 0.1718250052 | BB78: 0.1918238974 | BC78: 0.008837154974 | BD78: 0.08727974551 | BE78: 0.1494823067 | BF78: 0.06311132249 | BG78: 0.07554862061 | BH78: 0.2292899317 | BI78: 0.101188243 | BJ78: 0.1444007572 | BK78: 0.1408619179 | BL78: =SUMIFS(UdS_data!L:L,UdS_data!N:N,1,UdS_data!E:E,SEE_agrg!D78) -> 265768.5213 | BM78: 1076.023214 | BN78: 0.8230072371 | BO78: 0.9702989135 | BP78: 0.2971761071 | BQ78: 0.9928482516 | BR78: 0.7379904711 | BS78: 0.9466622594 | BT78: 0.9638572114 | BU78: 5 | BV78: 2 | BW78: 5 | BX78: 0 | BY78: 5 | BZ78: 1 | CA78: 4 | CB78: 5 | CC78: 0
A79: NO | B79: TransOlmpica | C79: Estaao 2 | D79: Estaao 2 | E79: 500590.2886 | F79: 702.47719 | G79: 240.82513 | H79: 82.13137 | I79: 20.41013 | J79: 1.8836 | K79: 97.36136 | L79: 22.0885 | M79: 2.41077 | N79: 83.24938 | O79: 20.15829 | P79: 2.00486 | Q79: 97.36136 | R79: 22.0885 | S79: 2.41077 | T79: 240.82513 | U79: 236.26832 | V79: 225.92184 | W79: 0.13417 | X79: 6.22093 | Y79: 6.76452 | Z79: 8.96067 | AA79: 16.68528 | AB79: 64.653 | AC79: 27.1235 | AD79: 30.5761 | AE79: 40.96568 | AF79: 202.08385 | AG79: 0.73821 | AH79: 15.5372 | AI79: 30.95827 | AJ79: 24.78252 | AK79: 45.19403 | AL79: 140.77241 | AM79: 43.60079 | AN79: 59.95796 | AO79: 57.95766 | AP79: 182.09634 | AQ79: 601.59539 | AR79: 419.49905 | AS79: 1 | AT79: 0.0006639323231 | AU79: 0.0307839048 | AV79: 0.03347382782 | AW79: 0.04434134643 | AX79: 0.08256612292 | AY79: 0.3199315532 | AZ79: 0.1342190383 | BA79: 0.1513040255 | BB79: 0.2027162487 | BC79: 0.001759741768 | BD79: 0.03703750938 | BE79: 0.07379818858 | BF79: 0.05907646275 | BG79: 0.107733331 | BH79: 0.3355726551 | BI79: 0.1039353724 | BJ79: 0.1429275227 | BK79: 0.1381592163 | BL79: =SUMIFS(UdS_data!L:L,UdS_data!N:N,1,UdS_data!E:E,SEE_agrg!D79) -> 371063.7895 | BM79: 1403.297679 | BN79: 0.433613801 | BO79: 0.5060129315 | BP79: 0.437713996 | BQ79: 0.9810783451 | BR79: 0.9381157191 | BS79: 0.9053891539 | BT79: 0.9170489703 | BU79: 5 | BV79: 0 | BW79: 0 | BX79: 0 | BY79: 5 | BZ79: 4 | CA79: 4 | CB79: 4 | CC79: 1
A80: NO | B80: TransOlmpica | C80: Estaao 3 | D80: Estaao 3 | E80: 500590.2891 | F80: 164.15491 | G80: 50.87651 | H80: 42.02207 | I80: 5.57677 | J80: 0.71629 | K80: 43.68373 | L80: 5.80336 | M80: 0.79182 | N80: 23.9704 | O80: 3.76405 | P80: 0.41417 | Q80: 43.68373 | R80: 5.80336 | S80: 0.79182 | T80: 50.87651 | U80: 50.6134 | V80: 40.60941 | W80: 0.15106 | X80: 1.50728 | Y80: 2.03682 | Z80: 1.20516 | AA80: 2.07417 | AB80: 8.89511 | AC80: 4.33094 | AD80: 6.66988 | AE80: 13.43438 | AF80: 40.3048 | AG80: 0.415 | AH80: 4.56251 | AI80: 7.12638 | AJ80: 3.76654 | AK80: 7.20274 | AL80: 18.35877 | AM80: 6.82011 | AN80: 11.30875 | AO80: 17.20839 | AP80: 64.34326 | AQ80: 141.11245 | AR80: 76.76919 | AS80: 1 | AT80: 0.003747940692 | AU80: 0.0373970346 | AV80: 0.0505354201 | AW80: 0.02990115321 | AX80: 0.05146210873 | AY80: 0.2206960461 | AZ80: 0.1074546952 | BA80: 0.1654859967 | BB80: 0.3333196046 | BC80: 0.005405814494 | BD80: 0.05943152455 | BE80: 0.09282864649 | BF80: 0.04906317235 | BG80: 0.09382331636 | BH80: 0.2391424216 | BI80: 0.0888391554 | BJ80: 0.147308445 | BK80: 0.2241575038 | BL80: =SUMIFS(UdS_data!L:L,UdS_data!N:N,1,UdS_data!E:E,SEE_agrg!D80) -> 164528.9315 | BM80: 327.9226817 | BN80: 0.9496549586 | BO80: 0.9882539113 | BP80: 0.5532734065 | BQ80: 0.9948284582 | BR80: 0.7981956703 | BS80: 0.8929691193 | BT80: 0.9445316018 | BU80: 5 | BV80: 4 | BW80: 5 | BX80: 0 | BY80: 5 | BZ80: 1 | CA80: 3 | CB80: 4 | CC80: 0
A81: NO | B81: TransOlmpica | C81: Estaao 4 | D81: Estaao 4 | E81: 500590.2876 | F81: 3724.45464 | G81: 1265.40595 | H81: 583.80203 | I81: 237.81805 | J81: 20.85642 | K81: 660.21203 | L81: 264.69317 | M81: 22.18512 | N81: 660.14011 | O81: 264.65969 | P81: 22.18388 | Q81: 642.95607 | R81: 260.79733 | S81: 21.76263 | T81: 1265.40595 | U81: 1235.35467 | V81: 1009.68912 | W81: 21.40632 | X81: 203.0905 | Y81: 295.85412 | Z81: 122.2443 | AA81: 166.40891 | AB81: 198.37212 | AC81: 32.4667 | AD81: 18.3075 | AE81: 6.10139 | AF81: 1064.25186 | AG81: 42.08711 | AH81: 523.74937 | AI81: 703.41322 | AJ81: 264.28681 | AK81: 282.32089 | AL81: 288.16196 | AM81: 39.48266 | AN81: 21.19115 | AO81: 6.76993 | AP81: 1026.63187 | AQ81: 3198.09497 | AR81: 2171.4631 | AS81: 1 | AT81: 0.02011396062 | AU81: 0.1908293588 | AV81: 0.2779925797 | AW81: 0.1148640699 | AX81: 0.1563623389 | AY81: 0.1863958405 | AZ81: 0.03050659456 | BA81: 0.01720222504 | BB81: 0.005733032029 | BC81: 0.01938191351 | BD81: 0.2411965324 | BE81: 0.3239351477 | BF81: 0.1217090956 | BG81: 0.1300141319 | BH81: 0.1327040556 | BI81: 0.01818251482 | BJ81: 0.009758927057 | BK81: 0.003117681346 | BL81: =SUMIFS(UdS_data!L:L,UdS_data!N:N,1,UdS_data!E:E,SEE_agrg!D81) -> 347033.6883 | BM81: 7440.125652 | BN81: 0.6657756746 | BO81: 0.7484478163 | BP81: 0.7483635429 | BQ81: 0.9762516685 | BR81: 0.7979171585 | BS81: 0.9137856697 | BT81: 0.8850958751 | BU81: 5 | BV81: 0 | BW81: 1 | BX81: 1 | BY81: 5 | BZ81: 1 | CA81: 4 | CB81: 3 | CC81: 0
A82: NO | B82: TransBrasil | C82: Fiocruz | D82: Fiocruz | E82: 500590.2871 | F82: 4773.18406 | G82: 1660.20858 | H82: 726.91254 | I82: 565.23576 | J82: 28.08994 | K82: 885.22791 | L82: 656.00186 | M82: 30.49899 | N82: 254.09761 | O82: 181.23399 | P82: 7.55177 | Q82: 869.13207 | R82: 643.88956 | S82: 30.49899 | T82: 1660.20858 | U82: 1660.13212 | V82: 1652.74297 | W82: 32.56456 | X82: 426.16963 | Y82: 729.19124 | Z82: 151.59421 | AA82: 78.86304 | AB82: 18.97104 | AC82: 0.59127 | AD82: 0.07646 | AE82: 0.7874 | AF82: 1438.80885 | AG82: 70.15003 | AH82: 942.98591 | AI82: 1330.0981 | AJ82: 234.2238 | AK82: 104.2509 | AL82: 25.19582 | AM82: 0.64468 | AN82: 0.44847 | AO82: 0.7874 | AP82: 1312.11161 | AQ82: 4020.89672 | AR82: 2708.78511 | AS82: 1 | AT82: 0.02263299951 | AU82: 0.2961961417 | AV82: 0.5068020259 | AW82: 0.1053609102 | AX82: 0.05481133925 | AY82: 0.01318524 | AZ82: 0.0004109440945 | BA82: 5.314117994e-05 | BB82: 0.0005472582407 | BC82: 0.02589722963 | BD82: 0.3481213429 | BE82: 0.4910312358 | BF82: 0.0864682101 | BG82: 0.03848622012 | BH82: 0.009301520415 | BI82: 0.0002379959922 | BJ82: 0.0001655613058 | BK82: 0.0002906838188 | BL82: =SUMIFS(UdS_data!L:L,UdS_data!N:N,1,UdS_data!E:E,SEE_agrg!D82) -> 483254.5853 | BM82: 9535.111213 | BN82: 0.7952243205 | BO82: 0.9467056001 | BP82: 0.2667636918 | BQ82: 0.9999539455 | BR82: 0.9955032096 | BS82: 0.7207062452 | BT82: 0.7064826326 | BU82: 1 | BV82: 1 | BW82: 4 | BX82: 0 | BY82: 5 | BZ82: 5 | CA82: 0 | CB82: 0 | CC82: 1
A83: NO | B83: TransOeste | C83: Freeway (2 etapa) | D83: Freeway (2 etapa) | E83: 500590.2886 | F83: 671.25331 | G83: 199.97125 | H83: 108.76206 | I83: 21.14831 | J83: 2.33732 | K83: 164.3402 | L83: 24.39987 | M83: 2.9524 | N83: 155.70836 | O83: 19.59951 | P83: 2.9524 | Q83: 164.3402 | R83: 24.39987 | S83: 2.9524 | T83: 199.97125 | U83: 196.31152 | V83: 88.91185 | W83: 0.35158 | X83: 6.43254 | Y83: 11.1603 | Z83: 3.43684 | AA83: 10.49923 | AB83: 38.57064 | AC83: 24.54232 | AD83: 27.84895 | AE83: 67.16204 | AF83: 190.00444 | AG83: 1.0107 | AH83: 13.79752 | AI83: 73.41032 | AJ83: 24.04085 | AK83: 47.38918 | AL83: 109.19396 | AM83: 40.22865 | AN83: 46.09623 | AO83: 83.71292 | AP83: 179.84074 | AQ83: 618.72107 | AR83: 438.88033 | AS83: 1 | AT83: 0.001850377812 | AU83: 0.03385468255 | AV83: 0.05873704846 | AW83: 0.01808820889 | AX83: 0.05525781398 | AY83: 0.2029986247 | AZ83: 0.1291670868 | BA83: 0.1465699959 | BB83: 0.3534761609 | BC83: 0.002302905669 | BD83: 0.03143800042 | BE83: 0.1672672822 | BF83: 0.05477768849 | BG83: 0.1079774525 | BH83: 0.2488012165 | BI83: 0.09166200271 | BJ83: 0.1050314331 | BK83: 0.1907420184 | BL83: =SUMIFS(UdS_data!L:L,UdS_data!N:N,1,UdS_data!E:E,SEE_agrg!D83) -> 500232.3595 | BM83: 1340.923556 | BN83: 0.6613335167 | BO83: 0.9586001488 | BP83: 0.891429493 | BQ83: 0.9816987192 | BR83: 0.4446231646 | BS83: 0.8861614295 | BT83: 0.9434814661 | BU83: 5 | BV83: 0 | BW83: 5 | BX83: 2 | BY83: 5 | BZ83: 0 | CA83: 3 | CB83: 4 | CC83: 0
A84: NO | B84: TransOeste | C84: Gasto Rangel | D84: Gasto Rangel | E84: 500590.2886 | F84: 3960.96846 | G84: 1165.42761 | H84: 565.41619 | I84: 110.1932 | J84: 30.10165 | K84: 854.14687 | L84: 153.40681 | M84: 43.08459 | N84: 322.29225 | O84: 60.17635 | P84: 14.5314 | Q84: 659.9364 | R84: 139.04308 | S84: 34.08391 | T84: 1165.42761 | U84: 1162.23441 | V84: 650.81282 | W84: 28.39552 | X84: 303.83849 | Y84: 350.95229 | Z84: 110.10156 | AA84: 80.16212 | AB84: 39.85771 | AC84: 5.05977 | AD84: 0.91002 | AE84: 2.32867 | AF84: 921.60615 | AG84: 77.89807 | AH84: 661.08414 | AI84: 731.41457 | AJ84: 174.5121 | AK84: 108.90145 | AL84: 67.00866 | AM84: 8.38964 | AN84: 1.22383 | AO84: 2.61767 | AP84: 1561.4155 | AQ84: 3394.46563 | AR84: 1833.05013 | AS84: 1 | AT84: 0.0308109055 | AU84: 0.3296836615 | AV84: 0.3808050652 | AW84: 0.1194670413 | AX84: 0.08698088658 | AY84: 0.04324809464 | AZ84: 0.005490165186 | BA84: 0.0009874283065 | BB84: 0.002526751802 | BC84: 0.04249642098 | BD84: 0.3606470599 | BE84: 0.3990150395 | BF84: 0.09520312464 | BG84: 0.05940996824 | BH84: 0.03655582513 | BI84: 0.004576874283 | BJ84: 0.0006676467708 | BK84: 0.001428040596 | BL84: =SUMIFS(UdS_data!L:L,UdS_data!N:N,1,UdS_data!E:E,SEE_agrg!D84) -> 487778.3934 | BM84: 7912.59549 | BN84: 0.6055382882 | BO84: 0.9015045302 | BP84: 0.3406474985 | BQ84: 0.9972600615 | BR84: 0.5584326426 | BS84: 0.8118010419 | BT84: 0.7818320365 | BU84: 5 | BV84: 0 | BW84: 4 | BX84: 0 | BY84: 5 | BZ84: 0 | CA84: 2 | CB84: 1 | CC84: 0
A85: NO | B85: TransOeste | C85: Gelson Fonseca | D85: Gelson Fonseca | E85: 500590.2881 | F85: 2019.40325 | G85: 700.55714 | H85: 311.78122 | I85: 107.29756 | J85: 47.51038 | K85: 396.12087 | L85: 243.17628 | M85: 49.20045 | N85: 301.4645 | O85: 103.38643 | P85: 45.18262 | Q85: 344.95253 | R85: 135.29756 | S85: 47.51038 | T85: 700.55714 | U85: 559.2144 | V85: 515.10578 | W85: 10.54778 | X85: 67.32338 | Y85: 157.01092 | Z85: 52.10091 | AA85: 57.96176 | AB85: 136.78009 | AC85: 50.35183 | AD85: 57.01831 | AE85: 43.77863 | AF85: 632.87361 | AG85: 28.55408 | AH85: 162.99832 | AI85: 343.82086 | AJ85: 115.37859 | AK85: 138.03027 | AL85: 247.17788 | AM85: 81.13605 | AN85: 81.71848 | AO85: 58.79926 | AP85: 507.19459 | AQ85: 1764.80838 | AR85: 1257.61379 | AS85: 1 | AT85: 0.01666648733 | AU85: 0.1063772907 | AV85: 0.2480920638 | AW85: 0.08232435225 | AX85: 0.09158504808 | AY85: 0.2161254441 | AZ85: 0.07956064087 | BA85: 0.09009430809 | BB85: 0.06917436485 | BC85: 0.02270496732 | BD85: 0.1296092022 | BE85: 0.2733914519 | BF85: 0.09174405602 | BG85: 0.1097556906 | BH85: 0.1965451413 | BI85: 0.06451587176 | BJ85: 0.06497899486 | BK85: 0.04675462409 | BL85: =SUMIFS(UdS_data!L:L,UdS_data!N:N,1,UdS_data!E:E,SEE_agrg!D85) -> 420442.3884 | BM85: 4034.044004 | BN85: 0.6660258434 | BO85: 0.9827857868 | BP85: 0.642393781 | BQ85: 0.7982423818 | BR85: 0.73528018 | BS85: 0.9514677688 | BT85: 0.9430641167 | BU85: 5 | BV85: 0 | BW85: 5 | BX85: 0 | BY85: 1 | BZ85: 1 | CA85: 5 | CB85: 4 | CC85: 0
A86: NO | B86: TransOeste | C86: General Olmpio | D86: General Olmpio | E86: 500590.2881 | F86: 2910.14668 | G86: 951.95663 | H86: 592.00083 | I86: 141.29318 | J86: 38.56442 | K86: 727.69753 | L86: 164.15008 | M86: 44.51617 | N86: 286.48862 | O86: 72.79131 | P86: 13.74912 | Q86: 685.36583 | R86: 157.7128 | S86: 42.92631 | T86: 951.95663 | U86: 951.7858 | V86: 853.43893 | W86: 12.42465 | X86: 146.46879 | Y86: 193.48555 | Z86: 114.1799 | AA86: 130.91719 | AB86: 90.98285 | AC86: 14.78707 | AD86: 13.26386 | AE86: 6.11208 | AF86: 722.62194 | AG86: 42.37025 | AH86: 373.16581 | AI86: 456.81792 | AJ86: 196.20916 | AK86: 235.15264 | AL86: 171.73077 | AM86: 22.31487 | AN86: 19.43157 | AO86: 10.57426 | AP86: 1063.30808 | AQ86: 2591.07533 | AR86: 1527.76725 | AS86: 1 | AT86: 0.01719384551 | AU86: 0.2026907597 | AV86: 0.2677548789 | AW86: 0.1580077959 | AX86: 0.181169686 | AY86: 0.1259065702 | AZ86: 0.02046307921 | BA86: 0.01835518584 | BB86: 0.008458198764 | BC86: 0.02773344565 | BD86: 0.2442556679 | BE86: 0.2990101535 | BF86: 0.1284286988 | BG86: 0.1539191523 | BH86: 0.1124063695 | BI86: 0.01460619738 | BJ86: 0.01271893346 | BK86: 0.006921381513 | BL86: =SUMIFS(UdS_data!L:L,UdS_data!N:N,1,UdS_data!E:E,SEE_agrg!D86) -> 476711.9305 | BM86: 5813.430163 | BN86: 0.8108125997 | BO86: 0.9836202097 | BP86: 0.391855089 | BQ86: 0.9998205485 | BR86: 0.8965103064 | BS86: 0.914017025 | BT86: 0.8965346703 | BU86: 5 | BV86: 2 | BW86: 5 | BX86: 0 | BY86: 5 | BZ86: 2 | CA86: 4 | CB86: 3 | CC86: 0
A87: NO | B87: TransOeste | C87: Gilka Machado | D87: Gilka Machado | E87: 500590.2881 | F87: 2270.05806 | G87: 822.60906 | H87: 407.39738 | I87: 129.25599 | J87: 33.7341 | K87: 551.80753 | L87: 171.58889 | M87: 59.79135 | N87: 543.27808 | O87: 170.22341 | P87: 59.79135 | Q87: 541.08492 | R87: 167.81498 | S87: 58.64874 | T87: 822.60906 | U87: 756.07229 | V87: 689.30718 | W87: 1.56895 | X87: 32.29725 | Y87: 83.28569 | Z87: 57.71724 | AA87: 81.84845 | AB87: 267.50052 | AC87: 89.69864 | AD87: 93.29371 | AE87: 62.98252 | AF87: 770.19297 | AG87: 7.50757 | AH87: 94.57936 | AI87: 215.57792 | AJ87: 141.40901 | AK87: 213.91936 | AL87: 453.35969 | AM87: 137.36917 | AN87: 124.61267 | AO87: 86.64782 | AP87: 516.51673 | AQ87: 1991.4993 | AR87: 1474.98257 | AS87: 1 | AT87: 0.002037086887 | AU87: 0.04193397143 | AV87: 0.1081361337 | AW87: 0.07493867414 | AX87: 0.1062700559 | AY87: 0.3473162317 | AZ87: 0.1164625535 | BA87: 0.1211303058 | BB87: 0.08177498686 | BC87: 0.005089938114 | BD87: 0.06412235773 | BE87: 0.1461562492 | BF87: 0.09587164816 | BG87: 0.1450317884 | BH87: 0.3073661338 | BI87: 0.09313274122 | BJ87: 0.08448416445 | BK87: 0.05874497893 | BL87: =SUMIFS(UdS_data!L:L,UdS_data!N:N,1,UdS_data!E:E,SEE_agrg!D87) -> 426569.9922 | BM87: 4534.762487 | BN87: 0.6933882664 | BO87: 0.9520777342 | BP87: 0.9400490192 | BQ87: 0.919114956 | BR87: 0.8379523318 | BS87: 0.9158434297 | BT87: 0.9343563522 | BU87: 5 | BV87: 0 | BW87: 5 | BX87: 4 | BY87: 4 | BZ87: 2 | CA87: 4 | CB87: 4 | CC87: 1
A88: NO | B88: TransOeste | C88: Glucio Gil | D88: Glucio Gil | E88: 500590.2837 | F88: 2875.25481 | G88: 977.79457 | H88: 691.25423 | I88: 189.76802 | J88: 82.58014 | K88: 696.58636 | L88: 190.76784 | M88: 83.32454 | N88: 696.07836 | O88: 190.69164 | P88: 83.32454 | Q88: 688.71371 | R88: 189.59901 | S88: 82.72254 | T88: 977.79457 | U88: 948.36459 | V88: 807.04888 | W88: 4.32582 | X88: 31.04472 | Y88: 110.11461 | Z88: 62.78931 | AA88: 92.94283 | AB88: 250.17048 | AC88: 96.26814 | AD88: 116.63053 | AE88: 106.0549 | AF88: 870.34134 | AG88: 11.48411 | AH88: 113.04413 | AI88: 284.37953 | AJ88: 138.57741 | AK88: 228.42637 | AL88: 483.50659 | AM88: 165.72066 | AN88: 179.73824 | AO88: 139.3619 | AP88: 810.17025 | AQ88: 2554.40919 | AR88: 1744.23894 | AS88: 1 | AT88: 0.004970256842 | AU88: 0.03566959143 | AV88: 0.1265188782 | AW88: 0.07214331563 | AX88: 0.106788941 | AY88: 0.2874395005 | AZ88: 0.1106096374 | BA88: 0.1340055041 | BB88: 0.121854375 | BC88: 0.006584023402 | BD88: 0.06481000246 | BE88: 0.1630393196 | BF88: 0.07944863907 | BG88: 0.1309604807 | BH88: 0.2772020386 | BI88: 0.09501029716 | BJ88: 0.1030467993 | BK88: 0.0798983997 | BL88: =SUMIFS(UdS_data!L:L,UdS_data!N:N,1,UdS_data!E:E,SEE_agrg!D88) -> 500590.2881 | BM88: 5743.728761 | BN88: 0.9854855197 | BO88: 0.9927225716 | BP88: 0.9921251046 | BQ88: 0.9699016737 | BR88: 0.8253767251 | BS88: 0.9432286787 | BT88: 0.9481966164 | BU88: 5 | BV88: 5 | BW88: 5 | BX88: 5 | BY88: 5 | BZ88: 2 | CA88: 4 | CB88: 4 | CC88: 1
A89: NO | B89: TransOeste | C89: Golfe Olmpico | D89: Golfe Olmpico | E89: 500590.2895 | F89: 485.81578 | G89: 143.52354 | H89: 108.67811 | I89: 7.16768 | J89: 1.01054 | K89: 132.36553 | L89: 8.723 | M89: 2.133 | N89: 102.15217 | O89: 5.59748 | P89: 1.5542 | Q89: 132.36553 | R89: 8.723 | S89: 2.133 | T89: 143.52354 | U89: 142.14242 | V89: 122.63588 | W89: 0.27375 | X89: 1.95283 | Y89: 6.11297 | Z89: 4.52251 | AA89: 3.65185 | AB89: 18.29476 | AC89: 9.4263 | AD89: 13.83979 | AE89: 60.88 | AF89: 118.95476 | AG89: 1.82237 | AH89: 6.80867 | AI89: 20.9042 | AJ89: 10.68857 | AK89: 16.13524 | AL89: 40.67606 | AM89: 17.3032 | AN89: 35.5041 | AO89: 91.76749 | AP89: 179.40927 | AQ89: 421.01917 | AR89: 241.6099 | AS89: 1 | AT89: 0.002301295047 | AU89: 0.01641657719 | AV89: 0.05138903227 | AW89: 0.03801873922 | AX89: 0.03069948609 | AY89: 0.1537959473 | AZ89: 0.0792427306 | BA89: 0.116344987 | BB89: 0.5117912053 | BC89: 0.007542613113 | BD89: 0.02818042638 | BE89: 0.08652046129 | BF89: 0.0442389571 | BG89: 0.06678219725 | BH89: 0.1683542769 | BI89: 0.07161627069 | BJ89: 0.1469480348 | BK89: 0.3798167625 | BL89: =SUMIFS(UdS_data!L:L,UdS_data!N:N,1,UdS_data!E:E,SEE_agrg!D89) -> 500086.5074 | BM89: 970.4858247 | BN89: 0.8141962636 | BO89: 0.9978957459 | BP89: 0.7615743731 | BQ89: 0.9903770489 | BR89: 0.8544652675 | BS89: 0.7754596727 | BT89: 0.8841596449 | BU89: 5 | BV89: 2 | BW89: 5 | BX89: 1 | BY89: 5 | BZ89: 2 | CA89: 1 | CB89: 3 | CC89: 0
A90: NO | B90: TransOlmpica | C90: Guerengu | D90: Guerengu | E90: 500590.29 | F90: 1089.09302 | G90: 306.08705 | H90: 117.74598 | I90: 8.37079 | J90: 7.0262 | K90: 215.3855 | L90: 16.96399 | M90: 13.16673 | N90: 167.65028 | O90: 10.45716 | P90: 15.78897 | Q90: 161.74236 | R90: 13.93732 | S90: 10.27812 | T90: 306.08705 | U90: 249.3449 | V90: 101.78096 | W90: 4.40601 | X90: 70.56332 | Y90: 92.54011 | Z90: 40.20995 | AA90: 36.00354 | AB90: 16.24583 | AC90: 2.67553 | AD90: 0 | AE90: 0.3451 | AF90: 262.98939 | AG90: 16.62005 | AH90: 170.49083 | AI90: 204.59765 | AJ90: 68.82633 | AK90: 49.25714 | AL90: 26.12949 | AM90: 2.67553 | AN90: 0 | AO90: 0.3451 | AP90: 316.02456 | AQ90: 854.96668 | AR90: 538.94212 | AS90: 1 | AT90: 0.01675356561 | AU90: 0.2683124213 | AV90: 0.3518777316 | AW90: 0.1528957119 | AX90: 0.1369011122 | AY90: 0.06177370882 | AZ90: 0.01017352829 | BA90: 0 | BB90: 0.001312220238 | BC90: 0.03083828371 | BD90: 0.3163434879 | BE90: 0.3796282428 | BF90: 0.1277063481 | BG90: 0.09139597402 | BH90: 0.04848292429 | BI90: 0.00496441065 | BJ90: 0 | BK90: 0.0006403285013 | BL90: =SUMIFS(UdS_data!L:L,UdS_data!N:N,1,UdS_data!E:E,SEE_agrg!D90) -> 261272.9153 | BM90: 2175.617549 | BN90: 0.4349840021 | BO90: 0.8021124056 | BP90: 0.6334681915 | BQ90: 0.8146208734 | BR90: 0.3325229212 | BS90: 0.8526032974 | BT90: 0.8187979617 | BU90: 5 | BV90: 0 | BW90: 2 | BX90: 0 | BY90: 2 | BZ90: 0 | CA90: 3 | CB90: 2 | CC90: 0
A91: NO | B91: TransOeste | C91: Guignard | D91: Guignard | E91: 500590.2861 | F91: 1865.40328 | G91: 639.20892 | H91: 461.88274 | I91: 119.37335 | J91: 47.81698 | K91: 466.24108 | L91: 119.78843 | M91: 48.02452 | N91: 466.24108 | O91: 119.78843 | P91: 48.02452 | Q91: 461.88274 | R91: 119.37335 | S91: 47.81698 | T91: 639.20892 | U91: 614.58308 | V91: 518.17468 | W91: 2.04927 | X91: 21.73152 | Y91: 76.98289 | Z91: 23.36558 | AA91: 53.8277 | AB91: 141.72974 | AC91: 67.48421 | AD91: 80.86475 | AE91: 97.89812 | AF91: 565.93378 | AG91: 8.21898 | AH91: 66.46065 | AI91: 189.78442 | AJ91: 67.33038 | AK91: 138.46531 | AL91: 301.91486 | AM91: 114.10337 | AN91: 109.78576 | AO91: 119.83312 | AP91: 524.7923 | AQ91: 1640.68915 | AR91: 1115.89685 | AS91: 1 | AT91: 0.003621042024 | AU91: 0.03839940426 | AV91: 0.136028088 | AW91: 0.04128677387 | AX91: 0.09511307136 | AY91: 0.2504352011 | AZ91: 0.1192440041 | BA91: 0.1428873003 | BB91: 0.172985115 | BC91: 0.007365358187 | BD91: 0.05955805861 | BE91: 0.1700734436 | BF91: 0.06033745861 | BG91: 0.1240843273 | BH91: 0.2705580359 | BI91: 0.1022526141 | BJ91: 0.09838343033 | BK91: 0.1073872733 | BL91: =SUMIFS(UdS_data!L:L,UdS_data!N:N,1,UdS_data!E:E,SEE_agrg!D91) -> 491043.1231 | BM91: 3726.407267 | BN91: 0.9841431343 | BO91: 0.9919355162 | BP91: 0.9919355162 | BQ91: 0.9614745051 | BR91: 0.8106499515 | BS91: 0.9472275967 | BT91: 0.9490134488 | BU91: 5 | BV91: 5 | BW91: 5 | BX91: 5 | BY91: 5 | BZ91: 2 | CA91: 4 | CB91: 4 | CC91: 1
A92: NO | B92: TransOeste | C92: Guiomar Novais | D92: Guiomar Novais | E92: 500590.2876 | F92: 1801.74255 | G92: 618.73516 | H92: 356.27523 | I92: 92.75862 | J92: 17.51257 | K92: 430.81633 | L92: 122.92603 | M92: 23.05009 | N92: 357.19939 | O92: 87.43983 | P92: 22.05009 | Q92: 428.11931 | R92: 121.07184 | S92: 22.39567 | T92: 618.73516 | U92: 582.47732 | V92: 522.91258 | W92: 0.92511 | X92: 51.64605 | Y92: 98.89672 | Z92: 52.87079 | AA92: 64.07846 | AB92: 157.2996 | AC92: 47.31406 | AD92: 62.61765 | AE92: 36.99099 | AF92: 572.63943 | AG92: 7.1332 | AH92: 128.76841 | AI92: 233.77205 | AJ92: 112.61398 | AK92: 162.66362 | AL92: 257.59195 | AM92: 62.64532 | AN92: 85.30617 | AO92: 46.03886 | AP92: 458.51012 | AQ92: 1555.04368 | AR92: 1096.53356 | AS92: 1 | AT92: 0.001615519211 | AU92: 0.09018947578 | AV92: 0.1727033013 | AW92: 0.09232823873 | AX92: 0.1119001882 | AY92: 0.2746922265 | AZ92: 0.08262452343 | BA92: 0.1093491763 | BB92: 0.06459735055 | BC92: 0.006505227255 | BD92: 0.1174322562 | BE92: 0.213191879 | BF92: 0.1026999849 | BG92: 0.1483434944 | BH92: 0.2349147891 | BI92: 0.05713032623 | BJ92: 0.07779622358 | BK92: 0.04198581939 | BL92: =SUMIFS(UdS_data!L:L,UdS_data!N:N,1,UdS_data!E:E,SEE_agrg!D92) -> 453640.6791 | BM92: 3599.235931 | BN92: 0.7540325008 | BO92: 0.9322121762 | BP92: 0.7542634396 | BQ92: 0.9414000653 | BR92: 0.8451315099 | BS92: 0.9479002177 | BT92: 0.9471370466 | BU92: 5 | BV92: 1 | BW92: 4 | BX92: 1 | BY92: 4 | BZ92: 2 | CA92: 4 | CB92: 4 | CC92: 1
A93: NO | B93: TransOlmpica | C93: Hospital Raphael de P. S. | D93: Hospital Raphael de P. S. | E93: 500590.292 | F93: 6014.02715 | G93: 1876.59479 | H93: 767.05035 | I93: 275.7969 | J93: 49.78688 | K93: 1202.93616 | L93: 419.92955 | M93: 64.09017 | N93: 766.98505 | O93: 273.67627 | P93: 49.68345 | Q93: 1083.91544 | R93: 385.90378 | S93: 63.49117 | T93: 1876.59479 | U93: 1789.89545 | V93: 1214.51105 | W93: 24.75507 | X93: 390.17267 | Y93: 610.9563 | Z93: 232.22101 | AA93: 187.371 | AB93: 117.60586 | AC93: 13.25456 | AD93: 6.12236 | AE93: 3.53114 | AF93: 1585.98997 | AG93: 96.44472 | AH93: 959.55116 | AI93: 1396.21511 | AJ93: 426.8772 | AK93: 285.22117 | AL93: 178.17391 | AM93: 18.8781 | AN93: 10.8789 | AO93: 4.5694 | AP93: 1824.00791 | AQ93: 5200.81758 | AR93: 3376.80967 | AS93: 1 | AT93: 0.01560859177 | AU93: 0.2460120665 | AV93: 0.3852207842 | AW93: 0.1464202261 | AX93: 0.1181413524 | AY93: 0.0741529658 | AZ93: 0.008357278577 | BA93: 0.00386027662 | BB93: 0.002226457964 | BC93: 0.02856089902 | BD93: 0.2841590891 | BE93: 0.413471663 | BF93: 0.1264143501 | BG93: 0.08446468646 | BH93: 0.05276397766 | BI93: 0.005590513486 | BJ93: 0.003221650334 | BK93: 0.001353170728 | BL93: =SUMIFS(UdS_data!L:L,UdS_data!N:N,1,UdS_data!E:E,SEE_agrg!D93) -> 469588.4735 | BM93: 12013.87092 | BN93: 0.5822429732 | BO93: 0.8989452006 | BP93: 0.5810230188 | BQ93: 0.9537996479 | BR93: 0.6471887572 | BS93: 0.8435865998 | BT93: 0.8117287858 | BU93: 0 | BV93: 0 | BW93: 2 | BX93: 0 | BY93: 5 | BZ93: 0 | CA93: 2 | CB93: 2 | CC93: 1
A94: NO | B94: TransBrasil | C94: I.N.T.O | D94: I.N.T.O | E94: 454706.2407 | F94: 696.41124 | G94: 257.61869 | H94: 147.14703 | I94: 95.0863 | J94: 12.23556 | K94: 147.14703 | L94: 95.0863 | M94: 12.23556 | N94: 80.792 | O94: 67.00592 | P94: 7.68835 | Q94: 147.14703 | R94: 95.0863 | S94: 12.23556 | T94: 257.61869 | U94: 257.61869 | V94: 256.33567 | W94: 0.6678 | X94: 27.18536 | Y94: 62.83609 | Z94: 50.54099 | AA94: 35.3055 | AB94: 25.63542 | AC94: 4.47125 | AD94: 1.18216 | AE94: 0.4368 | AF94: 208.26137 | AG94: 2.93714 | AH94: 66.03031 | AI94: 146.06005 | AJ94: 78.04151 | AK94: 52.83508 | AL94: 36.8581 | AM94: 5.34485 | AN94: 2.20272 | AO94: 0.8736 | AP94: 223.74502 | AQ94: 614.92838 | AR94: 391.18336 | AS94: 1 | AT94: 0.003206547619 | AU94: 0.1305348179 | AV94: 0.3017174524 | AW94: 0.2426805797 | AX94: 0.169524958 | AY94: 0.1230925351 | AZ94: 0.02146941605 | BA94: 0.00567632874 | BB94: 0.00209736448 | BC94: 0.007508345958 | BD94: 0.1687963159 | BE94: 0.373380018 | BF94: 0.1995010984 | BG94: 0.135064743 | BH94: 0.09422205484 | BI94: 0.01366328568 | BJ94: 0.005630914362 | BK94: 0.002233223826 | BL94: =SUMIFS(UdS_data!L:L,UdS_data!N:N,1,UdS_data!E:E,SEE_agrg!D94) -> 445027.0913 | BM94: 1531.562969 | BN94: 0.9877734026 | BO94: 0.9877734026 | BP94: 0.6035519783 | BQ94: 1 | BR94: 0.9950196936 | BS94: 0.8872144374 | BT94: 0.8605062473 | BU94: 5 | BV94: 5 | BW94: 5 | BX94: 0 | BY94: 5 | BZ94: 5 | CA94: 3 | CB94: 3 | CC94: 1
A95: NO | B95: TransOeste | C95: Icurana | D95: Icurana | E95: 500590.2866 | F95: 5565.30912 | G95: 1714.71313 | H95: 1048.46759 | I95: 132.56391 | J95: 26.73056 | K95: 1417.44893 | L95: 209.56665 | M95: 33.48384 | N95: 336.76297 | O95: 59.72818 | P95: 9.93648 | Q95: 1111.00622 | R95: 141.28314 | S95: 27.84919 | T95: 1714.71313 | U95: 1709.76668 | V95: 1522.69268 | W95: 41.90932 | X95: 424.46209 | Y95: 545.91088 | Z95: 234.07564 | AA95: 133.99014 | AB95: 56.74075 | AC95: 4.18748 | AD95: 4.78 | AE95: 1.13837 | AF95: 1447.19467 | AG95: 127.74575 | AH95: 964.01331 | AI95: 1081.02548 | AJ95: 342.41736 | AK95: 184.92781 | AL95: 71.78021 | AM95: 5.16087 | AN95: 4.97314 | AO95: 1.13837 | AP95: 1990.41129 | AQ95: 4773.59359 | AR95: 2783.1823 | AS95: 1 | AT95: 0.0289590066 | AU95: 0.2932999263 | AV95: 0.3772200736 | AW95: 0.1617444044 | AX95: 0.09258612043 | AY95: 0.0392074067 | AZ95: 0.002893515355 | BA95: 0.00330294196 | BB95: 0.0007866046107 | BC95: 0.04589916729 | BD95: 0.3463708827 | BE95: 0.3884134647 | BF95: 0.1230308773 | BG95: 0.06644473486 | BH95: 0.0257906965 | BI95: 0.001854305411 | BJ95: 0.001786853847 | BK95: 0.0004090174043 | BL95: =SUMIFS(UdS_data!L:L,UdS_data!N:N,1,UdS_data!E:E,SEE_agrg!D95) -> 494333.0299 | BM95: 11117.49322 | BN95: 0.7043522551 | BO95: 0.9683832187 | BP95: 0.237023688 | BQ95: 0.9971152901 | BR95: 0.8880159913 | BS95: 0.8263698546 | BT95: 0.7951860004 | BU95: 0 | BV95: 1 | BW95: 5 | BX95: 0 | BY95: 5 | BZ95: 2 | CA95: 2 | CB95: 1 | CC95: 0
A96: NO | B96: TransOeste | C96: Ilha de Guaratiba | D96: Ilha de Guaratiba | E96: 500590.29 | F96: 861.21081 | G96: 242.85466 | H96: 1.26553 | I96: 1.16391 | J96: 0.10162 | K96: 48.73099 | L96: 9.13593 | M96: 2.435 | N96: 37.46456 | O96: 5.65246 | P96: 1.95827 | Q96: 26.1893 | R96: 3.98424 | S96: 0.77504 | T96: 242.85466 | U96: 215.8392 | V96: 47.43526 | W96: 8.57742 | X96: 62.3337 | Y96: 60.86416 | Z96: 35.08556 | AA96: 22.64754 | AB96: 9.07635 | AC96: 0.75554 | AD96: 0.33671 | AE96: 0.22262 | AF96: 199.8996 | AG96: 25.18526 | AH96: 158.80027 | AI96: 164.66376 | AJ96: 57.46711 | AK96: 35.43246 | AL96: 12.13243 | AM96: 1.3727 | AN96: 0.89604 | AO96: 0.22411 | AP96: 295.45974 | AQ96: 751.63388 | AR96: 456.17414 | AS96: 1 | AT96: 0.04290864014 | AU96: 0.3118250362 | AV96: 0.3044736458 | AW96: 0.175515909 | AX96: 0.1132945739 | AY96: 0.04540454308 | AZ96: 0.003779597358 | BA96: 0.001684395567 | BB96: 0.001113659057 | BC96: 0.0552097495 | BD96: 0.3481132666 | BE96: 0.3609668887 | BF96: 0.1259762555 | BG96: 0.07767310089 | BH96: 0.02659604948 | BI96: 0.003009157862 | BJ96: 0.001964249881 | BK96: 0.0004912816847 | BL96: =SUMIFS(UdS_data!L:L,UdS_data!N:N,1,UdS_data!E:E,SEE_agrg!D96) -> 334196.4425 | BM96: 1720.390561 | BN96: 0.01042211832 | BO96: 0.2483045621 | BP96: 0.1856060328 | BQ96: 0.8887587333 | BR96: 0.1953236557 | BS96: 0.8578106599 | BT96: 0.8132043492 | BU96: 5 | BV96: 0 | BW96: 0 | BX96: 0 | BY96: 2 | BZ96: 0 | CA96: 3 | CB96: 2 | CC96: 0
A97: NO | B97: TransOeste | C97: Inhoaba | D97: Inhoaba | E97: 500590.2876 | F97: 2608.89054 | G97: 737.26811 | H97: 413.87607 | I97: 58.54455 | J97: 21.78127 | K97: 579.09547 | L97: 73.00195 | M97: 25.78127 | N97: 324.6791 | O97: 32.67499 | P97: 16.76052 | Q97: 437.87607 | R97: 61.54455 | S97: 21.78127 | T97: 739.03997 | U97: 726.27208 | V97: 691.06516 | W97: 24.08097 | X97: 174.39287 | Y97: 231.6269 | Z97: 92.57599 | AA97: 38.00841 | AB97: 11.75103 | AC97: 2.8505 | AD97: 0 | AE97: 0 | AF97: 575.28667 | AG97: 65.25645 | AH97: 426.48137 | AI97: 475.54744 | AJ97: 136.05018 | AK97: 58.41139 | AL97: 24.72081 | AM97: 4.63239 | AN97: 1 | AO97: 0 | AP97: 979.91129 | AQ97: 2172.01132 | AR97: 1192.10003 | AS97: 1 | AT97: 0.04185907871 | AU97: 0.303140815 | AV97: 0.4026286582 | AW97: 0.1609214933 | AX97: 0.06606864366 | AY97: 0.0204263902 | AZ97: 0.004954920996 | BA97: 0 | BB97: 0 | BC97: 0.05474075024 | BD97: 0.3577563621 | BE97: 0.3989157185 | BF97: 0.1141264798 | BG97: 0.04899873209 | BH97: 0.02073719434 | BI97: 0.003885907125 | BJ97: 0.0008388557796 | BK97: 0 | BL97: =SUMIFS(UdS_data!L:L,UdS_data!N:N,1,UdS_data!E:E,SEE_agrg!D97) -> 334324.9449 | BM97: 5211.628361 | BN97: 0.6703150228 | BO97: 0.9194466447 | BP97: 0.5074335983 | BQ97: 0.9827236814 | BR97: 0.9350849589 | BS97: 0.8027336769 | BT97: 0.7807595859 | BU97: 5 | BV97: 0 | BW97: 4 | BX97: 0 | BY97: 5 | BZ97: 4 | CA97: 2 | CB97: 1 | CC97: 0
A98: NO | B98: TransOeste | C98: Interlagos | D98: Interlagos | E98: 500590.2876 | F98: 760.02764 | G98: 238.65085 | H98: 121.87456 | I98: 14.40628 | J98: 2.8894 | K98: 159.58085 | L98: 16.9846 | M98: 4.61482 | N98: 131.68382 | O98: 13.9426 | P98: 4.03478 | Q98: 159.58085 | R98: 16.9846 | S98: 4.61482 | T98: 238.65085 | U98: 232.79014 | V98: 168.40094 | W98: 1.22235 | X98: 11.10213 | Y98: 37.48608 | Z98: 16.84363 | AA98: 10.81992 | AB98: 36.50009 | AC98: 25.61697 | AD98: 23.21165 | AE98: 39.17382 | AF98: 201.97664 | AG98: 4.84006 | AH98: 42.2228 | AI98: 79.596 | AJ98: 25.64042 | AK98: 37.47974 | AL98: 76.06537 | AM98: 36.05475 | AN98: 38.02989 | AO98: 61.59115 | AP98: 246.60275 | AQ98: 648.12293 | AR98: 401.52018 | AS98: 1 | AT98: 0.006051937491 | AU98: 0.05496739623 | AV98: 0.1855961165 | AW98: 0.0833939509 | AX98: 0.05357015544 | AY98: 0.1807144133 | AZ98: 0.1268313504 | BA98: 0.1149224485 | BB98: 0.1939522313 | BC98: 0.01205433809 | BD98: 0.1051573547 | BE98: 0.1982366117 | BF98: 0.0638583595 | BG98: 0.09334459852 | BH98: 0.1894434546 | BI98: 0.08979561127 | BJ98: 0.09471476627 | BK98: 0.1533949053 | BL98: =SUMIFS(UdS_data!L:L,UdS_data!N:N,1,UdS_data!E:E,SEE_agrg!D98) -> 487507.5248 | BM98: 1518.262857 | BN98: 0.5831541769 | BO98: 0.7591855214 | BP98: 0.6271136265 | BQ98: 0.9754423251 | BR98: 0.705637294 | BS98: 0.9597411006 | BT98: 0.967786658 | BU98: 5 | BV98: 0 | BW98: 1 | BX98: 0 | BY98: 5 | BZ98: 1 | CA98: 5 | CB98: 5 | CC98: 1
A99: NO | B99: TransBrasil | C99: Iraj | D99: Iraj | E99: 500590.2871 | F99: 8598.38741 | G99: 3190.28892 | H99: 2463.51601 | I99: 615.8977 | J99: 91.30536 | K99: 2449.24881 | L99: 614.03734 | M99: 91.30536 | N99: 2378.65075 | O99: 585.05993 | P99: 86.37931 | Q99: 2463.3143 | R99: 615.8977 | S99: 91.30536 | T99: 3190.28892 | U99: 3188.67541 | V99: 3142.01023 | W99: 18.37159 | X99: 438.61051 | Y99: 836.0358 | Z99: 588.69907 | AA99: 684.52273 | AB99: 352.89816 | AC99: 40.36636 | AD99: 6.87163 | AE99: 6.47172 | AF99: 2972.84757 | AG99: 50.15277 | AH99: 1087.88795 | AI99: 1867.28534 | AJ99: 1007.45667 | AK99: 1038.83606 | AL99: 529.49885 | AM99: 53.57738 | AN99: 8.8657 | AO99: 10.83903 | AP99: 2156.01431 | AQ99: 7810.41406 | AR99: 5654.39975 | AS99: 1 | AT99: 0.006179795488 | AU99: 0.1475388494 | AV99: 0.2812239041 | AW99: 0.1980253128 | AX99: 0.2302582672 | AY99: 0.1187071155 | AZ99: 0.01357834838 | BA99: 0.002311463954 | BB99: 0.002176943098 | BC99: 0.008869689484 | BD99: 0.1923967173 | BE99: 0.3302358203 | BF99: 0.1781721694 | BG99: 0.1837217222 | BH99: 0.0936436887 | BI99: 0.009475343515 | BJ99: 0.001567929469 | BK99: 0.001916919652 | BL99: =SUMIFS(UdS_data!L:L,UdS_data!N:N,1,UdS_data!E:E,SEE_agrg!D99) -> 360836.1496 | BM99: 17176.49669 | BN99: 0.9938658064 | BO99: 0.9888106028 | BP99: 0.9560544723 | BQ99: 0.9994942433 | BR99: 0.984866985 | BS99: 0.8916620478 | BT99: 0.8769207218 | BU99: 0 | BV99: 5 | BW99: 5 | BX99: 5 | BY99: 5 | BZ99: 5 | CA99: 3 | CB99: 3 | CC99: 1
A100: NO | B100: TransBrasil | C100: Joana Nascimento | D100: Joana Nascimento | E100: 500590.2891 | F100: 3054.69972 | G100: 1138.78846 | H100: 416.66095 | I100: 235.62299 | J100: 36.77251 | K100: 421.86754 | L100: 236.06513 | M100: 37.49671 | N100: 368.66376 | O100: 218.96828 | P100: 34.53216 | Q100: 407.25264 | R100: 235.63528 | S100: 37.49671 | T100: 1138.78846 | U100: 1134.65682 | V100: 1125.59835 | W100: 6.977 | X100: 180.04959 | Y100: 350.38093 | Z100: 197.99097 | AA100: 142.54055 | AB100: 81.19381 | AC100: 8.03875 | AD100: 3.38003 | AE100: 2.81402 | AF100: 973.36565 | AG100: 17.17227 | AH100: 455.84336 | AI100: 744.96248 | AJ100: 315.59655 | AK100: 211.65922 | AL100: 104.36161 | AM100: 10.28149 | AN100: 4.45699 | AO100: 2.81402 | AP100: 875.98121 | AQ100: 2743.1292 | AR100: 1867.14799 | AS100: 1 | AT100: 0.007167912696 | AU100: 0.1849763139 | AV100: 0.3599684558 | AW100: 0.2034086266 | AX100: 0.1464409084 | AY100: 0.08341552838 | AZ100: 0.00825871552 | BA100: 0.003472518267 | BB100: 0.002891020451 | BC100: 0.009197058879 | BD100: 0.2441388484 | BE100: 0.3989841641 | BF100: 0.1690259967 | BG100: 0.1133596379 | BH100: 0.05589359309 | BI100: 0.005506521205 | BJ100: 0.002387057707 | BK100: 0.0015071221 | BL100: =SUMIFS(UdS_data!L:L,UdS_data!N:N,1,UdS_data!E:E,SEE_agrg!D100) -> 500590.2881 | BM100: 6102.195322 | BN100: 0.6050785323 | BO100: 0.6106747692 | BP100: 0.546338694 | BQ100: 0.9963718986 | BR100: 0.9884174186 | BS100: 0.8620743521 | BT100: 0.8286082803 | BU100: 5 | BV100: 0 | BW100: 0 | BX100: 0 | BY100: 5 | BZ100: 5 | CA100: 3 | CB100: 2 | CC100: 0
A101: =IF(B101="TransCarioca","OK","NO") -> NO | B101: TransOeste | C101: Julia Miguel | D101: Julia Miguel | E101: 500590.2881 | F101: 4481.66301 | G101: 1439.48202 | H101: 1149.52176 | I101: 180.82498 | J101: 27.6172 | K101: 1183.46123 | L101: 181.6211 | M101: 31.90444 | N101: 401.71559 | O101: 44.82315 | P101: 9.51353 | Q101: 1200.98884 | R101: 186.91189 | S101: 33.27928 | T101: 1439.48202 | U101: 1433.49297 | V101: 1284.78916 | W101: 27.67416 | X101: 288.38355 | Y101: 402.35153 | Z101: 238.98165 | AA101: 216.02336 | AB101: 97.58505 | AC101: 8.66779 | AD101: 3.96352 | AE101: 2.014 | AF101: 1285.64461 | AG101: 82.53138 | AH101: 722.4795 | AI101: 849.90122 | AJ101: 366.38779 | AK101: 298.1252 | AL101: 133.00715 | AM101: 10.67133 | AN101: 4.96352 | AO101: 2.81922 | AP101: 1466.46821 | AQ101: 3937.35452 | AR101: 2470.88631 | AS101: =IF(OR(G101=0,T101=0),0,1) -> 1 | AT101: =IF($AF101=0,0,W101/$AF101) -> 0.02152551318 | AU101: =IF($AF101=0,0,X101/$AF101) -> 0.2243104725 | AV101: =IF($AF101=0,0,Y101/$AF101) -> 0.3129570387 | AW101: =IF($AF101=0,0,Z101/$AF101) -> 0.1858846902 | AX101: =IF($AF101=0,0,AA101/$AF101) -> 0.1680272747 | AY101: =IF($AF101=0,0,AB101/$AF101) -> 0.07590359672 | AZ101: =IF($AF101=0,0,AC101/$AF101) -> 0.006741979807 | BA101: =IF($AF101=0,0,AD101/$AF101) -> 0.003082904847 | BB101: =IF($AF101=0,0,AE101/$AF101) -> 0.001566529338 | BC101: 0.0334015287 | BD101: 0.2923969011 | BE101: 0.3439661374 | BF101: 0.1482819297 | BG101: 0.1206551668 | BH101: 0.05382973286 | BI101: 0.004318826794 | BJ101: 0.002008801449 | BK101: 0.001140975199 | BL101: =SUMIFS(UdS_data!L:L,UdS_data!N:N,1,UdS_data!E:E,SEE_agrg!D101) -> 499744.8306 | BM101: =1000000*F101/E101 -> 8952.756609 | BN101: =IF(G101=0,0,(H101+I101+J101)/G101) -> 0.9433698519 | BO101: =IF(G101=0,0,(K101+L101+M101)/G101) -> 0.9704787907 | BP101: =IF(G101=0,0,(N101+O101+P101)/G101) -> 0.316816927 | BQ101: =IF(T101=0,0,U101/T101) -> 0.9958394409 | BR101: =IF(T101=0,0,V101/T101) -> 0.892535747 | BS101: =IF(AS101<>0,(1-SUMSQ(AT101:BB101))/(1-1/9),0) -> 0.8805085925 | BT101: 0.8500599641 | BU101: =IF(AND($BM101<=dens_ref,$BM101<=dens_urb_mun),5,IF(AND($BM101<=dens_ref,$BM101>dens_urb_mun),3,IF(AND($BM101>dens_ref,$BM101<=dens_urb_mun),2,IF($BM101<(1+dens_toler)*dens_ref,1,0)))) -> 3 | BV101: =IF(BN101>0.95,5,IF(BN101>0.9,4,IF(BN101>0.8,2,IF(BN101>0.7,1,0)))) -> 4 | BW101: =IF(BO101>0.95,5,IF(BO101>0.9,4,IF(BO101>0.8,2,IF(BO101>0.7,1,0)))) -> 5 | BX101: =IF(BP101>0.95,5,IF(BP101>0.9,4,IF(BP101>0.8,2,IF(BP101>0.7,1,0)))) -> 0 | BY101: =IF(BQ101>0.95,5,IF(BQ101>0.9,4,IF(BQ101>0.8,2,IF(BQ101>0.7,1,0)))) -> 5 | BZ101: =IF(BR101>0.95,5,IF(BR101>0.9,4,IF(BR101>0.8,2,IF(BR101>0.7,1,0)))) -> 2 | CA101: 3 | CB101: 3 | CC101: 1
A102: NO | B102: TransOlmpica | C102: Largo da Preguia | D102: Largo da Preguia | E102: 500590.2895 | F102: 3098.71692 | G102: 970.44439 | H102: 50.44673 | I102: 8.41748 | J102: 7.3352 | K102: 432.40351 | L102: 105.40223 | M102: 17.37465 | N102: 225.44659 | O102: 41.02586 | P102: 17.41517 | Q102: 214.33643 | R102: 59.21615 | S102: 13.00774 | T102: 970.73095 | U102: 957.28964 | V102: 883.75161 | W102: 14.90576 | X102: 222.65459 | Y102: 335.71333 | Z102: 126.71829 | AA102: 54.59497 | AB102: 29.87493 | AC102: 2.31564 | AD102: 0 | AE102: 0.33312 | AF102: 787.11063 | AG102: 43.60641 | AH102: 510.13878 | AI102: 697.75772 | AJ102: 212.44036 | AK102: 91.79313 | AL102: 38.09424 | AM102: 2.31564 | AN102: 1.545 | AO102: 0.33312 | AP102: 917.36327 | AQ102: 2515.38767 | AR102: 1598.0244 | AS102: 1 | AT102: 0.01893731254 | AU102: 0.2828758519 | AV102: 0.4265135258 | AW102: 0.1609917147 | AX102: 0.06936124087 | AY102: 0.03795518554 | AZ102: 0.00294194985 | BA102: 0 | BB102: 0.0004232187793 | BC102: 0.02728769974 | BD102: 0.3192309079 | BE102: 0.4366377134 | BF102: 0.1329393719 | BG102: 0.05744163231 | BH102: 0.02383833438 | BI102: 0.001449064232 | BJ102: 0.0009668187795 | BK102: 0.0002084573928 | BL102: =SUMIFS(UdS_data!L:L,UdS_data!N:N,1,UdS_data!E:E,SEE_agrg!D102) -> 256947.1115 | BM102: 6190.125907 | BN102: 0.06821556256 | BO102: 0.5720888242 | BP102: 0.2925336299 | BQ102: 0.9861534136 | BR102: 0.9103980974 | BS102: 0.793721361 | BT102: 0.7707945985 | BU102: 5 | BV102: 0 | BW102: 0 | BX102: 0 | BY102: 5 | BZ102: 4 | CA102: 1 | CB102: 1 | CC102: 1
A103: NO | B103: TransOeste | C103: Largo do Corra | D103: Largo do Corra | E103: 500590.2847 | F103: 2429.35449 | G103: 748.58702 | H103: 46.82594 | I103: 2.25428 | J103: 1.33389 | K103: 199.78753 | L103: 44.81926 | M103: 1.8152 | N103: 39.93836 | O103: 5.61566 | P103: 1.6982 | Q103: 144.14982 | R103: 26.60998 | S103: 1.8152 | T103: 748.58702 | U103: 735.55742 | V103: 612.39563 | W103: 12.92384 | X103: 168.75584 | Y103: 306.15799 | Z103: 107.14142 | AA103: 50.01282 | AB103: 22.55854 | AC103: 1.97497 | AD103: 1.06661 | AE103: 1.10352 | AF103: 671.69555 | AG103: 45.76406 | AH103: 394.21114 | AI103: 573.42398 | AJ103: 163.85374 | AK103: 74.82145 | AL103: 24.8442 | AM103: 1.97497 | AN103: 1.1463 | AO103: 1.10352 | AP103: 786.93608 | AQ103: 2068.07944 | AR103: 1281.14336 | AS103: 1 | AT103: 0.01924062174 | AU103: 0.2512385857 | AV103: 0.4557987469 | AW103: 0.1595089025 | AX103: 0.07445757233 | AY103: 0.03358447142 | AZ103: 0.002940275546 | BA103: 0.001587936678 | BB103: 0.001642887168 | BC103: 0.03572126386 | BD103: 0.3077025978 | BE103: 0.4475876767 | BF103: 0.1278964908 | BG103: 0.05840209015 | BH103: 0.01939220916 | BI103: 0.001541568307 | BJ103: 0.0008947476417 | BK103: 0.0008613555941 | BL103: =SUMIFS(UdS_data!L:L,UdS_data!N:N,1,UdS_data!E:E,SEE_agrg!D103) -> 330655.7702 | BM103: 4852.979701 | BN103: 0.06734569082 | BO103: 0.329182825 | BP103: 0.06312187994 | BQ103: 0.9825944083 | BR103: 0.8180687263 | BS103: 0.7837061301 | BT103: 0.7690050912 | BU103: 5 | BV103: 0 | BW103: 0 | BX103: 0 | BY103: 5 | BZ103: 2 | CA103: 1 | CB103: 1 | CC103: 1
A104: NO | B104: TransOlmpica | C104: Magalhes Bastos | D104: Magalhes Bastos | E104: 500590.292 | F104: 4279.77843 | G104: 1458.0105 | H104: 879.99485 | I104: 319.76657 | J104: 96.15897 | K104: 878.23567 | L104: 377.46777 | M104: 95.5278 | N104: 410.04408 | O104: 143.58135 | P104: 59.44325 | Q104: 835.9171 | R104: 304.99521 | S104: 95.35966 | T104: 1458.0105 | U104: 1457.7125 | V104: 1346.1195 | W104: 18.68928 | X104: 318.85671 | Y104: 387.37533 | Z104: 189.62574 | AA104: 171.31319 | AB104: 158.34819 | AC104: 30.29969 | AD104: 14.79289 | AE104: 4.45278 | AF104: 1293.7538 | AG104: 46.90787 | AH104: 674.55214 | AI104: 775.31487 | AJ104: 320.71287 | AK104: 242.19536 | AL104: 223.61526 | AM104: 42.03128 | AN104: 19.10787 | AO104: 4.82079 | AP104: 1339.48769 | AQ104: 3688.746 | AR104: 2349.25831 | AS104: 1 | AT104: 0.01444577786 | AU104: 0.2464585689 | AV104: 0.2994196655 | AW104: 0.1465701898 | AX104: 0.1324156033 | AY104: 0.1223943767 | AZ104: 0.02341998145 | BA104: 0.01143408429 | BB104: 0.00344175221 | BC104: 0.01996709762 | BD104: 0.287134087 | BE104: 0.3300253815 | BF104: 0.1365166481 | BG104: 0.1030943932 | BH104: 0.09518547154 | BI104: 0.01789129779 | BJ104: 0.008133575571 | BK104: 0.002052047652 | BL104: =SUMIFS(UdS_data!L:L,UdS_data!N:N,1,UdS_data!E:E,SEE_agrg!D104) -> 500590.2881 | BM104: 8549.4635 | BN104: 0.8888278857 | BO104: 0.9267637236 | BP104: 0.4204830349 | BQ104: 0.9997956119 | BR104: 0.9232577543 | BS104: 0.8940478295 | BT104: 0.8657129149 | BU104: 3 | BV104: 2 | BW104: 4 | BX104: 0 | BY104: 5 | BZ104: 4 | CA104: 3 | CB104: 3 | CC104: 1
A105: NO | B105: TransOeste | C105: Magara | D105: Magara | E105: 500590.2891 | F105: 876.51159 | G105: 267.9295 | H105: 46.07775 | I105: 4.03935 | J105: 0.74065 | K105: 56.90768 | L105: 4.64573 | M105: 2.22872 | N105: 124.85581 | O105: 14.31606 | P105: 3.49691 | Q105: 85.3877 | R105: 8.85055 | S105: 5.16485 | T105: 267.9295 | U105: 260.00605 | V105: 155.97907 | W105: 8.49351 | X105: 66.86662 | Y105: 96.66791 | Z105: 25.06857 | AA105: 19.25943 | AB105: 4.99682 | AC105: 0.1038 | AD105: 0 | AE105: 0 | AF105: 221.45666 | AG105: 20.15664 | AH105: 173.74701 | AI105: 161.18718 | AJ105: 35.32286 | AK105: 24.3113 | AL105: 6.89157 | AM105: 0.2076 | AN105: 0 | AO105: 0 | AP105: 318.35989 | AQ105: 740.18405 | AR105: 421.82416 | AS105: 1 | AT105: 0.03835292197 | AU105: 0.3019399823 | AV105: 0.4365093829 | AW105: 0.1131985374 | AX105: 0.08696703906 | AY105: 0.02256342166 | AZ105: 0.0004687147363 | BA105: 0 | BB105: 0 | BC105: 0.04778446071 | BD105: 0.4118944017 | BE105: 0.3821193646 | BF105: 0.08373835202 | BG105: 0.0576337306 | BH105: 0.01633754216 | BI105: 0.0004921481975 | BJ105: 0 | BK105: 0 | BL105: =SUMIFS(UdS_data!L:L,UdS_data!N:N,1,UdS_data!E:E,SEE_agrg!D105) -> 163578.9532 | BM105: 1750.95604 | BN105: 0.1898176573 | BO105: 0.2380556452 | BP105: 0.5324862697 | BQ105: 0.9704271086 | BR105: 0.5821645993 | BS105: 0.7829261512 | BT105: 0.7553739627 | BU105: 5 | BV105: 0 | BW105: 0 | BX105: 0 | BY105: 5 | BZ105: 0 | CA105: 1 | CB105: 1 | CC105: 1
A106: NO | B106: TransOlmpica | C106: Marechal Fontenelle | D106: Marechal Fontenelle | E106: 500590.2891 | F106: 1423.52641 | G106: 489.92869 | H106: 341.30346 | I106: 122.07185 | J106: 26.47048 | K106: 341.30346 | L106: 122.07185 | M106: 26.47048 | N106: 150.82074 | O106: 45.17335 | P106: 7.11983 | Q106: 341.30346 | R106: 122.07185 | S106: 26.47048 | T106: 489.92869 | U106: 489.69537 | V106: 468.72229 | W106: 3.82781 | X106: 24.48053 | Y106: 107.41279 | Z106: 87.90275 | AA106: 104.86517 | AB106: 118.55168 | AC106: 17.08713 | AD106: 6.03958 | AE106: 1.41353 | AF106: 471.58097 | AG106: 11.9654 | AH106: 108.04489 | AI106: 245.09855 | AJ106: 156.89571 | AK106: 168.97224 | AL106: 169.73583 | AM106: 19.34927 | AN106: 6.58912 | AO106: 3.11075 | AP106: 401.31511 | AQ106: 1291.07687 | AR106: 889.76176 | AS106: 1 | AT106: 0.008116972998 | AU106: 0.05191161552 | AV106: 0.2277716804 | AW106: 0.1864001213 | AX106: 0.2223693844 | AY106: 0.2513919932 | AZ106: 0.03623371401 | BA106: 0.01280709016 | BB106: 0.002997427992 | BC106: 0.01344786946 | BD106: 0.1214312582 | BE106: 0.2754653673 | BF106: 0.1763345168 | BG106: 0.1899072848 | BH106: 0.1907654809 | BI106: 0.02174657405 | BJ106: 0.007405487959 | BK106: 0.00349616059 | BL106: =SUMIFS(UdS_data!L:L,UdS_data!N:N,1,UdS_data!E:E,SEE_agrg!D106) -> 376754.7424 | BM106: 2843.695615 | BN106: 0.9998307917 | BO106: 0.9998307917 | BP106: 0.414578538 | BQ106: 0.9995237674 | BR106: 0.9567153334 | BS106: 0.8960426885 | BT106: 0.9057401444 | BU106: 5 | BV106: 5 | BW106: 5 | BX106: 0 | BY106: 5 | BZ106: 5 | CA106: 3 | CB106: 4 | CC106: 0
A107: NO | B107: TransOlmpica | C107: Marechal Mallet | D107: Marechal Mallet | E107: 500590.2886 | F107: 4798.15642 | G107: 1520.73087 | H107: 978.00905 | I107: 240.47792 | J107: 44.78803 | K107: 952.29439 | L107: 235.28816 | M107: 44.80813 | N107: 534.30426 | O107: 110.38322 | P107: 30.76101 | Q107: 981.99135 | R107: 240.47792 | S107: 45.67309 | T107: 1520.73087 | U107: 1514.99008 | V107: 1406.21391 | W107: 23.39409 | X107: 397.51174 | Y107: 496.83761 | Z107: 184.82178 | AA107: 163.81087 | AB107: 77.45236 | AC107: 11.30474 | AD107: 1.42192 | AE107: 3.48404 | AF107: 1360.03915 | AG107: 63.27116 | AH107: 871.96995 | AI107: 992.70973 | AJ107: 304.97685 | AK107: 239.19009 | AL107: 112.49764 | AM107: 15.36581 | AN107: 2.09217 | AO107: 3.48404 | AP107: 1549.43241 | AQ107: 4154.98985 | AR107: 2605.55744 | AS107: 1 | AT107: 0.0172010416 | AU107: 0.2922796303 | AV107: 0.3653112559 | AW107: 0.1358944557 | AX107: 0.1204457019 | AY107: 0.05694862534 | AZ107: 0.008312069546 | BA107: 0.001045499315 | BB107: 0.002561720374 | BC107: 0.02428315685 | BD107: 0.3346577345 | BE107: 0.3809970622 | BF107: 0.1170485998 | BG107: 0.09179996815 | BH107: 0.0431760353 | BI107: 0.005897321534 | BJ107: 0.0008029644512 | BK107: 0.001337157242 | BL107: =SUMIFS(UdS_data!L:L,UdS_data!N:N,1,UdS_data!E:E,SEE_agrg!D107) -> 439600.974 | BM107: 9584.997011 | BN107: 0.8307025424 | BO107: 0.810393676 | BP107: 0.4441604385 | BQ107: 0.9962249796 | BR107: 0.9246961035 | BS107: 0.8375963243 | BT107: 0.8080051248 | BU107: 1 | BV107: 2 | BW107: 2 | BX107: 0 | BY107: 5 | BZ107: 4 | CA107: 2 | CB107: 2 | CC107: 1
A108: NO | B108: TransOeste | C108: Maria Tereza | D108: Maria Tereza | E108: 500590.2886 | F108: 2396.97129 | G108: 831.27527 | H108: 605.72746 | I108: 173.06937 | J108: 24.45916 | K108: 595.8141 | L108: 171.78116 | M108: 25.89619 | N108: 574.42007 | O108: 167.02944 | P108: 24.78292 | Q108: 613.09005 | R108: 173.37357 | S108: 25.89619 | T108: 831.27527 | U108: 828.07475 | V108: 748.41115 | W108: 7.6447 | X108: 117.49671 | Y108: 184.91859 | Z108: 99.24397 | AA108: 144.3875 | AB108: 148.39773 | AC108: 27.73464 | AD108: 17.67122 | AE108: 10.38141 | AF108: 757.87647 | AG108: 24.91858 | AH108: 288.02588 | AI108: 407.00348 | AJ108: 190.70289 | AK108: 246.87223 | AL108: 241.71933 | AM108: 40.78198 | AN108: 26.24776 | AO108: 18.96595 | AP108: 673.71104 | AQ108: 2158.94912 | AR108: 1485.23808 | AS108: 1 | AT108: 0.01008700006 | AU108: 0.1550341179 | AV108: 0.2439956871 | AW108: 0.130950061 | AX108: 0.1905158766 | AY108: 0.1958072798 | AZ108: 0.03659519869 | BA108: 0.02331675504 | BB108: 0.0136980239 | BC108: 0.01677749873 | BD108: 0.1939257307 | BE108: 0.2740324837 | BF108: 0.1283988692 | BG108: 0.1662172774 | BH108: 0.1627478673 | BI108: 0.02745821061 | BJ108: 0.01767242596 | BK108: 0.01276963623 | BL108: =SUMIFS(UdS_data!L:L,UdS_data!N:N,1,UdS_data!E:E,SEE_agrg!D108) -> 496187.114 | BM108: 4788.289635 | BN108: 0.9662936202 | BO108: 0.9545471622 | BP108: 0.9217553531 | BQ108: 0.9961498674 | BR108: 0.900316871 | BS108: 0.9252827498 | BT108: 0.9170852305 | BU108: 5 | BV108: 5 | BW108: 5 | BX108: 4 | BY108: 5 | BZ108: 4 | CA108: 4 | CB108: 4 | CC108: 1
A109: NO | B109: TransBrasil | C109: Marinha do Brasil | D109: Marinha do Brasil | E109: 500590.2895 | F109: 1114.4278 | G109: 384.78765 | H109: 259.45179 | I109: 115.90312 | J109: 9.17061 | K109: 259.45621 | L109: 115.90329 | M109: 9.17061 | N109: 259.01005 | O109: 114.76159 | P109: 9.17061 | Q109: 259.45621 | R109: 115.90329 | S109: 9.17061 | T109: 384.78765 | U109: 384.33705 | V109: 384.47247 | W109: 1.96399 | X109: 49.02842 | Y109: 100.65662 | Z109: 80.47989 | AA109: 76.38053 | AB109: 49.8669 | AC109: 1.29967 | AD109: 0.96568 | AE109: 2.72501 | AF109: 363.36671 | AG109: 7.67739 | AH109: 115.70831 | AI109: 265.13482 | AJ109: 151.62138 | AK109: 115.39734 | AL109: 61.1474 | AM109: 2.32688 | AN109: 1.6767 | AO109: 2.72501 | AP109: 295.00466 | AQ109: 1018.41989 | AR109: 723.41523 | AS109: 1 | AT109: 0.00540498055 | AU109: 0.1349282107 | AV109: 0.2770111219 | AW109: 0.2214839384 | AX109: 0.2102023325 | AY109: 0.1372357418 | AZ109: 0.003576744826 | BA109: 0.00265759073 | BB109: 0.007499338616 | BC109: 0.01061270164 | BD109: 0.1599472961 | BE109: 0.366504338 | BF109: 0.2095910809 | BG109: 0.1595174323 | BH109: 0.0845260059 | BI109: 0.003216520614 | BJ109: 0.002317756014 | BK109: 0.003766868442 | BL109: =SUMIFS(UdS_data!L:L,UdS_data!N:N,1,UdS_data!E:E,SEE_agrg!D109) -> 488952.5178 | BM109: 2226.227363 | BN109: 0.9993187671 | BO109: 0.9993306958 | BP109: 0.995204108 | BQ109: 0.9988289645 | BR109: 0.9991808989 | BS109: 0.8919901149 | BT109: 0.8588587701 | BU109: 5 | BV109: 5 | BW109: 5 | BX109: 5 | BY109: 5 | BZ109: 5 | CA109: 3 | CB109: 3 | CC109: 1
A110: NO | B110: TransBrasil | C110: Marinha Mercante | D110: Marinha Mercante | E110: 489662.7739 | F110: 1336.46531 | G110: 462.0839 | H110: 298.36013 | I110: 136.55553 | J110: 20.87439 | K110: 264.22856 | L110: 130.94446 | M110: 19.91337 | N110: 251.20581 | O110: 123.50351 | P110: 17.40185 | Q110: 298.36013 | R110: 136.55553 | S110: 20.87439 | T110: 462.0839 | U110: 460.98627 | V110: 461.05994 | W110: 1.69758 | X110: 74.62304 | Y110: 117.65267 | Z110: 66.88643 | AA110: 69.04775 | AB110: 61.60272 | AC110: 12.44659 | AD110: 4.25083 | AE110: 1.08808 | AF110: 409.29569 | AG110: 2.96763 | AH110: 188.6896 | AI110: 265.41178 | AJ110: 132.22062 | AK110: 130.33742 | AL110: 93.82729 | AM110: 16.35893 | AN110: 5.14198 | AO110: 2.41064 | AP110: 381.34352 | AQ110: 1218.70941 | AR110: 837.36589 | AS110: 1 | AT110: 0.004147563831 | AU110: 0.1823206103 | AV110: 0.2874515243 | AW110: 0.163418359 | AX110: 0.1686989423 | AY110: 0.1505090855 | AZ110: 0.03040977539 | BA110: 0.01038571894 | BB110: 0.002658420371 | BC110: 0.003544006312 | BD110: 0.2253370985 | BE110: 0.3169603433 | BF110: 0.157900652 | BG110: 0.1556516949 | BH110: 0.1120505279 | BI110: 0.0195361791 | BJ110: 0.006140660924 | BK110: 0.002878837111 | BL110: =SUMIFS(UdS_data!L:L,UdS_data!N:N,1,UdS_data!E:E,SEE_agrg!D110) -> 476868.1804 | BM110: 2729.358614 | BN110: 0.9863794216 | BO110: 0.8982922582 | BP110: 0.8485713742 | BQ110: 0.9976246089 | BR110: 0.9977840388 | BS110: 0.9059130575 | BT110: 0.8849291943 | BU110: 5 | BV110: 5 | BW110: 2 | BX110: 2 | BY110: 5 | BZ110: 5 | CA110: 4 | CB110: 3 | CC110: 0
A111: NO | B111: TransOeste | C111: Mato Alto | D111: Mato Alto | E111: 500590.2871 | F111: 119.9714 | G111: 36.82797 | H111: 0.0942 | I111: 0.0157 | J111: 0.27328 | K111: 19.47298 | L111: 8.48066 | M111: 1.64973 | N111: 6.75413 | O111: 0.68426 | P111: 1.01648 | Q111: 17.12307 | R111: 8.08019 | S111: 1.4296 | T111: 36.82797 | U111: 36.24014 | V111: 7.66853 | W111: 1.51812 | X111: 10.22743 | Y111: 12.63253 | Z111: 3.66169 | AA111: 2.48427 | AB111: 1.29567 | AC111: 0.18722 | AD111: 0.16237 | AE111: 0 | AF111: 32.1693 | AG111: 3.84724 | AH111: 19.09652 | AI111: 23.52073 | AJ111: 5.23406 | AK111: 3.89311 | AL111: 1.7884 | AM111: 0.20141 | AN111: 0.16237 | AO111: 0 | AP111: 38.55829 | AQ111: 96.30213 | AR111: 57.74384 | AS111: 1 | AT111: 0.04719157706 | AU111: 0.3179251647 | AV111: 0.3926889923 | AW111: 0.1138256039 | AX111: 0.07722486967 | AY111: 0.04027659912 | AZ111: 0.005819834438 | BA111: 0.005047358817 | BB111: 0 | BC111: 0.06662598123 | BD111: 0.3307109468 | BE111: 0.4073288164 | BF111: 0.09064274215 | BG111: 0.06742035168 | BH111: 0.03097126897 | BI111: 0.0034879911 | BJ111: 0.002811901668 | BK111: 0 | BL111: =SUMIFS(UdS_data!L:L,UdS_data!N:N,1,UdS_data!E:E,SEE_agrg!D111) -> 184881.1229 | BM111: 239.6598637 | BN111: 0.01040459194 | BO111: 0.8038284489 | BP111: 0.2295774109 | BQ111: 0.9840384903 | BR111: 0.2082257045 | BS111: 0.8121267008 | BT111: 0.7948502783 | BU111: 5 | BV111: 0 | BW111: 2 | BX111: 0 | BY111: 5 | BZ111: 0 | CA111: 2 | CB111: 1 | CC111: 0
A112: NO | B112: TransOeste | C112: Notre Dame | D112: Notre Dame | E112: 500590.2881 | F112: 615.32088 | G112: 187.58554 | H112: 19.929 | I112: 0.5694 | J112: 0.29952 | K112: 54.86454 | L112: 8.69013 | M112: 4.37973 | N112: 58.95798 | O112: 10.4352 | P112: 5.15661 | Q112: 41.39058 | R112: 5.11452 | S112: 3.37767 | T112: 187.58554 | U112: 139.32825 | V112: 38.29686 | W112: 2.71364 | X112: 41.89978 | Y112: 54.95037 | Z112: 27.08876 | AA112: 13.68316 | AB112: 14.382 | AC112: 2.04348 | AD112: 4.7352 | AE112: 7.27545 | AF112: 168.77184 | AG112: 13.50189 | AH112: 100.9441 | AI112: 112.63083 | AJ112: 42.7429 | AK112: 26.20253 | AL112: 24.99027 | AM112: 4.45713 | AN112: 7.4412 | AO112: 9.78615 | AP112: 166.39696 | AQ112: 509.09396 | AR112: 342.697 | AS112: 1 | AT112: 0.01607874868 | AU112: 0.2482628619 | AV112: 0.3255896837 | AW112: 0.1605052122 | AX112: 0.0810748997 | AY112: 0.08521563787 | AZ112: 0.01210794407 | BA112: 0.02805681327 | BB112: 0.04310819862 | BC112: 0.03939891508 | BD112: 0.2945578747 | BE112: 0.3286600992 | BF112: 0.1247250487 | BG112: 0.07645975891 | BH112: 0.07292234831 | BI112: 0.0130060374 | BJ112: 0.02171364208 | BK112: 0.02855627566 | BL112: =SUMIFS(UdS_data!L:L,UdS_data!N:N,1,UdS_data!E:E,SEE_agrg!D112) -> 232783.2693 | BM112: 1229.190607 | BN112: 0.1108716589 | BO112: 0.3621515816 | BP112: 0.3974175728 | BQ112: 0.7427451498 | BR112: 0.204156781 | BS112: 0.8884232008 | BT112: 0.8724259368 | BU112: 5 | BV112: 0 | BW112: 0 | BX112: 0 | BY112: 1 | BZ112: 0 | CA112: 3 | CB112: 3 | CC112: 1
A113: NO | B113: TransOeste | C113: Nova Barra | D113: Nova Barra | E113: 500590.2871 | F113: 2582.21635 | G113: 872.2956 | H113: 546.64491 | I113: 128.36371 | J113: 48.88377 | K113: 605.21059 | L113: 144.88795 | M113: 57.70638 | N113: 599.76899 | O113: 144.07171 | P113: 57.70638 | Q113: 561.12979 | R113: 132.58153 | S113: 54.22738 | T113: 872.2956 | U113: 832.9195 | V113: 786.95939 | W113: 3.14092 | X113: 26.76435 | Y113: 82.14675 | Z113: 44.98053 | AA113: 83.46285 | AB113: 266.02153 | AC113: 120.75537 | AD113: 107.77909 | AE113: 72.36841 | AF113: 807.4198 | AG113: 7.60796 | AH113: 96.73515 | AI113: 226.35177 | AJ113: 127.88205 | AK113: 223.83404 | AL113: 482.88709 | AM113: 188.02315 | AN113: 148.28714 | AO113: 107.84463 | AP113: 667.54196 | AQ113: 2276.99494 | AR113: 1609.45298 | AS113: 1 | AT113: 0.003890070568 | AU113: 0.0331479981 | AV113: 0.101739826 | AW113: 0.05570897568 | AX113: 0.1033698331 | AY113: 0.32947115 | AZ113: 0.1495571077 | BA113: 0.1334858149 | BB113: 0.08962922386 | BC113: 0.004727047074 | BD113: 0.0601043654 | BE113: 0.1406389455 | BF113: 0.07945684129 | BG113: 0.1390746066 | BH113: 0.3000318096 | BI113: 0.1168242579 | BJ113: 0.09213511786 | BK113: 0.0670070088 | BL113: =SUMIFS(UdS_data!L:L,UdS_data!N:N,1,UdS_data!E:E,SEE_agrg!D113) -> 461101.8505 | BM113: 5158.342893 | BN113: 0.8298705049 | BO113: 0.9260678605 | BP113: 0.9188938704 | BQ113: 0.9548592243 | BR113: 0.9021705371 | BS113: 0.920222826 | BT113: 0.9385704656 | BU113: 5 | BV113: 2 | BW113: 4 | BX113: 4 | BY113: 5 | BZ113: 4 | CA113: 4 | CB113: 4 | CC113: 1
A114: NO | B114: TransBrasil | C114: Nova Holanda | D114: Nova Holanda | E114: 500590.2876 | F114: 2488.9668 | G114: 882.3252 | H114: 472.45135 | I114: 182.2329 | J114: 24.16133 | K114: 481.70249 | L114: 183.97946 | M114: 26.07903 | N114: 380.80493 | O114: 131.82978 | P114: 17.12141 | Q114: 481.02325 | R114: 184.09996 | S114: 26.07903 | T114: 882.3252 | U114: 881.79522 | V114: 879.11179 | W114: 3.72952 | X114: 199.63992 | Y114: 260.27068 | Z114: 128.20709 | AA114: 106.6317 | AB114: 47.39768 | AC114: 5.11354 | AD114: 1.75016 | AE114: 1.88918 | AF114: 754.62947 | AG114: 15.80612 | AH114: 429.36536 | AI114: 544.26977 | AJ114: 215.82657 | AK114: 166.11228 | AL114: 65.82536 | AM114: 7.32764 | AN114: 4.02709 | AO114: 1.88918 | AP114: 736.49362 | AQ114: 2186.94299 | AR114: 1450.44937 | AS114: 1 | AT114: 0.004942187058 | AU114: 0.2645535696 | AV114: 0.3448986428 | AW114: 0.1698940939 | AX114: 0.1413033869 | AY114: 0.06280920887 | AZ114: 0.006776226219 | BA114: 0.00231923092 | BB114: 0.002503453781 | BC114: 0.0108973952 | BD114: 0.296022301 | BE114: 0.3752421706 | BF114: 0.1487997957 | BG114: 0.1145247007 | BH114: 0.04538273542 | BI114: 0.005051979167 | BJ114: 0.002776443 | BK114: 0.001302479107 | BL114: =SUMIFS(UdS_data!L:L,UdS_data!N:N,1,UdS_data!E:E,SEE_agrg!D114) -> 500590.2881 | BM114: 4972.063705 | BN114: 0.7693825134 | BO114: 0.7840204269 | BP114: 0.6004091462 | BQ114: 0.9993993371 | BR114: 0.9963580208 | BS114: 0.8529735369 | BT114: 0.8258552448 | BU114: 5 | BV114: 1 | BW114: 1 | BX114: 0 | BY114: 5 | BZ114: 5 | CA114: 3 | CB114: 2 | CC114: 0
A115: NO | B115: TransOeste | C115: Novo Leblon | D115: Novo Leblon | E115: 500590.2871 | F115: 2795.86544 | G115: 989.19115 | H115: 814.76106 | I115: 153.03503 | J115: 21.39011 | K115: 814.76106 | L115: 153.03503 | M115: 21.39011 | N115: 777.03611 | O115: 148.22044 | P115: 20.13413 | Q115: 814.76106 | R115: 153.03503 | S115: 21.39011 | T115: 989.19115 | U115: 989.1862 | V115: 985.30672 | W115: 4.87988 | X115: 6.92232 | Y115: 18.96002 | Z115: 19.87423 | AA115: 61.34101 | AB115: 202.31639 | AC115: 130.58429 | AD115: 181.51053 | AE115: 312.90433 | AF115: 939.293 | AG115: 8.24669 | AH115: 37.57633 | AI115: 134.71184 | AJ115: 92.36754 | AK115: 211.00321 | AL115: 466.57713 | AM115: 206.668 | AN115: 280.58821 | AO115: 388.57196 | AP115: 746.44841 | AQ115: 2572.75932 | AR115: 1826.31091 | AS115: 1 | AT115: 0.005195269208 | AU115: 0.007369713178 | AV115: 0.02018541605 | AW115: 0.02115871192 | AX115: 0.0653055117 | AY115: 0.2153922046 | AZ115: 0.1390240213 | BA115: 0.1932416509 | BB115: 0.3331275012 | BC115: 0.004515490739 | BD115: 0.02057499071 | BE115: 0.0737617233 | BF115: 0.05057602158 | BG115: 0.1155352075 | BH115: 0.2554751918 | BI115: 0.1131614551 | BJ115: 0.1536366062 | BK115: 0.2127633131 | BL115: =SUMIFS(UdS_data!L:L,UdS_data!N:N,1,UdS_data!E:E,SEE_agrg!D115) -> 500590.2881 | BM115: 5585.137211 | BN115: 0.9999949959 | BO115: 0.9999949959 | BP115: 0.9557209241 | BQ115: 0.9999949959 | BR115: 0.996073125 | BS115: 0.8783561211 | BT115: 0.9351716034 | BU115: 5 | BV115: 5 | BW115: 5 | BX115: 5 | BY115: 5 | BZ115: 5 | CA115: 3 | CB115: 4 | CC115: 0
A116: NO | B116: TransOeste | C116: ParkShopping | D116: ParkShopping | E116: 500590.292 | F116: 922.56915 | G116: 282.80741 | H116: 94.16574 | I116: 10.21786 | J116: 9.66828 | K116: 208.40417 | L116: 32.54596 | M116: 19.66634 | N116: 122.92398 | O116: 18.35941 | P116: 12.57626 | Q116: 184.9431 | R116: 26.40155 | S116: 17.54737 | T116: 282.80741 | U116: 269.99267 | V116: 144.39899 | W116: 12.34467 | X116: 68.36549 | Y116: 70.86805 | Z116: 35.09253 | AA116: 25.85309 | AB116: 18.54751 | AC116: 0.56831 | AD116: 1.18468 | AE116: 1.80576 | AF116: 234.63009 | AG116: 33.60591 | AH116: 167.18459 | AI116: 167.86297 | AJ116: 64.60163 | AK116: 42.53861 | AL116: 24.35214 | AM116: 2.18669 | AN116: 1.56654 | AO116: 1.80576 | AP116: 310.0379 | AQ116: 815.74274 | AR116: 505.70484 | AS116: 1 | AT116: 0.0526133285 | AU116: 0.2913756288 | AV116: 0.3020416094 | AW116: 0.1495653435 | AX116: 0.110186592 | AY116: 0.07905000591 | AZ116: 0.002422153101 | BA116: 0.005049139264 | BB116: 0.00769619958 | BC116: 0.06645360562 | BD116: 0.3305971721 | BE116: 0.3319386265 | BF116: 0.1277457222 | BG116: 0.08411746662 | BH116: 0.04815484859 | BI116: 0.004324044041 | BJ116: 0.003097735826 | BK116: 0.003570778559 | BL116: =SUMIFS(UdS_data!L:L,UdS_data!N:N,1,UdS_data!E:E,SEE_agrg!D116) -> 251575.6401 | BM116: 1842.962528 | BN116: 0.403284624 | BO116: 0.9215333856 | BP116: 0.5440439131 | BQ116: 0.9546873966 | BR116: 0.5105912536 | BS116: 0.877784146 | BT116: 0.8441454661 | BU116: 5 | BV116: 0 | BW116: 4 | BX116: 0 | BY116: 5 | BZ116: 0 | CA116: 3 | CB116: 2 | CC116: 0
A117: NO | B117: TransOeste | C117: Parque das Rosas | D117: Parque das Rosas | E117: 500590.2881 | F117: 1663.05683 | G117: 769.25401 | H117: 521.9394 | I117: 208.5192 | J117: 13.58796 | K117: 521.9394 | L117: 208.5192 | M117: 13.58796 | N117: 521.9394 | O117: 208.5192 | P117: 13.58796 | Q117: 521.9394 | R117: 208.5192 | S117: 13.58796 | T117: 769.25401 | U117: 768.25401 | V117: 767.38051 | W117: 3.35224 | X117: 5.35408 | Y117: 9.99903 | Z117: 26.15915 | AA117: 87.44629 | AB117: 229.36571 | AC117: 123.63417 | AD117: 112.97559 | AE117: 129.67317 | AF117: 727.95943 | AG117: 5.69164 | AH117: 23.80984 | AI117: 76.65233 | AJ117: 77.67778 | AK117: 174.46201 | AL117: 367.28278 | AM117: 158.55141 | AN117: 141.38107 | AO117: 159.30829 | AP117: 374.08594 | AQ117: 1558.90309 | AR117: 1184.81715 | AS117: 1 | AT117: 0.004604981901 | AU117: 0.007354915369 | AV117: 0.01373569678 | AW117: 0.03593490093 | AX117: 0.1201252246 | AY117: 0.3150803473 | AZ117: 0.1698366213 | BA117: 0.1551948987 | BB117: 0.1781324132 | BC117: 0.004803812977 | BD117: 0.02009579284 | BE117: 0.06469549331 | BF117: 0.06556098551 | BG117: 0.1472480458 | BH117: 0.3099911071 | BI117: 0.1338193071 | BJ117: 0.1193273325 | BK117: 0.1344581229 | BL117: =SUMIFS(UdS_data!L:L,UdS_data!N:N,1,UdS_data!E:E,SEE_agrg!D117) -> 500330.9757 | BM117: 3322.19156 | BN117: 0.967231305 | BO117: 0.967231305 | BP117: 0.967231305 | BQ117: 0.9987000393 | BR117: 0.9975645236 | BS117: 0.9000876678 | BT117: 0.92597316 | BU117: 5 | BV117: 5 | BW117: 5 | BX117: 5 | BY117: 5 | BZ117: 5 | CA117: 4 | CB117: 4 | CC117: 1
A118: NO | B118: TransOeste | C118: Parque Esperana | D118: Parque Esperana | E118: 500590.2881 | F118: 4570.12611 | G118: 1546.8783 | H118: 1140.68819 | I118: 317.15974 | J118: 41.76881 | K118: 1162.53609 | L118: 320.82831 | M118: 43.09413 | N118: 836.62956 | O118: 229.23056 | P118: 28.4978 | Q118: 1149.74238 | R118: 318.39682 | S118: 41.76881 | T118: 1546.8783 | U118: 1533.90136 | V118: 1419.43022 | W118: 30.26652 | X118: 234.43158 | Y118: 372.30176 | Z118: 187.81216 | AA118: 245.47071 | AB118: 238.98291 | AC118: 44.15193 | AD118: 18.39961 | AE118: 5.67011 | AF118: 1377.48729 | AG118: 75.19008 | AH118: 535.24619 | AI118: 850.09657 | AJ118: 378.81018 | AK118: 421.78306 | AL118: 347.99448 | AM118: 60.05997 | AN118: 29.13866 | AO118: 7.65058 | AP118: 1331.19161 | AQ118: 4037.16138 | AR118: 2705.96977 | AS118: 1 | AT118: 0.02197226807 | AU118: 0.1701878353 | AV118: 0.2702760038 | AW118: 0.1363440239 | AX118: 0.1782017967 | AY118: 0.1734919166 | AZ118: 0.03205251353 | BA118: 0.01335737189 | BB118: 0.004116270285 | BC118: 0.02778674057 | BD118: 0.1978019843 | BE118: 0.3141559745 | BF118: 0.1399905439 | BG118: 0.1558713126 | BH118: 0.128602501 | BI118: 0.02219535882 | BJ118: 0.01076828733 | BK118: 0.002827296921 | BL118: =SUMIFS(UdS_data!L:L,UdS_data!N:N,1,UdS_data!E:E,SEE_agrg!D118) -> 488083.7305 | BM118: 9129.47418 | BN118: 0.9694471375 | BO118: 0.9867993688 | BP118: 0.7074621966 | BQ118: 0.991610885 | BR118: 0.9176094978 | BS118: 0.9178160141 | BT118: 0.9004048767 | BU118: 1 | BV118: 5 | BW118: 5 | BX118: 1 | BY118: 5 | BZ118: 4 | CA118: 4 | CB118: 4 | CC118: 1
A119: NO | B119: TransOlmpica | C119: Parque Olmpico | D119: Parque Olmpico | E119: 500590.2861 | F119: 986.62724 | G119: 303.7804 | H119: 47.06135 | I119: 18.81737 | J119: 2.17041 | K119: 229.60251 | L119: 47.63726 | M119: 9.62429 | N119: 141.96323 | O119: 28.99289 | P119: 7.01236 | Q119: 120.19055 | R119: 28.87922 | S119: 9.6624 | T119: 303.7804 | U119: 300.86652 | V119: 67.26417 | W119: 4.34908 | X119: 62.38087 | Y119: 72.24357 | Z119: 36.68091 | AA119: 23.36375 | AB119: 35.12257 | AC119: 9.18633 | AD119: 7.97896 | AE119: 2.69343 | AF119: 253.99947 | AG119: 9.75335 | AH119: 148.77063 | AI119: 166.58607 | AJ119: 61.14082 | AK119: 46.84711 | AL119: 54.90646 | AM119: 13.00048 | AN119: 8.84314 | AO119: 3.58174 | AP119: 303.95449 | AQ119: 817.38429 | AR119: 513.4298 | AS119: 1 | AT119: 0.01712239793 | AU119: 0.2455944888 | AV119: 0.2844240974 | AW119: 0.1444133328 | AX119: 0.09198345965 | AY119: 0.1382781232 | AZ119: 0.03616672901 | BA119: 0.03141329389 | BB119: 0.01060407724 | BC119: 0.01899646261 | BD119: 0.2897584636 | BE119: 0.3244573455 | BF119: 0.1190831152 | BG119: 0.09124345724 | BH119: 0.1069405399 | BI119: 0.02532085204 | BJ119: 0.0172236594 | BK119: 0.00697610462 | BL119: =SUMIFS(UdS_data!L:L,UdS_data!N:N,1,UdS_data!E:E,SEE_agrg!D119) -> 240956.6655 | BM119: 1970.927657 | BN119: 0.2240076384 | BO119: 0.9443139189 | BP119: 0.5858458281 | BQ119: 0.9904079394 | BR119: 0.2214236666 | BS119: 0.9086049255 | BT119: 0.8724124083 | BU119: 5 | BV119: 0 | BW119: 4 | BX119: 0 | BY119: 5 | BZ119: 0 | CA119: 4 | CB119: 3 | CC119: 0
A120: NO | B120: TransOeste | C120: Parque So Paulo | D120: Parque So Paulo | E120: 500590.2925 | F120: 4220.81122 | G120: 1387.56865 | H120: 1106.409 | I120: 139.80638 | J120: 47.27753 | K120: 1005.82499 | L120: 132.02077 | M120: 30.94675 | N120: 157.1004 | O120: 14.52618 | P120: 2.38184 | Q120: 1157.86978 | R120: 151.67408 | S120: 50.75692 | T120: 1387.56865 | U120: 1385.44465 | V120: 1339.23002 | W120: 22.44218 | X120: 242.56827 | Y120: 387.89122 | Z120: 261.60236 | AA120: 211.79485 | AB120: 86.97725 | AC120: 5.45568 | AD120: 5.02091 | AE120: 1.36645 | AF120: 1225.11917 | AG120: 65.4914 | AH120: 561.84527 | AI120: 835.02094 | AJ120: 398.58979 | AK120: 299.24106 | AL120: 110.25987 | AM120: 8.27935 | AN120: 5.11238 | AO120: 3.06101 | AP120: 1402.07775 | AQ120: 3688.97882 | AR120: 2286.90107 | AS120: 1 | AT120: 0.0183183649 | AU120: 0.1979956529 | AV120: 0.316615093 | AW120: 0.2135321742 | AX120: 0.1728769374 | AY120: 0.07099493023 | AZ120: 0.004453183114 | BA120: 0.004098303351 | BB120: 0.001115360884 | BC120: 0.02863761833 | BD120: 0.2456797442 | BE120: 0.3651320781 | BF120: 0.1742925373 | BG120: 0.130850024 | BH120: 0.04821365972 | BI120: 0.003620335881 | BJ120: 0.002235505535 | BK120: 0.001338496903 | BL120: =SUMIFS(UdS_data!L:L,UdS_data!N:N,1,UdS_data!E:E,SEE_agrg!D120) -> 497308.8512 | BM120: 8431.668139 | BN120: 0.9322010194 | BO120: 0.8423313038 | BP120: 0.1254052691 | BQ120: 0.9984692649 | BR120: 0.9651630714 | BS120: 0.877113524 | BT120: 0.8501128261 | BU120: 5 | BV120: 4 | BW120: 2 | BX120: 0 | BY120: 5 | BZ120: 5 | CA120: 3 | CB120: 3 | CC120: 1
A121: NO | B121: TransBrasil | C121: Parque Vitria | D121: Parque Vitria | E121: 500590.2886 | F121: 1574.56393 | G121: 461.87288 | H121: 1.5635 | I121: 0.80825 | J121: 0.01325 | K121: 0.1325 | L121: 0.01325 | M121: 0 | N121: 0.3975 | O121: 0.01325 | P121: 0.053 | Q121: 1.59 | R121: 0.67575 | S121: 0.06625 | T121: 461.87288 | U121: 461.47326 | V121: 453.8553 | W121: 8.33312 | X121: 210.85557 | Y121: 166.36929 | Z121: 18.03409 | AA121: 6.40259 | AB121: 3.17178 | AC121: 0.39962 | AD121: 0 | AE121: 0.4248 | AF121: 413.99086 | AG121: 28.99578 | AH121: 448.32218 | AI121: 288.99375 | AJ121: 27.53402 | AK121: 8.81127 | AL121: 4.0492 | AM121: 0.41287 | AN121: 0 | AO121: 0.4248 | AP121: 373.9538 | AQ121: 1181.49767 | AR121: 807.54387 | AS121: 1 | AT121: 0.02012875357 | AU121: 0.5093242155 | AV121: 0.4018670605 | AW121: 0.04356156559 | AX121: 0.01546553467 | AY121: 0.007661473492 | AZ121: 0.0009652870114 | BA121: 0 | BB121: 0.00102610961 | BC121: 0.03590613597 | BD121: 0.5551675849 | BE121: 0.3578675546 | BF121: 0.03409600521 | BG121: 0.01091119669 | BH121: 0.005014216751 | BI121: 0.0005112663415 | BJ121: 0 | BK121: 0.0005260395327 | BL121: =SUMIFS(UdS_data!L:L,UdS_data!N:N,1,UdS_data!E:E,SEE_agrg!D121) -> 464450.1531 | BM121: 3145.414456 | BN121: 0.005163758478 | BO121: 0.0003155630181 | BP121: 0.001004064149 | BQ121: 0.9991347836 | BR121: 0.9826411544 | BS121: 0.6485502002 | BT121: 0.6312636486 | BU121: 5 | BV121: 0 | BW121: 0 | BX121: 0 | BY121: 5 | BZ121: 5 | CA121: 0 | CB121: 0 | CC121: 1
A122: NO | B122: TransOeste | C122: Pedra de Itana | D122: Pedra de Itana | E122: 500590.29 | F122: 853.01949 | G122: 296.56859 | H122: 198.69118 | I122: 39.6438 | J122: 2.5519 | K122: 246.45086 | L122: 44.8546 | M122: 4.18334 | N122: 63.70368 | O122: 7.41304 | P122: 1.77856 | Q122: 246.45086 | R122: 44.8546 | S122: 4.18334 | T122: 296.56859 | U122: 286.18491 | V122: 240.86742 | W122: 0.25632 | X122: 9.89768 | Y122: 11.3419 | Z122: 5.06588 | AA122: 9.68493 | AB122: 60.15234 | AC122: 30.30451 | AD122: 45.13772 | AE122: 80.31864 | AF122: 252.15992 | AG122: 0.56168 | AH122: 27.57138 | AI122: 40.64752 | AJ122: 23.49631 | AK122: 41.84418 | AL122: 121.0273 | AM122: 49.31979 | AN122: 77.88965 | AO122: 119.64317 | AP122: 241.49794 | AQ122: 743.49892 | AR122: 502.00098 | AS122: 1 | AT122: 0.001016497784 | AU122: 0.03925159875 | AV122: 0.04497899587 | AW122: 0.02008994927 | AX122: 0.03840788814 | AY122: 0.2385483783 | AZ122: 0.1201797256 | BA122: 0.1790043398 | BB122: 0.3185226264 | BC122: 0.001118882278 | BD122: 0.05492296051 | BE122: 0.08097099731 | BF122: 0.04680530703 | BG122: 0.08335477751 | BH122: 0.2410897684 | BI122: 0.09824640183 | BJ122: 0.1551583624 | BK122: 0.2383325427 | BL122: =SUMIFS(UdS_data!L:L,UdS_data!N:N,1,UdS_data!E:E,SEE_agrg!D122) -> 358878.1659 | BM122: 1704.027239 | BN122: 0.8122467723 | BO122: 0.9963590547 | BP122: 0.2457956859 | BQ122: 0.9649872564 | BR122: 0.8121811551 | BS122: 0.8884222698 | BT122: 0.9367132592 | BU122: 5 | BV122: 2 | BW122: 5 | BX122: 0 | BY122: 5 | BZ122: 2 | CA122: 3 | CB122: 4 | CC122: 0
